Workbook

Sheet Cover
B1: v1.0
B2: How do I use this?
A4: 0 | B4: Enable Macros to allow the small VBA module that sets the cell background color to the hex color it gets as input to work.
A6: 1 | B6: Input a hex color code in Column B.
A7: 2 | B7: Enter a number into one or more of the Δ fields in Column D, E and F to change the Luminance, Chroma or Hue of the original color you have in Column B.
A8: 3 | B8: See the effect of your changes in Column L, and compare it to the original color in the adjacent Column K.
A9: 4 | B9: Copy the hex color code output in Column I for the new color you just generated.
B10: If you want the RGB values instead, you will find these in Column BC, BD and BE.
A12: 5 | B12: You can use the grid of numbers to the right end of the sheet, starting from Column BH onwards to check the contrast ratio between a pair of colors.
A13: 6 | B13: Find the contrast ratio for a pair of colors by their hex codes in Row 1 and Column I.
B14: The number in the cell where these intersect is their contrast ratio.
A16: 7 | B16: Changing the Luminance using Column D will change the contrast ratio between two colors. Use this to get to your target contrast.
A17: 8 | B17: To do this automatically using Goal Seek, select the cell for the contrast ratio you want changed in the grid,
B18: then go to the Data tab at the top of your screen, select What-If-Analysis, then Goal Seek.
B19: You can also get to this using the shortcut key sequence ALT+T followed by G.
B20: Enter the target value you need in the "To value:" field,
B21: Enter Dx in the "By changing cell:" field, where x is the same row number you see in the "Set cell:" field above,
B22: Hit Ok - your sheet will step through different numbers till it finds something that will get you to your target contrast ratio.
A24: 9 | B24: Play around! Add more colors into Rows 4 to 43 and use the power of Goal Seek and other formulae in Excel to generate your colors and ramps.
A25: 10 | B25: Reach out to me on LinkedIn with questions or feedback: https://www.linkedin.com/in/sjamdar/
B29: Some Definitions
B31: Hue - h (measured in degrees or radians)
B32: Hue is the degree to which a stimulus can be described as similar to or different from stimuli that are described as red, orange, yellow, green, blue, violet. Think of it as the position of the color on the color wheel.
B34: Chroma - C (no units)
B35: Chroma is the colorfulness of an area judged as a proportion of the brightness of a similarly illuminated area that appears white or highly transmitting. As a result, chroma is mostly only dependent on the spectral properties, and as such is seen to describe the object color. It is how different from a grey of the same lightness such an object color appears to be. Think of it as what we would often term how "Saturated" the color looks.
B36: Luminance - L (measured in candela pre sq. meter)
B37: Luminance is a photometric measure of the luminous intensity per unit area of light travelling in a given direction. It describes the amount of light that passes through, is emitted from, or is reflected from a particular area, and falls within a given solid angle. Think of it as how bright something an object or a block of color looks.
B39: Relative Luminance - Y (no units)
B40: Relative luminance follows the photometric definition of luminance including spectral weighting for human vision. Relative luminance values are normalized as 0.0 to 1.0, with 1.0 being a theoretical perfect reflector of 100% reference white. This is what is used for calculating contrast ratio to test for Accessibility requirements.
B42: sRGB Color Space
B43: sRGB is the current defined standard color space for the web, and it is usually the assumed color space for images. Colors in sRGB can be easily derived from Hex color codes we see on the web by splitting the Hex code into it's R, G, and B components and dividing these by 255.
B44: https://en.wikipedia.org/wiki/SRGB
B46: Gamma Correction
B47: Gamma correction is a nonlinear operation used to encode and decode luminance in video or still image systems. The values in the sRGB space that we are familiar with on the web as Hex or RGB color codes need to be transformed to Linear RGB before they can be used for further manipulation.
B48: https://en.wikipedia.org/wiki/Gamma_correction
B50: Lab Color Space
B51: A color space defined by the International Commission on Illumination (CIE) in 1976. The L here is the color's Luminance, a represents where the color lies on the red-green axis, while b does this for the blue-yellow axis.
B52: https://en.wikipedia.org/wiki/CIELAB_color_space
B56: Acknowledgements
B58: The OKLab Color Space & Transforms
B59: This tool would not be as accurate, and certainly not as easy to have put together had it not been for Björn Ottosson's excellent work and his openness to sharing it, including the all critical Transform Matrices. I would have had to convert Linear RGB into XYZ, then LMS, then OKLab if he had not also provided the direct Transform Matrix for this.
B60: https://bottosson.github.io/posts/oklab/
B63: Coloring Excel cells with a user defined function
B64: Thanks to Tim Williams for his answer on StackOverflow that was the basis for the myHex function I've used in this tool.
B65: https://stackoverflow.com/questions/33179452/change-a-cells-background-color-dynamically-according-to-a-rgb-value-stored-in
B68: Web Content Accessibility Guidelines (WCAG) 2.2
B69: Thanks to the editors and everyone involved in the Accessibility Guidelines Working Group for laying out the standards we must strive to follow and explaining how to test for them clearly.
B70: https://www.w3.org/TR/WCAG22/
B73: Information on Color Appearance Models
B74: None of this would have been possible without dipping my toes into the ocean of information and research that exists on the subject of human vision and color perception at Wikipedia.
B75: https://en.wikipedia.org/wiki/Color_appearance_model
B78: How to use Goal Seek
B79: I was introduced to one of the key mechanisms that makes this tool powerful by Niki, my wife, who uses Excel extensively in her work as a Financial Planning and Analysis professional. I may never have built this if I didn’t realize how powerful Goal Seek can be.
B83: Suggested Further Reading
B85: A Physiologically-based Model for Simulation of Color Vision Deficiency
B86: Gustavo M. Machado, Manuel M. Oliveira and Leandro A. F. Fernandes have done some fantastic work on simulating color blindness, that I plan to incorporate into this tool in the future.
B87: https://www.inf.ufrgs.br/~oliveira/pubs_files/CVD_Simulation/CVD_Simulation.html
B90: ZCAM
B91: Another model based on a Uniform Color Space that also works for HDR content - something I plan to explore in the future.
B92: https://opg.optica.org/oe/fulltext.cfm?uri=oe-29-4-6036&id=447640
B95: How to create User Defined Functions in Excel
B96: Useful if you want to do things that are more complex in Excel, but don’t want to build out your own standalone app.
B97: https://support.microsoft.com/en-us/office/create-custom-functions-in-excel-2f06c10b-3622-40d6-a1b2-b6748ae8231f

Sheet Color Calculator
B1: Inputs | I1: Output | K1: Source Color | L1: New Color | M1: 8-Bit RGB | P1: =M1 -> 8-Bit RGB | Q1: sRGB | T1: =Q1 -> sRGB | U1: Linear RGB | X1: =U1 -> Linear RGB | Y1: Original Relative Luminance | Z1: LMS | AC1: =Z1 -> LMS | AD1: okLab | AI1: =AD1 -> okLab | AJ1: New okLab | AO1: =AJ1 -> New okLab | AP1: New LMS | AS1: =AP1 -> New LMS | AT1: New L-RGB | AW1: =AT1 -> New L-RGB | AX1: New Relative Luminance | AY1: New sRGB | BB1: =AY1 -> New sRGB | BC1: New 8-Bit | BF1: =BC1 -> New 8-Bit | BG1: Transforms | BH1: =TRANSPOSE(I4:J43) -> #F7C400 | BI1: #FFBA00 | BJ1: #FFC500 | BK1: #FFFFFF | BL1: #000000 | BM1: #3B3B3B | BN1: #111111 | BO1: #252525 | BP1: #CECECE | BQ1: #E8E8E8 | BR1: #525252 | BS1: #FF0300 | BT1: #9C0000 | BU1: #E10000 | BV1: #FA2B00 | BW1: #FF9600 | BX1: #00FF57 | BY1: #00CC00 | BZ1: #005800 | CA1: #BDBDBD | CB1: #858585 | CC1: #FFFFFF | CD1: #FFFFFF | CE1: #FFFFFF | CF1: #FFFFFF | CG1: #FFFFFF | CH1: #FFFFFF | CI1: #FFFFFF | CJ1: #FFFFFF | CK1: #FFFFFF | CL1: #FFFFFF | CM1: #FFFFFF | CN1: #FFFFFF | CO1: #FFFFFF | CP1: #FFFFFF | CQ1: #FFFFFF | CR1: #FFFFFF | CS1: #FFFFFF | CT1: #FFFFFF | CU1: #FFFFFF
BH2: 0.594113316 | BI2: 0.5656902706 | BJ2: 0.6099687032 | BK2: 0.9999999648 | BL2: 0 | BM2: 0.04348332 | BN2: 0.00543541 | BO2: 0.01834453 | BP2: 0.61783549 | BQ2: 0.8043569854 | BR2: 0.08492836 | BS2: 0.2130151284 | BT2: 0.07037972692 | BU2: 0.1595835426 | BV2: 0.2208655632 | BW2: 0.4314653037 | BX2: 0.7220553734 | BY2: 0.4322634399 | BZ2: 0.07035095554 | CA2: 0.5111759434 | CB2: 0.23557102 | CC2: 0.9999999648 | CD2: 0.9999999648 | CE2: 0.9999999648 | CF2: 0.9999999648 | CG2: 0.9999999648 | CH2: 0.9999999648 | CI2: 0.9999999648 | CJ2: 0.9999999648 | CK2: 0.9999999648 | CL2: 0.9999999648 | CM2: 0.9999999648 | CN2: 0.9999999648 | CO2: 0.9999999648 | CP2: 0.9999999648 | CQ2: 0.9999999648 | CR2: 0.9999999648 | CS2: 0.9999999648 | CT2: 0.9999999648 | CU2: 0.9999999648
A3: ColorSource | B3: HexSource | D3: ΔL% | E3: ΔC% | F3: Δh∘ | H3: Name / Notes | I3: HexNew | L3: ColorNew | M3: R8-bit | N3: G8-bit | O3: B8-bit | Q3: RsRGB | R3: GsRGB | S3: BsRGB | U3: Rlinear | V3: Glinear | W3: Blinear | Y3: Yoriginal | Z3: l | AA3: m | AB3: s | AD3: L | AE3: a | AF3: b | AG3: C | AH3: h​∘ | AJ3: LNew | AK3: aNew | AL3: bNew | AM3: CNew | AN3: h∘New | AP3: lNew | AQ3: mNew | AR3: sNew | AT3: Rlinear-N | AU3: Glinear-N | AV3: Blinear-N | AX3: Ynew | AY3: RsRGB-New | AZ3: GsRGB-New | BA3: BsRGB-New | BC3: R8-bit-N | BD3: G8-bit-N | BE3: B8-bit-N | BH3: =myHex(BH$1) ->  | BI3: =myHex(BI$1) -> 
A4: =myHex(B4) ->  | B4: #ffc000 | D4: 0 | E4: 0 | F4: 5.424683177 | H4: Rotate to get hue to exactly 90 | I4: =CONCATENATE("#",DEC2HEX($BC4,2),DEC2HEX($BD4,2),DEC2HEX($BE4,2)) -> #F7C400 | J4: =$AX4 -> 0.594113316 | K4: =myHex(B4) ->  | L4: =myHex(I4) ->  | M4: =HEX2DEC(MID($B4,2,2)) -> 255 | N4: =HEX2DEC(MID($B4,4,2)) -> 192 | O4: =HEX2DEC(MID($B4,6,2)) -> 0 | Q4: =$M4/255 -> 1 | R4: =$N4/255 -> 0.7529411765 | S4: =$O4/255 -> 0 | U4: =IF($Q4 > 'C'!$D$33,((($Q4 + 'C'!$D$30) / 'C'!$D$31)) ^ 'C'!$D$32,($Q4 / 'C'!$D$29)) -> 1 | V4: =IF($R4 > 'C'!$D$33,((($R4 + 'C'!$D$30) / 'C'!$D$31)) ^ 'C'!$D$32,($R4 / 'C'!$D$29)) -> 0.5271151257 | W4: =IF($S4 > 'C'!$D$33,((($S4 + 'C'!$D$30) / 'C'!$D$31)) ^ 'C'!$D$32,($S4 / 'C'!$D$29)) -> 0 | Y4: =('C'!$D$44 * $U4) +( 'C'!$D$45 * $V4) + ('C'!$D$46 * $W4) -> 0.5895927379 | Z4: =ROUND( ('C'!$D$69 * $U4) + ('C'!$E$69 * $V4) + ('C'!$F$69 * $W4), 'C'!$D$75) -> 0.69493046 | AA4: =ROUND( ('C'!$D$70 * $U4) + ('C'!$E$70 * $V4) + ('C'!$F$70 * $W4), 'C'!$D$75) -> 0.57071052 | AB4: =ROUND( ('C'!$D$71 * $U4) + ('C'!$E$71 * $V4) + ('C'!$F$71 * $W4), 'C'!$D$75) -> 0.23680072 | AD4: =ROUND( ('C'!$D$82 * ($Z4^'C'!$D$89)) + ('C'!$E$82 * ($AA4^'C'!$D$89)) + ('C'!$F$82 * ($AB4^'C'!$D$89)), 'C'!$D$88) -> 0.84218085 | AE4: =ROUND( ('C'!$D$83 * ($Z4^'C'!$D$89)) + ('C'!$E$83 * ($AA4^'C'!$D$89)) + ('C'!$F$83 * ($AB4^'C'!$D$89)), 'C'!$D$88) -> 0.01632705 | AF4: =ROUND( ('C'!$D$84 * ($Z4^'C'!$D$89)) + ('C'!$E$84 * ($AA4^'C'!$D$89)) + ('C'!$F$84 * ($AB4^'C'!$D$89)), 'C'!$D$88) -> 0.17193155 | AG4: =(($AE4 ^ 2) + ($AF4 ^ 2)) ^ 0.5 -> 0.1727050389 | AH4: =IFERROR(DEGREES(ATAN2($AE4,$AF4)),0) -> 84.57531682 | AJ4: =MIN(1,MAX(0,$AD4+$D4)) -> 0.84218085 | AK4: =$AM4 * COS(RADIANS($AN4)) -> -2.776875655e-17 | AL4: =$AM4 * SIN(RADIANS($AN4)) -> 0.1727050389 | AM4: =MIN(1,MAX(0,$AG4+($E4*$AG4))) -> 0.1727050389 | AN4: =MOD($AH4+$F4, 360) -> 90 | AP4: =ROUND( ('C'!$D$105 * $AJ4) + ('C'!$E$105 * $AK4) + ('C'!$F$105 * $AL4), 'C'!$D$111) ^ 'C'!$D$112 -> 0.6801979388 | AQ4: =ROUND( ('C'!$D$106 * $AJ4) + ('C'!$E$106 * $AK4) + ('C'!$F$106 * $AL4), 'C'!$D$111) ^ 'C'!$D$112 -> 0.5741730303 | AR4: =ROUND( ('C'!$D$107 * $AJ4) + ('C'!$E$107 * $AK4) + ('C'!$F$107 * $AL4), 'C'!$D$111) ^ 'C'!$D$112 -> 0.2373316316 | AT4: =MIN(1, MAX(0, ROUND( ('C'!$D$119 * $AP4) + ('C'!$E$119 * $AQ4) + ('C'!$F$119 * $AR4), 'C'!$D$125))) -> 0.92860896 | AU4: =MIN(1,MAX(0,ROUND( ('C'!$D$120 * $AP4) + ('C'!$E$120 * $AQ4) + ('C'!$F$120 * $AR4), 'C'!$D$125))) -> 0.55465751 | AV4: =MIN(1,MAX(0,ROUND( ('C'!$D$121 * $AP4) + ('C'!$E$121 * $AQ4) + ('C'!$F$121 * $AR4), 'C'!$D$125))) -> 0 | AX4: =('C'!$D$44 * $AT4) +( 'C'!$D$45 * $AU4) + ('C'!$D$46 * $AV4) -> 0.594113316 | AY4: =IF($AT4>'C'!$D$142, ($AT4 ^ (1/'C'!$D$141) * 'C'!$D$140) - 'C'!$D$139, $AT4 * 'C'!$D$138) -> 0.9679384161 | AZ4: =IF($AU4>'C'!$D$142, ($AU4 ^ (1/'C'!$D$141) * 'C'!$D$140) - 'C'!$D$139, $AU4 * 'C'!$D$138) -> 0.770270207 | BA4: =IF($AV4>'C'!$D$142, ($AV4 ^ (1/'C'!$D$141) * 'C'!$D$140) - 'C'!$D$139, $AV4 * 'C'!$D$138) -> 0 | BC4: =ROUND($AY4*255,0) -> 247 | BD4: =ROUND($AZ4*255,0) -> 196 | BE4: =ROUND($BA4*255,0) -> 0 | BG4: =myHex($I4) ->  | BH4: =IFERROR(ROUNDDOWN((MAX(BH$2,$J4) + 'C'!$D$57) / (MIN(BH$2,$J4) + 'C'!$D$57),1),"") -> 1 | BI4: =IFERROR(ROUNDDOWN((MAX(BI$2,$J4) + 'C'!$D$57) / (MIN(BI$2,$J4) + 'C'!$D$57),1),"") -> 1 | BJ4: =IFERROR(ROUNDDOWN((MAX(BJ$2,$J4) + 'C'!$D$57) / (MIN(BJ$2,$J4) + 'C'!$D$57),1),"") -> 1 | BK4: =IFERROR(ROUNDDOWN((MAX(BK$2,$J4) + 'C'!$D$57) / (MIN(BK$2,$J4) + 'C'!$D$57),1),"") -> 1.6 | BL4: =IFERROR(ROUNDDOWN((MAX(BL$2,$J4) + 'C'!$D$57) / (MIN(BL$2,$J4) + 'C'!$D$57),1),"") -> 12.8 | BM4: =IFERROR(ROUNDDOWN((MAX(BM$2,$J4) + 'C'!$D$57) / (MIN(BM$2,$J4) + 'C'!$D$57),1),"") -> 6.8 | BN4: =IFERROR(ROUNDDOWN((MAX(BN$2,$J4) + 'C'!$D$57) / (MIN(BN$2,$J4) + 'C'!$D$57),1),"") -> 11.6 | BO4: =IFERROR(ROUNDDOWN((MAX(BO$2,$J4) + 'C'!$D$57) / (MIN(BO$2,$J4) + 'C'!$D$57),1),"") -> 9.4 | BP4: =IFERROR(ROUNDDOWN((MAX(BP$2,$J4) + 'C'!$D$57) / (MIN(BP$2,$J4) + 'C'!$D$57),1),"") -> 1 | BQ4: =IFERROR(ROUNDDOWN((MAX(BQ$2,$J4) + 'C'!$D$57) / (MIN(BQ$2,$J4) + 'C'!$D$57),1),"") -> 1.3 | BR4: =IFERROR(ROUNDDOWN((MAX(BR$2,$J4) + 'C'!$D$57) / (MIN(BR$2,$J4) + 'C'!$D$57),1),"") -> 4.7 | BS4: =IFERROR(ROUNDDOWN((MAX(BS$2,$J4) + 'C'!$D$57) / (MIN(BS$2,$J4) + 'C'!$D$57),1),"") -> 2.4 | BT4: =IFERROR(ROUNDDOWN((MAX(BT$2,$J4) + 'C'!$D$57) / (MIN(BT$2,$J4) + 'C'!$D$57),1),"") -> 5.3 | BU4: =IFERROR(ROUNDDOWN((MAX(BU$2,$J4) + 'C'!$D$57) / (MIN(BU$2,$J4) + 'C'!$D$57),1),"") -> 3 | BV4: =IFERROR(ROUNDDOWN((MAX(BV$2,$J4) + 'C'!$D$57) / (MIN(BV$2,$J4) + 'C'!$D$57),1),"") -> 2.3 | BW4: =IFERROR(ROUNDDOWN((MAX(BW$2,$J4) + 'C'!$D$57) / (MIN(BW$2,$J4) + 'C'!$D$57),1),"") -> 1.3 | BX4: =IFERROR(ROUNDDOWN((MAX(BX$2,$J4) + 'C'!$D$57) / (MIN(BX$2,$J4) + 'C'!$D$57),1),"") -> 1.1 | BY4: =IFERROR(ROUNDDOWN((MAX(BY$2,$J4) + 'C'!$D$57) / (MIN(BY$2,$J4) + 'C'!$D$57),1),"") -> 1.3 | BZ4: =IFERROR(ROUNDDOWN((MAX(BZ$2,$J4) + 'C'!$D$57) / (MIN(BZ$2,$J4) + 'C'!$D$57),1),"") -> 5.3 | CA4: =IFERROR(ROUNDDOWN((MAX(CA$2,$J4) + 'C'!$D$57) / (MIN(CA$2,$J4) + 'C'!$D$57),1),"") -> 1.1 | CB4: =IFERROR(ROUNDDOWN((MAX(CB$2,$J4) + 'C'!$D$57) / (MIN(CB$2,$J4) + 'C'!$D$57),1),"") -> 2.2 | CC4: =IFERROR(ROUNDDOWN((MAX(CC$2,$J4) + 'C'!$D$57) / (MIN(CC$2,$J4) + 'C'!$D$57),1),"") -> 1.6 | CD4: =IFERROR(ROUNDDOWN((MAX(CD$2,$J4) + 'C'!$D$57) / (MIN(CD$2,$J4) + 'C'!$D$57),1),"") -> 1.6 | CE4: =IFERROR(ROUNDDOWN((MAX(CE$2,$J4) + 'C'!$D$57) / (MIN(CE$2,$J4) + 'C'!$D$57),1),"") -> 1.6 | CF4: =IFERROR(ROUNDDOWN((MAX(CF$2,$J4) + 'C'!$D$57) / (MIN(CF$2,$J4) + 'C'!$D$57),1),"") -> 1.6 | CG4: =IFERROR(ROUNDDOWN((MAX(CG$2,$J4) + 'C'!$D$57) / (MIN(CG$2,$J4) + 'C'!$D$57),1),"") -> 1.6 | CH4: =IFERROR(ROUNDDOWN((MAX(CH$2,$J4) + 'C'!$D$57) / (MIN(CH$2,$J4) + 'C'!$D$57),1),"") -> 1.6 | CI4: =IFERROR(ROUNDDOWN((MAX(CI$2,$J4) + 'C'!$D$57) / (MIN(CI$2,$J4) + 'C'!$D$57),1),"") -> 1.6 | CJ4: =IFERROR(ROUNDDOWN((MAX(CJ$2,$J4) + 'C'!$D$57) / (MIN(CJ$2,$J4) + 'C'!$D$57),1),"") -> 1.6 | CK4: =IFERROR(ROUNDDOWN((MAX(CK$2,$J4) + 'C'!$D$57) / (MIN(CK$2,$J4) + 'C'!$D$57),1),"") -> 1.6 | CL4: =IFERROR(ROUNDDOWN((MAX(CL$2,$J4) + 'C'!$D$57) / (MIN(CL$2,$J4) + 'C'!$D$57),1),"") -> 1.6 | CM4: =IFERROR(ROUNDDOWN((MAX(CM$2,$J4) + 'C'!$D$57) / (MIN(CM$2,$J4) + 'C'!$D$57),1),"") -> 1.6 | CN4: =IFERROR(ROUNDDOWN((MAX(CN$2,$J4) + 'C'!$D$57) / (MIN(CN$2,$J4) + 'C'!$D$57),1),"") -> 1.6 | CO4: =IFERROR(ROUNDDOWN((MAX(CO$2,$J4) + 'C'!$D$57) / (MIN(CO$2,$J4) + 'C'!$D$57),1),"") -> 1.6 | CP4: =IFERROR(ROUNDDOWN((MAX(CP$2,$J4) + 'C'!$D$57) / (MIN(CP$2,$J4) + 'C'!$D$57),1),"") -> 1.6 | CQ4: =IFERROR(ROUNDDOWN((MAX(CQ$2,$J4) + 'C'!$D$57) / (MIN(CQ$2,$J4) + 'C'!$D$57),1),"") -> 1.6 | CR4: =IFERROR(ROUNDDOWN((MAX(CR$2,$J4) + 'C'!$D$57) / (MIN(CR$2,$J4) + 'C'!$D$57),1),"") -> 1.6 | CS4: =IFERROR(ROUNDDOWN((MAX(CS$2,$J4) + 'C'!$D$57) / (MIN(CS$2,$J4) + 'C'!$D$57),1),"") -> 1.6 | CT4: =IFERROR(ROUNDDOWN((MAX(CT$2,$J4) + 'C'!$D$57) / (MIN(CT$2,$J4) + 'C'!$D$57),1),"") -> 1.6 | CU4: =IFERROR(ROUNDDOWN((MAX(CU$2,$J4) + 'C'!$D$57) / (MIN(CU$2,$J4) + 'C'!$D$57),1),"") -> 1.6
A5: =myHex(B5) ->  | B5: #ffc000 | D5: 0 | E5: 0.5995785058 | F5: 5.424683177 | H5: Bump up chroma to be equidistant from pure red and pure green | I5: =CONCATENATE("#",DEC2HEX($BC5,2),DEC2HEX($BD5,2),DEC2HEX($BE5,2)) -> #FFBA00 | J5: =$AX5 -> 0.5656902706 | M5: =HEX2DEC(MID($B5,2,2)) -> 255 | N5: =HEX2DEC(MID($B5,4,2)) -> 192 | O5: =HEX2DEC(MID($B5,6,2)) -> 0 | Q5: =$M5/255 -> 1 | R5: =$N5/255 -> 0.7529411765 | S5: =$O5/255 -> 0 | U5: =IF($Q5 > 'C'!$D$33,((($Q5 + 'C'!$D$30) / 'C'!$D$31)) ^ 'C'!$D$32,($Q5 / 'C'!$D$29)) -> 1 | V5: =IF($R5 > 'C'!$D$33,((($R5 + 'C'!$D$30) / 'C'!$D$31)) ^ 'C'!$D$32,($R5 / 'C'!$D$29)) -> 0.5271151257 | W5: =IF($S5 > 'C'!$D$33,((($S5 + 'C'!$D$30) / 'C'!$D$31)) ^ 'C'!$D$32,($S5 / 'C'!$D$29)) -> 0 | Y5: =('C'!$D$44 * $U5) +( 'C'!$D$45 * $V5) + ('C'!$D$46 * $W5) -> 0.5895927379 | Z5: =ROUND( ('C'!$D$69 * $U5) + ('C'!$E$69 * $V5) + ('C'!$F$69 * $W5), 'C'!$D$75) -> 0.69493046 | AA5: =ROUND( ('C'!$D$70 * $U5) + ('C'!$E$70 * $V5) + ('C'!$F$70 * $W5), 'C'!$D$75) -> 0.57071052 | AB5: =ROUND( ('C'!$D$71 * $U5) + ('C'!$E$71 * $V5) + ('C'!$F$71 * $W5), 'C'!$D$75) -> 0.23680072 | AD5: =ROUND( ('C'!$D$82 * ($Z5^'C'!$D$89)) + ('C'!$E$82 * ($AA5^'C'!$D$89)) + ('C'!$F$82 * ($AB5^'C'!$D$89)), 'C'!$D$88) -> 0.84218085 | AE5: =ROUND( ('C'!$D$83 * ($Z5^'C'!$D$89)) + ('C'!$E$83 * ($AA5^'C'!$D$89)) + ('C'!$F$83 * ($AB5^'C'!$D$89)), 'C'!$D$88) -> 0.01632705 | AF5: =ROUND( ('C'!$D$84 * ($Z5^'C'!$D$89)) + ('C'!$E$84 * ($AA5^'C'!$D$89)) + ('C'!$F$84 * ($AB5^'C'!$D$89)), 'C'!$D$88) -> 0.17193155 | AG5: =(($AE5 ^ 2) + ($AF5 ^ 2)) ^ 0.5 -> 0.1727050389 | AH5: =IFERROR(DEGREES(ATAN2($AE5,$AF5)),0) -> 84.57531682 | AJ5: =MIN(1,MAX(0,$AD5+$D5)) -> 0.84218085 | AK5: =$AM5 * COS(RADIANS($AN5)) -> -4.44183061e-17 | AL5: =$AM5 * SIN(RADIANS($AN5)) -> 0.276255268 | AM5: 0.276255268 | AN5: =MOD($AH5+$F5, 360) -> 90 | AP5: =ROUND( ('C'!$D$105 * $AJ5) + ('C'!$E$105 * $AK5) + ('C'!$F$105 * $AL5), 'C'!$D$111) ^ 'C'!$D$112 -> 0.7333773132 | AQ5: =ROUND( ('C'!$D$106 * $AJ5) + ('C'!$E$106 * $AK5) + ('C'!$F$106 * $AL5), 'C'!$D$111) ^ 'C'!$D$112 -> 0.5605785178 | AR5: =ROUND( ('C'!$D$107 * $AJ5) + ('C'!$E$107 * $AK5) + ('C'!$F$107 * $AL5), 'C'!$D$111) ^ 'C'!$D$112 -> 0.1143674478 | AT5: =MIN(1, MAX(0, ROUND( ('C'!$D$119 * $AP5) + ('C'!$E$119 * $AQ5) + ('C'!$F$119 * $AR5), 'C'!$D$125))) -> 1 | AU5: =MIN(1,MAX(0,ROUND( ('C'!$D$120 * $AP5) + ('C'!$E$120 * $AQ5) + ('C'!$F$120 * $AR5), 'C'!$D$125))) -> 0.49369445 | AV5: =MIN(1,MAX(0,ROUND( ('C'!$D$121 * $AP5) + ('C'!$E$121 * $AQ5) + ('C'!$F$121 * $AR5), 'C'!$D$125))) -> 0 | AX5: =('C'!$D$44 * $AT5) +( 'C'!$D$45 * $AU5) + ('C'!$D$46 * $AV5) -> 0.5656902706 | AY5: =IF($AT5>'C'!$D$142, ($AT5 ^ (1/'C'!$D$141) * 'C'!$D$140) - 'C'!$D$139, $AT5 * 'C'!$D$138) -> 1 | AZ5: =IF($AU5>'C'!$D$142, ($AU5 ^ (1/'C'!$D$141) * 'C'!$D$140) - 'C'!$D$139, $AU5 * 'C'!$D$138) -> 0.7311885752 | BA5: =IF($AV5>'C'!$D$142, ($AV5 ^ (1/'C'!$D$141) * 'C'!$D$140) - 'C'!$D$139, $AV5 * 'C'!$D$138) -> 0 | BC5: =ROUND($AY5*255,0) -> 255 | BD5: =ROUND($AZ5*255,0) -> 186 | BE5: =ROUND($BA5*255,0) -> 0 | BG5: =myHex($I5) ->  | BH5: =IFERROR(ROUNDDOWN((MAX(BH$2,$J5) + 'C'!$D$57) / (MIN(BH$2,$J5) + 'C'!$D$57),1),"") -> 1 | BI5: =IFERROR(ROUNDDOWN((MAX(BI$2,$J5) + 'C'!$D$57) / (MIN(BI$2,$J5) + 'C'!$D$57),1),"") -> 1 | BJ5: =IFERROR(ROUNDDOWN((MAX(BJ$2,$J5) + 'C'!$D$57) / (MIN(BJ$2,$J5) + 'C'!$D$57),1),"") -> 1 | BK5: =IFERROR(ROUNDDOWN((MAX(BK$2,$J5) + 'C'!$D$57) / (MIN(BK$2,$J5) + 'C'!$D$57),1),"") -> 1.7 | BL5: =IFERROR(ROUNDDOWN((MAX(BL$2,$J5) + 'C'!$D$57) / (MIN(BL$2,$J5) + 'C'!$D$57),1),"") -> 12.3 | BM5: =IFERROR(ROUNDDOWN((MAX(BM$2,$J5) + 'C'!$D$57) / (MIN(BM$2,$J5) + 'C'!$D$57),1),"") -> 6.5 | BN5: =IFERROR(ROUNDDOWN((MAX(BN$2,$J5) + 'C'!$D$57) / (MIN(BN$2,$J5) + 'C'!$D$57),1),"") -> 11.1 | BO5: =IFERROR(ROUNDDOWN((MAX(BO$2,$J5) + 'C'!$D$57) / (MIN(BO$2,$J5) + 'C'!$D$57),1),"") -> 9 | BP5: =IFERROR(ROUNDDOWN((MAX(BP$2,$J5) + 'C'!$D$57) / (MIN(BP$2,$J5) + 'C'!$D$57),1),"") -> 1 | BQ5: =IFERROR(ROUNDDOWN((MAX(BQ$2,$J5) + 'C'!$D$57) / (MIN(BQ$2,$J5) + 'C'!$D$57),1),"") -> 1.3 | BR5: =IFERROR(ROUNDDOWN((MAX(BR$2,$J5) + 'C'!$D$57) / (MIN(BR$2,$J5) + 'C'!$D$57),1),"") -> 4.5 | BS5: =IFERROR(ROUNDDOWN((MAX(BS$2,$J5) + 'C'!$D$57) / (MIN(BS$2,$J5) + 'C'!$D$57),1),"") -> 2.3 | BT5: =IFERROR(ROUNDDOWN((MAX(BT$2,$J5) + 'C'!$D$57) / (MIN(BT$2,$J5) + 'C'!$D$57),1),"") -> 5.1 | BU5: =IFERROR(ROUNDDOWN((MAX(BU$2,$J5) + 'C'!$D$57) / (MIN(BU$2,$J5) + 'C'!$D$57),1),"") -> 2.9 | BV5: =IFERROR(ROUNDDOWN((MAX(BV$2,$J5) + 'C'!$D$57) / (MIN(BV$2,$J5) + 'C'!$D$57),1),"") -> 2.2 | BW5: =IFERROR(ROUNDDOWN((MAX(BW$2,$J5) + 'C'!$D$57) / (MIN(BW$2,$J5) + 'C'!$D$57),1),"") -> 1.2 | BX5: =IFERROR(ROUNDDOWN((MAX(BX$2,$J5) + 'C'!$D$57) / (MIN(BX$2,$J5) + 'C'!$D$57),1),"") -> 1.2 | BY5: =IFERROR(ROUNDDOWN((MAX(BY$2,$J5) + 'C'!$D$57) / (MIN(BY$2,$J5) + 'C'!$D$57),1),"") -> 1.2 | BZ5: =IFERROR(ROUNDDOWN((MAX(BZ$2,$J5) + 'C'!$D$57) / (MIN(BZ$2,$J5) + 'C'!$D$57),1),"") -> 5.1 | CA5: =IFERROR(ROUNDDOWN((MAX(CA$2,$J5) + 'C'!$D$57) / (MIN(CA$2,$J5) + 'C'!$D$57),1),"") -> 1 | CB5: =IFERROR(ROUNDDOWN((MAX(CB$2,$J5) + 'C'!$D$57) / (MIN(CB$2,$J5) + 'C'!$D$57),1),"") -> 2.1 | CC5: =IFERROR(ROUNDDOWN((MAX(CC$2,$J5) + 'C'!$D$57) / (MIN(CC$2,$J5) + 'C'!$D$57),1),"") -> 1.7 | CD5: =IFERROR(ROUNDDOWN((MAX(CD$2,$J5) + 'C'!$D$57) / (MIN(CD$2,$J5) + 'C'!$D$57),1),"") -> 1.7 | CE5: =IFERROR(ROUNDDOWN((MAX(CE$2,$J5) + 'C'!$D$57) / (MIN(CE$2,$J5) + 'C'!$D$57),1),"") -> 1.7 | CF5: =IFERROR(ROUNDDOWN((MAX(CF$2,$J5) + 'C'!$D$57) / (MIN(CF$2,$J5) + 'C'!$D$57),1),"") -> 1.7 | CG5: =IFERROR(ROUNDDOWN((MAX(CG$2,$J5) + 'C'!$D$57) / (MIN(CG$2,$J5) + 'C'!$D$57),1),"") -> 1.7 | CH5: =IFERROR(ROUNDDOWN((MAX(CH$2,$J5) + 'C'!$D$57) / (MIN(CH$2,$J5) + 'C'!$D$57),1),"") -> 1.7 | CI5: =IFERROR(ROUNDDOWN((MAX(CI$2,$J5) + 'C'!$D$57) / (MIN(CI$2,$J5) + 'C'!$D$57),1),"") -> 1.7 | CJ5: =IFERROR(ROUNDDOWN((MAX(CJ$2,$J5) + 'C'!$D$57) / (MIN(CJ$2,$J5) + 'C'!$D$57),1),"") -> 1.7 | CK5: =IFERROR(ROUNDDOWN((MAX(CK$2,$J5) + 'C'!$D$57) / (MIN(CK$2,$J5) + 'C'!$D$57),1),"") -> 1.7 | CL5: =IFERROR(ROUNDDOWN((MAX(CL$2,$J5) + 'C'!$D$57) / (MIN(CL$2,$J5) + 'C'!$D$57),1),"") -> 1.7 | CM5: =IFERROR(ROUNDDOWN((MAX(CM$2,$J5) + 'C'!$D$57) / (MIN(CM$2,$J5) + 'C'!$D$57),1),"") -> 1.7 | CN5: =IFERROR(ROUNDDOWN((MAX(CN$2,$J5) + 'C'!$D$57) / (MIN(CN$2,$J5) + 'C'!$D$57),1),"") -> 1.7 | CO5: =IFERROR(ROUNDDOWN((MAX(CO$2,$J5) + 'C'!$D$57) / (MIN(CO$2,$J5) + 'C'!$D$57),1),"") -> 1.7 | CP5: =IFERROR(ROUNDDOWN((MAX(CP$2,$J5) + 'C'!$D$57) / (MIN(CP$2,$J5) + 'C'!$D$57),1),"") -> 1.7 | CQ5: =IFERROR(ROUNDDOWN((MAX(CQ$2,$J5) + 'C'!$D$57) / (MIN(CQ$2,$J5) + 'C'!$D$57),1),"") -> 1.7 | CR5: =IFERROR(ROUNDDOWN((MAX(CR$2,$J5) + 'C'!$D$57) / (MIN(CR$2,$J5) + 'C'!$D$57),1),"") -> 1.7 | CS5: =IFERROR(ROUNDDOWN((MAX(CS$2,$J5) + 'C'!$D$57) / (MIN(CS$2,$J5) + 'C'!$D$57),1),"") -> 1.7 | CT5: =IFERROR(ROUNDDOWN((MAX(CT$2,$J5) + 'C'!$D$57) / (MIN(CT$2,$J5) + 'C'!$D$57),1),"") -> 1.7 | CU5: =IFERROR(ROUNDDOWN((MAX(CU$2,$J5) + 'C'!$D$57) / (MIN(CU$2,$J5) + 'C'!$D$57),1),"") -> 1.7
B6: #ffc000 | D6: 0.03 | E6: 0.5995785058 | F6: 5.424683177 | H6: Brand, hyperlinks: Lighten to have 1.5:1 contrast to white | I6: #FFC500 | J6: 0.6099687032 | M6: 255 | N6: 192 | O6: 0 | Q6: 1 | R6: 0.7529411765 | S6: 0 | U6: =IF($Q6 > 'C'!$D$33,((($Q6 + 'C'!$D$30) / 'C'!$D$31)) ^ 'C'!$D$32,($Q6 / 'C'!$D$29)) -> 1 | V6: =IF($R6 > 'C'!$D$33,((($R6 + 'C'!$D$30) / 'C'!$D$31)) ^ 'C'!$D$32,($R6 / 'C'!$D$29)) -> 0.5271151257 | W6: =IF($S6 > 'C'!$D$33,((($S6 + 'C'!$D$30) / 'C'!$D$31)) ^ 'C'!$D$32,($S6 / 'C'!$D$29)) -> 0 | Y6: =('C'!$D$44 * $U6) +( 'C'!$D$45 * $V6) + ('C'!$D$46 * $W6) -> 0.5895927379 | Z6: =ROUND( ('C'!$D$69 * $U6) + ('C'!$E$69 * $V6) + ('C'!$F$69 * $W6), 'C'!$D$75) -> 0.69493046 | AA6: =ROUND( ('C'!$D$70 * $U6) + ('C'!$E$70 * $V6) + ('C'!$F$70 * $W6), 'C'!$D$75) -> 0.57071052 | AB6: =ROUND( ('C'!$D$71 * $U6) + ('C'!$E$71 * $V6) + ('C'!$F$71 * $W6), 'C'!$D$75) -> 0.23680072 | AD6: =ROUND( ('C'!$D$82 * ($Z6^'C'!$D$89)) + ('C'!$E$82 * ($AA6^'C'!$D$89)) + ('C'!$F$82 * ($AB6^'C'!$D$89)), 'C'!$D$88) -> 0.84218085 | AE6: =ROUND( ('C'!$D$83 * ($Z6^'C'!$D$89)) + ('C'!$E$83 * ($AA6^'C'!$D$89)) + ('C'!$F$83 * ($AB6^'C'!$D$89)), 'C'!$D$88) -> 0.01632705 | AF6: =ROUND( ('C'!$D$84 * ($Z6^'C'!$D$89)) + ('C'!$E$84 * ($AA6^'C'!$D$89)) + ('C'!$F$84 * ($AB6^'C'!$D$89)), 'C'!$D$88) -> 0.17193155 | AG6: 0.1727050389 | AH6: 84.57531682 | AJ6: 0.87218085 | AK6: -4.44183061e-17 | AL6: 0.276255268 | AM6: 0.276255268 | AN6: 90 | AP6: =ROUND( ('C'!$D$105 * $AJ6) + ('C'!$E$105 * $AK6) + ('C'!$F$105 * $AL6), 'C'!$D$111) ^ 'C'!$D$112 -> 0.8090306968 | AQ6: =ROUND( ('C'!$D$106 * $AJ6) + ('C'!$E$106 * $AK6) + ('C'!$F$106 * $AL6), 'C'!$D$111) ^ 'C'!$D$112 -> 0.6240198557 | AR6: =ROUND( ('C'!$D$107 * $AJ6) + ('C'!$E$107 * $AK6) + ('C'!$F$107 * $AL6), 'C'!$D$111) ^ 'C'!$D$112 -> 0.1369103167 | AT6: =MIN(1, MAX(0, ROUND( ('C'!$D$119 * $AP6) + ('C'!$E$119 * $AQ6) + ('C'!$F$119 * $AR6), 'C'!$D$125))) -> 1 | AU6: =MIN(1,MAX(0,ROUND( ('C'!$D$120 * $AP6) + ('C'!$E$120 * $AQ6) + ('C'!$F$120 * $AR6), 'C'!$D$125))) -> 0.55560501 | AV6: =MIN(1,MAX(0,ROUND( ('C'!$D$121 * $AP6) + ('C'!$E$121 * $AQ6) + ('C'!$F$121 * $AR6), 'C'!$D$125))) -> 0 | AX6: =('C'!$D$44 * $AT6) +( 'C'!$D$45 * $AU6) + ('C'!$D$46 * $AV6) -> 0.6099687032 | AY6: =IF($AT6>'C'!$D$142, ($AT6 ^ (1/'C'!$D$141) * 'C'!$D$140) - 'C'!$D$139, $AT6 * 'C'!$D$138) -> 1 | AZ6: =IF($AU6>'C'!$D$142, ($AU6 ^ (1/'C'!$D$141) * 'C'!$D$140) - 'C'!$D$139, $AU6 * 'C'!$D$138) -> 0.7708573218 | BA6: =IF($AV6>'C'!$D$142, ($AV6 ^ (1/'C'!$D$141) * 'C'!$D$140) - 'C'!$D$139, $AV6 * 'C'!$D$138) -> 0 | BC6: 255 | BD6: 197 | BE6: 0 | BH6: =IFERROR(ROUNDDOWN((MAX(BH$2,$J6) + 'C'!$D$57) / (MIN(BH$2,$J6) + 'C'!$D$57),1),"") -> 1 | BI6: =IFERROR(ROUNDDOWN((MAX(BI$2,$J6) + 'C'!$D$57) / (MIN(BI$2,$J6) + 'C'!$D$57),1),"") -> 1 | BJ6: =IFERROR(ROUNDDOWN((MAX(BJ$2,$J6) + 'C'!$D$57) / (MIN(BJ$2,$J6) + 'C'!$D$57),1),"") -> 1 | BK6: =IFERROR(ROUNDDOWN((MAX(BK$2,$J6) + 'C'!$D$57) / (MIN(BK$2,$J6) + 'C'!$D$57),1),"") -> 1.5 | BL6: =IFERROR(ROUNDDOWN((MAX(BL$2,$J6) + 'C'!$D$57) / (MIN(BL$2,$J6) + 'C'!$D$57),1),"") -> 13.1 | BM6: =IFERROR(ROUNDDOWN((MAX(BM$2,$J6) + 'C'!$D$57) / (MIN(BM$2,$J6) + 'C'!$D$57),1),"") -> 7 | BN6: =IFERROR(ROUNDDOWN((MAX(BN$2,$J6) + 'C'!$D$57) / (MIN(BN$2,$J6) + 'C'!$D$57),1),"") -> 11.9 | BO6: =IFERROR(ROUNDDOWN((MAX(BO$2,$J6) + 'C'!$D$57) / (MIN(BO$2,$J6) + 'C'!$D$57),1),"") -> 9.6 | BP6: =IFERROR(ROUNDDOWN((MAX(BP$2,$J6) + 'C'!$D$57) / (MIN(BP$2,$J6) + 'C'!$D$57),1),"") -> 1 | BQ6: =IFERROR(ROUNDDOWN((MAX(BQ$2,$J6) + 'C'!$D$57) / (MIN(BQ$2,$J6) + 'C'!$D$57),1),"") -> 1.2 | BR6: =IFERROR(ROUNDDOWN((MAX(BR$2,$J6) + 'C'!$D$57) / (MIN(BR$2,$J6) + 'C'!$D$57),1),"") -> 4.8 | BS6: =IFERROR(ROUNDDOWN((MAX(BS$2,$J6) + 'C'!$D$57) / (MIN(BS$2,$J6) + 'C'!$D$57),1),"") -> 2.5 | BT6: =IFERROR(ROUNDDOWN((MAX(BT$2,$J6) + 'C'!$D$57) / (MIN(BT$2,$J6) + 'C'!$D$57),1),"") -> 5.4 | BU6: =IFERROR(ROUNDDOWN((MAX(BU$2,$J6) + 'C'!$D$57) / (MIN(BU$2,$J6) + 'C'!$D$57),1),"") -> 3.1 | BV6: =IFERROR(ROUNDDOWN((MAX(BV$2,$J6) + 'C'!$D$57) / (MIN(BV$2,$J6) + 'C'!$D$57),1),"") -> 2.4 | BW6: =IFERROR(ROUNDDOWN((MAX(BW$2,$J6) + 'C'!$D$57) / (MIN(BW$2,$J6) + 'C'!$D$57),1),"") -> 1.3 | BX6: =IFERROR(ROUNDDOWN((MAX(BX$2,$J6) + 'C'!$D$57) / (MIN(BX$2,$J6) + 'C'!$D$57),1),"") -> 1.1 | BY6: =IFERROR(ROUNDDOWN((MAX(BY$2,$J6) + 'C'!$D$57) / (MIN(BY$2,$J6) + 'C'!$D$57),1),"") -> 1.3 | BZ6: =IFERROR(ROUNDDOWN((MAX(BZ$2,$J6) + 'C'!$D$57) / (MIN(BZ$2,$J6) + 'C'!$D$57),1),"") -> 5.4 | CA6: =IFERROR(ROUNDDOWN((MAX(CA$2,$J6) + 'C'!$D$57) / (MIN(CA$2,$J6) + 'C'!$D$57),1),"") -> 1.1 | CB6: =IFERROR(ROUNDDOWN((MAX(CB$2,$J6) + 'C'!$D$57) / (MIN(CB$2,$J6) + 'C'!$D$57),1),"") -> 2.3 | CC6: =IFERROR(ROUNDDOWN((MAX(CC$2,$J6) + 'C'!$D$57) / (MIN(CC$2,$J6) + 'C'!$D$57),1),"") -> 1.5 | CD6: =IFERROR(ROUNDDOWN((MAX(CD$2,$J6) + 'C'!$D$57) / (MIN(CD$2,$J6) + 'C'!$D$57),1),"") -> 1.5 | CE6: =IFERROR(ROUNDDOWN((MAX(CE$2,$J6) + 'C'!$D$57) / (MIN(CE$2,$J6) + 'C'!$D$57),1),"") -> 1.5 | CF6: =IFERROR(ROUNDDOWN((MAX(CF$2,$J6) + 'C'!$D$57) / (MIN(CF$2,$J6) + 'C'!$D$57),1),"") -> 1.5 | CG6: =IFERROR(ROUNDDOWN((MAX(CG$2,$J6) + 'C'!$D$57) / (MIN(CG$2,$J6) + 'C'!$D$57),1),"") -> 1.5 | CH6: =IFERROR(ROUNDDOWN((MAX(CH$2,$J6) + 'C'!$D$57) / (MIN(CH$2,$J6) + 'C'!$D$57),1),"") -> 1.5 | CI6: =IFERROR(ROUNDDOWN((MAX(CI$2,$J6) + 'C'!$D$57) / (MIN(CI$2,$J6) + 'C'!$D$57),1),"") -> 1.5 | CJ6: =IFERROR(ROUNDDOWN((MAX(CJ$2,$J6) + 'C'!$D$57) / (MIN(CJ$2,$J6) + 'C'!$D$57),1),"") -> 1.5 | CK6: =IFERROR(ROUNDDOWN((MAX(CK$2,$J6) + 'C'!$D$57) / (MIN(CK$2,$J6) + 'C'!$D$57),1),"") -> 1.5 | CL6: =IFERROR(ROUNDDOWN((MAX(CL$2,$J6) + 'C'!$D$57) / (MIN(CL$2,$J6) + 'C'!$D$57),1),"") -> 1.5 | CM6: =IFERROR(ROUNDDOWN((MAX(CM$2,$J6) + 'C'!$D$57) / (MIN(CM$2,$J6) + 'C'!$D$57),1),"") -> 1.5 | CN6: =IFERROR(ROUNDDOWN((MAX(CN$2,$J6) + 'C'!$D$57) / (MIN(CN$2,$J6) + 'C'!$D$57),1),"") -> 1.5 | CO6: =IFERROR(ROUNDDOWN((MAX(CO$2,$J6) + 'C'!$D$57) / (MIN(CO$2,$J6) + 'C'!$D$57),1),"") -> 1.5 | CP6: =IFERROR(ROUNDDOWN((MAX(CP$2,$J6) + 'C'!$D$57) / (MIN(CP$2,$J6) + 'C'!$D$57),1),"") -> 1.5 | CQ6: =IFERROR(ROUNDDOWN((MAX(CQ$2,$J6) + 'C'!$D$57) / (MIN(CQ$2,$J6) + 'C'!$D$57),1),"") -> 1.5 | CR6: =IFERROR(ROUNDDOWN((MAX(CR$2,$J6) + 'C'!$D$57) / (MIN(CR$2,$J6) + 'C'!$D$57),1),"") -> 1.5 | CS6: =IFERROR(ROUNDDOWN((MAX(CS$2,$J6) + 'C'!$D$57) / (MIN(CS$2,$J6) + 'C'!$D$57),1),"") -> 1.5 | CT6: =IFERROR(ROUNDDOWN((MAX(CT$2,$J6) + 'C'!$D$57) / (MIN(CT$2,$J6) + 'C'!$D$57),1),"") -> 1.5 | CU6: =IFERROR(ROUNDDOWN((MAX(CU$2,$J6) + 'C'!$D$57) / (MIN(CU$2,$J6) + 'C'!$D$57),1),"") -> 1.5
B7: #ffffff | D7: 0 | E7: 0 | F7: 0 | H7: Highlights: White | I7: #FFFFFF | J7: 0.9999999648 | M7: 255 | N7: 255 | O7: 255 | Q7: 1 | R7: 1 | S7: 1 | U7: =IF($Q7 > 'C'!$D$33,((($Q7 + 'C'!$D$30) / 'C'!$D$31)) ^ 'C'!$D$32,($Q7 / 'C'!$D$29)) -> 1 | V7: =IF($R7 > 'C'!$D$33,((($R7 + 'C'!$D$30) / 'C'!$D$31)) ^ 'C'!$D$32,($R7 / 'C'!$D$29)) -> 1 | W7: =IF($S7 > 'C'!$D$33,((($S7 + 'C'!$D$30) / 'C'!$D$31)) ^ 'C'!$D$32,($S7 / 'C'!$D$29)) -> 1 | Y7: =('C'!$D$44 * $U7) +( 'C'!$D$45 * $V7) + ('C'!$D$46 * $W7) -> 1 | Z7: =ROUND( ('C'!$D$69 * $U7) + ('C'!$E$69 * $V7) + ('C'!$F$69 * $W7), 'C'!$D$75) -> 1 | AA7: =ROUND( ('C'!$D$70 * $U7) + ('C'!$E$70 * $V7) + ('C'!$F$70 * $W7), 'C'!$D$75) -> 1 | AB7: =ROUND( ('C'!$D$71 * $U7) + ('C'!$E$71 * $V7) + ('C'!$F$71 * $W7), 'C'!$D$75) -> 1 | AD7: =ROUND( ('C'!$D$82 * ($Z7^'C'!$D$89)) + ('C'!$E$82 * ($AA7^'C'!$D$89)) + ('C'!$F$82 * ($AB7^'C'!$D$89)), 'C'!$D$88) -> 0.99999999 | AE7: =ROUND( ('C'!$D$83 * ($Z7^'C'!$D$89)) + ('C'!$E$83 * ($AA7^'C'!$D$89)) + ('C'!$F$83 * ($AB7^'C'!$D$89)), 'C'!$D$88) -> 0 | AF7: =ROUND( ('C'!$D$84 * ($Z7^'C'!$D$89)) + ('C'!$E$84 * ($AA7^'C'!$D$89)) + ('C'!$F$84 * ($AB7^'C'!$D$89)), 'C'!$D$88) -> 4e-08 | AG7: 4e-08 | AH7: 90 | AJ7: 0.99999999 | AK7: 2.45029691e-24 | AL7: 4e-08 | AM7: 4e-08 | AN7: =MOD($AH7+$F7, 360) -> 90 | AP7: =ROUND( ('C'!$D$105 * $AJ7) + ('C'!$E$105 * $AK7) + ('C'!$F$105 * $AL7), 'C'!$D$111) ^ 'C'!$D$112 -> 1 | AQ7: =ROUND( ('C'!$D$106 * $AJ7) + ('C'!$E$106 * $AK7) + ('C'!$F$106 * $AL7), 'C'!$D$111) ^ 'C'!$D$112 -> 0.99999997 | AR7: =ROUND( ('C'!$D$107 * $AJ7) + ('C'!$E$107 * $AK7) + ('C'!$F$107 * $AL7), 'C'!$D$111) ^ 'C'!$D$112 -> 0.99999982 | AT7: =MIN(1, MAX(0, ROUND( ('C'!$D$119 * $AP7) + ('C'!$E$119 * $AQ7) + ('C'!$F$119 * $AR7), 'C'!$D$125))) -> 1 | AU7: =MIN(1,MAX(0,ROUND( ('C'!$D$120 * $AP7) + ('C'!$E$120 * $AQ7) + ('C'!$F$120 * $AR7), 'C'!$D$125))) -> 0.99999998 | AV7: =MIN(1,MAX(0,ROUND( ('C'!$D$121 * $AP7) + ('C'!$E$121 * $AQ7) + ('C'!$F$121 * $AR7), 'C'!$D$125))) -> 0.99999971 | AX7: =('C'!$D$44 * $AT7) +( 'C'!$D$45 * $AU7) + ('C'!$D$46 * $AV7) -> 0.9999999648 | AY7: =IF($AT7>'C'!$D$142, ($AT7 ^ (1/'C'!$D$141) * 'C'!$D$140) - 'C'!$D$139, $AT7 * 'C'!$D$138) -> 1 | AZ7: =IF($AU7>'C'!$D$142, ($AU7 ^ (1/'C'!$D$141) * 'C'!$D$140) - 'C'!$D$139, $AU7 * 'C'!$D$138) -> 0.9999999912 | BA7: =IF($AV7>'C'!$D$142, ($AV7 ^ (1/'C'!$D$141) * 'C'!$D$140) - 'C'!$D$139, $AV7 * 'C'!$D$138) -> 0.9999998725 | BC7: 255 | BD7: 255 | BE7: 255 | BH7: =IFERROR(ROUNDDOWN((MAX(BH$2,$J7) + 'C'!$D$57) / (MIN(BH$2,$J7) + 'C'!$D$57),1),"") -> 1.6 | BI7: =IFERROR(ROUNDDOWN((MAX(BI$2,$J7) + 'C'!$D$57) / (MIN(BI$2,$J7) + 'C'!$D$57),1),"") -> 1.7 | BJ7: =IFERROR(ROUNDDOWN((MAX(BJ$2,$J7) + 'C'!$D$57) / (MIN(BJ$2,$J7) + 'C'!$D$57),1),"") -> 1.5 | BK7: =IFERROR(ROUNDDOWN((MAX(BK$2,$J7) + 'C'!$D$57) / (MIN(BK$2,$J7) + 'C'!$D$57),1),"") -> 1 | BL7: =IFERROR(ROUNDDOWN((MAX(BL$2,$J7) + 'C'!$D$57) / (MIN(BL$2,$J7) + 'C'!$D$57),1),"") -> 20.9 | BM7: =IFERROR(ROUNDDOWN((MAX(BM$2,$J7) + 'C'!$D$57) / (MIN(BM$2,$J7) + 'C'!$D$57),1),"") -> 11.2 | BN7: =IFERROR(ROUNDDOWN((MAX(BN$2,$J7) + 'C'!$D$57) / (MIN(BN$2,$J7) + 'C'!$D$57),1),"") -> 18.9 | BO7: =IFERROR(ROUNDDOWN((MAX(BO$2,$J7) + 'C'!$D$57) / (MIN(BO$2,$J7) + 'C'!$D$57),1),"") -> 15.3 | BP7: =IFERROR(ROUNDDOWN((MAX(BP$2,$J7) + 'C'!$D$57) / (MIN(BP$2,$J7) + 'C'!$D$57),1),"") -> 1.5 | BQ7: =IFERROR(ROUNDDOWN((MAX(BQ$2,$J7) + 'C'!$D$57) / (MIN(BQ$2,$J7) + 'C'!$D$57),1),"") -> 1.2 | BR7: =IFERROR(ROUNDDOWN((MAX(BR$2,$J7) + 'C'!$D$57) / (MIN(BR$2,$J7) + 'C'!$D$57),1),"") -> 7.7 | BS7: =IFERROR(ROUNDDOWN((MAX(BS$2,$J7) + 'C'!$D$57) / (MIN(BS$2,$J7) + 'C'!$D$57),1),"") -> 3.9 | BT7: =IFERROR(ROUNDDOWN((MAX(BT$2,$J7) + 'C'!$D$57) / (MIN(BT$2,$J7) + 'C'!$D$57),1),"") -> 8.7 | BU7: =IFERROR(ROUNDDOWN((MAX(BU$2,$J7) + 'C'!$D$57) / (MIN(BU$2,$J7) + 'C'!$D$57),1),"") -> 5 | BV7: =IFERROR(ROUNDDOWN((MAX(BV$2,$J7) + 'C'!$D$57) / (MIN(BV$2,$J7) + 'C'!$D$57),1),"") -> 3.8 | BW7: =IFERROR(ROUNDDOWN((MAX(BW$2,$J7) + 'C'!$D$57) / (MIN(BW$2,$J7) + 'C'!$D$57),1),"") -> 2.1 | BX7: =IFERROR(ROUNDDOWN((MAX(BX$2,$J7) + 'C'!$D$57) / (MIN(BX$2,$J7) + 'C'!$D$57),1),"") -> 1.3 | BY7: =IFERROR(ROUNDDOWN((MAX(BY$2,$J7) + 'C'!$D$57) / (MIN(BY$2,$J7) + 'C'!$D$57),1),"") -> 2.1 | BZ7: =IFERROR(ROUNDDOWN((MAX(BZ$2,$J7) + 'C'!$D$57) / (MIN(BZ$2,$J7) + 'C'!$D$57),1),"") -> 8.7 | CA7: =IFERROR(ROUNDDOWN((MAX(CA$2,$J7) + 'C'!$D$57) / (MIN(CA$2,$J7) + 'C'!$D$57),1),"") -> 1.8 | CB7: =IFERROR(ROUNDDOWN((MAX(CB$2,$J7) + 'C'!$D$57) / (MIN(CB$2,$J7) + 'C'!$D$57),1),"") -> 3.6 | CC7: =IFERROR(ROUNDDOWN((MAX(CC$2,$J7) + 'C'!$D$57) / (MIN(CC$2,$J7) + 'C'!$D$57),1),"") -> 1 | CD7: =IFERROR(ROUNDDOWN((MAX(CD$2,$J7) + 'C'!$D$57) / (MIN(CD$2,$J7) + 'C'!$D$57),1),"") -> 1 | CE7: =IFERROR(ROUNDDOWN((MAX(CE$2,$J7) + 'C'!$D$57) / (MIN(CE$2,$J7) + 'C'!$D$57),1),"") -> 1 | CF7: =IFERROR(ROUNDDOWN((MAX(CF$2,$J7) + 'C'!$D$57) / (MIN(CF$2,$J7) + 'C'!$D$57),1),"") -> 1 | CG7: =IFERROR(ROUNDDOWN((MAX(CG$2,$J7) + 'C'!$D$57) / (MIN(CG$2,$J7) + 'C'!$D$57),1),"") -> 1 | CH7: =IFERROR(ROUNDDOWN((MAX(CH$2,$J7) + 'C'!$D$57) / (MIN(CH$2,$J7) + 'C'!$D$57),1),"") -> 1 | CI7: =IFERROR(ROUNDDOWN((MAX(CI$2,$J7) + 'C'!$D$57) / (MIN(CI$2,$J7) + 'C'!$D$57),1),"") -> 1 | CJ7: =IFERROR(ROUNDDOWN((MAX(CJ$2,$J7) + 'C'!$D$57) / (MIN(CJ$2,$J7) + 'C'!$D$57),1),"") -> 1 | CK7: =IFERROR(ROUNDDOWN((MAX(CK$2,$J7) + 'C'!$D$57) / (MIN(CK$2,$J7) + 'C'!$D$57),1),"") -> 1 | CL7: =IFERROR(ROUNDDOWN((MAX(CL$2,$J7) + 'C'!$D$57) / (MIN(CL$2,$J7) + 'C'!$D$57),1),"") -> 1 | CM7: =IFERROR(ROUNDDOWN((MAX(CM$2,$J7) + 'C'!$D$57) / (MIN(CM$2,$J7) + 'C'!$D$57),1),"") -> 1 | CN7: =IFERROR(ROUNDDOWN((MAX(CN$2,$J7) + 'C'!$D$57) / (MIN(CN$2,$J7) + 'C'!$D$57),1),"") -> 1 | CO7: =IFERROR(ROUNDDOWN((MAX(CO$2,$J7) + 'C'!$D$57) / (MIN(CO$2,$J7) + 'C'!$D$57),1),"") -> 1 | CP7: =IFERROR(ROUNDDOWN((MAX(CP$2,$J7) + 'C'!$D$57) / (MIN(CP$2,$J7) + 'C'!$D$57),1),"") -> 1 | CQ7: =IFERROR(ROUNDDOWN((MAX(CQ$2,$J7) + 'C'!$D$57) / (MIN(CQ$2,$J7) + 'C'!$D$57),1),"") -> 1 | CR7: =IFERROR(ROUNDDOWN((MAX(CR$2,$J7) + 'C'!$D$57) / (MIN(CR$2,$J7) + 'C'!$D$57),1),"") -> 1 | CS7: =IFERROR(ROUNDDOWN((MAX(CS$2,$J7) + 'C'!$D$57) / (MIN(CS$2,$J7) + 'C'!$D$57),1),"") -> 1 | CT7: =IFERROR(ROUNDDOWN((MAX(CT$2,$J7) + 'C'!$D$57) / (MIN(CT$2,$J7) + 'C'!$D$57),1),"") -> 1 | CU7: =IFERROR(ROUNDDOWN((MAX(CU$2,$J7) + 'C'!$D$57) / (MIN(CU$2,$J7) + 'C'!$D$57),1),"") -> 1
B8: #000000 | D8: 0 | E8: 0 | F8: 0 | H8: Shadows: Black | I8: #000000 | J8: 0 | M8: 0 | N8: 0 | O8: 0 | Q8: 0 | R8: 0 | S8: 0 | U8: =IF($Q8 > 'C'!$D$33,((($Q8 + 'C'!$D$30) / 'C'!$D$31)) ^ 'C'!$D$32,($Q8 / 'C'!$D$29)) -> 0 | V8: =IF($R8 > 'C'!$D$33,((($R8 + 'C'!$D$30) / 'C'!$D$31)) ^ 'C'!$D$32,($R8 / 'C'!$D$29)) -> 0 | W8: =IF($S8 > 'C'!$D$33,((($S8 + 'C'!$D$30) / 'C'!$D$31)) ^ 'C'!$D$32,($S8 / 'C'!$D$29)) -> 0 | Y8: =('C'!$D$44 * $U8) +( 'C'!$D$45 * $V8) + ('C'!$D$46 * $W8) -> 0 | Z8: =ROUND( ('C'!$D$69 * $U8) + ('C'!$E$69 * $V8) + ('C'!$F$69 * $W8), 'C'!$D$75) -> 0 | AA8: =ROUND( ('C'!$D$70 * $U8) + ('C'!$E$70 * $V8) + ('C'!$F$70 * $W8), 'C'!$D$75) -> 0 | AB8: =ROUND( ('C'!$D$71 * $U8) + ('C'!$E$71 * $V8) + ('C'!$F$71 * $W8), 'C'!$D$75) -> 0 | AD8: =ROUND( ('C'!$D$82 * ($Z8^'C'!$D$89)) + ('C'!$E$82 * ($AA8^'C'!$D$89)) + ('C'!$F$82 * ($AB8^'C'!$D$89)), 'C'!$D$88) -> 0 | AE8: =ROUND( ('C'!$D$83 * ($Z8^'C'!$D$89)) + ('C'!$E$83 * ($AA8^'C'!$D$89)) + ('C'!$F$83 * ($AB8^'C'!$D$89)), 'C'!$D$88) -> 0 | AF8: =ROUND( ('C'!$D$84 * ($Z8^'C'!$D$89)) + ('C'!$E$84 * ($AA8^'C'!$D$89)) + ('C'!$F$84 * ($AB8^'C'!$D$89)), 'C'!$D$88) -> 0 | AG8: 0 | AH8: 0 | AJ8: 0 | AK8: 0 | AL8: 0 | AM8: 0 | AN8: 0 | AP8: =ROUND( ('C'!$D$105 * $AJ8) + ('C'!$E$105 * $AK8) + ('C'!$F$105 * $AL8), 'C'!$D$111) ^ 'C'!$D$112 -> 0 | AQ8: =ROUND( ('C'!$D$106 * $AJ8) + ('C'!$E$106 * $AK8) + ('C'!$F$106 * $AL8), 'C'!$D$111) ^ 'C'!$D$112 -> 0 | AR8: =ROUND( ('C'!$D$107 * $AJ8) + ('C'!$E$107 * $AK8) + ('C'!$F$107 * $AL8), 'C'!$D$111) ^ 'C'!$D$112 -> 0 | AT8: =MIN(1, MAX(0, ROUND( ('C'!$D$119 * $AP8) + ('C'!$E$119 * $AQ8) + ('C'!$F$119 * $AR8), 'C'!$D$125))) -> 0 | AU8: =MIN(1,MAX(0,ROUND( ('C'!$D$120 * $AP8) + ('C'!$E$120 * $AQ8) + ('C'!$F$120 * $AR8), 'C'!$D$125))) -> 0 | AV8: =MIN(1,MAX(0,ROUND( ('C'!$D$121 * $AP8) + ('C'!$E$121 * $AQ8) + ('C'!$F$121 * $AR8), 'C'!$D$125))) -> 0 | AX8: =('C'!$D$44 * $AT8) +( 'C'!$D$45 * $AU8) + ('C'!$D$46 * $AV8) -> 0 | AY8: =IF($AT8>'C'!$D$142, ($AT8 ^ (1/'C'!$D$141) * 'C'!$D$140) - 'C'!$D$139, $AT8 * 'C'!$D$138) -> 0 | AZ8: =IF($AU8>'C'!$D$142, ($AU8 ^ (1/'C'!$D$141) * 'C'!$D$140) - 'C'!$D$139, $AU8 * 'C'!$D$138) -> 0 | BA8: =IF($AV8>'C'!$D$142, ($AV8 ^ (1/'C'!$D$141) * 'C'!$D$140) - 'C'!$D$139, $AV8 * 'C'!$D$138) -> 0 | BC8: 0 | BD8: 0 | BE8: 0 | BH8: =IFERROR(ROUNDDOWN((MAX(BH$2,$J8) + 'C'!$D$57) / (MIN(BH$2,$J8) + 'C'!$D$57),1),"") -> 12.8 | BI8: =IFERROR(ROUNDDOWN((MAX(BI$2,$J8) + 'C'!$D$57) / (MIN(BI$2,$J8) + 'C'!$D$57),1),"") -> 12.3 | BJ8: =IFERROR(ROUNDDOWN((MAX(BJ$2,$J8) + 'C'!$D$57) / (MIN(BJ$2,$J8) + 'C'!$D$57),1),"") -> 13.1 | BK8: =IFERROR(ROUNDDOWN((MAX(BK$2,$J8) + 'C'!$D$57) / (MIN(BK$2,$J8) + 'C'!$D$57),1),"") -> 20.9 | BL8: =IFERROR(ROUNDDOWN((MAX(BL$2,$J8) + 'C'!$D$57) / (MIN(BL$2,$J8) + 'C'!$D$57),1),"") -> 1 | BM8: =IFERROR(ROUNDDOWN((MAX(BM$2,$J8) + 'C'!$D$57) / (MIN(BM$2,$J8) + 'C'!$D$57),1),"") -> 1.8 | BN8: =IFERROR(ROUNDDOWN((MAX(BN$2,$J8) + 'C'!$D$57) / (MIN(BN$2,$J8) + 'C'!$D$57),1),"") -> 1.1 | BO8: =IFERROR(ROUNDDOWN((MAX(BO$2,$J8) + 'C'!$D$57) / (MIN(BO$2,$J8) + 'C'!$D$57),1),"") -> 1.3 | BP8: =IFERROR(ROUNDDOWN((MAX(BP$2,$J8) + 'C'!$D$57) / (MIN(BP$2,$J8) + 'C'!$D$57),1),"") -> 13.3 | BQ8: =IFERROR(ROUNDDOWN((MAX(BQ$2,$J8) + 'C'!$D$57) / (MIN(BQ$2,$J8) + 'C'!$D$57),1),"") -> 17 | BR8: =IFERROR(ROUNDDOWN((MAX(BR$2,$J8) + 'C'!$D$57) / (MIN(BR$2,$J8) + 'C'!$D$57),1),"") -> 2.6 | BS8: =IFERROR(ROUNDDOWN((MAX(BS$2,$J8) + 'C'!$D$57) / (MIN(BS$2,$J8) + 'C'!$D$57),1),"") -> 5.2 | BT8: =IFERROR(ROUNDDOWN((MAX(BT$2,$J8) + 'C'!$D$57) / (MIN(BT$2,$J8) + 'C'!$D$57),1),"") -> 2.4 | BU8: =IFERROR(ROUNDDOWN((MAX(BU$2,$J8) + 'C'!$D$57) / (MIN(BU$2,$J8) + 'C'!$D$57),1),"") -> 4.1 | BV8: =IFERROR(ROUNDDOWN((MAX(BV$2,$J8) + 'C'!$D$57) / (MIN(BV$2,$J8) + 'C'!$D$57),1),"") -> 5.4 | BW8: =IFERROR(ROUNDDOWN((MAX(BW$2,$J8) + 'C'!$D$57) / (MIN(BW$2,$J8) + 'C'!$D$57),1),"") -> 9.6 | BX8: =IFERROR(ROUNDDOWN((MAX(BX$2,$J8) + 'C'!$D$57) / (MIN(BX$2,$J8) + 'C'!$D$57),1),"") -> 15.4 | BY8: =IFERROR(ROUNDDOWN((MAX(BY$2,$J8) + 'C'!$D$57) / (MIN(BY$2,$J8) + 'C'!$D$57),1),"") -> 9.6 | BZ8: =IFERROR(ROUNDDOWN((MAX(BZ$2,$J8) + 'C'!$D$57) / (MIN(BZ$2,$J8) + 'C'!$D$57),1),"") -> 2.4 | CA8: =IFERROR(ROUNDDOWN((MAX(CA$2,$J8) + 'C'!$D$57) / (MIN(CA$2,$J8) + 'C'!$D$57),1),"") -> 11.2 | CB8: =IFERROR(ROUNDDOWN((MAX(CB$2,$J8) + 'C'!$D$57) / (MIN(CB$2,$J8) + 'C'!$D$57),1),"") -> 5.7 | CC8: =IFERROR(ROUNDDOWN((MAX(CC$2,$J8) + 'C'!$D$57) / (MIN(CC$2,$J8) + 'C'!$D$57),1),"") -> 20.9 | CD8: =IFERROR(ROUNDDOWN((MAX(CD$2,$J8) + 'C'!$D$57) / (MIN(CD$2,$J8) + 'C'!$D$57),1),"") -> 20.9 | CE8: =IFERROR(ROUNDDOWN((MAX(CE$2,$J8) + 'C'!$D$57) / (MIN(CE$2,$J8) + 'C'!$D$57),1),"") -> 20.9 | CF8: =IFERROR(ROUNDDOWN((MAX(CF$2,$J8) + 'C'!$D$57) / (MIN(CF$2,$J8) + 'C'!$D$57),1),"") -> 20.9 | CG8: =IFERROR(ROUNDDOWN((MAX(CG$2,$J8) + 'C'!$D$57) / (MIN(CG$2,$J8) + 'C'!$D$57),1),"") -> 20.9 | CH8: =IFERROR(ROUNDDOWN((MAX(CH$2,$J8) + 'C'!$D$57) / (MIN(CH$2,$J8) + 'C'!$D$57),1),"") -> 20.9 | CI8: =IFERROR(ROUNDDOWN((MAX(CI$2,$J8) + 'C'!$D$57) / (MIN(CI$2,$J8) + 'C'!$D$57),1),"") -> 20.9 | CJ8: =IFERROR(ROUNDDOWN((MAX(CJ$2,$J8) + 'C'!$D$57) / (MIN(CJ$2,$J8) + 'C'!$D$57),1),"") -> 20.9 | CK8: =IFERROR(ROUNDDOWN((MAX(CK$2,$J8) + 'C'!$D$57) / (MIN(CK$2,$J8) + 'C'!$D$57),1),"") -> 20.9 | CL8: =IFERROR(ROUNDDOWN((MAX(CL$2,$J8) + 'C'!$D$57) / (MIN(CL$2,$J8) + 'C'!$D$57),1),"") -> 20.9 | CM8: =IFERROR(ROUNDDOWN((MAX(CM$2,$J8) + 'C'!$D$57) / (MIN(CM$2,$J8) + 'C'!$D$57),1),"") -> 20.9 | CN8: =IFERROR(ROUNDDOWN((MAX(CN$2,$J8) + 'C'!$D$57) / (MIN(CN$2,$J8) + 'C'!$D$57),1),"") -> 20.9 | CO8: =IFERROR(ROUNDDOWN((MAX(CO$2,$J8) + 'C'!$D$57) / (MIN(CO$2,$J8) + 'C'!$D$57),1),"") -> 20.9 | CP8: =IFERROR(ROUNDDOWN((MAX(CP$2,$J8) + 'C'!$D$57) / (MIN(CP$2,$J8) + 'C'!$D$57),1),"") -> 20.9 | CQ8: =IFERROR(ROUNDDOWN((MAX(CQ$2,$J8) + 'C'!$D$57) / (MIN(CQ$2,$J8) + 'C'!$D$57),1),"") -> 20.9 | CR8: =IFERROR(ROUNDDOWN((MAX(CR$2,$J8) + 'C'!$D$57) / (MIN(CR$2,$J8) + 'C'!$D$57),1),"") -> 20.9 | CS8: =IFERROR(ROUNDDOWN((MAX(CS$2,$J8) + 'C'!$D$57) / (MIN(CS$2,$J8) + 'C'!$D$57),1),"") -> 20.9 | CT8: =IFERROR(ROUNDDOWN((MAX(CT$2,$J8) + 'C'!$D$57) / (MIN(CT$2,$J8) + 'C'!$D$57),1),"") -> 20.9 | CU8: =IFERROR(ROUNDDOWN((MAX(CU$2,$J8) + 'C'!$D$57) / (MIN(CU$2,$J8) + 'C'!$D$57),1),"") -> 20.9
B9: #000000 | D9: 0.3516475286 | E9: 0 | F9: 0 | H9: Page BG: Gray with sufficient contrast against brand yellow | I9: #3B3B3B | J9: 0.04348332 | M9: 0 | N9: 0 | O9: 0 | Q9: 0 | R9: 0 | S9: 0 | U9: =IF($Q9 > 'C'!$D$33,((($Q9 + 'C'!$D$30) / 'C'!$D$31)) ^ 'C'!$D$32,($Q9 / 'C'!$D$29)) -> 0 | V9: =IF($R9 > 'C'!$D$33,((($R9 + 'C'!$D$30) / 'C'!$D$31)) ^ 'C'!$D$32,($R9 / 'C'!$D$29)) -> 0 | W9: =IF($S9 > 'C'!$D$33,((($S9 + 'C'!$D$30) / 'C'!$D$31)) ^ 'C'!$D$32,($S9 / 'C'!$D$29)) -> 0 | Y9: =('C'!$D$44 * $U9) +( 'C'!$D$45 * $V9) + ('C'!$D$46 * $W9) -> 0 | Z9: =ROUND( ('C'!$D$69 * $U9) + ('C'!$E$69 * $V9) + ('C'!$F$69 * $W9), 'C'!$D$75) -> 0 | AA9: =ROUND( ('C'!$D$70 * $U9) + ('C'!$E$70 * $V9) + ('C'!$F$70 * $W9), 'C'!$D$75) -> 0 | AB9: =ROUND( ('C'!$D$71 * $U9) + ('C'!$E$71 * $V9) + ('C'!$F$71 * $W9), 'C'!$D$75) -> 0 | AD9: =ROUND( ('C'!$D$82 * ($Z9^'C'!$D$89)) + ('C'!$E$82 * ($AA9^'C'!$D$89)) + ('C'!$F$82 * ($AB9^'C'!$D$89)), 'C'!$D$88) -> 0 | AE9: =ROUND( ('C'!$D$83 * ($Z9^'C'!$D$89)) + ('C'!$E$83 * ($AA9^'C'!$D$89)) + ('C'!$F$83 * ($AB9^'C'!$D$89)), 'C'!$D$88) -> 0 | AF9: =ROUND( ('C'!$D$84 * ($Z9^'C'!$D$89)) + ('C'!$E$84 * ($AA9^'C'!$D$89)) + ('C'!$F$84 * ($AB9^'C'!$D$89)), 'C'!$D$88) -> 0 | AG9: 0 | AH9: 0 | AJ9: 0.3516475286 | AK9: 0 | AL9: 0 | AM9: 0 | AN9: 0 | AP9: =ROUND( ('C'!$D$105 * $AJ9) + ('C'!$E$105 * $AK9) + ('C'!$F$105 * $AL9), 'C'!$D$111) ^ 'C'!$D$112 -> 0.04348332182 | AQ9: =ROUND( ('C'!$D$106 * $AJ9) + ('C'!$E$106 * $AK9) + ('C'!$F$106 * $AL9), 'C'!$D$111) ^ 'C'!$D$112 -> 0.04348332182 | AR9: =ROUND( ('C'!$D$107 * $AJ9) + ('C'!$E$107 * $AK9) + ('C'!$F$107 * $AL9), 'C'!$D$111) ^ 'C'!$D$112 -> 0.04348332182 | AT9: =MIN(1, MAX(0, ROUND( ('C'!$D$119 * $AP9) + ('C'!$E$119 * $AQ9) + ('C'!$F$119 * $AR9), 'C'!$D$125))) -> 0.04348332 | AU9: =MIN(1,MAX(0,ROUND( ('C'!$D$120 * $AP9) + ('C'!$E$120 * $AQ9) + ('C'!$F$120 * $AR9), 'C'!$D$125))) -> 0.04348332 | AV9: =MIN(1,MAX(0,ROUND( ('C'!$D$121 * $AP9) + ('C'!$E$121 * $AQ9) + ('C'!$F$121 * $AR9), 'C'!$D$125))) -> 0.04348332 | AX9: =('C'!$D$44 * $AT9) +( 'C'!$D$45 * $AU9) + ('C'!$D$46 * $AV9) -> 0.04348332 | AY9: =IF($AT9>'C'!$D$142, ($AT9 ^ (1/'C'!$D$141) * 'C'!$D$140) - 'C'!$D$139, $AT9 * 'C'!$D$138) -> 0.2306846566 | AZ9: =IF($AU9>'C'!$D$142, ($AU9 ^ (1/'C'!$D$141) * 'C'!$D$140) - 'C'!$D$139, $AU9 * 'C'!$D$138) -> 0.2306846566 | BA9: =IF($AV9>'C'!$D$142, ($AV9 ^ (1/'C'!$D$141) * 'C'!$D$140) - 'C'!$D$139, $AV9 * 'C'!$D$138) -> 0.2306846566 | BC9: 59 | BD9: 59 | BE9: 59 | BH9: =IFERROR(ROUNDDOWN((MAX(BH$2,$J9) + 'C'!$D$57) / (MIN(BH$2,$J9) + 'C'!$D$57),1),"") -> 6.8 | BI9: =IFERROR(ROUNDDOWN((MAX(BI$2,$J9) + 'C'!$D$57) / (MIN(BI$2,$J9) + 'C'!$D$57),1),"") -> 6.5 | BJ9: =IFERROR(ROUNDDOWN((MAX(BJ$2,$J9) + 'C'!$D$57) / (MIN(BJ$2,$J9) + 'C'!$D$57),1),"") -> 7 | BK9: =IFERROR(ROUNDDOWN((MAX(BK$2,$J9) + 'C'!$D$57) / (MIN(BK$2,$J9) + 'C'!$D$57),1),"") -> 11.2 | BL9: =IFERROR(ROUNDDOWN((MAX(BL$2,$J9) + 'C'!$D$57) / (MIN(BL$2,$J9) + 'C'!$D$57),1),"") -> 1.8 | BM9: =IFERROR(ROUNDDOWN((MAX(BM$2,$J9) + 'C'!$D$57) / (MIN(BM$2,$J9) + 'C'!$D$57),1),"") -> 1 | BN9: =IFERROR(ROUNDDOWN((MAX(BN$2,$J9) + 'C'!$D$57) / (MIN(BN$2,$J9) + 'C'!$D$57),1),"") -> 1.6 | BO9: =IFERROR(ROUNDDOWN((MAX(BO$2,$J9) + 'C'!$D$57) / (MIN(BO$2,$J9) + 'C'!$D$57),1),"") -> 1.3 | BP9: =IFERROR(ROUNDDOWN((MAX(BP$2,$J9) + 'C'!$D$57) / (MIN(BP$2,$J9) + 'C'!$D$57),1),"") -> 7.1 | BQ9: =IFERROR(ROUNDDOWN((MAX(BQ$2,$J9) + 'C'!$D$57) / (MIN(BQ$2,$J9) + 'C'!$D$57),1),"") -> 9.1 | BR9: =IFERROR(ROUNDDOWN((MAX(BR$2,$J9) + 'C'!$D$57) / (MIN(BR$2,$J9) + 'C'!$D$57),1),"") -> 1.4 | BS9: =IFERROR(ROUNDDOWN((MAX(BS$2,$J9) + 'C'!$D$57) / (MIN(BS$2,$J9) + 'C'!$D$57),1),"") -> 2.8 | BT9: =IFERROR(ROUNDDOWN((MAX(BT$2,$J9) + 'C'!$D$57) / (MIN(BT$2,$J9) + 'C'!$D$57),1),"") -> 1.2 | BU9: =IFERROR(ROUNDDOWN((MAX(BU$2,$J9) + 'C'!$D$57) / (MIN(BU$2,$J9) + 'C'!$D$57),1),"") -> 2.2 | BV9: =IFERROR(ROUNDDOWN((MAX(BV$2,$J9) + 'C'!$D$57) / (MIN(BV$2,$J9) + 'C'!$D$57),1),"") -> 2.8 | BW9: =IFERROR(ROUNDDOWN((MAX(BW$2,$J9) + 'C'!$D$57) / (MIN(BW$2,$J9) + 'C'!$D$57),1),"") -> 5.1 | BX9: =IFERROR(ROUNDDOWN((MAX(BX$2,$J9) + 'C'!$D$57) / (MIN(BX$2,$J9) + 'C'!$D$57),1),"") -> 8.2 | BY9: =IFERROR(ROUNDDOWN((MAX(BY$2,$J9) + 'C'!$D$57) / (MIN(BY$2,$J9) + 'C'!$D$57),1),"") -> 5.1 | BZ9: =IFERROR(ROUNDDOWN((MAX(BZ$2,$J9) + 'C'!$D$57) / (MIN(BZ$2,$J9) + 'C'!$D$57),1),"") -> 1.2 | CA9: =IFERROR(ROUNDDOWN((MAX(CA$2,$J9) + 'C'!$D$57) / (MIN(CA$2,$J9) + 'C'!$D$57),1),"") -> 6 | CB9: =IFERROR(ROUNDDOWN((MAX(CB$2,$J9) + 'C'!$D$57) / (MIN(CB$2,$J9) + 'C'!$D$57),1),"") -> 3 | CC9: =IFERROR(ROUNDDOWN((MAX(CC$2,$J9) + 'C'!$D$57) / (MIN(CC$2,$J9) + 'C'!$D$57),1),"") -> 11.2 | CD9: =IFERROR(ROUNDDOWN((MAX(CD$2,$J9) + 'C'!$D$57) / (MIN(CD$2,$J9) + 'C'!$D$57),1),"") -> 11.2 | CE9: =IFERROR(ROUNDDOWN((MAX(CE$2,$J9) + 'C'!$D$57) / (MIN(CE$2,$J9) + 'C'!$D$57),1),"") -> 11.2 | CF9: =IFERROR(ROUNDDOWN((MAX(CF$2,$J9) + 'C'!$D$57) / (MIN(CF$2,$J9) + 'C'!$D$57),1),"") -> 11.2 | CG9: =IFERROR(ROUNDDOWN((MAX(CG$2,$J9) + 'C'!$D$57) / (MIN(CG$2,$J9) + 'C'!$D$57),1),"") -> 11.2 | CH9: =IFERROR(ROUNDDOWN((MAX(CH$2,$J9) + 'C'!$D$57) / (MIN(CH$2,$J9) + 'C'!$D$57),1),"") -> 11.2 | CI9: =IFERROR(ROUNDDOWN((MAX(CI$2,$J9) + 'C'!$D$57) / (MIN(CI$2,$J9) + 'C'!$D$57),1),"") -> 11.2 | CJ9: =IFERROR(ROUNDDOWN((MAX(CJ$2,$J9) + 'C'!$D$57) / (MIN(CJ$2,$J9) + 'C'!$D$57),1),"") -> 11.2 | CK9: =IFERROR(ROUNDDOWN((MAX(CK$2,$J9) + 'C'!$D$57) / (MIN(CK$2,$J9) + 'C'!$D$57),1),"") -> 11.2 | CL9: =IFERROR(ROUNDDOWN((MAX(CL$2,$J9) + 'C'!$D$57) / (MIN(CL$2,$J9) + 'C'!$D$57),1),"") -> 11.2 | CM9: =IFERROR(ROUNDDOWN((MAX(CM$2,$J9) + 'C'!$D$57) / (MIN(CM$2,$J9) + 'C'!$D$57),1),"") -> 11.2 | CN9: =IFERROR(ROUNDDOWN((MAX(CN$2,$J9) + 'C'!$D$57) / (MIN(CN$2,$J9) + 'C'!$D$57),1),"") -> 11.2 | CO9: =IFERROR(ROUNDDOWN((MAX(CO$2,$J9) + 'C'!$D$57) / (MIN(CO$2,$J9) + 'C'!$D$57),1),"") -> 11.2 | CP9: =IFERROR(ROUNDDOWN((MAX(CP$2,$J9) + 'C'!$D$57) / (MIN(CP$2,$J9) + 'C'!$D$57),1),"") -> 11.2 | CQ9: =IFERROR(ROUNDDOWN((MAX(CQ$2,$J9) + 'C'!$D$57) / (MIN(CQ$2,$J9) + 'C'!$D$57),1),"") -> 11.2 | CR9: =IFERROR(ROUNDDOWN((MAX(CR$2,$J9) + 'C'!$D$57) / (MIN(CR$2,$J9) + 'C'!$D$57),1),"") -> 11.2 | CS9: =IFERROR(ROUNDDOWN((MAX(CS$2,$J9) + 'C'!$D$57) / (MIN(CS$2,$J9) + 'C'!$D$57),1),"") -> 11.2 | CT9: =IFERROR(ROUNDDOWN((MAX(CT$2,$J9) + 'C'!$D$57) / (MIN(CT$2,$J9) + 'C'!$D$57),1),"") -> 11.2 | CU9: =IFERROR(ROUNDDOWN((MAX(CU$2,$J9) + 'C'!$D$57) / (MIN(CU$2,$J9) + 'C'!$D$57),1),"") -> 11.2
B10: #000000 | D10: =(D8+D9)/2 -> 0.1758237643 | E10: 0 | F10: 0 | H10: Content Border: Halfway between Page BG and black | I10: #111111 | J10: 0.00543541 | M10: 0 | N10: 0 | O10: 0 | Q10: 0 | R10: 0 | S10: 0 | U10: =IF($Q10 > 'C'!$D$33,((($Q10 + 'C'!$D$30) / 'C'!$D$31)) ^ 'C'!$D$32,($Q10 / 'C'!$D$29)) -> 0 | V10: =IF($R10 > 'C'!$D$33,((($R10 + 'C'!$D$30) / 'C'!$D$31)) ^ 'C'!$D$32,($R10 / 'C'!$D$29)) -> 0 | W10: =IF($S10 > 'C'!$D$33,((($S10 + 'C'!$D$30) / 'C'!$D$31)) ^ 'C'!$D$32,($S10 / 'C'!$D$29)) -> 0 | Y10: =('C'!$D$44 * $U10) +( 'C'!$D$45 * $V10) + ('C'!$D$46 * $W10) -> 0 | Z10: =ROUND( ('C'!$D$69 * $U10) + ('C'!$E$69 * $V10) + ('C'!$F$69 * $W10), 'C'!$D$75) -> 0 | AA10: =ROUND( ('C'!$D$70 * $U10) + ('C'!$E$70 * $V10) + ('C'!$F$70 * $W10), 'C'!$D$75) -> 0 | AB10: =ROUND( ('C'!$D$71 * $U10) + ('C'!$E$71 * $V10) + ('C'!$F$71 * $W10), 'C'!$D$75) -> 0 | AD10: =ROUND( ('C'!$D$82 * ($Z10^'C'!$D$89)) + ('C'!$E$82 * ($AA10^'C'!$D$89)) + ('C'!$F$82 * ($AB10^'C'!$D$89)), 'C'!$D$88) -> 0 | AE10: =ROUND( ('C'!$D$83 * ($Z10^'C'!$D$89)) + ('C'!$E$83 * ($AA10^'C'!$D$89)) + ('C'!$F$83 * ($AB10^'C'!$D$89)), 'C'!$D$88) -> 0 | AF10: =ROUND( ('C'!$D$84 * ($Z10^'C'!$D$89)) + ('C'!$E$84 * ($AA10^'C'!$D$89)) + ('C'!$F$84 * ($AB10^'C'!$D$89)), 'C'!$D$88) -> 0 | AG10: 0 | AH10: 0 | AJ10: 0.1758237643 | AK10: 0 | AL10: 0 | AM10: 0 | AN10: 0 | AP10: =ROUND( ('C'!$D$105 * $AJ10) + ('C'!$E$105 * $AK10) + ('C'!$F$105 * $AL10), 'C'!$D$111) ^ 'C'!$D$112 -> 0.005435414764 | AQ10: =ROUND( ('C'!$D$106 * $AJ10) + ('C'!$E$106 * $AK10) + ('C'!$F$106 * $AL10), 'C'!$D$111) ^ 'C'!$D$112 -> 0.005435414764 | AR10: =ROUND( ('C'!$D$107 * $AJ10) + ('C'!$E$107 * $AK10) + ('C'!$F$107 * $AL10), 'C'!$D$111) ^ 'C'!$D$112 -> 0.005435414764 | AT10: =MIN(1, MAX(0, ROUND( ('C'!$D$119 * $AP10) + ('C'!$E$119 * $AQ10) + ('C'!$F$119 * $AR10), 'C'!$D$125))) -> 0.00543541 | AU10: =MIN(1,MAX(0,ROUND( ('C'!$D$120 * $AP10) + ('C'!$E$120 * $AQ10) + ('C'!$F$120 * $AR10), 'C'!$D$125))) -> 0.00543541 | AV10: =MIN(1,MAX(0,ROUND( ('C'!$D$121 * $AP10) + ('C'!$E$121 * $AQ10) + ('C'!$F$121 * $AR10), 'C'!$D$125))) -> 0.00543541 | AX10: =('C'!$D$44 * $AT10) +( 'C'!$D$45 * $AU10) + ('C'!$D$46 * $AV10) -> 0.00543541 | AY10: =IF($AT10>'C'!$D$142, ($AT10 ^ (1/'C'!$D$141) * 'C'!$D$140) - 'C'!$D$139, $AT10 * 'C'!$D$138) -> 0.06511555576 | AZ10: =IF($AU10>'C'!$D$142, ($AU10 ^ (1/'C'!$D$141) * 'C'!$D$140) - 'C'!$D$139, $AU10 * 'C'!$D$138) -> 0.06511555576 | BA10: =IF($AV10>'C'!$D$142, ($AV10 ^ (1/'C'!$D$141) * 'C'!$D$140) - 'C'!$D$139, $AV10 * 'C'!$D$138) -> 0.06511555576 | BC10: 17 | BD10: 17 | BE10: 17 | BH10: =IFERROR(ROUNDDOWN((MAX(BH$2,$J10) + 'C'!$D$57) / (MIN(BH$2,$J10) + 'C'!$D$57),1),"") -> 11.6 | BI10: =IFERROR(ROUNDDOWN((MAX(BI$2,$J10) + 'C'!$D$57) / (MIN(BI$2,$J10) + 'C'!$D$57),1),"") -> 11.1 | BJ10: =IFERROR(ROUNDDOWN((MAX(BJ$2,$J10) + 'C'!$D$57) / (MIN(BJ$2,$J10) + 'C'!$D$57),1),"") -> 11.9 | BK10: =IFERROR(ROUNDDOWN((MAX(BK$2,$J10) + 'C'!$D$57) / (MIN(BK$2,$J10) + 'C'!$D$57),1),"") -> 18.9 | BL10: =IFERROR(ROUNDDOWN((MAX(BL$2,$J10) + 'C'!$D$57) / (MIN(BL$2,$J10) + 'C'!$D$57),1),"") -> 1.1 | BM10: =IFERROR(ROUNDDOWN((MAX(BM$2,$J10) + 'C'!$D$57) / (MIN(BM$2,$J10) + 'C'!$D$57),1),"") -> 1.6 | BN10: =IFERROR(ROUNDDOWN((MAX(BN$2,$J10) + 'C'!$D$57) / (MIN(BN$2,$J10) + 'C'!$D$57),1),"") -> 1 | BO10: =IFERROR(ROUNDDOWN((MAX(BO$2,$J10) + 'C'!$D$57) / (MIN(BO$2,$J10) + 'C'!$D$57),1),"") -> 1.2 | BP10: =IFERROR(ROUNDDOWN((MAX(BP$2,$J10) + 'C'!$D$57) / (MIN(BP$2,$J10) + 'C'!$D$57),1),"") -> 12 | BQ10: =IFERROR(ROUNDDOWN((MAX(BQ$2,$J10) + 'C'!$D$57) / (MIN(BQ$2,$J10) + 'C'!$D$57),1),"") -> 15.4 | BR10: =IFERROR(ROUNDDOWN((MAX(BR$2,$J10) + 'C'!$D$57) / (MIN(BR$2,$J10) + 'C'!$D$57),1),"") -> 2.4 | BS10: =IFERROR(ROUNDDOWN((MAX(BS$2,$J10) + 'C'!$D$57) / (MIN(BS$2,$J10) + 'C'!$D$57),1),"") -> 4.7 | BT10: =IFERROR(ROUNDDOWN((MAX(BT$2,$J10) + 'C'!$D$57) / (MIN(BT$2,$J10) + 'C'!$D$57),1),"") -> 2.1 | BU10: =IFERROR(ROUNDDOWN((MAX(BU$2,$J10) + 'C'!$D$57) / (MIN(BU$2,$J10) + 'C'!$D$57),1),"") -> 3.7 | BV10: =IFERROR(ROUNDDOWN((MAX(BV$2,$J10) + 'C'!$D$57) / (MIN(BV$2,$J10) + 'C'!$D$57),1),"") -> 4.8 | BW10: =IFERROR(ROUNDDOWN((MAX(BW$2,$J10) + 'C'!$D$57) / (MIN(BW$2,$J10) + 'C'!$D$57),1),"") -> 8.6 | BX10: =IFERROR(ROUNDDOWN((MAX(BX$2,$J10) + 'C'!$D$57) / (MIN(BX$2,$J10) + 'C'!$D$57),1),"") -> 13.9 | BY10: =IFERROR(ROUNDDOWN((MAX(BY$2,$J10) + 'C'!$D$57) / (MIN(BY$2,$J10) + 'C'!$D$57),1),"") -> 8.6 | BZ10: =IFERROR(ROUNDDOWN((MAX(BZ$2,$J10) + 'C'!$D$57) / (MIN(BZ$2,$J10) + 'C'!$D$57),1),"") -> 2.1 | CA10: =IFERROR(ROUNDDOWN((MAX(CA$2,$J10) + 'C'!$D$57) / (MIN(CA$2,$J10) + 'C'!$D$57),1),"") -> 10.1 | CB10: =IFERROR(ROUNDDOWN((MAX(CB$2,$J10) + 'C'!$D$57) / (MIN(CB$2,$J10) + 'C'!$D$57),1),"") -> 5.1 | CC10: =IFERROR(ROUNDDOWN((MAX(CC$2,$J10) + 'C'!$D$57) / (MIN(CC$2,$J10) + 'C'!$D$57),1),"") -> 18.9 | CD10: =IFERROR(ROUNDDOWN((MAX(CD$2,$J10) + 'C'!$D$57) / (MIN(CD$2,$J10) + 'C'!$D$57),1),"") -> 18.9 | CE10: =IFERROR(ROUNDDOWN((MAX(CE$2,$J10) + 'C'!$D$57) / (MIN(CE$2,$J10) + 'C'!$D$57),1),"") -> 18.9 | CF10: =IFERROR(ROUNDDOWN((MAX(CF$2,$J10) + 'C'!$D$57) / (MIN(CF$2,$J10) + 'C'!$D$57),1),"") -> 18.9 | CG10: =IFERROR(ROUNDDOWN((MAX(CG$2,$J10) + 'C'!$D$57) / (MIN(CG$2,$J10) + 'C'!$D$57),1),"") -> 18.9 | CH10: =IFERROR(ROUNDDOWN((MAX(CH$2,$J10) + 'C'!$D$57) / (MIN(CH$2,$J10) + 'C'!$D$57),1),"") -> 18.9 | CI10: =IFERROR(ROUNDDOWN((MAX(CI$2,$J10) + 'C'!$D$57) / (MIN(CI$2,$J10) + 'C'!$D$57),1),"") -> 18.9 | CJ10: =IFERROR(ROUNDDOWN((MAX(CJ$2,$J10) + 'C'!$D$57) / (MIN(CJ$2,$J10) + 'C'!$D$57),1),"") -> 18.9 | CK10: =IFERROR(ROUNDDOWN((MAX(CK$2,$J10) + 'C'!$D$57) / (MIN(CK$2,$J10) + 'C'!$D$57),1),"") -> 18.9 | CL10: =IFERROR(ROUNDDOWN((MAX(CL$2,$J10) + 'C'!$D$57) / (MIN(CL$2,$J10) + 'C'!$D$57),1),"") -> 18.9 | CM10: =IFERROR(ROUNDDOWN((MAX(CM$2,$J10) + 'C'!$D$57) / (MIN(CM$2,$J10) + 'C'!$D$57),1),"") -> 18.9 | CN10: =IFERROR(ROUNDDOWN((MAX(CN$2,$J10) + 'C'!$D$57) / (MIN(CN$2,$J10) + 'C'!$D$57),1),"") -> 18.9 | CO10: =IFERROR(ROUNDDOWN((MAX(CO$2,$J10) + 'C'!$D$57) / (MIN(CO$2,$J10) + 'C'!$D$57),1),"") -> 18.9 | CP10: =IFERROR(ROUNDDOWN((MAX(CP$2,$J10) + 'C'!$D$57) / (MIN(CP$2,$J10) + 'C'!$D$57),1),"") -> 18.9 | CQ10: =IFERROR(ROUNDDOWN((MAX(CQ$2,$J10) + 'C'!$D$57) / (MIN(CQ$2,$J10) + 'C'!$D$57),1),"") -> 18.9 | CR10: =IFERROR(ROUNDDOWN((MAX(CR$2,$J10) + 'C'!$D$57) / (MIN(CR$2,$J10) + 'C'!$D$57),1),"") -> 18.9 | CS10: =IFERROR(ROUNDDOWN((MAX(CS$2,$J10) + 'C'!$D$57) / (MIN(CS$2,$J10) + 'C'!$D$57),1),"") -> 18.9 | CT10: =IFERROR(ROUNDDOWN((MAX(CT$2,$J10) + 'C'!$D$57) / (MIN(CT$2,$J10) + 'C'!$D$57),1),"") -> 18.9 | CU10: =IFERROR(ROUNDDOWN((MAX(CU$2,$J10) + 'C'!$D$57) / (MIN(CU$2,$J10) + 'C'!$D$57),1),"") -> 18.9
B11: #000000 | D11: =(D9+D10)/2 -> 0.2637356465 | E11: 0 | F11: 0 | H11: Content BG: Halfway between Content Border and Page BG | I11: #252525 | J11: 0.01834453 | M11: 0 | N11: 0 | O11: 0 | Q11: 0 | R11: 0 | S11: 0 | U11: =IF($Q11 > 'C'!$D$33,((($Q11 + 'C'!$D$30) / 'C'!$D$31)) ^ 'C'!$D$32,($Q11 / 'C'!$D$29)) -> 0 | V11: =IF($R11 > 'C'!$D$33,((($R11 + 'C'!$D$30) / 'C'!$D$31)) ^ 'C'!$D$32,($R11 / 'C'!$D$29)) -> 0 | W11: =IF($S11 > 'C'!$D$33,((($S11 + 'C'!$D$30) / 'C'!$D$31)) ^ 'C'!$D$32,($S11 / 'C'!$D$29)) -> 0 | Y11: =('C'!$D$44 * $U11) +( 'C'!$D$45 * $V11) + ('C'!$D$46 * $W11) -> 0 | Z11: =ROUND( ('C'!$D$69 * $U11) + ('C'!$E$69 * $V11) + ('C'!$F$69 * $W11), 'C'!$D$75) -> 0 | AA11: =ROUND( ('C'!$D$70 * $U11) + ('C'!$E$70 * $V11) + ('C'!$F$70 * $W11), 'C'!$D$75) -> 0 | AB11: =ROUND( ('C'!$D$71 * $U11) + ('C'!$E$71 * $V11) + ('C'!$F$71 * $W11), 'C'!$D$75) -> 0 | AD11: =ROUND( ('C'!$D$82 * ($Z11^'C'!$D$89)) + ('C'!$E$82 * ($AA11^'C'!$D$89)) + ('C'!$F$82 * ($AB11^'C'!$D$89)), 'C'!$D$88) -> 0 | AE11: =ROUND( ('C'!$D$83 * ($Z11^'C'!$D$89)) + ('C'!$E$83 * ($AA11^'C'!$D$89)) + ('C'!$F$83 * ($AB11^'C'!$D$89)), 'C'!$D$88) -> 0 | AF11: =ROUND( ('C'!$D$84 * ($Z11^'C'!$D$89)) + ('C'!$E$84 * ($AA11^'C'!$D$89)) + ('C'!$F$84 * ($AB11^'C'!$D$89)), 'C'!$D$88) -> 0 | AG11: 0 | AH11: 0 | AJ11: 0.2637356465 | AK11: 0 | AL11: 0 | AM11: 0 | AN11: 0 | AP11: =ROUND( ('C'!$D$105 * $AJ11) + ('C'!$E$105 * $AK11) + ('C'!$F$105 * $AL11), 'C'!$D$111) ^ 'C'!$D$112 -> 0.01834452691 | AQ11: =ROUND( ('C'!$D$106 * $AJ11) + ('C'!$E$106 * $AK11) + ('C'!$F$106 * $AL11), 'C'!$D$111) ^ 'C'!$D$112 -> 0.01834452691 | AR11: =ROUND( ('C'!$D$107 * $AJ11) + ('C'!$E$107 * $AK11) + ('C'!$F$107 * $AL11), 'C'!$D$111) ^ 'C'!$D$112 -> 0.01834452691 | AT11: =MIN(1, MAX(0, ROUND( ('C'!$D$119 * $AP11) + ('C'!$E$119 * $AQ11) + ('C'!$F$119 * $AR11), 'C'!$D$125))) -> 0.01834453 | AU11: =MIN(1,MAX(0,ROUND( ('C'!$D$120 * $AP11) + ('C'!$E$120 * $AQ11) + ('C'!$F$120 * $AR11), 'C'!$D$125))) -> 0.01834453 | AV11: =MIN(1,MAX(0,ROUND( ('C'!$D$121 * $AP11) + ('C'!$E$121 * $AQ11) + ('C'!$F$121 * $AR11), 'C'!$D$125))) -> 0.01834453 | AX11: =('C'!$D$44 * $AT11) +( 'C'!$D$45 * $AU11) + ('C'!$D$46 * $AV11) -> 0.01834453 | AY11: =IF($AT11>'C'!$D$142, ($AT11 ^ (1/'C'!$D$141) * 'C'!$D$140) - 'C'!$D$139, $AT11 * 'C'!$D$138) -> 0.144394667 | AZ11: =IF($AU11>'C'!$D$142, ($AU11 ^ (1/'C'!$D$141) * 'C'!$D$140) - 'C'!$D$139, $AU11 * 'C'!$D$138) -> 0.144394667 | BA11: =IF($AV11>'C'!$D$142, ($AV11 ^ (1/'C'!$D$141) * 'C'!$D$140) - 'C'!$D$139, $AV11 * 'C'!$D$138) -> 0.144394667 | BC11: 37 | BD11: 37 | BE11: 37 | BH11: =IFERROR(ROUNDDOWN((MAX(BH$2,$J11) + 'C'!$D$57) / (MIN(BH$2,$J11) + 'C'!$D$57),1),"") -> 9.4 | BI11: =IFERROR(ROUNDDOWN((MAX(BI$2,$J11) + 'C'!$D$57) / (MIN(BI$2,$J11) + 'C'!$D$57),1),"") -> 9 | BJ11: =IFERROR(ROUNDDOWN((MAX(BJ$2,$J11) + 'C'!$D$57) / (MIN(BJ$2,$J11) + 'C'!$D$57),1),"") -> 9.6 | BK11: =IFERROR(ROUNDDOWN((MAX(BK$2,$J11) + 'C'!$D$57) / (MIN(BK$2,$J11) + 'C'!$D$57),1),"") -> 15.3 | BL11: =IFERROR(ROUNDDOWN((MAX(BL$2,$J11) + 'C'!$D$57) / (MIN(BL$2,$J11) + 'C'!$D$57),1),"") -> 1.3 | BM11: =IFERROR(ROUNDDOWN((MAX(BM$2,$J11) + 'C'!$D$57) / (MIN(BM$2,$J11) + 'C'!$D$57),1),"") -> 1.3 | BN11: =IFERROR(ROUNDDOWN((MAX(BN$2,$J11) + 'C'!$D$57) / (MIN(BN$2,$J11) + 'C'!$D$57),1),"") -> 1.2 | BO11: =IFERROR(ROUNDDOWN((MAX(BO$2,$J11) + 'C'!$D$57) / (MIN(BO$2,$J11) + 'C'!$D$57),1),"") -> 1 | BP11: =IFERROR(ROUNDDOWN((MAX(BP$2,$J11) + 'C'!$D$57) / (MIN(BP$2,$J11) + 'C'!$D$57),1),"") -> 9.7 | BQ11: =IFERROR(ROUNDDOWN((MAX(BQ$2,$J11) + 'C'!$D$57) / (MIN(BQ$2,$J11) + 'C'!$D$57),1),"") -> 12.5 | BR11: =IFERROR(ROUNDDOWN((MAX(BR$2,$J11) + 'C'!$D$57) / (MIN(BR$2,$J11) + 'C'!$D$57),1),"") -> 1.9 | BS11: =IFERROR(ROUNDDOWN((MAX(BS$2,$J11) + 'C'!$D$57) / (MIN(BS$2,$J11) + 'C'!$D$57),1),"") -> 3.8 | BT11: =IFERROR(ROUNDDOWN((MAX(BT$2,$J11) + 'C'!$D$57) / (MIN(BT$2,$J11) + 'C'!$D$57),1),"") -> 1.7 | BU11: =IFERROR(ROUNDDOWN((MAX(BU$2,$J11) + 'C'!$D$57) / (MIN(BU$2,$J11) + 'C'!$D$57),1),"") -> 3 | BV11: =IFERROR(ROUNDDOWN((MAX(BV$2,$J11) + 'C'!$D$57) / (MIN(BV$2,$J11) + 'C'!$D$57),1),"") -> 3.9 | BW11: =IFERROR(ROUNDDOWN((MAX(BW$2,$J11) + 'C'!$D$57) / (MIN(BW$2,$J11) + 'C'!$D$57),1),"") -> 7 | BX11: =IFERROR(ROUNDDOWN((MAX(BX$2,$J11) + 'C'!$D$57) / (MIN(BX$2,$J11) + 'C'!$D$57),1),"") -> 11.2 | BY11: =IFERROR(ROUNDDOWN((MAX(BY$2,$J11) + 'C'!$D$57) / (MIN(BY$2,$J11) + 'C'!$D$57),1),"") -> 7 | BZ11: =IFERROR(ROUNDDOWN((MAX(BZ$2,$J11) + 'C'!$D$57) / (MIN(BZ$2,$J11) + 'C'!$D$57),1),"") -> 1.7 | CA11: =IFERROR(ROUNDDOWN((MAX(CA$2,$J11) + 'C'!$D$57) / (MIN(CA$2,$J11) + 'C'!$D$57),1),"") -> 8.2 | CB11: =IFERROR(ROUNDDOWN((MAX(CB$2,$J11) + 'C'!$D$57) / (MIN(CB$2,$J11) + 'C'!$D$57),1),"") -> 4.1 | CC11: =IFERROR(ROUNDDOWN((MAX(CC$2,$J11) + 'C'!$D$57) / (MIN(CC$2,$J11) + 'C'!$D$57),1),"") -> 15.3 | CD11: =IFERROR(ROUNDDOWN((MAX(CD$2,$J11) + 'C'!$D$57) / (MIN(CD$2,$J11) + 'C'!$D$57),1),"") -> 15.3 | CE11: =IFERROR(ROUNDDOWN((MAX(CE$2,$J11) + 'C'!$D$57) / (MIN(CE$2,$J11) + 'C'!$D$57),1),"") -> 15.3 | CF11: =IFERROR(ROUNDDOWN((MAX(CF$2,$J11) + 'C'!$D$57) / (MIN(CF$2,$J11) + 'C'!$D$57),1),"") -> 15.3 | CG11: =IFERROR(ROUNDDOWN((MAX(CG$2,$J11) + 'C'!$D$57) / (MIN(CG$2,$J11) + 'C'!$D$57),1),"") -> 15.3 | CH11: =IFERROR(ROUNDDOWN((MAX(CH$2,$J11) + 'C'!$D$57) / (MIN(CH$2,$J11) + 'C'!$D$57),1),"") -> 15.3 | CI11: =IFERROR(ROUNDDOWN((MAX(CI$2,$J11) + 'C'!$D$57) / (MIN(CI$2,$J11) + 'C'!$D$57),1),"") -> 15.3 | CJ11: =IFERROR(ROUNDDOWN((MAX(CJ$2,$J11) + 'C'!$D$57) / (MIN(CJ$2,$J11) + 'C'!$D$57),1),"") -> 15.3 | CK11: =IFERROR(ROUNDDOWN((MAX(CK$2,$J11) + 'C'!$D$57) / (MIN(CK$2,$J11) + 'C'!$D$57),1),"") -> 15.3 | CL11: =IFERROR(ROUNDDOWN((MAX(CL$2,$J11) + 'C'!$D$57) / (MIN(CL$2,$J11) + 'C'!$D$57),1),"") -> 15.3 | CM11: =IFERROR(ROUNDDOWN((MAX(CM$2,$J11) + 'C'!$D$57) / (MIN(CM$2,$J11) + 'C'!$D$57),1),"") -> 15.3 | CN11: =IFERROR(ROUNDDOWN((MAX(CN$2,$J11) + 'C'!$D$57) / (MIN(CN$2,$J11) + 'C'!$D$57),1),"") -> 15.3 | CO11: =IFERROR(ROUNDDOWN((MAX(CO$2,$J11) + 'C'!$D$57) / (MIN(CO$2,$J11) + 'C'!$D$57),1),"") -> 15.3 | CP11: =IFERROR(ROUNDDOWN((MAX(CP$2,$J11) + 'C'!$D$57) / (MIN(CP$2,$J11) + 'C'!$D$57),1),"") -> 15.3 | CQ11: =IFERROR(ROUNDDOWN((MAX(CQ$2,$J11) + 'C'!$D$57) / (MIN(CQ$2,$J11) + 'C'!$D$57),1),"") -> 15.3 | CR11: =IFERROR(ROUNDDOWN((MAX(CR$2,$J11) + 'C'!$D$57) / (MIN(CR$2,$J11) + 'C'!$D$57),1),"") -> 15.3 | CS11: =IFERROR(ROUNDDOWN((MAX(CS$2,$J11) + 'C'!$D$57) / (MIN(CS$2,$J11) + 'C'!$D$57),1),"") -> 15.3 | CT11: =IFERROR(ROUNDDOWN((MAX(CT$2,$J11) + 'C'!$D$57) / (MIN(CT$2,$J11) + 'C'!$D$57),1),"") -> 15.3 | CU11: =IFERROR(ROUNDDOWN((MAX(CU$2,$J11) + 'C'!$D$57) / (MIN(CU$2,$J11) + 'C'!$D$57),1),"") -> 15.3
B12: =I6 -> #FFC500 | D12: 0 | E12: -1 | F12: 0 | H12: Secondary Text: Gray with same luminance as Brand yellow | I12: #CECECE | J12: 0.61783549 | M12: 255 | N12: 197 | O12: 0 | Q12: 1 | R12: 0.7725490196 | S12: 0 | U12: =IF($Q12 > 'C'!$D$33,((($Q12 + 'C'!$D$30) / 'C'!$D$31)) ^ 'C'!$D$32,($Q12 / 'C'!$D$29)) -> 1 | V12: =IF($R12 > 'C'!$D$33,((($R12 + 'C'!$D$30) / 'C'!$D$31)) ^ 'C'!$D$32,($R12 / 'C'!$D$29)) -> 0.5583403896 | W12: =IF($S12 > 'C'!$D$33,((($S12 + 'C'!$D$30) / 'C'!$D$31)) ^ 'C'!$D$32,($S12 / 'C'!$D$29)) -> 0 | Y12: =('C'!$D$44 * $U12) +( 'C'!$D$45 * $V12) + ('C'!$D$46 * $W12) -> 0.6119250467 | Z12: =ROUND( ('C'!$D$69 * $U12) + ('C'!$E$69 * $V12) + ('C'!$F$69 * $W12), 'C'!$D$75) -> 0.71167759 | AA12: =ROUND( ('C'!$D$70 * $U12) + ('C'!$E$70 * $V12) + ('C'!$F$70 * $W12), 'C'!$D$75) -> 0.59196555 | AB12: =ROUND( ('C'!$D$71 * $U12) + ('C'!$E$71 * $V12) + ('C'!$F$71 * $W12), 'C'!$D$75) -> 0.24559747 | AD12: =ROUND( ('C'!$D$82 * ($Z12^'C'!$D$89)) + ('C'!$E$82 * ($AA12^'C'!$D$89)) + ('C'!$F$82 * ($AB12^'C'!$D$89)), 'C'!$D$88) -> 0.85170844 | AE12: =ROUND( ('C'!$D$83 * ($Z12^'C'!$D$89)) + ('C'!$E$83 * ($AA12^'C'!$D$89)) + ('C'!$F$83 * ($AB12^'C'!$D$89)), 'C'!$D$88) -> 0.00899542 | AF12: =ROUND( ('C'!$D$84 * ($Z12^'C'!$D$89)) + ('C'!$E$84 * ($AA12^'C'!$D$89)) + ('C'!$F$84 * ($AB12^'C'!$D$89)), 'C'!$D$88) -> 0.17395691 | AG12: 0.1741893341 | AH12: 87.03983621 | AJ12: 0.85170844 | AK12: 0 | AL12: 0 | AM12: 0 | AN12: 87.03983621 | AP12: =ROUND( ('C'!$D$105 * $AJ12) + ('C'!$E$105 * $AK12) + ('C'!$F$105 * $AL12), 'C'!$D$111) ^ 'C'!$D$112 -> 0.6178354915 | AQ12: =ROUND( ('C'!$D$106 * $AJ12) + ('C'!$E$106 * $AK12) + ('C'!$F$106 * $AL12), 'C'!$D$111) ^ 'C'!$D$112 -> 0.6178354915 | AR12: =ROUND( ('C'!$D$107 * $AJ12) + ('C'!$E$107 * $AK12) + ('C'!$F$107 * $AL12), 'C'!$D$111) ^ 'C'!$D$112 -> 0.6178354915 | AT12: =MIN(1, MAX(0, ROUND( ('C'!$D$119 * $AP12) + ('C'!$E$119 * $AQ12) + ('C'!$F$119 * $AR12), 'C'!$D$125))) -> 0.61783549 | AU12: =MIN(1,MAX(0,ROUND( ('C'!$D$120 * $AP12) + ('C'!$E$120 * $AQ12) + ('C'!$F$120 * $AR12), 'C'!$D$125))) -> 0.61783549 | AV12: =MIN(1,MAX(0,ROUND( ('C'!$D$121 * $AP12) + ('C'!$E$121 * $AQ12) + ('C'!$F$121 * $AR12), 'C'!$D$125))) -> 0.61783549 | AX12: =('C'!$D$44 * $AT12) +( 'C'!$D$45 * $AU12) + ('C'!$D$46 * $AV12) -> 0.61783549 | AY12: =IF($AT12>'C'!$D$142, ($AT12 ^ (1/'C'!$D$141) * 'C'!$D$140) - 'C'!$D$139, $AT12 * 'C'!$D$138) -> 0.8082093738 | AZ12: =IF($AU12>'C'!$D$142, ($AU12 ^ (1/'C'!$D$141) * 'C'!$D$140) - 'C'!$D$139, $AU12 * 'C'!$D$138) -> 0.8082093738 | BA12: =IF($AV12>'C'!$D$142, ($AV12 ^ (1/'C'!$D$141) * 'C'!$D$140) - 'C'!$D$139, $AV12 * 'C'!$D$138) -> 0.8082093738 | BC12: 206 | BD12: 206 | BE12: 206 | BH12: =IFERROR(ROUNDDOWN((MAX(BH$2,$J12) + 'C'!$D$57) / (MIN(BH$2,$J12) + 'C'!$D$57),1),"") -> 1 | BI12: =IFERROR(ROUNDDOWN((MAX(BI$2,$J12) + 'C'!$D$57) / (MIN(BI$2,$J12) + 'C'!$D$57),1),"") -> 1 | BJ12: =IFERROR(ROUNDDOWN((MAX(BJ$2,$J12) + 'C'!$D$57) / (MIN(BJ$2,$J12) + 'C'!$D$57),1),"") -> 1 | BK12: =IFERROR(ROUNDDOWN((MAX(BK$2,$J12) + 'C'!$D$57) / (MIN(BK$2,$J12) + 'C'!$D$57),1),"") -> 1.5 | BL12: =IFERROR(ROUNDDOWN((MAX(BL$2,$J12) + 'C'!$D$57) / (MIN(BL$2,$J12) + 'C'!$D$57),1),"") -> 13.3 | BM12: =IFERROR(ROUNDDOWN((MAX(BM$2,$J12) + 'C'!$D$57) / (MIN(BM$2,$J12) + 'C'!$D$57),1),"") -> 7.1 | BN12: =IFERROR(ROUNDDOWN((MAX(BN$2,$J12) + 'C'!$D$57) / (MIN(BN$2,$J12) + 'C'!$D$57),1),"") -> 12 | BO12: =IFERROR(ROUNDDOWN((MAX(BO$2,$J12) + 'C'!$D$57) / (MIN(BO$2,$J12) + 'C'!$D$57),1),"") -> 9.7 | BP12: =IFERROR(ROUNDDOWN((MAX(BP$2,$J12) + 'C'!$D$57) / (MIN(BP$2,$J12) + 'C'!$D$57),1),"") -> 1 | BQ12: =IFERROR(ROUNDDOWN((MAX(BQ$2,$J12) + 'C'!$D$57) / (MIN(BQ$2,$J12) + 'C'!$D$57),1),"") -> 1.2 | BR12: =IFERROR(ROUNDDOWN((MAX(BR$2,$J12) + 'C'!$D$57) / (MIN(BR$2,$J12) + 'C'!$D$57),1),"") -> 4.9 | BS12: =IFERROR(ROUNDDOWN((MAX(BS$2,$J12) + 'C'!$D$57) / (MIN(BS$2,$J12) + 'C'!$D$57),1),"") -> 2.5 | BT12: =IFERROR(ROUNDDOWN((MAX(BT$2,$J12) + 'C'!$D$57) / (MIN(BT$2,$J12) + 'C'!$D$57),1),"") -> 5.5 | BU12: =IFERROR(ROUNDDOWN((MAX(BU$2,$J12) + 'C'!$D$57) / (MIN(BU$2,$J12) + 'C'!$D$57),1),"") -> 3.1 | BV12: =IFERROR(ROUNDDOWN((MAX(BV$2,$J12) + 'C'!$D$57) / (MIN(BV$2,$J12) + 'C'!$D$57),1),"") -> 2.4 | BW12: =IFERROR(ROUNDDOWN((MAX(BW$2,$J12) + 'C'!$D$57) / (MIN(BW$2,$J12) + 'C'!$D$57),1),"") -> 1.3 | BX12: =IFERROR(ROUNDDOWN((MAX(BX$2,$J12) + 'C'!$D$57) / (MIN(BX$2,$J12) + 'C'!$D$57),1),"") -> 1.1 | BY12: =IFERROR(ROUNDDOWN((MAX(BY$2,$J12) + 'C'!$D$57) / (MIN(BY$2,$J12) + 'C'!$D$57),1),"") -> 1.3 | BZ12: =IFERROR(ROUNDDOWN((MAX(BZ$2,$J12) + 'C'!$D$57) / (MIN(BZ$2,$J12) + 'C'!$D$57),1),"") -> 5.5 | CA12: =IFERROR(ROUNDDOWN((MAX(CA$2,$J12) + 'C'!$D$57) / (MIN(CA$2,$J12) + 'C'!$D$57),1),"") -> 1.1 | CB12: =IFERROR(ROUNDDOWN((MAX(CB$2,$J12) + 'C'!$D$57) / (MIN(CB$2,$J12) + 'C'!$D$57),1),"") -> 2.3 | CC12: =IFERROR(ROUNDDOWN((MAX(CC$2,$J12) + 'C'!$D$57) / (MIN(CC$2,$J12) + 'C'!$D$57),1),"") -> 1.5 | CD12: =IFERROR(ROUNDDOWN((MAX(CD$2,$J12) + 'C'!$D$57) / (MIN(CD$2,$J12) + 'C'!$D$57),1),"") -> 1.5 | CE12: =IFERROR(ROUNDDOWN((MAX(CE$2,$J12) + 'C'!$D$57) / (MIN(CE$2,$J12) + 'C'!$D$57),1),"") -> 1.5 | CF12: =IFERROR(ROUNDDOWN((MAX(CF$2,$J12) + 'C'!$D$57) / (MIN(CF$2,$J12) + 'C'!$D$57),1),"") -> 1.5 | CG12: =IFERROR(ROUNDDOWN((MAX(CG$2,$J12) + 'C'!$D$57) / (MIN(CG$2,$J12) + 'C'!$D$57),1),"") -> 1.5 | CH12: =IFERROR(ROUNDDOWN((MAX(CH$2,$J12) + 'C'!$D$57) / (MIN(CH$2,$J12) + 'C'!$D$57),1),"") -> 1.5 | CI12: =IFERROR(ROUNDDOWN((MAX(CI$2,$J12) + 'C'!$D$57) / (MIN(CI$2,$J12) + 'C'!$D$57),1),"") -> 1.5 | CJ12: =IFERROR(ROUNDDOWN((MAX(CJ$2,$J12) + 'C'!$D$57) / (MIN(CJ$2,$J12) + 'C'!$D$57),1),"") -> 1.5 | CK12: =IFERROR(ROUNDDOWN((MAX(CK$2,$J12) + 'C'!$D$57) / (MIN(CK$2,$J12) + 'C'!$D$57),1),"") -> 1.5 | CL12: =IFERROR(ROUNDDOWN((MAX(CL$2,$J12) + 'C'!$D$57) / (MIN(CL$2,$J12) + 'C'!$D$57),1),"") -> 1.5 | CM12: =IFERROR(ROUNDDOWN((MAX(CM$2,$J12) + 'C'!$D$57) / (MIN(CM$2,$J12) + 'C'!$D$57),1),"") -> 1.5 | CN12: =IFERROR(ROUNDDOWN((MAX(CN$2,$J12) + 'C'!$D$57) / (MIN(CN$2,$J12) + 'C'!$D$57),1),"") -> 1.5 | CO12: =IFERROR(ROUNDDOWN((MAX(CO$2,$J12) + 'C'!$D$57) / (MIN(CO$2,$J12) + 'C'!$D$57),1),"") -> 1.5 | CP12: =IFERROR(ROUNDDOWN((MAX(CP$2,$J12) + 'C'!$D$57) / (MIN(CP$2,$J12) + 'C'!$D$57),1),"") -> 1.5 | CQ12: =IFERROR(ROUNDDOWN((MAX(CQ$2,$J12) + 'C'!$D$57) / (MIN(CQ$2,$J12) + 'C'!$D$57),1),"") -> 1.5 | CR12: =IFERROR(ROUNDDOWN((MAX(CR$2,$J12) + 'C'!$D$57) / (MIN(CR$2,$J12) + 'C'!$D$57),1),"") -> 1.5 | CS12: =IFERROR(ROUNDDOWN((MAX(CS$2,$J12) + 'C'!$D$57) / (MIN(CS$2,$J12) + 'C'!$D$57),1),"") -> 1.5 | CT12: =IFERROR(ROUNDDOWN((MAX(CT$2,$J12) + 'C'!$D$57) / (MIN(CT$2,$J12) + 'C'!$D$57),1),"") -> 1.5 | CU12: =IFERROR(ROUNDDOWN((MAX(CU$2,$J12) + 'C'!$D$57) / (MIN(CU$2,$J12) + 'C'!$D$57),1),"") -> 1.5
B13: #ffffff | D13: -0.07 | E13: 0 | F13: 0 | H13: Primary Text: Halfway b/w White and Sec. Text against Content BG | I13: #E8E8E8 | J13: 0.8043569854 | M13: 255 | N13: 255 | O13: 255 | Q13: 1 | R13: 1 | S13: 1 | U13: =IF($Q13 > 'C'!$D$33,((($Q13 + 'C'!$D$30) / 'C'!$D$31)) ^ 'C'!$D$32,($Q13 / 'C'!$D$29)) -> 1 | V13: =IF($R13 > 'C'!$D$33,((($R13 + 'C'!$D$30) / 'C'!$D$31)) ^ 'C'!$D$32,($R13 / 'C'!$D$29)) -> 1 | W13: =IF($S13 > 'C'!$D$33,((($S13 + 'C'!$D$30) / 'C'!$D$31)) ^ 'C'!$D$32,($S13 / 'C'!$D$29)) -> 1 | Y13: =('C'!$D$44 * $U13) +( 'C'!$D$45 * $V13) + ('C'!$D$46 * $W13) -> 1 | Z13: =ROUND( ('C'!$D$69 * $U13) + ('C'!$E$69 * $V13) + ('C'!$F$69 * $W13), 'C'!$D$75) -> 1 | AA13: =ROUND( ('C'!$D$70 * $U13) + ('C'!$E$70 * $V13) + ('C'!$F$70 * $W13), 'C'!$D$75) -> 1 | AB13: =ROUND( ('C'!$D$71 * $U13) + ('C'!$E$71 * $V13) + ('C'!$F$71 * $W13), 'C'!$D$75) -> 1 | AD13: =ROUND( ('C'!$D$82 * ($Z13^'C'!$D$89)) + ('C'!$E$82 * ($AA13^'C'!$D$89)) + ('C'!$F$82 * ($AB13^'C'!$D$89)), 'C'!$D$88) -> 0.99999999 | AE13: =ROUND( ('C'!$D$83 * ($Z13^'C'!$D$89)) + ('C'!$E$83 * ($AA13^'C'!$D$89)) + ('C'!$F$83 * ($AB13^'C'!$D$89)), 'C'!$D$88) -> 0 | AF13: =ROUND( ('C'!$D$84 * ($Z13^'C'!$D$89)) + ('C'!$E$84 * ($AA13^'C'!$D$89)) + ('C'!$F$84 * ($AB13^'C'!$D$89)), 'C'!$D$88) -> 4e-08 | AG13: 4e-08 | AH13: 90 | AJ13: 0.92999999 | AK13: 2.45029691e-24 | AL13: 4e-08 | AM13: 4e-08 | AN13: 90 | AP13: =ROUND( ('C'!$D$105 * $AJ13) + ('C'!$E$105 * $AK13) + ('C'!$F$105 * $AL13), 'C'!$D$111) ^ 'C'!$D$112 -> 0.804357 | AQ13: =ROUND( ('C'!$D$106 * $AJ13) + ('C'!$E$106 * $AK13) + ('C'!$F$106 * $AL13), 'C'!$D$111) ^ 'C'!$D$112 -> 0.8043569741 | AR13: =ROUND( ('C'!$D$107 * $AJ13) + ('C'!$E$107 * $AK13) + ('C'!$F$107 * $AL13), 'C'!$D$111) ^ 'C'!$D$112 -> 0.8043568443 | AT13: =MIN(1, MAX(0, ROUND( ('C'!$D$119 * $AP13) + ('C'!$E$119 * $AQ13) + ('C'!$F$119 * $AR13), 'C'!$D$125))) -> 0.80435705 | AU13: =MIN(1,MAX(0,ROUND( ('C'!$D$120 * $AP13) + ('C'!$E$120 * $AQ13) + ('C'!$F$120 * $AR13), 'C'!$D$125))) -> 0.80435699 | AV13: =MIN(1,MAX(0,ROUND( ('C'!$D$121 * $AP13) + ('C'!$E$121 * $AQ13) + ('C'!$F$121 * $AR13), 'C'!$D$125))) -> 0.80435675 | AX13: =('C'!$D$44 * $AT13) +( 'C'!$D$45 * $AU13) + ('C'!$D$46 * $AV13) -> 0.8043569854 | AY13: =IF($AT13>'C'!$D$142, ($AT13 ^ (1/'C'!$D$141) * 'C'!$D$140) - 'C'!$D$139, $AT13 * 'C'!$D$138) -> 0.908509845 | AZ13: =IF($AU13>'C'!$D$142, ($AU13 ^ (1/'C'!$D$141) * 'C'!$D$140) - 'C'!$D$139, $AU13 * 'C'!$D$138) -> 0.9085098151 | BA13: =IF($AV13>'C'!$D$142, ($AV13 ^ (1/'C'!$D$141) * 'C'!$D$140) - 'C'!$D$139, $AV13 * 'C'!$D$138) -> 0.9085096953 | BC13: 232 | BD13: 232 | BE13: 232 | BH13: =IFERROR(ROUNDDOWN((MAX(BH$2,$J13) + 'C'!$D$57) / (MIN(BH$2,$J13) + 'C'!$D$57),1),"") -> 1.3 | BI13: =IFERROR(ROUNDDOWN((MAX(BI$2,$J13) + 'C'!$D$57) / (MIN(BI$2,$J13) + 'C'!$D$57),1),"") -> 1.3 | BJ13: =IFERROR(ROUNDDOWN((MAX(BJ$2,$J13) + 'C'!$D$57) / (MIN(BJ$2,$J13) + 'C'!$D$57),1),"") -> 1.2 | BK13: =IFERROR(ROUNDDOWN((MAX(BK$2,$J13) + 'C'!$D$57) / (MIN(BK$2,$J13) + 'C'!$D$57),1),"") -> 1.2 | BL13: =IFERROR(ROUNDDOWN((MAX(BL$2,$J13) + 'C'!$D$57) / (MIN(BL$2,$J13) + 'C'!$D$57),1),"") -> 17 | BM13: =IFERROR(ROUNDDOWN((MAX(BM$2,$J13) + 'C'!$D$57) / (MIN(BM$2,$J13) + 'C'!$D$57),1),"") -> 9.1 | BN13: =IFERROR(ROUNDDOWN((MAX(BN$2,$J13) + 'C'!$D$57) / (MIN(BN$2,$J13) + 'C'!$D$57),1),"") -> 15.4 | BO13: =IFERROR(ROUNDDOWN((MAX(BO$2,$J13) + 'C'!$D$57) / (MIN(BO$2,$J13) + 'C'!$D$57),1),"") -> 12.5 | BP13: =IFERROR(ROUNDDOWN((MAX(BP$2,$J13) + 'C'!$D$57) / (MIN(BP$2,$J13) + 'C'!$D$57),1),"") -> 1.2 | BQ13: =IFERROR(ROUNDDOWN((MAX(BQ$2,$J13) + 'C'!$D$57) / (MIN(BQ$2,$J13) + 'C'!$D$57),1),"") -> 1 | BR13: =IFERROR(ROUNDDOWN((MAX(BR$2,$J13) + 'C'!$D$57) / (MIN(BR$2,$J13) + 'C'!$D$57),1),"") -> 6.3 | BS13: =IFERROR(ROUNDDOWN((MAX(BS$2,$J13) + 'C'!$D$57) / (MIN(BS$2,$J13) + 'C'!$D$57),1),"") -> 3.2 | BT13: =IFERROR(ROUNDDOWN((MAX(BT$2,$J13) + 'C'!$D$57) / (MIN(BT$2,$J13) + 'C'!$D$57),1),"") -> 7 | BU13: =IFERROR(ROUNDDOWN((MAX(BU$2,$J13) + 'C'!$D$57) / (MIN(BU$2,$J13) + 'C'!$D$57),1),"") -> 4 | BV13: =IFERROR(ROUNDDOWN((MAX(BV$2,$J13) + 'C'!$D$57) / (MIN(BV$2,$J13) + 'C'!$D$57),1),"") -> 3.1 | BW13: =IFERROR(ROUNDDOWN((MAX(BW$2,$J13) + 'C'!$D$57) / (MIN(BW$2,$J13) + 'C'!$D$57),1),"") -> 1.7 | BX13: =IFERROR(ROUNDDOWN((MAX(BX$2,$J13) + 'C'!$D$57) / (MIN(BX$2,$J13) + 'C'!$D$57),1),"") -> 1.1 | BY13: =IFERROR(ROUNDDOWN((MAX(BY$2,$J13) + 'C'!$D$57) / (MIN(BY$2,$J13) + 'C'!$D$57),1),"") -> 1.7 | BZ13: =IFERROR(ROUNDDOWN((MAX(BZ$2,$J13) + 'C'!$D$57) / (MIN(BZ$2,$J13) + 'C'!$D$57),1),"") -> 7 | CA13: =IFERROR(ROUNDDOWN((MAX(CA$2,$J13) + 'C'!$D$57) / (MIN(CA$2,$J13) + 'C'!$D$57),1),"") -> 1.5 | CB13: =IFERROR(ROUNDDOWN((MAX(CB$2,$J13) + 'C'!$D$57) / (MIN(CB$2,$J13) + 'C'!$D$57),1),"") -> 2.9 | CC13: =IFERROR(ROUNDDOWN((MAX(CC$2,$J13) + 'C'!$D$57) / (MIN(CC$2,$J13) + 'C'!$D$57),1),"") -> 1.2 | CD13: =IFERROR(ROUNDDOWN((MAX(CD$2,$J13) + 'C'!$D$57) / (MIN(CD$2,$J13) + 'C'!$D$57),1),"") -> 1.2 | CE13: =IFERROR(ROUNDDOWN((MAX(CE$2,$J13) + 'C'!$D$57) / (MIN(CE$2,$J13) + 'C'!$D$57),1),"") -> 1.2 | CF13: =IFERROR(ROUNDDOWN((MAX(CF$2,$J13) + 'C'!$D$57) / (MIN(CF$2,$J13) + 'C'!$D$57),1),"") -> 1.2 | CG13: =IFERROR(ROUNDDOWN((MAX(CG$2,$J13) + 'C'!$D$57) / (MIN(CG$2,$J13) + 'C'!$D$57),1),"") -> 1.2 | CH13: =IFERROR(ROUNDDOWN((MAX(CH$2,$J13) + 'C'!$D$57) / (MIN(CH$2,$J13) + 'C'!$D$57),1),"") -> 1.2 | CI13: =IFERROR(ROUNDDOWN((MAX(CI$2,$J13) + 'C'!$D$57) / (MIN(CI$2,$J13) + 'C'!$D$57),1),"") -> 1.2 | CJ13: =IFERROR(ROUNDDOWN((MAX(CJ$2,$J13) + 'C'!$D$57) / (MIN(CJ$2,$J13) + 'C'!$D$57),1),"") -> 1.2 | CK13: =IFERROR(ROUNDDOWN((MAX(CK$2,$J13) + 'C'!$D$57) / (MIN(CK$2,$J13) + 'C'!$D$57),1),"") -> 1.2 | CL13: =IFERROR(ROUNDDOWN((MAX(CL$2,$J13) + 'C'!$D$57) / (MIN(CL$2,$J13) + 'C'!$D$57),1),"") -> 1.2 | CM13: =IFERROR(ROUNDDOWN((MAX(CM$2,$J13) + 'C'!$D$57) / (MIN(CM$2,$J13) + 'C'!$D$57),1),"") -> 1.2 | CN13: =IFERROR(ROUNDDOWN((MAX(CN$2,$J13) + 'C'!$D$57) / (MIN(CN$2,$J13) + 'C'!$D$57),1),"") -> 1.2 | CO13: =IFERROR(ROUNDDOWN((MAX(CO$2,$J13) + 'C'!$D$57) / (MIN(CO$2,$J13) + 'C'!$D$57),1),"") -> 1.2 | CP13: =IFERROR(ROUNDDOWN((MAX(CP$2,$J13) + 'C'!$D$57) / (MIN(CP$2,$J13) + 'C'!$D$57),1),"") -> 1.2 | CQ13: =IFERROR(ROUNDDOWN((MAX(CQ$2,$J13) + 'C'!$D$57) / (MIN(CQ$2,$J13) + 'C'!$D$57),1),"") -> 1.2 | CR13: =IFERROR(ROUNDDOWN((MAX(CR$2,$J13) + 'C'!$D$57) / (MIN(CR$2,$J13) + 'C'!$D$57),1),"") -> 1.2 | CS13: =IFERROR(ROUNDDOWN((MAX(CS$2,$J13) + 'C'!$D$57) / (MIN(CS$2,$J13) + 'C'!$D$57),1),"") -> 1.2 | CT13: =IFERROR(ROUNDDOWN((MAX(CT$2,$J13) + 'C'!$D$57) / (MIN(CT$2,$J13) + 'C'!$D$57),1),"") -> 1.2 | CU13: =IFERROR(ROUNDDOWN((MAX(CU$2,$J13) + 'C'!$D$57) / (MIN(CU$2,$J13) + 'C'!$D$57),1),"") -> 1.2
B14: #000000 | D14: =D9+((D9-D11)+(D11-D10))/2 -> 0.4395594108 | E14: 0 | F14: 0 | H14: Secondary Border: Equidistant on Gray Ramp as other grays | I14: #525252 | J14: 0.08492836 | M14: 0 | N14: 0 | O14: 0 | Q14: 0 | R14: 0 | S14: 0 | U14: =IF($Q14 > 'C'!$D$33,((($Q14 + 'C'!$D$30) / 'C'!$D$31)) ^ 'C'!$D$32,($Q14 / 'C'!$D$29)) -> 0 | V14: =IF($R14 > 'C'!$D$33,((($R14 + 'C'!$D$30) / 'C'!$D$31)) ^ 'C'!$D$32,($R14 / 'C'!$D$29)) -> 0 | W14: =IF($S14 > 'C'!$D$33,((($S14 + 'C'!$D$30) / 'C'!$D$31)) ^ 'C'!$D$32,($S14 / 'C'!$D$29)) -> 0 | Y14: =('C'!$D$44 * $U14) +( 'C'!$D$45 * $V14) + ('C'!$D$46 * $W14) -> 0 | Z14: =ROUND( ('C'!$D$69 * $U14) + ('C'!$E$69 * $V14) + ('C'!$F$69 * $W14), 'C'!$D$75) -> 0 | AA14: =ROUND( ('C'!$D$70 * $U14) + ('C'!$E$70 * $V14) + ('C'!$F$70 * $W14), 'C'!$D$75) -> 0 | AB14: =ROUND( ('C'!$D$71 * $U14) + ('C'!$E$71 * $V14) + ('C'!$F$71 * $W14), 'C'!$D$75) -> 0 | AD14: =ROUND( ('C'!$D$82 * ($Z14^'C'!$D$89)) + ('C'!$E$82 * ($AA14^'C'!$D$89)) + ('C'!$F$82 * ($AB14^'C'!$D$89)), 'C'!$D$88) -> 0 | AE14: =ROUND( ('C'!$D$83 * ($Z14^'C'!$D$89)) + ('C'!$E$83 * ($AA14^'C'!$D$89)) + ('C'!$F$83 * ($AB14^'C'!$D$89)), 'C'!$D$88) -> 0 | AF14: =ROUND( ('C'!$D$84 * ($Z14^'C'!$D$89)) + ('C'!$E$84 * ($AA14^'C'!$D$89)) + ('C'!$F$84 * ($AB14^'C'!$D$89)), 'C'!$D$88) -> 0 | AG14: 0 | AH14: 0 | AJ14: 0.4395594108 | AK14: 0 | AL14: 0 | AM14: 0 | AN14: 0 | AP14: =ROUND( ('C'!$D$105 * $AJ14) + ('C'!$E$105 * $AK14) + ('C'!$F$105 * $AL14), 'C'!$D$111) ^ 'C'!$D$112 -> 0.08492836148 | AQ14: =ROUND( ('C'!$D$106 * $AJ14) + ('C'!$E$106 * $AK14) + ('C'!$F$106 * $AL14), 'C'!$D$111) ^ 'C'!$D$112 -> 0.08492836148 | AR14: =ROUND( ('C'!$D$107 * $AJ14) + ('C'!$E$107 * $AK14) + ('C'!$F$107 * $AL14), 'C'!$D$111) ^ 'C'!$D$112 -> 0.08492836148 | AT14: =MIN(1, MAX(0, ROUND( ('C'!$D$119 * $AP14) + ('C'!$E$119 * $AQ14) + ('C'!$F$119 * $AR14), 'C'!$D$125))) -> 0.08492836 | AU14: =MIN(1,MAX(0,ROUND( ('C'!$D$120 * $AP14) + ('C'!$E$120 * $AQ14) + ('C'!$F$120 * $AR14), 'C'!$D$125))) -> 0.08492836 | AV14: =MIN(1,MAX(0,ROUND( ('C'!$D$121 * $AP14) + ('C'!$E$121 * $AQ14) + ('C'!$F$121 * $AR14), 'C'!$D$125))) -> 0.08492836 | AX14: =('C'!$D$44 * $AT14) +( 'C'!$D$45 * $AU14) + ('C'!$D$46 * $AV14) -> 0.08492836 | AY14: =IF($AT14>'C'!$D$142, ($AT14 ^ (1/'C'!$D$141) * 'C'!$D$140) - 'C'!$D$139, $AT14 * 'C'!$D$138) -> 0.322593434 | AZ14: =IF($AU14>'C'!$D$142, ($AU14 ^ (1/'C'!$D$141) * 'C'!$D$140) - 'C'!$D$139, $AU14 * 'C'!$D$138) -> 0.322593434 | BA14: =IF($AV14>'C'!$D$142, ($AV14 ^ (1/'C'!$D$141) * 'C'!$D$140) - 'C'!$D$139, $AV14 * 'C'!$D$138) -> 0.322593434 | BC14: 82 | BD14: 82 | BE14: 82 | BH14: =IFERROR(ROUNDDOWN((MAX(BH$2,$J14) + 'C'!$D$57) / (MIN(BH$2,$J14) + 'C'!$D$57),1),"") -> 4.7 | BI14: =IFERROR(ROUNDDOWN((MAX(BI$2,$J14) + 'C'!$D$57) / (MIN(BI$2,$J14) + 'C'!$D$57),1),"") -> 4.5 | BJ14: =IFERROR(ROUNDDOWN((MAX(BJ$2,$J14) + 'C'!$D$57) / (MIN(BJ$2,$J14) + 'C'!$D$57),1),"") -> 4.8 | BK14: =IFERROR(ROUNDDOWN((MAX(BK$2,$J14) + 'C'!$D$57) / (MIN(BK$2,$J14) + 'C'!$D$57),1),"") -> 7.7 | BL14: =IFERROR(ROUNDDOWN((MAX(BL$2,$J14) + 'C'!$D$57) / (MIN(BL$2,$J14) + 'C'!$D$57),1),"") -> 2.6 | BM14: =IFERROR(ROUNDDOWN((MAX(BM$2,$J14) + 'C'!$D$57) / (MIN(BM$2,$J14) + 'C'!$D$57),1),"") -> 1.4 | BN14: =IFERROR(ROUNDDOWN((MAX(BN$2,$J14) + 'C'!$D$57) / (MIN(BN$2,$J14) + 'C'!$D$57),1),"") -> 2.4 | BO14: =IFERROR(ROUNDDOWN((MAX(BO$2,$J14) + 'C'!$D$57) / (MIN(BO$2,$J14) + 'C'!$D$57),1),"") -> 1.9 | BP14: =IFERROR(ROUNDDOWN((MAX(BP$2,$J14) + 'C'!$D$57) / (MIN(BP$2,$J14) + 'C'!$D$57),1),"") -> 4.9 | BQ14: =IFERROR(ROUNDDOWN((MAX(BQ$2,$J14) + 'C'!$D$57) / (MIN(BQ$2,$J14) + 'C'!$D$57),1),"") -> 6.3 | BR14: =IFERROR(ROUNDDOWN((MAX(BR$2,$J14) + 'C'!$D$57) / (MIN(BR$2,$J14) + 'C'!$D$57),1),"") -> 1 | BS14: =IFERROR(ROUNDDOWN((MAX(BS$2,$J14) + 'C'!$D$57) / (MIN(BS$2,$J14) + 'C'!$D$57),1),"") -> 1.9 | BT14: =IFERROR(ROUNDDOWN((MAX(BT$2,$J14) + 'C'!$D$57) / (MIN(BT$2,$J14) + 'C'!$D$57),1),"") -> 1.1 | BU14: =IFERROR(ROUNDDOWN((MAX(BU$2,$J14) + 'C'!$D$57) / (MIN(BU$2,$J14) + 'C'!$D$57),1),"") -> 1.5 | BV14: =IFERROR(ROUNDDOWN((MAX(BV$2,$J14) + 'C'!$D$57) / (MIN(BV$2,$J14) + 'C'!$D$57),1),"") -> 2 | BW14: =IFERROR(ROUNDDOWN((MAX(BW$2,$J14) + 'C'!$D$57) / (MIN(BW$2,$J14) + 'C'!$D$57),1),"") -> 3.5 | BX14: =IFERROR(ROUNDDOWN((MAX(BX$2,$J14) + 'C'!$D$57) / (MIN(BX$2,$J14) + 'C'!$D$57),1),"") -> 5.7 | BY14: =IFERROR(ROUNDDOWN((MAX(BY$2,$J14) + 'C'!$D$57) / (MIN(BY$2,$J14) + 'C'!$D$57),1),"") -> 3.5 | BZ14: =IFERROR(ROUNDDOWN((MAX(BZ$2,$J14) + 'C'!$D$57) / (MIN(BZ$2,$J14) + 'C'!$D$57),1),"") -> 1.1 | CA14: =IFERROR(ROUNDDOWN((MAX(CA$2,$J14) + 'C'!$D$57) / (MIN(CA$2,$J14) + 'C'!$D$57),1),"") -> 4.1 | CB14: =IFERROR(ROUNDDOWN((MAX(CB$2,$J14) + 'C'!$D$57) / (MIN(CB$2,$J14) + 'C'!$D$57),1),"") -> 2.1 | CC14: =IFERROR(ROUNDDOWN((MAX(CC$2,$J14) + 'C'!$D$57) / (MIN(CC$2,$J14) + 'C'!$D$57),1),"") -> 7.7 | CD14: =IFERROR(ROUNDDOWN((MAX(CD$2,$J14) + 'C'!$D$57) / (MIN(CD$2,$J14) + 'C'!$D$57),1),"") -> 7.7 | CE14: =IFERROR(ROUNDDOWN((MAX(CE$2,$J14) + 'C'!$D$57) / (MIN(CE$2,$J14) + 'C'!$D$57),1),"") -> 7.7 | CF14: =IFERROR(ROUNDDOWN((MAX(CF$2,$J14) + 'C'!$D$57) / (MIN(CF$2,$J14) + 'C'!$D$57),1),"") -> 7.7 | CG14: =IFERROR(ROUNDDOWN((MAX(CG$2,$J14) + 'C'!$D$57) / (MIN(CG$2,$J14) + 'C'!$D$57),1),"") -> 7.7 | CH14: =IFERROR(ROUNDDOWN((MAX(CH$2,$J14) + 'C'!$D$57) / (MIN(CH$2,$J14) + 'C'!$D$57),1),"") -> 7.7 | CI14: =IFERROR(ROUNDDOWN((MAX(CI$2,$J14) + 'C'!$D$57) / (MIN(CI$2,$J14) + 'C'!$D$57),1),"") -> 7.7 | CJ14: =IFERROR(ROUNDDOWN((MAX(CJ$2,$J14) + 'C'!$D$57) / (MIN(CJ$2,$J14) + 'C'!$D$57),1),"") -> 7.7 | CK14: =IFERROR(ROUNDDOWN((MAX(CK$2,$J14) + 'C'!$D$57) / (MIN(CK$2,$J14) + 'C'!$D$57),1),"") -> 7.7 | CL14: =IFERROR(ROUNDDOWN((MAX(CL$2,$J14) + 'C'!$D$57) / (MIN(CL$2,$J14) + 'C'!$D$57),1),"") -> 7.7 | CM14: =IFERROR(ROUNDDOWN((MAX(CM$2,$J14) + 'C'!$D$57) / (MIN(CM$2,$J14) + 'C'!$D$57),1),"") -> 7.7 | CN14: =IFERROR(ROUNDDOWN((MAX(CN$2,$J14) + 'C'!$D$57) / (MIN(CN$2,$J14) + 'C'!$D$57),1),"") -> 7.7 | CO14: =IFERROR(ROUNDDOWN((MAX(CO$2,$J14) + 'C'!$D$57) / (MIN(CO$2,$J14) + 'C'!$D$57),1),"") -> 7.7 | CP14: =IFERROR(ROUNDDOWN((MAX(CP$2,$J14) + 'C'!$D$57) / (MIN(CP$2,$J14) + 'C'!$D$57),1),"") -> 7.7 | CQ14: =IFERROR(ROUNDDOWN((MAX(CQ$2,$J14) + 'C'!$D$57) / (MIN(CQ$2,$J14) + 'C'!$D$57),1),"") -> 7.7 | CR14: =IFERROR(ROUNDDOWN((MAX(CR$2,$J14) + 'C'!$D$57) / (MIN(CR$2,$J14) + 'C'!$D$57),1),"") -> 7.7 | CS14: =IFERROR(ROUNDDOWN((MAX(CS$2,$J14) + 'C'!$D$57) / (MIN(CS$2,$J14) + 'C'!$D$57),1),"") -> 7.7 | CT14: =IFERROR(ROUNDDOWN((MAX(CT$2,$J14) + 'C'!$D$57) / (MIN(CT$2,$J14) + 'C'!$D$57),1),"") -> 7.7 | CU14: =IFERROR(ROUNDDOWN((MAX(CU$2,$J14) + 'C'!$D$57) / (MIN(CU$2,$J14) + 'C'!$D$57),1),"") -> 7.7
B15: #ff0000 | D15: 0 | E15: 0 | F15: 0.7661133209 | H15: Rotate to get hue to exactly 30 | I15: #FF0300 | J15: 0.2130151284 | M15: 255 | N15: 0 | O15: 0 | Q15: 1 | R15: 0 | S15: 0 | U15: =IF($Q15 > 'C'!$D$33,((($Q15 + 'C'!$D$30) / 'C'!$D$31)) ^ 'C'!$D$32,($Q15 / 'C'!$D$29)) -> 1 | V15: =IF($R15 > 'C'!$D$33,((($R15 + 'C'!$D$30) / 'C'!$D$31)) ^ 'C'!$D$32,($R15 / 'C'!$D$29)) -> 0 | W15: =IF($S15 > 'C'!$D$33,((($S15 + 'C'!$D$30) / 'C'!$D$31)) ^ 'C'!$D$32,($S15 / 'C'!$D$29)) -> 0 | Y15: =('C'!$D$44 * $U15) +( 'C'!$D$45 * $V15) + ('C'!$D$46 * $W15) -> 0.2126 | Z15: =ROUND( ('C'!$D$69 * $U15) + ('C'!$E$69 * $V15) + ('C'!$F$69 * $W15), 'C'!$D$75) -> 0.41222147 | AA15: =ROUND( ('C'!$D$70 * $U15) + ('C'!$E$70 * $V15) + ('C'!$F$70 * $W15), 'C'!$D$75) -> 0.2119035 | AB15: =ROUND( ('C'!$D$71 * $U15) + ('C'!$E$71 * $V15) + ('C'!$F$71 * $W15), 'C'!$D$75) -> 0.08830246 | AD15: =ROUND( ('C'!$D$82 * ($Z15^'C'!$D$89)) + ('C'!$E$82 * ($AA15^'C'!$D$89)) + ('C'!$F$82 * ($AB15^'C'!$D$89)), 'C'!$D$88) -> 0.62795536 | AE15: =ROUND( ('C'!$D$83 * ($Z15^'C'!$D$89)) + ('C'!$E$83 * ($AA15^'C'!$D$89)) + ('C'!$F$83 * ($AB15^'C'!$D$89)), 'C'!$D$88) -> 0.22486305 | AF15: =ROUND( ('C'!$D$84 * ($Z15^'C'!$D$89)) + ('C'!$E$84 * ($AA15^'C'!$D$89)) + ('C'!$F$84 * ($AB15^'C'!$D$89)), 'C'!$D$88) -> 0.1258463 | AG15: 0.2576832988 | AH15: 29.23388668 | AJ15: 0.62795536 | AK15: 0.2231602829 | AL15: 0.1288416494 | AM15: 0.2576832988 | AN15: 30 | AP15: =ROUND( ('C'!$D$105 * $AJ15) + ('C'!$E$105 * $AK15) + ('C'!$F$105 * $AL15), 'C'!$D$111) ^ 'C'!$D$112 -> 0.4121741603 | AQ15: =ROUND( ('C'!$D$106 * $AJ15) + ('C'!$E$106 * $AK15) + ('C'!$F$106 * $AL15), 'C'!$D$111) ^ 'C'!$D$112 -> 0.211891206 | AR15: =ROUND( ('C'!$D$107 * $AJ15) + ('C'!$E$107 * $AK15) + ('C'!$F$107 * $AL15), 'C'!$D$111) ^ 'C'!$D$112 -> 0.08611018131 | AT15: =MIN(1, MAX(0, ROUND( ('C'!$D$119 * $AP15) + ('C'!$E$119 * $AQ15) + ('C'!$F$119 * $AR15), 'C'!$D$125))) -> 0.99934144 | AU15: =MIN(1,MAX(0,ROUND( ('C'!$D$120 * $AP15) + ('C'!$E$120 * $AQ15) + ('C'!$F$120 * $AR15), 'C'!$D$125))) -> 0.0007762 | AV15: =MIN(1,MAX(0,ROUND( ('C'!$D$121 * $AP15) + ('C'!$E$121 * $AQ15) + ('C'!$F$121 * $AR15), 'C'!$D$125))) -> 0 | AX15: =('C'!$D$44 * $AT15) +( 'C'!$D$45 * $AU15) + ('C'!$D$46 * $AV15) -> 0.2130151284 | AY15: =IF($AT15>'C'!$D$142, ($AT15 ^ (1/'C'!$D$141) * 'C'!$D$140) - 'C'!$D$139, $AT15 * 'C'!$D$138) -> 0.9997104524 | AZ15: =IF($AU15>'C'!$D$142, ($AU15 ^ (1/'C'!$D$141) * 'C'!$D$140) - 'C'!$D$139, $AU15 * 'C'!$D$138) -> 0.010028504 | BA15: =IF($AV15>'C'!$D$142, ($AV15 ^ (1/'C'!$D$141) * 'C'!$D$140) - 'C'!$D$139, $AV15 * 'C'!$D$138) -> 0 | BC15: 255 | BD15: 3 | BE15: 0 | BH15: =IFERROR(ROUNDDOWN((MAX(BH$2,$J15) + 'C'!$D$57) / (MIN(BH$2,$J15) + 'C'!$D$57),1),"") -> 2.4 | BI15: =IFERROR(ROUNDDOWN((MAX(BI$2,$J15) + 'C'!$D$57) / (MIN(BI$2,$J15) + 'C'!$D$57),1),"") -> 2.3 | BJ15: =IFERROR(ROUNDDOWN((MAX(BJ$2,$J15) + 'C'!$D$57) / (MIN(BJ$2,$J15) + 'C'!$D$57),1),"") -> 2.5 | BK15: =IFERROR(ROUNDDOWN((MAX(BK$2,$J15) + 'C'!$D$57) / (MIN(BK$2,$J15) + 'C'!$D$57),1),"") -> 3.9 | BL15: =IFERROR(ROUNDDOWN((MAX(BL$2,$J15) + 'C'!$D$57) / (MIN(BL$2,$J15) + 'C'!$D$57),1),"") -> 5.2 | BM15: =IFERROR(ROUNDDOWN((MAX(BM$2,$J15) + 'C'!$D$57) / (MIN(BM$2,$J15) + 'C'!$D$57),1),"") -> 2.8 | BN15: =IFERROR(ROUNDDOWN((MAX(BN$2,$J15) + 'C'!$D$57) / (MIN(BN$2,$J15) + 'C'!$D$57),1),"") -> 4.7 | BO15: =IFERROR(ROUNDDOWN((MAX(BO$2,$J15) + 'C'!$D$57) / (MIN(BO$2,$J15) + 'C'!$D$57),1),"") -> 3.8 | BP15: =IFERROR(ROUNDDOWN((MAX(BP$2,$J15) + 'C'!$D$57) / (MIN(BP$2,$J15) + 'C'!$D$57),1),"") -> 2.5 | BQ15: =IFERROR(ROUNDDOWN((MAX(BQ$2,$J15) + 'C'!$D$57) / (MIN(BQ$2,$J15) + 'C'!$D$57),1),"") -> 3.2 | BR15: =IFERROR(ROUNDDOWN((MAX(BR$2,$J15) + 'C'!$D$57) / (MIN(BR$2,$J15) + 'C'!$D$57),1),"") -> 1.9 | BS15: =IFERROR(ROUNDDOWN((MAX(BS$2,$J15) + 'C'!$D$57) / (MIN(BS$2,$J15) + 'C'!$D$57),1),"") -> 1 | BT15: =IFERROR(ROUNDDOWN((MAX(BT$2,$J15) + 'C'!$D$57) / (MIN(BT$2,$J15) + 'C'!$D$57),1),"") -> 2.1 | BU15: =IFERROR(ROUNDDOWN((MAX(BU$2,$J15) + 'C'!$D$57) / (MIN(BU$2,$J15) + 'C'!$D$57),1),"") -> 1.2 | BV15: =IFERROR(ROUNDDOWN((MAX(BV$2,$J15) + 'C'!$D$57) / (MIN(BV$2,$J15) + 'C'!$D$57),1),"") -> 1 | BW15: =IFERROR(ROUNDDOWN((MAX(BW$2,$J15) + 'C'!$D$57) / (MIN(BW$2,$J15) + 'C'!$D$57),1),"") -> 1.8 | BX15: =IFERROR(ROUNDDOWN((MAX(BX$2,$J15) + 'C'!$D$57) / (MIN(BX$2,$J15) + 'C'!$D$57),1),"") -> 2.9 | BY15: =IFERROR(ROUNDDOWN((MAX(BY$2,$J15) + 'C'!$D$57) / (MIN(BY$2,$J15) + 'C'!$D$57),1),"") -> 1.8 | BZ15: =IFERROR(ROUNDDOWN((MAX(BZ$2,$J15) + 'C'!$D$57) / (MIN(BZ$2,$J15) + 'C'!$D$57),1),"") -> 2.1 | CA15: =IFERROR(ROUNDDOWN((MAX(CA$2,$J15) + 'C'!$D$57) / (MIN(CA$2,$J15) + 'C'!$D$57),1),"") -> 2.1 | CB15: =IFERROR(ROUNDDOWN((MAX(CB$2,$J15) + 'C'!$D$57) / (MIN(CB$2,$J15) + 'C'!$D$57),1),"") -> 1 | CC15: =IFERROR(ROUNDDOWN((MAX(CC$2,$J15) + 'C'!$D$57) / (MIN(CC$2,$J15) + 'C'!$D$57),1),"") -> 3.9 | CD15: =IFERROR(ROUNDDOWN((MAX(CD$2,$J15) + 'C'!$D$57) / (MIN(CD$2,$J15) + 'C'!$D$57),1),"") -> 3.9 | CE15: =IFERROR(ROUNDDOWN((MAX(CE$2,$J15) + 'C'!$D$57) / (MIN(CE$2,$J15) + 'C'!$D$57),1),"") -> 3.9 | CF15: =IFERROR(ROUNDDOWN((MAX(CF$2,$J15) + 'C'!$D$57) / (MIN(CF$2,$J15) + 'C'!$D$57),1),"") -> 3.9 | CG15: =IFERROR(ROUNDDOWN((MAX(CG$2,$J15) + 'C'!$D$57) / (MIN(CG$2,$J15) + 'C'!$D$57),1),"") -> 3.9 | CH15: =IFERROR(ROUNDDOWN((MAX(CH$2,$J15) + 'C'!$D$57) / (MIN(CH$2,$J15) + 'C'!$D$57),1),"") -> 3.9 | CI15: =IFERROR(ROUNDDOWN((MAX(CI$2,$J15) + 'C'!$D$57) / (MIN(CI$2,$J15) + 'C'!$D$57),1),"") -> 3.9 | CJ15: =IFERROR(ROUNDDOWN((MAX(CJ$2,$J15) + 'C'!$D$57) / (MIN(CJ$2,$J15) + 'C'!$D$57),1),"") -> 3.9 | CK15: =IFERROR(ROUNDDOWN((MAX(CK$2,$J15) + 'C'!$D$57) / (MIN(CK$2,$J15) + 'C'!$D$57),1),"") -> 3.9 | CL15: =IFERROR(ROUNDDOWN((MAX(CL$2,$J15) + 'C'!$D$57) / (MIN(CL$2,$J15) + 'C'!$D$57),1),"") -> 3.9 | CM15: =IFERROR(ROUNDDOWN((MAX(CM$2,$J15) + 'C'!$D$57) / (MIN(CM$2,$J15) + 'C'!$D$57),1),"") -> 3.9 | CN15: =IFERROR(ROUNDDOWN((MAX(CN$2,$J15) + 'C'!$D$57) / (MIN(CN$2,$J15) + 'C'!$D$57),1),"") -> 3.9 | CO15: =IFERROR(ROUNDDOWN((MAX(CO$2,$J15) + 'C'!$D$57) / (MIN(CO$2,$J15) + 'C'!$D$57),1),"") -> 3.9 | CP15: =IFERROR(ROUNDDOWN((MAX(CP$2,$J15) + 'C'!$D$57) / (MIN(CP$2,$J15) + 'C'!$D$57),1),"") -> 3.9 | CQ15: =IFERROR(ROUNDDOWN((MAX(CQ$2,$J15) + 'C'!$D$57) / (MIN(CQ$2,$J15) + 'C'!$D$57),1),"") -> 3.9 | CR15: =IFERROR(ROUNDDOWN((MAX(CR$2,$J15) + 'C'!$D$57) / (MIN(CR$2,$J15) + 'C'!$D$57),1),"") -> 3.9 | CS15: =IFERROR(ROUNDDOWN((MAX(CS$2,$J15) + 'C'!$D$57) / (MIN(CS$2,$J15) + 'C'!$D$57),1),"") -> 3.9 | CT15: =IFERROR(ROUNDDOWN((MAX(CT$2,$J15) + 'C'!$D$57) / (MIN(CT$2,$J15) + 'C'!$D$57),1),"") -> 3.9 | CU15: =IFERROR(ROUNDDOWN((MAX(CU$2,$J15) + 'C'!$D$57) / (MIN(CU$2,$J15) + 'C'!$D$57),1),"") -> 3.9
B16: #ff0000 | D16: -0.2642619543 | E16: 0 | F16: 0.7661133209 | H16: Error BG: Sufficient contrast against Primary Text | I16: =CONCATENATE("#",DEC2HEX($BC16,2),DEC2HEX($BD16,2),DEC2HEX($BE16,2)) -> #9C0000 | J16: 0.07037972692 | M16: 255 | N16: 0 | O16: 0 | Q16: 1 | R16: 0 | S16: 0 | U16: =IF($Q16 > 'C'!$D$33,((($Q16 + 'C'!$D$30) / 'C'!$D$31)) ^ 'C'!$D$32,($Q16 / 'C'!$D$29)) -> 1 | V16: =IF($R16 > 'C'!$D$33,((($R16 + 'C'!$D$30) / 'C'!$D$31)) ^ 'C'!$D$32,($R16 / 'C'!$D$29)) -> 0 | W16: =IF($S16 > 'C'!$D$33,((($S16 + 'C'!$D$30) / 'C'!$D$31)) ^ 'C'!$D$32,($S16 / 'C'!$D$29)) -> 0 | Y16: =('C'!$D$44 * $U16) +( 'C'!$D$45 * $V16) + ('C'!$D$46 * $W16) -> 0.2126 | Z16: =ROUND( ('C'!$D$69 * $U16) + ('C'!$E$69 * $V16) + ('C'!$F$69 * $W16), 'C'!$D$75) -> 0.41222147 | AA16: =ROUND( ('C'!$D$70 * $U16) + ('C'!$E$70 * $V16) + ('C'!$F$70 * $W16), 'C'!$D$75) -> 0.2119035 | AB16: =ROUND( ('C'!$D$71 * $U16) + ('C'!$E$71 * $V16) + ('C'!$F$71 * $W16), 'C'!$D$75) -> 0.08830246 | AD16: =ROUND( ('C'!$D$82 * ($Z16^'C'!$D$89)) + ('C'!$E$82 * ($AA16^'C'!$D$89)) + ('C'!$F$82 * ($AB16^'C'!$D$89)), 'C'!$D$88) -> 0.62795536 | AE16: =ROUND( ('C'!$D$83 * ($Z16^'C'!$D$89)) + ('C'!$E$83 * ($AA16^'C'!$D$89)) + ('C'!$F$83 * ($AB16^'C'!$D$89)), 'C'!$D$88) -> 0.22486305 | AF16: =ROUND( ('C'!$D$84 * ($Z16^'C'!$D$89)) + ('C'!$E$84 * ($AA16^'C'!$D$89)) + ('C'!$F$84 * ($AB16^'C'!$D$89)), 'C'!$D$88) -> 0.1258463 | AG16: 0.2576832988 | AH16: 29.23388668 | AJ16: 0.3636934057 | AK16: 0.2231602829 | AL16: 0.1288416494 | AM16: 0.2576832988 | AN16: 30 | AP16: =ROUND( ('C'!$D$105 * $AJ16) + ('C'!$E$105 * $AK16) + ('C'!$F$105 * $AL16), 'C'!$D$111) ^ 'C'!$D$112 -> 0.1105538294 | AQ16: =ROUND( ('C'!$D$106 * $AJ16) + ('C'!$E$106 * $AK16) + ('C'!$F$106 * $AL16), 'C'!$D$111) ^ 'C'!$D$112 -> 0.03656436111 | AR16: =ROUND( ('C'!$D$107 * $AJ16) + ('C'!$E$107 * $AK16) + ('C'!$F$107 * $AL16), 'C'!$D$111) ^ 'C'!$D$112 -> 0.00557601979 | AT16: =MIN(1, MAX(0, ROUND( ('C'!$D$119 * $AP16) + ('C'!$E$119 * $AQ16) + ('C'!$F$119 * $AR16), 'C'!$D$125))) -> 0.33104293 | AU16: =MIN(1,MAX(0,ROUND( ('C'!$D$120 * $AP16) + ('C'!$E$120 * $AQ16) + ('C'!$F$120 * $AR16), 'C'!$D$125))) -> 0 | AV16: =MIN(1,MAX(0,ROUND( ('C'!$D$121 * $AP16) + ('C'!$E$121 * $AQ16) + ('C'!$F$121 * $AR16), 'C'!$D$125))) -> 0 | AX16: =('C'!$D$44 * $AT16) +( 'C'!$D$45 * $AU16) + ('C'!$D$46 * $AV16) -> 0.07037972692 | AY16: =IF($AT16>'C'!$D$142, ($AT16 ^ (1/'C'!$D$141) * 'C'!$D$140) - 'C'!$D$139, $AT16 * 'C'!$D$138) -> 0.6105861227 | AZ16: =IF($AU16>'C'!$D$142, ($AU16 ^ (1/'C'!$D$141) * 'C'!$D$140) - 'C'!$D$139, $AU16 * 'C'!$D$138) -> 0 | BA16: =IF($AV16>'C'!$D$142, ($AV16 ^ (1/'C'!$D$141) * 'C'!$D$140) - 'C'!$D$139, $AV16 * 'C'!$D$138) -> 0 | BC16: =ROUND($AY16*255,0) -> 156 | BD16: 0 | BE16: 0 | BH16: =IFERROR(ROUNDDOWN((MAX(BH$2,$J16) + 'C'!$D$57) / (MIN(BH$2,$J16) + 'C'!$D$57),1),"") -> 5.3 | BI16: =IFERROR(ROUNDDOWN((MAX(BI$2,$J16) + 'C'!$D$57) / (MIN(BI$2,$J16) + 'C'!$D$57),1),"") -> 5.1 | BJ16: =IFERROR(ROUNDDOWN((MAX(BJ$2,$J16) + 'C'!$D$57) / (MIN(BJ$2,$J16) + 'C'!$D$57),1),"") -> 5.4 | BK16: =IFERROR(ROUNDDOWN((MAX(BK$2,$J16) + 'C'!$D$57) / (MIN(BK$2,$J16) + 'C'!$D$57),1),"") -> 8.7 | BL16: =IFERROR(ROUNDDOWN((MAX(BL$2,$J16) + 'C'!$D$57) / (MIN(BL$2,$J16) + 'C'!$D$57),1),"") -> 2.4 | BM16: =IFERROR(ROUNDDOWN((MAX(BM$2,$J16) + 'C'!$D$57) / (MIN(BM$2,$J16) + 'C'!$D$57),1),"") -> 1.2 | BN16: =IFERROR(ROUNDDOWN((MAX(BN$2,$J16) + 'C'!$D$57) / (MIN(BN$2,$J16) + 'C'!$D$57),1),"") -> 2.1 | BO16: =IFERROR(ROUNDDOWN((MAX(BO$2,$J16) + 'C'!$D$57) / (MIN(BO$2,$J16) + 'C'!$D$57),1),"") -> 1.7 | BP16: =IFERROR(ROUNDDOWN((MAX(BP$2,$J16) + 'C'!$D$57) / (MIN(BP$2,$J16) + 'C'!$D$57),1),"") -> 5.5 | BQ16: =IFERROR(ROUNDDOWN((MAX(BQ$2,$J16) + 'C'!$D$57) / (MIN(BQ$2,$J16) + 'C'!$D$57),1),"") -> 7 | BR16: =IFERROR(ROUNDDOWN((MAX(BR$2,$J16) + 'C'!$D$57) / (MIN(BR$2,$J16) + 'C'!$D$57),1),"") -> 1.1 | BS16: =IFERROR(ROUNDDOWN((MAX(BS$2,$J16) + 'C'!$D$57) / (MIN(BS$2,$J16) + 'C'!$D$57),1),"") -> 2.1 | BT16: =IFERROR(ROUNDDOWN((MAX(BT$2,$J16) + 'C'!$D$57) / (MIN(BT$2,$J16) + 'C'!$D$57),1),"") -> 1 | BU16: =IFERROR(ROUNDDOWN((MAX(BU$2,$J16) + 'C'!$D$57) / (MIN(BU$2,$J16) + 'C'!$D$57),1),"") -> 1.7 | BV16: =IFERROR(ROUNDDOWN((MAX(BV$2,$J16) + 'C'!$D$57) / (MIN(BV$2,$J16) + 'C'!$D$57),1),"") -> 2.2 | BW16: =IFERROR(ROUNDDOWN((MAX(BW$2,$J16) + 'C'!$D$57) / (MIN(BW$2,$J16) + 'C'!$D$57),1),"") -> 3.9 | BX16: =IFERROR(ROUNDDOWN((MAX(BX$2,$J16) + 'C'!$D$57) / (MIN(BX$2,$J16) + 'C'!$D$57),1),"") -> 6.4 | BY16: =IFERROR(ROUNDDOWN((MAX(BY$2,$J16) + 'C'!$D$57) / (MIN(BY$2,$J16) + 'C'!$D$57),1),"") -> 4 | BZ16: =IFERROR(ROUNDDOWN((MAX(BZ$2,$J16) + 'C'!$D$57) / (MIN(BZ$2,$J16) + 'C'!$D$57),1),"") -> 1 | CA16: =IFERROR(ROUNDDOWN((MAX(CA$2,$J16) + 'C'!$D$57) / (MIN(CA$2,$J16) + 'C'!$D$57),1),"") -> 4.6 | CB16: =IFERROR(ROUNDDOWN((MAX(CB$2,$J16) + 'C'!$D$57) / (MIN(CB$2,$J16) + 'C'!$D$57),1),"") -> 2.3 | CC16: =IFERROR(ROUNDDOWN((MAX(CC$2,$J16) + 'C'!$D$57) / (MIN(CC$2,$J16) + 'C'!$D$57),1),"") -> 8.7 | CD16: =IFERROR(ROUNDDOWN((MAX(CD$2,$J16) + 'C'!$D$57) / (MIN(CD$2,$J16) + 'C'!$D$57),1),"") -> 8.7 | CE16: =IFERROR(ROUNDDOWN((MAX(CE$2,$J16) + 'C'!$D$57) / (MIN(CE$2,$J16) + 'C'!$D$57),1),"") -> 8.7 | CF16: =IFERROR(ROUNDDOWN((MAX(CF$2,$J16) + 'C'!$D$57) / (MIN(CF$2,$J16) + 'C'!$D$57),1),"") -> 8.7 | CG16: =IFERROR(ROUNDDOWN((MAX(CG$2,$J16) + 'C'!$D$57) / (MIN(CG$2,$J16) + 'C'!$D$57),1),"") -> 8.7 | CH16: =IFERROR(ROUNDDOWN((MAX(CH$2,$J16) + 'C'!$D$57) / (MIN(CH$2,$J16) + 'C'!$D$57),1),"") -> 8.7 | CI16: =IFERROR(ROUNDDOWN((MAX(CI$2,$J16) + 'C'!$D$57) / (MIN(CI$2,$J16) + 'C'!$D$57),1),"") -> 8.7 | CJ16: =IFERROR(ROUNDDOWN((MAX(CJ$2,$J16) + 'C'!$D$57) / (MIN(CJ$2,$J16) + 'C'!$D$57),1),"") -> 8.7 | CK16: =IFERROR(ROUNDDOWN((MAX(CK$2,$J16) + 'C'!$D$57) / (MIN(CK$2,$J16) + 'C'!$D$57),1),"") -> 8.7 | CL16: =IFERROR(ROUNDDOWN((MAX(CL$2,$J16) + 'C'!$D$57) / (MIN(CL$2,$J16) + 'C'!$D$57),1),"") -> 8.7 | CM16: =IFERROR(ROUNDDOWN((MAX(CM$2,$J16) + 'C'!$D$57) / (MIN(CM$2,$J16) + 'C'!$D$57),1),"") -> 8.7 | CN16: =IFERROR(ROUNDDOWN((MAX(CN$2,$J16) + 'C'!$D$57) / (MIN(CN$2,$J16) + 'C'!$D$57),1),"") -> 8.7 | CO16: =IFERROR(ROUNDDOWN((MAX(CO$2,$J16) + 'C'!$D$57) / (MIN(CO$2,$J16) + 'C'!$D$57),1),"") -> 8.7 | CP16: =IFERROR(ROUNDDOWN((MAX(CP$2,$J16) + 'C'!$D$57) / (MIN(CP$2,$J16) + 'C'!$D$57),1),"") -> 8.7 | CQ16: =IFERROR(ROUNDDOWN((MAX(CQ$2,$J16) + 'C'!$D$57) / (MIN(CQ$2,$J16) + 'C'!$D$57),1),"") -> 8.7 | CR16: =IFERROR(ROUNDDOWN((MAX(CR$2,$J16) + 'C'!$D$57) / (MIN(CR$2,$J16) + 'C'!$D$57),1),"") -> 8.7 | CS16: =IFERROR(ROUNDDOWN((MAX(CS$2,$J16) + 'C'!$D$57) / (MIN(CS$2,$J16) + 'C'!$D$57),1),"") -> 8.7 | CT16: =IFERROR(ROUNDDOWN((MAX(CT$2,$J16) + 'C'!$D$57) / (MIN(CT$2,$J16) + 'C'!$D$57),1),"") -> 8.7 | CU16: =IFERROR(ROUNDDOWN((MAX(CU$2,$J16) + 'C'!$D$57) / (MIN(CU$2,$J16) + 'C'!$D$57),1),"") -> 8.7
B17: #ff0000 | D17: -0.08 | E17: 0 | F17: 0.7661133209 | H17: Error Border: Sufficient contrast against Content BG (non-text) | I17: #E10000 | J17: 0.1595835426 | M17: 255 | N17: 0 | O17: 0 | Q17: 1 | R17: 0 | S17: 0 | U17: =IF($Q17 > 'C'!$D$33,((($Q17 + 'C'!$D$30) / 'C'!$D$31)) ^ 'C'!$D$32,($Q17 / 'C'!$D$29)) -> 1 | V17: =IF($R17 > 'C'!$D$33,((($R17 + 'C'!$D$30) / 'C'!$D$31)) ^ 'C'!$D$32,($R17 / 'C'!$D$29)) -> 0 | W17: =IF($S17 > 'C'!$D$33,((($S17 + 'C'!$D$30) / 'C'!$D$31)) ^ 'C'!$D$32,($S17 / 'C'!$D$29)) -> 0 | Y17: =('C'!$D$44 * $U17) +( 'C'!$D$45 * $V17) + ('C'!$D$46 * $W17) -> 0.2126 | Z17: =ROUND( ('C'!$D$69 * $U17) + ('C'!$E$69 * $V17) + ('C'!$F$69 * $W17), 'C'!$D$75) -> 0.41222147 | AA17: =ROUND( ('C'!$D$70 * $U17) + ('C'!$E$70 * $V17) + ('C'!$F$70 * $W17), 'C'!$D$75) -> 0.2119035 | AB17: =ROUND( ('C'!$D$71 * $U17) + ('C'!$E$71 * $V17) + ('C'!$F$71 * $W17), 'C'!$D$75) -> 0.08830246 | AD17: =ROUND( ('C'!$D$82 * ($Z17^'C'!$D$89)) + ('C'!$E$82 * ($AA17^'C'!$D$89)) + ('C'!$F$82 * ($AB17^'C'!$D$89)), 'C'!$D$88) -> 0.62795536 | AE17: =ROUND( ('C'!$D$83 * ($Z17^'C'!$D$89)) + ('C'!$E$83 * ($AA17^'C'!$D$89)) + ('C'!$F$83 * ($AB17^'C'!$D$89)), 'C'!$D$88) -> 0.22486305 | AF17: =ROUND( ('C'!$D$84 * ($Z17^'C'!$D$89)) + ('C'!$E$84 * ($AA17^'C'!$D$89)) + ('C'!$F$84 * ($AB17^'C'!$D$89)), 'C'!$D$88) -> 0.1258463 | AG17: 0.2576832988 | AH17: 29.23388668 | AJ17: 0.54795536 | AK17: 0.2231602829 | AL17: 0.1288416494 | AM17: 0.2576832988 | AN17: 30 | AP17: =ROUND( ('C'!$D$105 * $AJ17) + ('C'!$E$105 * $AK17) + ('C'!$F$105 * $AL17), 'C'!$D$111) ^ 'C'!$D$112 -> 0.2930284552 | AQ17: =ROUND( ('C'!$D$106 * $AJ17) + ('C'!$E$106 * $AK17) + ('C'!$F$106 * $AL17), 'C'!$D$111) ^ 'C'!$D$112 -> 0.1375248745 | AR17: =ROUND( ('C'!$D$107 * $AJ17) + ('C'!$E$107 * $AK17) + ('C'!$F$107 * $AL17), 'C'!$D$111) ^ 'C'!$D$112 -> 0.04727650275 | AT17: =MIN(1, MAX(0, ROUND( ('C'!$D$119 * $AP17) + ('C'!$E$119 * $AQ17) + ('C'!$F$119 * $AR17), 'C'!$D$125))) -> 0.75062814 | AU17: =MIN(1,MAX(0,ROUND( ('C'!$D$120 * $AP17) + ('C'!$E$120 * $AQ17) + ('C'!$F$120 * $AR17), 'C'!$D$125))) -> 0 | AV17: =MIN(1,MAX(0,ROUND( ('C'!$D$121 * $AP17) + ('C'!$E$121 * $AQ17) + ('C'!$F$121 * $AR17), 'C'!$D$125))) -> 0 | AX17: =('C'!$D$44 * $AT17) +( 'C'!$D$45 * $AU17) + ('C'!$D$46 * $AV17) -> 0.1595835426 | AY17: =IF($AT17>'C'!$D$142, ($AT17 ^ (1/'C'!$D$141) * 'C'!$D$140) - 'C'!$D$139, $AT17 * 'C'!$D$138) -> 0.8811515131 | AZ17: =IF($AU17>'C'!$D$142, ($AU17 ^ (1/'C'!$D$141) * 'C'!$D$140) - 'C'!$D$139, $AU17 * 'C'!$D$138) -> 0 | BA17: =IF($AV17>'C'!$D$142, ($AV17 ^ (1/'C'!$D$141) * 'C'!$D$140) - 'C'!$D$139, $AV17 * 'C'!$D$138) -> 0 | BC17: 225 | BD17: 0 | BE17: 0 | BH17: =IFERROR(ROUNDDOWN((MAX(BH$2,$J17) + 'C'!$D$57) / (MIN(BH$2,$J17) + 'C'!$D$57),1),"") -> 3 | BI17: =IFERROR(ROUNDDOWN((MAX(BI$2,$J17) + 'C'!$D$57) / (MIN(BI$2,$J17) + 'C'!$D$57),1),"") -> 2.9 | BJ17: =IFERROR(ROUNDDOWN((MAX(BJ$2,$J17) + 'C'!$D$57) / (MIN(BJ$2,$J17) + 'C'!$D$57),1),"") -> 3.1 | BK17: =IFERROR(ROUNDDOWN((MAX(BK$2,$J17) + 'C'!$D$57) / (MIN(BK$2,$J17) + 'C'!$D$57),1),"") -> 5 | BL17: =IFERROR(ROUNDDOWN((MAX(BL$2,$J17) + 'C'!$D$57) / (MIN(BL$2,$J17) + 'C'!$D$57),1),"") -> 4.1 | BM17: =IFERROR(ROUNDDOWN((MAX(BM$2,$J17) + 'C'!$D$57) / (MIN(BM$2,$J17) + 'C'!$D$57),1),"") -> 2.2 | BN17: =IFERROR(ROUNDDOWN((MAX(BN$2,$J17) + 'C'!$D$57) / (MIN(BN$2,$J17) + 'C'!$D$57),1),"") -> 3.7 | BO17: =IFERROR(ROUNDDOWN((MAX(BO$2,$J17) + 'C'!$D$57) / (MIN(BO$2,$J17) + 'C'!$D$57),1),"") -> 3 | BP17: =IFERROR(ROUNDDOWN((MAX(BP$2,$J17) + 'C'!$D$57) / (MIN(BP$2,$J17) + 'C'!$D$57),1),"") -> 3.1 | BQ17: =IFERROR(ROUNDDOWN((MAX(BQ$2,$J17) + 'C'!$D$57) / (MIN(BQ$2,$J17) + 'C'!$D$57),1),"") -> 4 | BR17: =IFERROR(ROUNDDOWN((MAX(BR$2,$J17) + 'C'!$D$57) / (MIN(BR$2,$J17) + 'C'!$D$57),1),"") -> 1.5 | BS17: =IFERROR(ROUNDDOWN((MAX(BS$2,$J17) + 'C'!$D$57) / (MIN(BS$2,$J17) + 'C'!$D$57),1),"") -> 1.2 | BT17: =IFERROR(ROUNDDOWN((MAX(BT$2,$J17) + 'C'!$D$57) / (MIN(BT$2,$J17) + 'C'!$D$57),1),"") -> 1.7 | BU17: =IFERROR(ROUNDDOWN((MAX(BU$2,$J17) + 'C'!$D$57) / (MIN(BU$2,$J17) + 'C'!$D$57),1),"") -> 1 | BV17: =IFERROR(ROUNDDOWN((MAX(BV$2,$J17) + 'C'!$D$57) / (MIN(BV$2,$J17) + 'C'!$D$57),1),"") -> 1.2 | BW17: =IFERROR(ROUNDDOWN((MAX(BW$2,$J17) + 'C'!$D$57) / (MIN(BW$2,$J17) + 'C'!$D$57),1),"") -> 2.2 | BX17: =IFERROR(ROUNDDOWN((MAX(BX$2,$J17) + 'C'!$D$57) / (MIN(BX$2,$J17) + 'C'!$D$57),1),"") -> 3.6 | BY17: =IFERROR(ROUNDDOWN((MAX(BY$2,$J17) + 'C'!$D$57) / (MIN(BY$2,$J17) + 'C'!$D$57),1),"") -> 2.3 | BZ17: =IFERROR(ROUNDDOWN((MAX(BZ$2,$J17) + 'C'!$D$57) / (MIN(BZ$2,$J17) + 'C'!$D$57),1),"") -> 1.7 | CA17: =IFERROR(ROUNDDOWN((MAX(CA$2,$J17) + 'C'!$D$57) / (MIN(CA$2,$J17) + 'C'!$D$57),1),"") -> 2.6 | CB17: =IFERROR(ROUNDDOWN((MAX(CB$2,$J17) + 'C'!$D$57) / (MIN(CB$2,$J17) + 'C'!$D$57),1),"") -> 1.3 | CC17: =IFERROR(ROUNDDOWN((MAX(CC$2,$J17) + 'C'!$D$57) / (MIN(CC$2,$J17) + 'C'!$D$57),1),"") -> 5 | CD17: =IFERROR(ROUNDDOWN((MAX(CD$2,$J17) + 'C'!$D$57) / (MIN(CD$2,$J17) + 'C'!$D$57),1),"") -> 5 | CE17: =IFERROR(ROUNDDOWN((MAX(CE$2,$J17) + 'C'!$D$57) / (MIN(CE$2,$J17) + 'C'!$D$57),1),"") -> 5 | CF17: =IFERROR(ROUNDDOWN((MAX(CF$2,$J17) + 'C'!$D$57) / (MIN(CF$2,$J17) + 'C'!$D$57),1),"") -> 5 | CG17: =IFERROR(ROUNDDOWN((MAX(CG$2,$J17) + 'C'!$D$57) / (MIN(CG$2,$J17) + 'C'!$D$57),1),"") -> 5 | CH17: =IFERROR(ROUNDDOWN((MAX(CH$2,$J17) + 'C'!$D$57) / (MIN(CH$2,$J17) + 'C'!$D$57),1),"") -> 5 | CI17: =IFERROR(ROUNDDOWN((MAX(CI$2,$J17) + 'C'!$D$57) / (MIN(CI$2,$J17) + 'C'!$D$57),1),"") -> 5 | CJ17: =IFERROR(ROUNDDOWN((MAX(CJ$2,$J17) + 'C'!$D$57) / (MIN(CJ$2,$J17) + 'C'!$D$57),1),"") -> 5 | CK17: =IFERROR(ROUNDDOWN((MAX(CK$2,$J17) + 'C'!$D$57) / (MIN(CK$2,$J17) + 'C'!$D$57),1),"") -> 5 | CL17: =IFERROR(ROUNDDOWN((MAX(CL$2,$J17) + 'C'!$D$57) / (MIN(CL$2,$J17) + 'C'!$D$57),1),"") -> 5 | CM17: =IFERROR(ROUNDDOWN((MAX(CM$2,$J17) + 'C'!$D$57) / (MIN(CM$2,$J17) + 'C'!$D$57),1),"") -> 5 | CN17: =IFERROR(ROUNDDOWN((MAX(CN$2,$J17) + 'C'!$D$57) / (MIN(CN$2,$J17) + 'C'!$D$57),1),"") -> 5 | CO17: =IFERROR(ROUNDDOWN((MAX(CO$2,$J17) + 'C'!$D$57) / (MIN(CO$2,$J17) + 'C'!$D$57),1),"") -> 5 | CP17: =IFERROR(ROUNDDOWN((MAX(CP$2,$J17) + 'C'!$D$57) / (MIN(CP$2,$J17) + 'C'!$D$57),1),"") -> 5 | CQ17: =IFERROR(ROUNDDOWN((MAX(CQ$2,$J17) + 'C'!$D$57) / (MIN(CQ$2,$J17) + 'C'!$D$57),1),"") -> 5 | CR17: =IFERROR(ROUNDDOWN((MAX(CR$2,$J17) + 'C'!$D$57) / (MIN(CR$2,$J17) + 'C'!$D$57),1),"") -> 5 | CS17: =IFERROR(ROUNDDOWN((MAX(CS$2,$J17) + 'C'!$D$57) / (MIN(CS$2,$J17) + 'C'!$D$57),1),"") -> 5 | CT17: =IFERROR(ROUNDDOWN((MAX(CT$2,$J17) + 'C'!$D$57) / (MIN(CT$2,$J17) + 'C'!$D$57),1),"") -> 5 | CU17: =IFERROR(ROUNDDOWN((MAX(CU$2,$J17) + 'C'!$D$57) / (MIN(CU$2,$J17) + 'C'!$D$57),1),"") -> 5
B18: #ff0000 | D18: 0 | E18: 0 | F18: 15.76611332 | H18: Rotate to get hue to exactly 45 to be closer to red than yellow | I18: #FA2B00 | J18: 0.2208655632 | M18: 255 | N18: 0 | O18: 0 | Q18: 1 | R18: 0 | S18: 0 | U18: =IF($Q18 > 'C'!$D$33,((($Q18 + 'C'!$D$30) / 'C'!$D$31)) ^ 'C'!$D$32,($Q18 / 'C'!$D$29)) -> 1 | V18: =IF($R18 > 'C'!$D$33,((($R18 + 'C'!$D$30) / 'C'!$D$31)) ^ 'C'!$D$32,($R18 / 'C'!$D$29)) -> 0 | W18: =IF($S18 > 'C'!$D$33,((($S18 + 'C'!$D$30) / 'C'!$D$31)) ^ 'C'!$D$32,($S18 / 'C'!$D$29)) -> 0 | Y18: =('C'!$D$44 * $U18) +( 'C'!$D$45 * $V18) + ('C'!$D$46 * $W18) -> 0.2126 | Z18: =ROUND( ('C'!$D$69 * $U18) + ('C'!$E$69 * $V18) + ('C'!$F$69 * $W18), 'C'!$D$75) -> 0.41222147 | AA18: =ROUND( ('C'!$D$70 * $U18) + ('C'!$E$70 * $V18) + ('C'!$F$70 * $W18), 'C'!$D$75) -> 0.2119035 | AB18: =ROUND( ('C'!$D$71 * $U18) + ('C'!$E$71 * $V18) + ('C'!$F$71 * $W18), 'C'!$D$75) -> 0.08830246 | AD18: =ROUND( ('C'!$D$82 * ($Z18^'C'!$D$89)) + ('C'!$E$82 * ($AA18^'C'!$D$89)) + ('C'!$F$82 * ($AB18^'C'!$D$89)), 'C'!$D$88) -> 0.62795536 | AE18: =ROUND( ('C'!$D$83 * ($Z18^'C'!$D$89)) + ('C'!$E$83 * ($AA18^'C'!$D$89)) + ('C'!$F$83 * ($AB18^'C'!$D$89)), 'C'!$D$88) -> 0.22486305 | AF18: =ROUND( ('C'!$D$84 * ($Z18^'C'!$D$89)) + ('C'!$E$84 * ($AA18^'C'!$D$89)) + ('C'!$F$84 * ($AB18^'C'!$D$89)), 'C'!$D$88) -> 0.1258463 | AG18: 0.2576832988 | AH18: 29.23388668 | AJ18: 0.62795536 | AK18: 0.182209608 | AL18: 0.182209608 | AM18: 0.2576832988 | AN18: 45 | AP18: =ROUND( ('C'!$D$105 * $AJ18) + ('C'!$E$105 * $AK18) + ('C'!$F$105 * $AL18), 'C'!$D$111) ^ 'C'!$D$112 -> 0.4043923764 | AQ18: =ROUND( ('C'!$D$106 * $AJ18) + ('C'!$E$106 * $AK18) + ('C'!$F$106 * $AL18), 'C'!$D$111) ^ 'C'!$D$112 -> 0.2128683751 | AR18: =ROUND( ('C'!$D$107 * $AJ18) + ('C'!$E$107 * $AK18) + ('C'!$F$107 * $AL18), 'C'!$D$111) ^ 'C'!$D$112 -> 0.05329721044 | AT18: =MIN(1, MAX(0, ROUND( ('C'!$D$119 * $AP18) + ('C'!$E$119 * $AQ18) + ('C'!$F$119 * $AR18), 'C'!$D$125))) -> 0.95680611 | AU18: =MIN(1,MAX(0,ROUND( ('C'!$D$120 * $AP18) + ('C'!$E$120 * $AQ18) + ('C'!$F$120 * $AR18), 'C'!$D$125))) -> 0.02439679 | AV18: =MIN(1,MAX(0,ROUND( ('C'!$D$121 * $AP18) + ('C'!$E$121 * $AQ18) + ('C'!$F$121 * $AR18), 'C'!$D$125))) -> 0 | AX18: =('C'!$D$44 * $AT18) +( 'C'!$D$45 * $AU18) + ('C'!$D$46 * $AV18) -> 0.2208655632 | AY18: =IF($AT18>'C'!$D$142, ($AT18 ^ (1/'C'!$D$141) * 'C'!$D$140) - 'C'!$D$139, $AT18 * 'C'!$D$138) -> 0.9807678694 | AZ18: =IF($AU18>'C'!$D$142, ($AU18 ^ (1/'C'!$D$141) * 'C'!$D$140) - 'C'!$D$139, $AU18 * 'C'!$D$138) -> 0.1695472529 | BA18: =IF($AV18>'C'!$D$142, ($AV18 ^ (1/'C'!$D$141) * 'C'!$D$140) - 'C'!$D$139, $AV18 * 'C'!$D$138) -> 0 | BC18: 250 | BD18: 43 | BE18: 0 | BH18: =IFERROR(ROUNDDOWN((MAX(BH$2,$J18) + 'C'!$D$57) / (MIN(BH$2,$J18) + 'C'!$D$57),1),"") -> 2.3 | BI18: =IFERROR(ROUNDDOWN((MAX(BI$2,$J18) + 'C'!$D$57) / (MIN(BI$2,$J18) + 'C'!$D$57),1),"") -> 2.2 | BJ18: =IFERROR(ROUNDDOWN((MAX(BJ$2,$J18) + 'C'!$D$57) / (MIN(BJ$2,$J18) + 'C'!$D$57),1),"") -> 2.4 | BK18: =IFERROR(ROUNDDOWN((MAX(BK$2,$J18) + 'C'!$D$57) / (MIN(BK$2,$J18) + 'C'!$D$57),1),"") -> 3.8 | BL18: =IFERROR(ROUNDDOWN((MAX(BL$2,$J18) + 'C'!$D$57) / (MIN(BL$2,$J18) + 'C'!$D$57),1),"") -> 5.4 | BM18: =IFERROR(ROUNDDOWN((MAX(BM$2,$J18) + 'C'!$D$57) / (MIN(BM$2,$J18) + 'C'!$D$57),1),"") -> 2.8 | BN18: =IFERROR(ROUNDDOWN((MAX(BN$2,$J18) + 'C'!$D$57) / (MIN(BN$2,$J18) + 'C'!$D$57),1),"") -> 4.8 | BO18: =IFERROR(ROUNDDOWN((MAX(BO$2,$J18) + 'C'!$D$57) / (MIN(BO$2,$J18) + 'C'!$D$57),1),"") -> 3.9 | BP18: =IFERROR(ROUNDDOWN((MAX(BP$2,$J18) + 'C'!$D$57) / (MIN(BP$2,$J18) + 'C'!$D$57),1),"") -> 2.4 | BQ18: =IFERROR(ROUNDDOWN((MAX(BQ$2,$J18) + 'C'!$D$57) / (MIN(BQ$2,$J18) + 'C'!$D$57),1),"") -> 3.1 | BR18: =IFERROR(ROUNDDOWN((MAX(BR$2,$J18) + 'C'!$D$57) / (MIN(BR$2,$J18) + 'C'!$D$57),1),"") -> 2 | BS18: =IFERROR(ROUNDDOWN((MAX(BS$2,$J18) + 'C'!$D$57) / (MIN(BS$2,$J18) + 'C'!$D$57),1),"") -> 1 | BT18: =IFERROR(ROUNDDOWN((MAX(BT$2,$J18) + 'C'!$D$57) / (MIN(BT$2,$J18) + 'C'!$D$57),1),"") -> 2.2 | BU18: =IFERROR(ROUNDDOWN((MAX(BU$2,$J18) + 'C'!$D$57) / (MIN(BU$2,$J18) + 'C'!$D$57),1),"") -> 1.2 | BV18: =IFERROR(ROUNDDOWN((MAX(BV$2,$J18) + 'C'!$D$57) / (MIN(BV$2,$J18) + 'C'!$D$57),1),"") -> 1 | BW18: =IFERROR(ROUNDDOWN((MAX(BW$2,$J18) + 'C'!$D$57) / (MIN(BW$2,$J18) + 'C'!$D$57),1),"") -> 1.7 | BX18: =IFERROR(ROUNDDOWN((MAX(BX$2,$J18) + 'C'!$D$57) / (MIN(BX$2,$J18) + 'C'!$D$57),1),"") -> 2.8 | BY18: =IFERROR(ROUNDDOWN((MAX(BY$2,$J18) + 'C'!$D$57) / (MIN(BY$2,$J18) + 'C'!$D$57),1),"") -> 1.7 | BZ18: =IFERROR(ROUNDDOWN((MAX(BZ$2,$J18) + 'C'!$D$57) / (MIN(BZ$2,$J18) + 'C'!$D$57),1),"") -> 2.2 | CA18: =IFERROR(ROUNDDOWN((MAX(CA$2,$J18) + 'C'!$D$57) / (MIN(CA$2,$J18) + 'C'!$D$57),1),"") -> 2 | CB18: =IFERROR(ROUNDDOWN((MAX(CB$2,$J18) + 'C'!$D$57) / (MIN(CB$2,$J18) + 'C'!$D$57),1),"") -> 1 | CC18: =IFERROR(ROUNDDOWN((MAX(CC$2,$J18) + 'C'!$D$57) / (MIN(CC$2,$J18) + 'C'!$D$57),1),"") -> 3.8 | CD18: =IFERROR(ROUNDDOWN((MAX(CD$2,$J18) + 'C'!$D$57) / (MIN(CD$2,$J18) + 'C'!$D$57),1),"") -> 3.8 | CE18: =IFERROR(ROUNDDOWN((MAX(CE$2,$J18) + 'C'!$D$57) / (MIN(CE$2,$J18) + 'C'!$D$57),1),"") -> 3.8 | CF18: =IFERROR(ROUNDDOWN((MAX(CF$2,$J18) + 'C'!$D$57) / (MIN(CF$2,$J18) + 'C'!$D$57),1),"") -> 3.8 | CG18: =IFERROR(ROUNDDOWN((MAX(CG$2,$J18) + 'C'!$D$57) / (MIN(CG$2,$J18) + 'C'!$D$57),1),"") -> 3.8 | CH18: =IFERROR(ROUNDDOWN((MAX(CH$2,$J18) + 'C'!$D$57) / (MIN(CH$2,$J18) + 'C'!$D$57),1),"") -> 3.8 | CI18: =IFERROR(ROUNDDOWN((MAX(CI$2,$J18) + 'C'!$D$57) / (MIN(CI$2,$J18) + 'C'!$D$57),1),"") -> 3.8 | CJ18: =IFERROR(ROUNDDOWN((MAX(CJ$2,$J18) + 'C'!$D$57) / (MIN(CJ$2,$J18) + 'C'!$D$57),1),"") -> 3.8 | CK18: =IFERROR(ROUNDDOWN((MAX(CK$2,$J18) + 'C'!$D$57) / (MIN(CK$2,$J18) + 'C'!$D$57),1),"") -> 3.8 | CL18: =IFERROR(ROUNDDOWN((MAX(CL$2,$J18) + 'C'!$D$57) / (MIN(CL$2,$J18) + 'C'!$D$57),1),"") -> 3.8 | CM18: =IFERROR(ROUNDDOWN((MAX(CM$2,$J18) + 'C'!$D$57) / (MIN(CM$2,$J18) + 'C'!$D$57),1),"") -> 3.8 | CN18: =IFERROR(ROUNDDOWN((MAX(CN$2,$J18) + 'C'!$D$57) / (MIN(CN$2,$J18) + 'C'!$D$57),1),"") -> 3.8 | CO18: =IFERROR(ROUNDDOWN((MAX(CO$2,$J18) + 'C'!$D$57) / (MIN(CO$2,$J18) + 'C'!$D$57),1),"") -> 3.8 | CP18: =IFERROR(ROUNDDOWN((MAX(CP$2,$J18) + 'C'!$D$57) / (MIN(CP$2,$J18) + 'C'!$D$57),1),"") -> 3.8 | CQ18: =IFERROR(ROUNDDOWN((MAX(CQ$2,$J18) + 'C'!$D$57) / (MIN(CQ$2,$J18) + 'C'!$D$57),1),"") -> 3.8 | CR18: =IFERROR(ROUNDDOWN((MAX(CR$2,$J18) + 'C'!$D$57) / (MIN(CR$2,$J18) + 'C'!$D$57),1),"") -> 3.8 | CS18: =IFERROR(ROUNDDOWN((MAX(CS$2,$J18) + 'C'!$D$57) / (MIN(CS$2,$J18) + 'C'!$D$57),1),"") -> 3.8 | CT18: =IFERROR(ROUNDDOWN((MAX(CT$2,$J18) + 'C'!$D$57) / (MIN(CT$2,$J18) + 'C'!$D$57),1),"") -> 3.8 | CU18: =IFERROR(ROUNDDOWN((MAX(CU$2,$J18) + 'C'!$D$57) / (MIN(CU$2,$J18) + 'C'!$D$57),1),"") -> 3.8
B19: #ff0000 | D19: 0.2711111111 | E19: 0 | F19: 15.76611332 | H19: Warning Text: Sufficient contrast against Content BG | I19: #FF9600 | J19: 0.4314653037 | M19: 255 | N19: 0 | O19: 0 | Q19: 1 | R19: 0 | S19: 0 | U19: =IF($Q19 > 'C'!$D$33,((($Q19 + 'C'!$D$30) / 'C'!$D$31)) ^ 'C'!$D$32,($Q19 / 'C'!$D$29)) -> 1 | V19: =IF($R19 > 'C'!$D$33,((($R19 + 'C'!$D$30) / 'C'!$D$31)) ^ 'C'!$D$32,($R19 / 'C'!$D$29)) -> 0 | W19: =IF($S19 > 'C'!$D$33,((($S19 + 'C'!$D$30) / 'C'!$D$31)) ^ 'C'!$D$32,($S19 / 'C'!$D$29)) -> 0 | Y19: =('C'!$D$44 * $U19) +( 'C'!$D$45 * $V19) + ('C'!$D$46 * $W19) -> 0.2126 | Z19: =ROUND( ('C'!$D$69 * $U19) + ('C'!$E$69 * $V19) + ('C'!$F$69 * $W19), 'C'!$D$75) -> 0.41222147 | AA19: =ROUND( ('C'!$D$70 * $U19) + ('C'!$E$70 * $V19) + ('C'!$F$70 * $W19), 'C'!$D$75) -> 0.2119035 | AB19: =ROUND( ('C'!$D$71 * $U19) + ('C'!$E$71 * $V19) + ('C'!$F$71 * $W19), 'C'!$D$75) -> 0.08830246 | AD19: =ROUND( ('C'!$D$82 * ($Z19^'C'!$D$89)) + ('C'!$E$82 * ($AA19^'C'!$D$89)) + ('C'!$F$82 * ($AB19^'C'!$D$89)), 'C'!$D$88) -> 0.62795536 | AE19: =ROUND( ('C'!$D$83 * ($Z19^'C'!$D$89)) + ('C'!$E$83 * ($AA19^'C'!$D$89)) + ('C'!$F$83 * ($AB19^'C'!$D$89)), 'C'!$D$88) -> 0.22486305 | AF19: =ROUND( ('C'!$D$84 * ($Z19^'C'!$D$89)) + ('C'!$E$84 * ($AA19^'C'!$D$89)) + ('C'!$F$84 * ($AB19^'C'!$D$89)), 'C'!$D$88) -> 0.1258463 | AG19: 0.2576832988 | AH19: 29.23388668 | AJ19: 0.8990664711 | AK19: 0.182209608 | AL19: 0.182209608 | AM19: 0.2576832988 | AN19: 45 | AP19: =ROUND( ('C'!$D$105 * $AJ19) + ('C'!$E$105 * $AK19) + ('C'!$F$105 * $AL19), 'C'!$D$111) ^ 'C'!$D$112 -> 1.032152181 | AQ19: =ROUND( ('C'!$D$106 * $AJ19) + ('C'!$E$106 * $AK19) + ('C'!$F$106 * $AL19), 'C'!$D$111) ^ 'C'!$D$112 -> 0.6544181755 | AR19: =ROUND( ('C'!$D$107 * $AJ19) + ('C'!$E$107 * $AK19) + ('C'!$F$107 * $AL19), 'C'!$D$111) ^ 'C'!$D$112 -> 0.2713936167 | AT19: =MIN(1, MAX(0, ROUND( ('C'!$D$119 * $AP19) + ('C'!$E$119 * $AQ19) + ('C'!$F$119 * $AR19), 'C'!$D$125))) -> 1 | AU19: =MIN(1,MAX(0,ROUND( ('C'!$D$120 * $AP19) + ('C'!$E$120 * $AQ19) + ('C'!$F$120 * $AR19), 'C'!$D$125))) -> 0.30601972 | AV19: =MIN(1,MAX(0,ROUND( ('C'!$D$121 * $AP19) + ('C'!$E$121 * $AQ19) + ('C'!$F$121 * $AR19), 'C'!$D$125))) -> 0 | AX19: =('C'!$D$44 * $AT19) +( 'C'!$D$45 * $AU19) + ('C'!$D$46 * $AV19) -> 0.4314653037 | AY19: =IF($AT19>'C'!$D$142, ($AT19 ^ (1/'C'!$D$141) * 'C'!$D$140) - 'C'!$D$139, $AT19 * 'C'!$D$138) -> 1 | AZ19: =IF($AU19>'C'!$D$142, ($AU19 ^ (1/'C'!$D$141) * 'C'!$D$140) - 'C'!$D$139, $AU19 * 'C'!$D$138) -> 0.5891416507 | BA19: =IF($AV19>'C'!$D$142, ($AV19 ^ (1/'C'!$D$141) * 'C'!$D$140) - 'C'!$D$139, $AV19 * 'C'!$D$138) -> 0 | BC19: 255 | BD19: 150 | BE19: 0 | BH19: =IFERROR(ROUNDDOWN((MAX(BH$2,$J19) + 'C'!$D$57) / (MIN(BH$2,$J19) + 'C'!$D$57),1),"") -> 1.3 | BI19: =IFERROR(ROUNDDOWN((MAX(BI$2,$J19) + 'C'!$D$57) / (MIN(BI$2,$J19) + 'C'!$D$57),1),"") -> 1.2 | BJ19: =IFERROR(ROUNDDOWN((MAX(BJ$2,$J19) + 'C'!$D$57) / (MIN(BJ$2,$J19) + 'C'!$D$57),1),"") -> 1.3 | BK19: =IFERROR(ROUNDDOWN((MAX(BK$2,$J19) + 'C'!$D$57) / (MIN(BK$2,$J19) + 'C'!$D$57),1),"") -> 2.1 | BL19: =IFERROR(ROUNDDOWN((MAX(BL$2,$J19) + 'C'!$D$57) / (MIN(BL$2,$J19) + 'C'!$D$57),1),"") -> 9.6 | BM19: =IFERROR(ROUNDDOWN((MAX(BM$2,$J19) + 'C'!$D$57) / (MIN(BM$2,$J19) + 'C'!$D$57),1),"") -> 5.1 | BN19: =IFERROR(ROUNDDOWN((MAX(BN$2,$J19) + 'C'!$D$57) / (MIN(BN$2,$J19) + 'C'!$D$57),1),"") -> 8.6 | BO19: =IFERROR(ROUNDDOWN((MAX(BO$2,$J19) + 'C'!$D$57) / (MIN(BO$2,$J19) + 'C'!$D$57),1),"") -> 7 | BP19: =IFERROR(ROUNDDOWN((MAX(BP$2,$J19) + 'C'!$D$57) / (MIN(BP$2,$J19) + 'C'!$D$57),1),"") -> 1.3 | BQ19: =IFERROR(ROUNDDOWN((MAX(BQ$2,$J19) + 'C'!$D$57) / (MIN(BQ$2,$J19) + 'C'!$D$57),1),"") -> 1.7 | BR19: =IFERROR(ROUNDDOWN((MAX(BR$2,$J19) + 'C'!$D$57) / (MIN(BR$2,$J19) + 'C'!$D$57),1),"") -> 3.5 | BS19: =IFERROR(ROUNDDOWN((MAX(BS$2,$J19) + 'C'!$D$57) / (MIN(BS$2,$J19) + 'C'!$D$57),1),"") -> 1.8 | BT19: =IFERROR(ROUNDDOWN((MAX(BT$2,$J19) + 'C'!$D$57) / (MIN(BT$2,$J19) + 'C'!$D$57),1),"") -> 3.9 | BU19: =IFERROR(ROUNDDOWN((MAX(BU$2,$J19) + 'C'!$D$57) / (MIN(BU$2,$J19) + 'C'!$D$57),1),"") -> 2.2 | BV19: =IFERROR(ROUNDDOWN((MAX(BV$2,$J19) + 'C'!$D$57) / (MIN(BV$2,$J19) + 'C'!$D$57),1),"") -> 1.7 | BW19: =IFERROR(ROUNDDOWN((MAX(BW$2,$J19) + 'C'!$D$57) / (MIN(BW$2,$J19) + 'C'!$D$57),1),"") -> 1 | BX19: =IFERROR(ROUNDDOWN((MAX(BX$2,$J19) + 'C'!$D$57) / (MIN(BX$2,$J19) + 'C'!$D$57),1),"") -> 1.6 | BY19: =IFERROR(ROUNDDOWN((MAX(BY$2,$J19) + 'C'!$D$57) / (MIN(BY$2,$J19) + 'C'!$D$57),1),"") -> 1 | BZ19: =IFERROR(ROUNDDOWN((MAX(BZ$2,$J19) + 'C'!$D$57) / (MIN(BZ$2,$J19) + 'C'!$D$57),1),"") -> 4 | CA19: =IFERROR(ROUNDDOWN((MAX(CA$2,$J19) + 'C'!$D$57) / (MIN(CA$2,$J19) + 'C'!$D$57),1),"") -> 1.1 | CB19: =IFERROR(ROUNDDOWN((MAX(CB$2,$J19) + 'C'!$D$57) / (MIN(CB$2,$J19) + 'C'!$D$57),1),"") -> 1.6 | CC19: =IFERROR(ROUNDDOWN((MAX(CC$2,$J19) + 'C'!$D$57) / (MIN(CC$2,$J19) + 'C'!$D$57),1),"") -> 2.1 | CD19: =IFERROR(ROUNDDOWN((MAX(CD$2,$J19) + 'C'!$D$57) / (MIN(CD$2,$J19) + 'C'!$D$57),1),"") -> 2.1 | CE19: =IFERROR(ROUNDDOWN((MAX(CE$2,$J19) + 'C'!$D$57) / (MIN(CE$2,$J19) + 'C'!$D$57),1),"") -> 2.1 | CF19: =IFERROR(ROUNDDOWN((MAX(CF$2,$J19) + 'C'!$D$57) / (MIN(CF$2,$J19) + 'C'!$D$57),1),"") -> 2.1 | CG19: =IFERROR(ROUNDDOWN((MAX(CG$2,$J19) + 'C'!$D$57) / (MIN(CG$2,$J19) + 'C'!$D$57),1),"") -> 2.1 | CH19: =IFERROR(ROUNDDOWN((MAX(CH$2,$J19) + 'C'!$D$57) / (MIN(CH$2,$J19) + 'C'!$D$57),1),"") -> 2.1 | CI19: =IFERROR(ROUNDDOWN((MAX(CI$2,$J19) + 'C'!$D$57) / (MIN(CI$2,$J19) + 'C'!$D$57),1),"") -> 2.1 | CJ19: =IFERROR(ROUNDDOWN((MAX(CJ$2,$J19) + 'C'!$D$57) / (MIN(CJ$2,$J19) + 'C'!$D$57),1),"") -> 2.1 | CK19: =IFERROR(ROUNDDOWN((MAX(CK$2,$J19) + 'C'!$D$57) / (MIN(CK$2,$J19) + 'C'!$D$57),1),"") -> 2.1 | CL19: =IFERROR(ROUNDDOWN((MAX(CL$2,$J19) + 'C'!$D$57) / (MIN(CL$2,$J19) + 'C'!$D$57),1),"") -> 2.1 | CM19: =IFERROR(ROUNDDOWN((MAX(CM$2,$J19) + 'C'!$D$57) / (MIN(CM$2,$J19) + 'C'!$D$57),1),"") -> 2.1 | CN19: =IFERROR(ROUNDDOWN((MAX(CN$2,$J19) + 'C'!$D$57) / (MIN(CN$2,$J19) + 'C'!$D$57),1),"") -> 2.1 | CO19: =IFERROR(ROUNDDOWN((MAX(CO$2,$J19) + 'C'!$D$57) / (MIN(CO$2,$J19) + 'C'!$D$57),1),"") -> 2.1 | CP19: =IFERROR(ROUNDDOWN((MAX(CP$2,$J19) + 'C'!$D$57) / (MIN(CP$2,$J19) + 'C'!$D$57),1),"") -> 2.1 | CQ19: =IFERROR(ROUNDDOWN((MAX(CQ$2,$J19) + 'C'!$D$57) / (MIN(CQ$2,$J19) + 'C'!$D$57),1),"") -> 2.1 | CR19: =IFERROR(ROUNDDOWN((MAX(CR$2,$J19) + 'C'!$D$57) / (MIN(CR$2,$J19) + 'C'!$D$57),1),"") -> 2.1 | CS19: =IFERROR(ROUNDDOWN((MAX(CS$2,$J19) + 'C'!$D$57) / (MIN(CS$2,$J19) + 'C'!$D$57),1),"") -> 2.1 | CT19: =IFERROR(ROUNDDOWN((MAX(CT$2,$J19) + 'C'!$D$57) / (MIN(CT$2,$J19) + 'C'!$D$57),1),"") -> 2.1 | CU19: =IFERROR(ROUNDDOWN((MAX(CU$2,$J19) + 'C'!$D$57) / (MIN(CU$2,$J19) + 'C'!$D$57),1),"") -> 2.1
B20: #00ff00 | D20: 0 | E20: 0 | F20: 7.504661624 | H20: Rotate to get hue to exactly 150 | I20: #00FF57 | J20: 0.7220553734 | M20: 0 | N20: 255 | O20: 0 | Q20: 0 | R20: 1 | S20: 0 | U20: =IF($Q20 > 'C'!$D$33,((($Q20 + 'C'!$D$30) / 'C'!$D$31)) ^ 'C'!$D$32,($Q20 / 'C'!$D$29)) -> 0 | V20: =IF($R20 > 'C'!$D$33,((($R20 + 'C'!$D$30) / 'C'!$D$31)) ^ 'C'!$D$32,($R20 / 'C'!$D$29)) -> 1 | W20: =IF($S20 > 'C'!$D$33,((($S20 + 'C'!$D$30) / 'C'!$D$31)) ^ 'C'!$D$32,($S20 / 'C'!$D$29)) -> 0 | Y20: =('C'!$D$44 * $U20) +( 'C'!$D$45 * $V20) + ('C'!$D$46 * $W20) -> 0.7152 | Z20: =ROUND( ('C'!$D$69 * $U20) + ('C'!$E$69 * $V20) + ('C'!$F$69 * $W20), 'C'!$D$75) -> 0.53633254 | AA20: =ROUND( ('C'!$D$70 * $U20) + ('C'!$E$70 * $V20) + ('C'!$F$70 * $W20), 'C'!$D$75) -> 0.68069955 | AB20: =ROUND( ('C'!$D$71 * $U20) + ('C'!$E$71 * $V20) + ('C'!$F$71 * $W20), 'C'!$D$75) -> 0.28171884 | AD20: =ROUND( ('C'!$D$82 * ($Z20^'C'!$D$89)) + ('C'!$E$82 * ($AA20^'C'!$D$89)) + ('C'!$F$82 * ($AB20^'C'!$D$89)), 'C'!$D$88) -> 0.86643961 | AE20: =ROUND( ('C'!$D$83 * ($Z20^'C'!$D$89)) + ('C'!$E$83 * ($AA20^'C'!$D$89)) + ('C'!$F$83 * ($AB20^'C'!$D$89)), 'C'!$D$88) -> -0.23388757 | AF20: =ROUND( ('C'!$D$84 * ($Z20^'C'!$D$89)) + ('C'!$E$84 * ($AA20^'C'!$D$89)) + ('C'!$F$84 * ($AB20^'C'!$D$89)), 'C'!$D$88) -> 0.17949848 | AG20: 0.2948272371 | AH20: 142.4953384 | AJ20: 0.86643961 | AK20: -0.255327877 | AL20: 0.1474136185 | AM20: 0.2948272371 | AN20: 150 | AP20: =ROUND( ('C'!$D$105 * $AJ20) + ('C'!$E$105 * $AK20) + ('C'!$F$105 * $AL20), 'C'!$D$111) ^ 'C'!$D$112 -> 0.5063681813 | AQ20: =ROUND( ('C'!$D$106 * $AJ20) + ('C'!$E$106 * $AK20) + ('C'!$F$106 * $AL20), 'C'!$D$111) ^ 'C'!$D$112 -> 0.6907587877 | AR20: =ROUND( ('C'!$D$107 * $AJ20) + ('C'!$E$107 * $AK20) + ('C'!$F$107 * $AL20), 'C'!$D$111) ^ 'C'!$D$112 -> 0.3413926615 | AT20: =MIN(1, MAX(0, ROUND( ('C'!$D$119 * $AP20) + ('C'!$E$119 * $AQ20) + ('C'!$F$119 * $AR20), 'C'!$D$125))) -> 0 | AU20: =MIN(1,MAX(0,ROUND( ('C'!$D$120 * $AP20) + ('C'!$E$120 * $AQ20) + ('C'!$F$120 * $AR20), 'C'!$D$125))) -> 1 | AV20: =MIN(1,MAX(0,ROUND( ('C'!$D$121 * $AP20) + ('C'!$E$121 * $AQ20) + ('C'!$F$121 * $AR20), 'C'!$D$125))) -> 0.09494977 | AX20: =('C'!$D$44 * $AT20) +( 'C'!$D$45 * $AU20) + ('C'!$D$46 * $AV20) -> 0.7220553734 | AY20: =IF($AT20>'C'!$D$142, ($AT20 ^ (1/'C'!$D$141) * 'C'!$D$140) - 'C'!$D$139, $AT20 * 'C'!$D$138) -> 0 | AZ20: =IF($AU20>'C'!$D$142, ($AU20 ^ (1/'C'!$D$141) * 'C'!$D$140) - 'C'!$D$139, $AU20 * 'C'!$D$138) -> 1 | BA20: =IF($AV20>'C'!$D$142, ($AV20 ^ (1/'C'!$D$141) * 'C'!$D$140) - 'C'!$D$139, $AV20 * 'C'!$D$138) -> 0.3405562568 | BC20: 0 | BD20: 255 | BE20: 87 | BH20: =IFERROR(ROUNDDOWN((MAX(BH$2,$J20) + 'C'!$D$57) / (MIN(BH$2,$J20) + 'C'!$D$57),1),"") -> 1.1 | BI20: =IFERROR(ROUNDDOWN((MAX(BI$2,$J20) + 'C'!$D$57) / (MIN(BI$2,$J20) + 'C'!$D$57),1),"") -> 1.2 | BJ20: =IFERROR(ROUNDDOWN((MAX(BJ$2,$J20) + 'C'!$D$57) / (MIN(BJ$2,$J20) + 'C'!$D$57),1),"") -> 1.1 | BK20: =IFERROR(ROUNDDOWN((MAX(BK$2,$J20) + 'C'!$D$57) / (MIN(BK$2,$J20) + 'C'!$D$57),1),"") -> 1.3 | BL20: =IFERROR(ROUNDDOWN((MAX(BL$2,$J20) + 'C'!$D$57) / (MIN(BL$2,$J20) + 'C'!$D$57),1),"") -> 15.4 | BM20: =IFERROR(ROUNDDOWN((MAX(BM$2,$J20) + 'C'!$D$57) / (MIN(BM$2,$J20) + 'C'!$D$57),1),"") -> 8.2 | BN20: =IFERROR(ROUNDDOWN((MAX(BN$2,$J20) + 'C'!$D$57) / (MIN(BN$2,$J20) + 'C'!$D$57),1),"") -> 13.9 | BO20: =IFERROR(ROUNDDOWN((MAX(BO$2,$J20) + 'C'!$D$57) / (MIN(BO$2,$J20) + 'C'!$D$57),1),"") -> 11.2 | BP20: =IFERROR(ROUNDDOWN((MAX(BP$2,$J20) + 'C'!$D$57) / (MIN(BP$2,$J20) + 'C'!$D$57),1),"") -> 1.1 | BQ20: =IFERROR(ROUNDDOWN((MAX(BQ$2,$J20) + 'C'!$D$57) / (MIN(BQ$2,$J20) + 'C'!$D$57),1),"") -> 1.1 | BR20: =IFERROR(ROUNDDOWN((MAX(BR$2,$J20) + 'C'!$D$57) / (MIN(BR$2,$J20) + 'C'!$D$57),1),"") -> 5.7 | BS20: =IFERROR(ROUNDDOWN((MAX(BS$2,$J20) + 'C'!$D$57) / (MIN(BS$2,$J20) + 'C'!$D$57),1),"") -> 2.9 | BT20: =IFERROR(ROUNDDOWN((MAX(BT$2,$J20) + 'C'!$D$57) / (MIN(BT$2,$J20) + 'C'!$D$57),1),"") -> 6.4 | BU20: =IFERROR(ROUNDDOWN((MAX(BU$2,$J20) + 'C'!$D$57) / (MIN(BU$2,$J20) + 'C'!$D$57),1),"") -> 3.6 | BV20: =IFERROR(ROUNDDOWN((MAX(BV$2,$J20) + 'C'!$D$57) / (MIN(BV$2,$J20) + 'C'!$D$57),1),"") -> 2.8 | BW20: =IFERROR(ROUNDDOWN((MAX(BW$2,$J20) + 'C'!$D$57) / (MIN(BW$2,$J20) + 'C'!$D$57),1),"") -> 1.6 | BX20: =IFERROR(ROUNDDOWN((MAX(BX$2,$J20) + 'C'!$D$57) / (MIN(BX$2,$J20) + 'C'!$D$57),1),"") -> 1 | BY20: =IFERROR(ROUNDDOWN((MAX(BY$2,$J20) + 'C'!$D$57) / (MIN(BY$2,$J20) + 'C'!$D$57),1),"") -> 1.6 | BZ20: =IFERROR(ROUNDDOWN((MAX(BZ$2,$J20) + 'C'!$D$57) / (MIN(BZ$2,$J20) + 'C'!$D$57),1),"") -> 6.4 | CA20: =IFERROR(ROUNDDOWN((MAX(CA$2,$J20) + 'C'!$D$57) / (MIN(CA$2,$J20) + 'C'!$D$57),1),"") -> 1.3 | CB20: =IFERROR(ROUNDDOWN((MAX(CB$2,$J20) + 'C'!$D$57) / (MIN(CB$2,$J20) + 'C'!$D$57),1),"") -> 2.7 | CC20: =IFERROR(ROUNDDOWN((MAX(CC$2,$J20) + 'C'!$D$57) / (MIN(CC$2,$J20) + 'C'!$D$57),1),"") -> 1.3 | CD20: =IFERROR(ROUNDDOWN((MAX(CD$2,$J20) + 'C'!$D$57) / (MIN(CD$2,$J20) + 'C'!$D$57),1),"") -> 1.3 | CE20: =IFERROR(ROUNDDOWN((MAX(CE$2,$J20) + 'C'!$D$57) / (MIN(CE$2,$J20) + 'C'!$D$57),1),"") -> 1.3 | CF20: =IFERROR(ROUNDDOWN((MAX(CF$2,$J20) + 'C'!$D$57) / (MIN(CF$2,$J20) + 'C'!$D$57),1),"") -> 1.3 | CG20: =IFERROR(ROUNDDOWN((MAX(CG$2,$J20) + 'C'!$D$57) / (MIN(CG$2,$J20) + 'C'!$D$57),1),"") -> 1.3 | CH20: =IFERROR(ROUNDDOWN((MAX(CH$2,$J20) + 'C'!$D$57) / (MIN(CH$2,$J20) + 'C'!$D$57),1),"") -> 1.3 | CI20: =IFERROR(ROUNDDOWN((MAX(CI$2,$J20) + 'C'!$D$57) / (MIN(CI$2,$J20) + 'C'!$D$57),1),"") -> 1.3 | CJ20: =IFERROR(ROUNDDOWN((MAX(CJ$2,$J20) + 'C'!$D$57) / (MIN(CJ$2,$J20) + 'C'!$D$57),1),"") -> 1.3 | CK20: =IFERROR(ROUNDDOWN((MAX(CK$2,$J20) + 'C'!$D$57) / (MIN(CK$2,$J20) + 'C'!$D$57),1),"") -> 1.3 | CL20: =IFERROR(ROUNDDOWN((MAX(CL$2,$J20) + 'C'!$D$57) / (MIN(CL$2,$J20) + 'C'!$D$57),1),"") -> 1.3 | CM20: =IFERROR(ROUNDDOWN((MAX(CM$2,$J20) + 'C'!$D$57) / (MIN(CM$2,$J20) + 'C'!$D$57),1),"") -> 1.3 | CN20: =IFERROR(ROUNDDOWN((MAX(CN$2,$J20) + 'C'!$D$57) / (MIN(CN$2,$J20) + 'C'!$D$57),1),"") -> 1.3 | CO20: =IFERROR(ROUNDDOWN((MAX(CO$2,$J20) + 'C'!$D$57) / (MIN(CO$2,$J20) + 'C'!$D$57),1),"") -> 1.3 | CP20: =IFERROR(ROUNDDOWN((MAX(CP$2,$J20) + 'C'!$D$57) / (MIN(CP$2,$J20) + 'C'!$D$57),1),"") -> 1.3 | CQ20: =IFERROR(ROUNDDOWN((MAX(CQ$2,$J20) + 'C'!$D$57) / (MIN(CQ$2,$J20) + 'C'!$D$57),1),"") -> 1.3 | CR20: =IFERROR(ROUNDDOWN((MAX(CR$2,$J20) + 'C'!$D$57) / (MIN(CR$2,$J20) + 'C'!$D$57),1),"") -> 1.3 | CS20: =IFERROR(ROUNDDOWN((MAX(CS$2,$J20) + 'C'!$D$57) / (MIN(CS$2,$J20) + 'C'!$D$57),1),"") -> 1.3 | CT20: =IFERROR(ROUNDDOWN((MAX(CT$2,$J20) + 'C'!$D$57) / (MIN(CT$2,$J20) + 'C'!$D$57),1),"") -> 1.3 | CU20: =IFERROR(ROUNDDOWN((MAX(CU$2,$J20) + 'C'!$D$57) / (MIN(CU$2,$J20) + 'C'!$D$57),1),"") -> 1.3
B21: #00ff00 | D21: -0.1620240137 | E21: 0 | F21: 7.504661624 | H21: Success BG0: Sufficient contrast against Content BG (used for text) | I21: #00CC00 | J21: 0.4322634399 | M21: 0 | N21: 255 | O21: 0 | Q21: 0 | R21: 1 | S21: 0 | U21: =IF($Q21 > 'C'!$D$33,((($Q21 + 'C'!$D$30) / 'C'!$D$31)) ^ 'C'!$D$32,($Q21 / 'C'!$D$29)) -> 0 | V21: =IF($R21 > 'C'!$D$33,((($R21 + 'C'!$D$30) / 'C'!$D$31)) ^ 'C'!$D$32,($R21 / 'C'!$D$29)) -> 1 | W21: =IF($S21 > 'C'!$D$33,((($S21 + 'C'!$D$30) / 'C'!$D$31)) ^ 'C'!$D$32,($S21 / 'C'!$D$29)) -> 0 | Y21: =('C'!$D$44 * $U21) +( 'C'!$D$45 * $V21) + ('C'!$D$46 * $W21) -> 0.7152 | Z21: =ROUND( ('C'!$D$69 * $U21) + ('C'!$E$69 * $V21) + ('C'!$F$69 * $W21), 'C'!$D$75) -> 0.53633254 | AA21: =ROUND( ('C'!$D$70 * $U21) + ('C'!$E$70 * $V21) + ('C'!$F$70 * $W21), 'C'!$D$75) -> 0.68069955 | AB21: =ROUND( ('C'!$D$71 * $U21) + ('C'!$E$71 * $V21) + ('C'!$F$71 * $W21), 'C'!$D$75) -> 0.28171884 | AD21: =ROUND( ('C'!$D$82 * ($Z21^'C'!$D$89)) + ('C'!$E$82 * ($AA21^'C'!$D$89)) + ('C'!$F$82 * ($AB21^'C'!$D$89)), 'C'!$D$88) -> 0.86643961 | AE21: =ROUND( ('C'!$D$83 * ($Z21^'C'!$D$89)) + ('C'!$E$83 * ($AA21^'C'!$D$89)) + ('C'!$F$83 * ($AB21^'C'!$D$89)), 'C'!$D$88) -> -0.23388757 | AF21: =ROUND( ('C'!$D$84 * ($Z21^'C'!$D$89)) + ('C'!$E$84 * ($AA21^'C'!$D$89)) + ('C'!$F$84 * ($AB21^'C'!$D$89)), 'C'!$D$88) -> 0.17949848 | AG21: 0.2948272371 | AH21: 142.4953384 | AJ21: 0.7044155963 | AK21: -0.255327877 | AL21: 0.1474136185 | AM21: 0.2948272371 | AN21: 150 | AP21: =ROUND( ('C'!$D$105 * $AJ21) + ('C'!$E$105 * $AK21) + ('C'!$F$105 * $AL21), 'C'!$D$111) ^ 'C'!$D$112 -> 0.2560865019 | AQ21: =ROUND( ('C'!$D$106 * $AJ21) + ('C'!$E$106 * $AK21) + ('C'!$F$106 * $AL21), 'C'!$D$111) ^ 'C'!$D$112 -> 0.3762972732 | AR21: =ROUND( ('C'!$D$107 * $AJ21) + ('C'!$E$107 * $AK21) + ('C'!$F$107 * $AL21), 'C'!$D$111) ^ 'C'!$D$112 -> 0.1547510897 | AT21: =MIN(1, MAX(0, ROUND( ('C'!$D$119 * $AP21) + ('C'!$E$119 * $AQ21) + ('C'!$F$119 * $AR21), 'C'!$D$125))) -> 0 | AU21: =MIN(1,MAX(0,ROUND( ('C'!$D$120 * $AP21) + ('C'!$E$120 * $AQ21) + ('C'!$F$120 * $AR21), 'C'!$D$125))) -> 0.60439519 | AV21: =MIN(1,MAX(0,ROUND( ('C'!$D$121 * $AP21) + ('C'!$E$121 * $AQ21) + ('C'!$F$121 * $AR21), 'C'!$D$125))) -> 0 | AX21: =('C'!$D$44 * $AT21) +( 'C'!$D$45 * $AU21) + ('C'!$D$46 * $AV21) -> 0.4322634399 | AY21: =IF($AT21>'C'!$D$142, ($AT21 ^ (1/'C'!$D$141) * 'C'!$D$140) - 'C'!$D$139, $AT21 * 'C'!$D$138) -> 0 | AZ21: =IF($AU21>'C'!$D$142, ($AU21 ^ (1/'C'!$D$141) * 'C'!$D$140) - 'C'!$D$139, $AU21 * 'C'!$D$138) -> 0.8003349327 | BA21: =IF($AV21>'C'!$D$142, ($AV21 ^ (1/'C'!$D$141) * 'C'!$D$140) - 'C'!$D$139, $AV21 * 'C'!$D$138) -> 0 | BC21: 0 | BD21: 204 | BE21: 0 | BH21: =IFERROR(ROUNDDOWN((MAX(BH$2,$J21) + 'C'!$D$57) / (MIN(BH$2,$J21) + 'C'!$D$57),1),"") -> 1.3 | BI21: =IFERROR(ROUNDDOWN((MAX(BI$2,$J21) + 'C'!$D$57) / (MIN(BI$2,$J21) + 'C'!$D$57),1),"") -> 1.2 | BJ21: =IFERROR(ROUNDDOWN((MAX(BJ$2,$J21) + 'C'!$D$57) / (MIN(BJ$2,$J21) + 'C'!$D$57),1),"") -> 1.3 | BK21: =IFERROR(ROUNDDOWN((MAX(BK$2,$J21) + 'C'!$D$57) / (MIN(BK$2,$J21) + 'C'!$D$57),1),"") -> 2.1 | BL21: =IFERROR(ROUNDDOWN((MAX(BL$2,$J21) + 'C'!$D$57) / (MIN(BL$2,$J21) + 'C'!$D$57),1),"") -> 9.6 | BM21: =IFERROR(ROUNDDOWN((MAX(BM$2,$J21) + 'C'!$D$57) / (MIN(BM$2,$J21) + 'C'!$D$57),1),"") -> 5.1 | BN21: =IFERROR(ROUNDDOWN((MAX(BN$2,$J21) + 'C'!$D$57) / (MIN(BN$2,$J21) + 'C'!$D$57),1),"") -> 8.6 | BO21: =IFERROR(ROUNDDOWN((MAX(BO$2,$J21) + 'C'!$D$57) / (MIN(BO$2,$J21) + 'C'!$D$57),1),"") -> 7 | BP21: =IFERROR(ROUNDDOWN((MAX(BP$2,$J21) + 'C'!$D$57) / (MIN(BP$2,$J21) + 'C'!$D$57),1),"") -> 1.3 | BQ21: =IFERROR(ROUNDDOWN((MAX(BQ$2,$J21) + 'C'!$D$57) / (MIN(BQ$2,$J21) + 'C'!$D$57),1),"") -> 1.7 | BR21: =IFERROR(ROUNDDOWN((MAX(BR$2,$J21) + 'C'!$D$57) / (MIN(BR$2,$J21) + 'C'!$D$57),1),"") -> 3.5 | BS21: =IFERROR(ROUNDDOWN((MAX(BS$2,$J21) + 'C'!$D$57) / (MIN(BS$2,$J21) + 'C'!$D$57),1),"") -> 1.8 | BT21: =IFERROR(ROUNDDOWN((MAX(BT$2,$J21) + 'C'!$D$57) / (MIN(BT$2,$J21) + 'C'!$D$57),1),"") -> 4 | BU21: =IFERROR(ROUNDDOWN((MAX(BU$2,$J21) + 'C'!$D$57) / (MIN(BU$2,$J21) + 'C'!$D$57),1),"") -> 2.3 | BV21: =IFERROR(ROUNDDOWN((MAX(BV$2,$J21) + 'C'!$D$57) / (MIN(BV$2,$J21) + 'C'!$D$57),1),"") -> 1.7 | BW21: =IFERROR(ROUNDDOWN((MAX(BW$2,$J21) + 'C'!$D$57) / (MIN(BW$2,$J21) + 'C'!$D$57),1),"") -> 1 | BX21: =IFERROR(ROUNDDOWN((MAX(BX$2,$J21) + 'C'!$D$57) / (MIN(BX$2,$J21) + 'C'!$D$57),1),"") -> 1.6 | BY21: =IFERROR(ROUNDDOWN((MAX(BY$2,$J21) + 'C'!$D$57) / (MIN(BY$2,$J21) + 'C'!$D$57),1),"") -> 1 | BZ21: =IFERROR(ROUNDDOWN((MAX(BZ$2,$J21) + 'C'!$D$57) / (MIN(BZ$2,$J21) + 'C'!$D$57),1),"") -> 4 | CA21: =IFERROR(ROUNDDOWN((MAX(CA$2,$J21) + 'C'!$D$57) / (MIN(CA$2,$J21) + 'C'!$D$57),1),"") -> 1.1 | CB21: =IFERROR(ROUNDDOWN((MAX(CB$2,$J21) + 'C'!$D$57) / (MIN(CB$2,$J21) + 'C'!$D$57),1),"") -> 1.6 | CC21: =IFERROR(ROUNDDOWN((MAX(CC$2,$J21) + 'C'!$D$57) / (MIN(CC$2,$J21) + 'C'!$D$57),1),"") -> 2.1 | CD21: =IFERROR(ROUNDDOWN((MAX(CD$2,$J21) + 'C'!$D$57) / (MIN(CD$2,$J21) + 'C'!$D$57),1),"") -> 2.1 | CE21: =IFERROR(ROUNDDOWN((MAX(CE$2,$J21) + 'C'!$D$57) / (MIN(CE$2,$J21) + 'C'!$D$57),1),"") -> 2.1 | CF21: =IFERROR(ROUNDDOWN((MAX(CF$2,$J21) + 'C'!$D$57) / (MIN(CF$2,$J21) + 'C'!$D$57),1),"") -> 2.1 | CG21: =IFERROR(ROUNDDOWN((MAX(CG$2,$J21) + 'C'!$D$57) / (MIN(CG$2,$J21) + 'C'!$D$57),1),"") -> 2.1 | CH21: =IFERROR(ROUNDDOWN((MAX(CH$2,$J21) + 'C'!$D$57) / (MIN(CH$2,$J21) + 'C'!$D$57),1),"") -> 2.1 | CI21: =IFERROR(ROUNDDOWN((MAX(CI$2,$J21) + 'C'!$D$57) / (MIN(CI$2,$J21) + 'C'!$D$57),1),"") -> 2.1 | CJ21: =IFERROR(ROUNDDOWN((MAX(CJ$2,$J21) + 'C'!$D$57) / (MIN(CJ$2,$J21) + 'C'!$D$57),1),"") -> 2.1 | CK21: =IFERROR(ROUNDDOWN((MAX(CK$2,$J21) + 'C'!$D$57) / (MIN(CK$2,$J21) + 'C'!$D$57),1),"") -> 2.1 | CL21: =IFERROR(ROUNDDOWN((MAX(CL$2,$J21) + 'C'!$D$57) / (MIN(CL$2,$J21) + 'C'!$D$57),1),"") -> 2.1 | CM21: =IFERROR(ROUNDDOWN((MAX(CM$2,$J21) + 'C'!$D$57) / (MIN(CM$2,$J21) + 'C'!$D$57),1),"") -> 2.1 | CN21: =IFERROR(ROUNDDOWN((MAX(CN$2,$J21) + 'C'!$D$57) / (MIN(CN$2,$J21) + 'C'!$D$57),1),"") -> 2.1 | CO21: =IFERROR(ROUNDDOWN((MAX(CO$2,$J21) + 'C'!$D$57) / (MIN(CO$2,$J21) + 'C'!$D$57),1),"") -> 2.1 | CP21: =IFERROR(ROUNDDOWN((MAX(CP$2,$J21) + 'C'!$D$57) / (MIN(CP$2,$J21) + 'C'!$D$57),1),"") -> 2.1 | CQ21: =IFERROR(ROUNDDOWN((MAX(CQ$2,$J21) + 'C'!$D$57) / (MIN(CQ$2,$J21) + 'C'!$D$57),1),"") -> 2.1 | CR21: =IFERROR(ROUNDDOWN((MAX(CR$2,$J21) + 'C'!$D$57) / (MIN(CR$2,$J21) + 'C'!$D$57),1),"") -> 2.1 | CS21: =IFERROR(ROUNDDOWN((MAX(CS$2,$J21) + 'C'!$D$57) / (MIN(CS$2,$J21) + 'C'!$D$57),1),"") -> 2.1 | CT21: =IFERROR(ROUNDDOWN((MAX(CT$2,$J21) + 'C'!$D$57) / (MIN(CT$2,$J21) + 'C'!$D$57),1),"") -> 2.1 | CU21: =IFERROR(ROUNDDOWN((MAX(CU$2,$J21) + 'C'!$D$57) / (MIN(CU$2,$J21) + 'C'!$D$57),1),"") -> 2.1
B22: #00ff00 | D22: -0.5061970335 | E22: 0 | F22: 0 | H22: Success BG1: Sufficient contrast against Primary Text | I22: #005800 | J22: 0.07035095554 | M22: 0 | N22: 255 | O22: 0 | Q22: 0 | R22: 1 | S22: 0 | U22: =IF($Q22 > 'C'!$D$33,((($Q22 + 'C'!$D$30) / 'C'!$D$31)) ^ 'C'!$D$32,($Q22 / 'C'!$D$29)) -> 0 | V22: =IF($R22 > 'C'!$D$33,((($R22 + 'C'!$D$30) / 'C'!$D$31)) ^ 'C'!$D$32,($R22 / 'C'!$D$29)) -> 1 | W22: =IF($S22 > 'C'!$D$33,((($S22 + 'C'!$D$30) / 'C'!$D$31)) ^ 'C'!$D$32,($S22 / 'C'!$D$29)) -> 0 | Y22: =('C'!$D$44 * $U22) +( 'C'!$D$45 * $V22) + ('C'!$D$46 * $W22) -> 0.7152 | Z22: =ROUND( ('C'!$D$69 * $U22) + ('C'!$E$69 * $V22) + ('C'!$F$69 * $W22), 'C'!$D$75) -> 0.53633254 | AA22: =ROUND( ('C'!$D$70 * $U22) + ('C'!$E$70 * $V22) + ('C'!$F$70 * $W22), 'C'!$D$75) -> 0.68069955 | AB22: =ROUND( ('C'!$D$71 * $U22) + ('C'!$E$71 * $V22) + ('C'!$F$71 * $W22), 'C'!$D$75) -> 0.28171884 | AD22: =ROUND( ('C'!$D$82 * ($Z22^'C'!$D$89)) + ('C'!$E$82 * ($AA22^'C'!$D$89)) + ('C'!$F$82 * ($AB22^'C'!$D$89)), 'C'!$D$88) -> 0.86643961 | AE22: =ROUND( ('C'!$D$83 * ($Z22^'C'!$D$89)) + ('C'!$E$83 * ($AA22^'C'!$D$89)) + ('C'!$F$83 * ($AB22^'C'!$D$89)), 'C'!$D$88) -> -0.23388757 | AF22: =ROUND( ('C'!$D$84 * ($Z22^'C'!$D$89)) + ('C'!$E$84 * ($AA22^'C'!$D$89)) + ('C'!$F$84 * ($AB22^'C'!$D$89)), 'C'!$D$88) -> 0.17949848 | AG22: 0.2948272371 | AH22: 142.4953384 | AJ22: 0.3602425765 | AK22: -0.23388757 | AL22: 0.17949848 | AM22: 0.2948272371 | AN22: 142.4953384 | AP22: =ROUND( ('C'!$D$105 * $AJ22) + ('C'!$E$105 * $AK22) + ('C'!$F$105 * $AL22), 'C'!$D$111) ^ 'C'!$D$112 -> 0.0287314942 | AQ22: =ROUND( ('C'!$D$106 * $AJ22) + ('C'!$E$106 * $AK22) + ('C'!$F$106 * $AL22), 'C'!$D$111) ^ 'C'!$D$112 -> 0.05209167845 | AR22: =ROUND( ('C'!$D$107 * $AJ22) + ('C'!$E$107 * $AK22) + ('C'!$F$107 * $AL22), 'C'!$D$111) ^ 'C'!$D$112 -> 0.003331456715 | AT22: =MIN(1, MAX(0, ROUND( ('C'!$D$119 * $AP22) + ('C'!$E$119 * $AQ22) + ('C'!$F$119 * $AR22), 'C'!$D$125))) -> 0 | AU22: =MIN(1,MAX(0,ROUND( ('C'!$D$120 * $AP22) + ('C'!$E$120 * $AQ22) + ('C'!$F$120 * $AR22), 'C'!$D$125))) -> 0.09836543 | AV22: =MIN(1,MAX(0,ROUND( ('C'!$D$121 * $AP22) + ('C'!$E$121 * $AQ22) + ('C'!$F$121 * $AR22), 'C'!$D$125))) -> 0 | AX22: =('C'!$D$44 * $AT22) +( 'C'!$D$45 * $AU22) + ('C'!$D$46 * $AV22) -> 0.07035095554 | AY22: =IF($AT22>'C'!$D$142, ($AT22 ^ (1/'C'!$D$141) * 'C'!$D$140) - 'C'!$D$139, $AT22 * 'C'!$D$138) -> 0 | AZ22: =IF($AU22>'C'!$D$142, ($AU22 ^ (1/'C'!$D$141) * 'C'!$D$140) - 'C'!$D$139, $AU22 * 'C'!$D$138) -> 0.3464241525 | BA22: =IF($AV22>'C'!$D$142, ($AV22 ^ (1/'C'!$D$141) * 'C'!$D$140) - 'C'!$D$139, $AV22 * 'C'!$D$138) -> 0 | BC22: 0 | BD22: 88 | BE22: 0 | BH22: =IFERROR(ROUNDDOWN((MAX(BH$2,$J22) + 'C'!$D$57) / (MIN(BH$2,$J22) + 'C'!$D$57),1),"") -> 5.3 | BI22: =IFERROR(ROUNDDOWN((MAX(BI$2,$J22) + 'C'!$D$57) / (MIN(BI$2,$J22) + 'C'!$D$57),1),"") -> 5.1 | BJ22: =IFERROR(ROUNDDOWN((MAX(BJ$2,$J22) + 'C'!$D$57) / (MIN(BJ$2,$J22) + 'C'!$D$57),1),"") -> 5.4 | BK22: =IFERROR(ROUNDDOWN((MAX(BK$2,$J22) + 'C'!$D$57) / (MIN(BK$2,$J22) + 'C'!$D$57),1),"") -> 8.7 | BL22: =IFERROR(ROUNDDOWN((MAX(BL$2,$J22) + 'C'!$D$57) / (MIN(BL$2,$J22) + 'C'!$D$57),1),"") -> 2.4 | BM22: =IFERROR(ROUNDDOWN((MAX(BM$2,$J22) + 'C'!$D$57) / (MIN(BM$2,$J22) + 'C'!$D$57),1),"") -> 1.2 | BN22: =IFERROR(ROUNDDOWN((MAX(BN$2,$J22) + 'C'!$D$57) / (MIN(BN$2,$J22) + 'C'!$D$57),1),"") -> 2.1 | BO22: =IFERROR(ROUNDDOWN((MAX(BO$2,$J22) + 'C'!$D$57) / (MIN(BO$2,$J22) + 'C'!$D$57),1),"") -> 1.7 | BP22: =IFERROR(ROUNDDOWN((MAX(BP$2,$J22) + 'C'!$D$57) / (MIN(BP$2,$J22) + 'C'!$D$57),1),"") -> 5.5 | BQ22: =IFERROR(ROUNDDOWN((MAX(BQ$2,$J22) + 'C'!$D$57) / (MIN(BQ$2,$J22) + 'C'!$D$57),1),"") -> 7 | BR22: =IFERROR(ROUNDDOWN((MAX(BR$2,$J22) + 'C'!$D$57) / (MIN(BR$2,$J22) + 'C'!$D$57),1),"") -> 1.1 | BS22: =IFERROR(ROUNDDOWN((MAX(BS$2,$J22) + 'C'!$D$57) / (MIN(BS$2,$J22) + 'C'!$D$57),1),"") -> 2.1 | BT22: =IFERROR(ROUNDDOWN((MAX(BT$2,$J22) + 'C'!$D$57) / (MIN(BT$2,$J22) + 'C'!$D$57),1),"") -> 1 | BU22: =IFERROR(ROUNDDOWN((MAX(BU$2,$J22) + 'C'!$D$57) / (MIN(BU$2,$J22) + 'C'!$D$57),1),"") -> 1.7 | BV22: =IFERROR(ROUNDDOWN((MAX(BV$2,$J22) + 'C'!$D$57) / (MIN(BV$2,$J22) + 'C'!$D$57),1),"") -> 2.2 | BW22: =IFERROR(ROUNDDOWN((MAX(BW$2,$J22) + 'C'!$D$57) / (MIN(BW$2,$J22) + 'C'!$D$57),1),"") -> 4 | BX22: =IFERROR(ROUNDDOWN((MAX(BX$2,$J22) + 'C'!$D$57) / (MIN(BX$2,$J22) + 'C'!$D$57),1),"") -> 6.4 | BY22: =IFERROR(ROUNDDOWN((MAX(BY$2,$J22) + 'C'!$D$57) / (MIN(BY$2,$J22) + 'C'!$D$57),1),"") -> 4 | BZ22: =IFERROR(ROUNDDOWN((MAX(BZ$2,$J22) + 'C'!$D$57) / (MIN(BZ$2,$J22) + 'C'!$D$57),1),"") -> 1 | CA22: =IFERROR(ROUNDDOWN((MAX(CA$2,$J22) + 'C'!$D$57) / (MIN(CA$2,$J22) + 'C'!$D$57),1),"") -> 4.6 | CB22: =IFERROR(ROUNDDOWN((MAX(CB$2,$J22) + 'C'!$D$57) / (MIN(CB$2,$J22) + 'C'!$D$57),1),"") -> 2.3 | CC22: =IFERROR(ROUNDDOWN((MAX(CC$2,$J22) + 'C'!$D$57) / (MIN(CC$2,$J22) + 'C'!$D$57),1),"") -> 8.7 | CD22: =IFERROR(ROUNDDOWN((MAX(CD$2,$J22) + 'C'!$D$57) / (MIN(CD$2,$J22) + 'C'!$D$57),1),"") -> 8.7 | CE22: =IFERROR(ROUNDDOWN((MAX(CE$2,$J22) + 'C'!$D$57) / (MIN(CE$2,$J22) + 'C'!$D$57),1),"") -> 8.7 | CF22: =IFERROR(ROUNDDOWN((MAX(CF$2,$J22) + 'C'!$D$57) / (MIN(CF$2,$J22) + 'C'!$D$57),1),"") -> 8.7 | CG22: =IFERROR(ROUNDDOWN((MAX(CG$2,$J22) + 'C'!$D$57) / (MIN(CG$2,$J22) + 'C'!$D$57),1),"") -> 8.7 | CH22: =IFERROR(ROUNDDOWN((MAX(CH$2,$J22) + 'C'!$D$57) / (MIN(CH$2,$J22) + 'C'!$D$57),1),"") -> 8.7 | CI22: =IFERROR(ROUNDDOWN((MAX(CI$2,$J22) + 'C'!$D$57) / (MIN(CI$2,$J22) + 'C'!$D$57),1),"") -> 8.7 | CJ22: =IFERROR(ROUNDDOWN((MAX(CJ$2,$J22) + 'C'!$D$57) / (MIN(CJ$2,$J22) + 'C'!$D$57),1),"") -> 8.7 | CK22: =IFERROR(ROUNDDOWN((MAX(CK$2,$J22) + 'C'!$D$57) / (MIN(CK$2,$J22) + 'C'!$D$57),1),"") -> 8.7 | CL22: =IFERROR(ROUNDDOWN((MAX(CL$2,$J22) + 'C'!$D$57) / (MIN(CL$2,$J22) + 'C'!$D$57),1),"") -> 8.7 | CM22: =IFERROR(ROUNDDOWN((MAX(CM$2,$J22) + 'C'!$D$57) / (MIN(CM$2,$J22) + 'C'!$D$57),1),"") -> 8.7 | CN22: =IFERROR(ROUNDDOWN((MAX(CN$2,$J22) + 'C'!$D$57) / (MIN(CN$2,$J22) + 'C'!$D$57),1),"") -> 8.7 | CO22: =IFERROR(ROUNDDOWN((MAX(CO$2,$J22) + 'C'!$D$57) / (MIN(CO$2,$J22) + 'C'!$D$57),1),"") -> 8.7 | CP22: =IFERROR(ROUNDDOWN((MAX(CP$2,$J22) + 'C'!$D$57) / (MIN(CP$2,$J22) + 'C'!$D$57),1),"") -> 8.7 | CQ22: =IFERROR(ROUNDDOWN((MAX(CQ$2,$J22) + 'C'!$D$57) / (MIN(CQ$2,$J22) + 'C'!$D$57),1),"") -> 8.7 | CR22: =IFERROR(ROUNDDOWN((MAX(CR$2,$J22) + 'C'!$D$57) / (MIN(CR$2,$J22) + 'C'!$D$57),1),"") -> 8.7 | CS22: =IFERROR(ROUNDDOWN((MAX(CS$2,$J22) + 'C'!$D$57) / (MIN(CS$2,$J22) + 'C'!$D$57),1),"") -> 8.7 | CT22: =IFERROR(ROUNDDOWN((MAX(CT$2,$J22) + 'C'!$D$57) / (MIN(CT$2,$J22) + 'C'!$D$57),1),"") -> 8.7 | CU22: =IFERROR(ROUNDDOWN((MAX(CU$2,$J22) + 'C'!$D$57) / (MIN(CU$2,$J22) + 'C'!$D$57),1),"") -> 8.7
B23: =I13 -> #E8E8E8 | D23: -0.1314285714 | E23: 0 | F23: 0 | H23: Logo Text Hover: Sufficient contrast against Page BG | I23: #BDBDBD | J23: 0.5111759434 | M23: 232 | N23: 232 | O23: 232 | Q23: 0.9098039216 | R23: 0.9098039216 | S23: 0.9098039216 | U23: =IF($Q23 > 'C'!$D$33,((($Q23 + 'C'!$D$30) / 'C'!$D$31)) ^ 'C'!$D$32,($Q23 / 'C'!$D$29)) -> 0.8069522577 | V23: =IF($R23 > 'C'!$D$33,((($R23 + 'C'!$D$30) / 'C'!$D$31)) ^ 'C'!$D$32,($R23 / 'C'!$D$29)) -> 0.8069522577 | W23: =IF($S23 > 'C'!$D$33,((($S23 + 'C'!$D$30) / 'C'!$D$31)) ^ 'C'!$D$32,($S23 / 'C'!$D$29)) -> 0.8069522577 | Y23: =('C'!$D$44 * $U23) +( 'C'!$D$45 * $V23) + ('C'!$D$46 * $W23) -> 0.8069522577 | Z23: =ROUND( ('C'!$D$69 * $U23) + ('C'!$E$69 * $V23) + ('C'!$F$69 * $W23), 'C'!$D$75) -> 0.80695226 | AA23: =ROUND( ('C'!$D$70 * $U23) + ('C'!$E$70 * $V23) + ('C'!$F$70 * $W23), 'C'!$D$75) -> 0.80695226 | AB23: =ROUND( ('C'!$D$71 * $U23) + ('C'!$E$71 * $V23) + ('C'!$F$71 * $W23), 'C'!$D$75) -> 0.80695226 | AD23: =ROUND( ('C'!$D$82 * ($Z23^'C'!$D$89)) + ('C'!$E$82 * ($AA23^'C'!$D$89)) + ('C'!$F$82 * ($AB23^'C'!$D$89)), 'C'!$D$88) -> 0.93099914 | AE23: =ROUND( ('C'!$D$83 * ($Z23^'C'!$D$89)) + ('C'!$E$83 * ($AA23^'C'!$D$89)) + ('C'!$F$83 * ($AB23^'C'!$D$89)), 'C'!$D$88) -> 0 | AF23: =ROUND( ('C'!$D$84 * ($Z23^'C'!$D$89)) + ('C'!$E$84 * ($AA23^'C'!$D$89)) + ('C'!$F$84 * ($AB23^'C'!$D$89)), 'C'!$D$88) -> 3e-08 | AG23: 3e-08 | AH23: 90 | AJ23: 0.7995705686 | AK23: 1.837722682e-24 | AL23: 3e-08 | AM23: 3e-08 | AN23: 90 | AP23: =ROUND( ('C'!$D$105 * $AJ23) + ('C'!$E$105 * $AK23) + ('C'!$F$105 * $AL23), 'C'!$D$111) ^ 'C'!$D$112 -> 0.5111759561 | AQ23: =ROUND( ('C'!$D$106 * $AJ23) + ('C'!$E$106 * $AK23) + ('C'!$F$106 * $AL23), 'C'!$D$111) ^ 'C'!$D$112 -> 0.5111759369 | AR23: =ROUND( ('C'!$D$107 * $AJ23) + ('C'!$E$107 * $AK23) + ('C'!$F$107 * $AL23), 'C'!$D$111) ^ 'C'!$D$112 -> 0.5111758602 | AT23: =MIN(1, MAX(0, ROUND( ('C'!$D$119 * $AP23) + ('C'!$E$119 * $AQ23) + ('C'!$F$119 * $AR23), 'C'!$D$125))) -> 0.511176 | AU23: =MIN(1,MAX(0,ROUND( ('C'!$D$120 * $AP23) + ('C'!$E$120 * $AQ23) + ('C'!$F$120 * $AR23), 'C'!$D$125))) -> 0.51117594 | AV23: =MIN(1,MAX(0,ROUND( ('C'!$D$121 * $AP23) + ('C'!$E$121 * $AQ23) + ('C'!$F$121 * $AR23), 'C'!$D$125))) -> 0.51117581 | AX23: =('C'!$D$44 * $AT23) +( 'C'!$D$45 * $AU23) + ('C'!$D$46 * $AV23) -> 0.5111759434 | AY23: =IF($AT23>'C'!$D$142, ($AT23 ^ (1/'C'!$D$141) * 'C'!$D$140) - 'C'!$D$139, $AT23 * 'C'!$D$138) -> 0.7426704113 | AZ23: =IF($AU23>'C'!$D$142, ($AU23 ^ (1/'C'!$D$141) * 'C'!$D$140) - 'C'!$D$139, $AU23 * 'C'!$D$138) -> 0.7426703723 | BA23: =IF($AV23>'C'!$D$142, ($AV23 ^ (1/'C'!$D$141) * 'C'!$D$140) - 'C'!$D$139, $AV23 * 'C'!$D$138) -> 0.7426702877 | BC23: 189 | BD23: 189 | BE23: 189 | BH23: =IFERROR(ROUNDDOWN((MAX(BH$2,$J23) + 'C'!$D$57) / (MIN(BH$2,$J23) + 'C'!$D$57),1),"") -> 1.1 | BI23: =IFERROR(ROUNDDOWN((MAX(BI$2,$J23) + 'C'!$D$57) / (MIN(BI$2,$J23) + 'C'!$D$57),1),"") -> 1 | BJ23: =IFERROR(ROUNDDOWN((MAX(BJ$2,$J23) + 'C'!$D$57) / (MIN(BJ$2,$J23) + 'C'!$D$57),1),"") -> 1.1 | BK23: =IFERROR(ROUNDDOWN((MAX(BK$2,$J23) + 'C'!$D$57) / (MIN(BK$2,$J23) + 'C'!$D$57),1),"") -> 1.8 | BL23: =IFERROR(ROUNDDOWN((MAX(BL$2,$J23) + 'C'!$D$57) / (MIN(BL$2,$J23) + 'C'!$D$57),1),"") -> 11.2 | BM23: =IFERROR(ROUNDDOWN((MAX(BM$2,$J23) + 'C'!$D$57) / (MIN(BM$2,$J23) + 'C'!$D$57),1),"") -> 6 | BN23: =IFERROR(ROUNDDOWN((MAX(BN$2,$J23) + 'C'!$D$57) / (MIN(BN$2,$J23) + 'C'!$D$57),1),"") -> 10.1 | BO23: =IFERROR(ROUNDDOWN((MAX(BO$2,$J23) + 'C'!$D$57) / (MIN(BO$2,$J23) + 'C'!$D$57),1),"") -> 8.2 | BP23: =IFERROR(ROUNDDOWN((MAX(BP$2,$J23) + 'C'!$D$57) / (MIN(BP$2,$J23) + 'C'!$D$57),1),"") -> 1.1 | BQ23: =IFERROR(ROUNDDOWN((MAX(BQ$2,$J23) + 'C'!$D$57) / (MIN(BQ$2,$J23) + 'C'!$D$57),1),"") -> 1.5 | BR23: =IFERROR(ROUNDDOWN((MAX(BR$2,$J23) + 'C'!$D$57) / (MIN(BR$2,$J23) + 'C'!$D$57),1),"") -> 4.1 | BS23: =IFERROR(ROUNDDOWN((MAX(BS$2,$J23) + 'C'!$D$57) / (MIN(BS$2,$J23) + 'C'!$D$57),1),"") -> 2.1 | BT23: =IFERROR(ROUNDDOWN((MAX(BT$2,$J23) + 'C'!$D$57) / (MIN(BT$2,$J23) + 'C'!$D$57),1),"") -> 4.6 | BU23: =IFERROR(ROUNDDOWN((MAX(BU$2,$J23) + 'C'!$D$57) / (MIN(BU$2,$J23) + 'C'!$D$57),1),"") -> 2.6 | BV23: =IFERROR(ROUNDDOWN((MAX(BV$2,$J23) + 'C'!$D$57) / (MIN(BV$2,$J23) + 'C'!$D$57),1),"") -> 2 | BW23: =IFERROR(ROUNDDOWN((MAX(BW$2,$J23) + 'C'!$D$57) / (MIN(BW$2,$J23) + 'C'!$D$57),1),"") -> 1.1 | BX23: =IFERROR(ROUNDDOWN((MAX(BX$2,$J23) + 'C'!$D$57) / (MIN(BX$2,$J23) + 'C'!$D$57),1),"") -> 1.3 | BY23: =IFERROR(ROUNDDOWN((MAX(BY$2,$J23) + 'C'!$D$57) / (MIN(BY$2,$J23) + 'C'!$D$57),1),"") -> 1.1 | BZ23: =IFERROR(ROUNDDOWN((MAX(BZ$2,$J23) + 'C'!$D$57) / (MIN(BZ$2,$J23) + 'C'!$D$57),1),"") -> 4.6 | CA23: =IFERROR(ROUNDDOWN((MAX(CA$2,$J23) + 'C'!$D$57) / (MIN(CA$2,$J23) + 'C'!$D$57),1),"") -> 1 | CB23: =IFERROR(ROUNDDOWN((MAX(CB$2,$J23) + 'C'!$D$57) / (MIN(CB$2,$J23) + 'C'!$D$57),1),"") -> 1.9 | CC23: =IFERROR(ROUNDDOWN((MAX(CC$2,$J23) + 'C'!$D$57) / (MIN(CC$2,$J23) + 'C'!$D$57),1),"") -> 1.8 | CD23: =IFERROR(ROUNDDOWN((MAX(CD$2,$J23) + 'C'!$D$57) / (MIN(CD$2,$J23) + 'C'!$D$57),1),"") -> 1.8 | CE23: =IFERROR(ROUNDDOWN((MAX(CE$2,$J23) + 'C'!$D$57) / (MIN(CE$2,$J23) + 'C'!$D$57),1),"") -> 1.8 | CF23: =IFERROR(ROUNDDOWN((MAX(CF$2,$J23) + 'C'!$D$57) / (MIN(CF$2,$J23) + 'C'!$D$57),1),"") -> 1.8 | CG23: =IFERROR(ROUNDDOWN((MAX(CG$2,$J23) + 'C'!$D$57) / (MIN(CG$2,$J23) + 'C'!$D$57),1),"") -> 1.8 | CH23: =IFERROR(ROUNDDOWN((MAX(CH$2,$J23) + 'C'!$D$57) / (MIN(CH$2,$J23) + 'C'!$D$57),1),"") -> 1.8 | CI23: =IFERROR(ROUNDDOWN((MAX(CI$2,$J23) + 'C'!$D$57) / (MIN(CI$2,$J23) + 'C'!$D$57),1),"") -> 1.8 | CJ23: =IFERROR(ROUNDDOWN((MAX(CJ$2,$J23) + 'C'!$D$57) / (MIN(CJ$2,$J23) + 'C'!$D$57),1),"") -> 1.8 | CK23: =IFERROR(ROUNDDOWN((MAX(CK$2,$J23) + 'C'!$D$57) / (MIN(CK$2,$J23) + 'C'!$D$57),1),"") -> 1.8 | CL23: =IFERROR(ROUNDDOWN((MAX(CL$2,$J23) + 'C'!$D$57) / (MIN(CL$2,$J23) + 'C'!$D$57),1),"") -> 1.8 | CM23: =IFERROR(ROUNDDOWN((MAX(CM$2,$J23) + 'C'!$D$57) / (MIN(CM$2,$J23) + 'C'!$D$57),1),"") -> 1.8 | CN23: =IFERROR(ROUNDDOWN((MAX(CN$2,$J23) + 'C'!$D$57) / (MIN(CN$2,$J23) + 'C'!$D$57),1),"") -> 1.8 | CO23: =IFERROR(ROUNDDOWN((MAX(CO$2,$J23) + 'C'!$D$57) / (MIN(CO$2,$J23) + 'C'!$D$57),1),"") -> 1.8 | CP23: =IFERROR(ROUNDDOWN((MAX(CP$2,$J23) + 'C'!$D$57) / (MIN(CP$2,$J23) + 'C'!$D$57),1),"") -> 1.8 | CQ23: =IFERROR(ROUNDDOWN((MAX(CQ$2,$J23) + 'C'!$D$57) / (MIN(CQ$2,$J23) + 'C'!$D$57),1),"") -> 1.8 | CR23: =IFERROR(ROUNDDOWN((MAX(CR$2,$J23) + 'C'!$D$57) / (MIN(CR$2,$J23) + 'C'!$D$57),1),"") -> 1.8 | CS23: =IFERROR(ROUNDDOWN((MAX(CS$2,$J23) + 'C'!$D$57) / (MIN(CS$2,$J23) + 'C'!$D$57),1),"") -> 1.8 | CT23: =IFERROR(ROUNDDOWN((MAX(CT$2,$J23) + 'C'!$D$57) / (MIN(CT$2,$J23) + 'C'!$D$57),1),"") -> 1.8 | CU23: =IFERROR(ROUNDDOWN((MAX(CU$2,$J23) + 'C'!$D$57) / (MIN(CU$2,$J23) + 'C'!$D$57),1),"") -> 1.8
B24: #000000 | D24: 0.6176 | E24: 0 | F24: 0 | H24: Logo Text: Sufficient contrast against Page BG (non text) | I24: #858585 | J24: 0.23557102 | M24: 0 | N24: 0 | O24: 0 | Q24: 0 | R24: 0 | S24: 0 | U24: =IF($Q24 > 'C'!$D$33,((($Q24 + 'C'!$D$30) / 'C'!$D$31)) ^ 'C'!$D$32,($Q24 / 'C'!$D$29)) -> 0 | V24: =IF($R24 > 'C'!$D$33,((($R24 + 'C'!$D$30) / 'C'!$D$31)) ^ 'C'!$D$32,($R24 / 'C'!$D$29)) -> 0 | W24: =IF($S24 > 'C'!$D$33,((($S24 + 'C'!$D$30) / 'C'!$D$31)) ^ 'C'!$D$32,($S24 / 'C'!$D$29)) -> 0 | Y24: =('C'!$D$44 * $U24) +( 'C'!$D$45 * $V24) + ('C'!$D$46 * $W24) -> 0 | Z24: =ROUND( ('C'!$D$69 * $U24) + ('C'!$E$69 * $V24) + ('C'!$F$69 * $W24), 'C'!$D$75) -> 0 | AA24: =ROUND( ('C'!$D$70 * $U24) + ('C'!$E$70 * $V24) + ('C'!$F$70 * $W24), 'C'!$D$75) -> 0 | AB24: =ROUND( ('C'!$D$71 * $U24) + ('C'!$E$71 * $V24) + ('C'!$F$71 * $W24), 'C'!$D$75) -> 0 | AD24: =ROUND( ('C'!$D$82 * ($Z24^'C'!$D$89)) + ('C'!$E$82 * ($AA24^'C'!$D$89)) + ('C'!$F$82 * ($AB24^'C'!$D$89)), 'C'!$D$88) -> 0 | AE24: =ROUND( ('C'!$D$83 * ($Z24^'C'!$D$89)) + ('C'!$E$83 * ($AA24^'C'!$D$89)) + ('C'!$F$83 * ($AB24^'C'!$D$89)), 'C'!$D$88) -> 0 | AF24: =ROUND( ('C'!$D$84 * ($Z24^'C'!$D$89)) + ('C'!$E$84 * ($AA24^'C'!$D$89)) + ('C'!$F$84 * ($AB24^'C'!$D$89)), 'C'!$D$88) -> 0 | AG24: 0 | AH24: 0 | AJ24: 0.6176 | AK24: 0 | AL24: 0 | AM24: 0 | AN24: 0 | AP24: =ROUND( ('C'!$D$105 * $AJ24) + ('C'!$E$105 * $AK24) + ('C'!$F$105 * $AL24), 'C'!$D$111) ^ 'C'!$D$112 -> 0.2355710198 | AQ24: =ROUND( ('C'!$D$106 * $AJ24) + ('C'!$E$106 * $AK24) + ('C'!$F$106 * $AL24), 'C'!$D$111) ^ 'C'!$D$112 -> 0.2355710198 | AR24: =ROUND( ('C'!$D$107 * $AJ24) + ('C'!$E$107 * $AK24) + ('C'!$F$107 * $AL24), 'C'!$D$111) ^ 'C'!$D$112 -> 0.2355710198 | AT24: =MIN(1, MAX(0, ROUND( ('C'!$D$119 * $AP24) + ('C'!$E$119 * $AQ24) + ('C'!$F$119 * $AR24), 'C'!$D$125))) -> 0.23557102 | AU24: =MIN(1,MAX(0,ROUND( ('C'!$D$120 * $AP24) + ('C'!$E$120 * $AQ24) + ('C'!$F$120 * $AR24), 'C'!$D$125))) -> 0.23557102 | AV24: =MIN(1,MAX(0,ROUND( ('C'!$D$121 * $AP24) + ('C'!$E$121 * $AQ24) + ('C'!$F$121 * $AR24), 'C'!$D$125))) -> 0.23557102 | AX24: =('C'!$D$44 * $AT24) +( 'C'!$D$45 * $AU24) + ('C'!$D$46 * $AV24) -> 0.23557102 | AY24: =IF($AT24>'C'!$D$142, ($AT24 ^ (1/'C'!$D$141) * 'C'!$D$140) - 'C'!$D$139, $AT24 * 'C'!$D$138) -> 0.5226124811 | AZ24: =IF($AU24>'C'!$D$142, ($AU24 ^ (1/'C'!$D$141) * 'C'!$D$140) - 'C'!$D$139, $AU24 * 'C'!$D$138) -> 0.5226124811 | BA24: =IF($AV24>'C'!$D$142, ($AV24 ^ (1/'C'!$D$141) * 'C'!$D$140) - 'C'!$D$139, $AV24 * 'C'!$D$138) -> 0.5226124811 | BC24: 133 | BD24: 133 | BE24: 133 | BH24: =IFERROR(ROUNDDOWN((MAX(BH$2,$J24) + 'C'!$D$57) / (MIN(BH$2,$J24) + 'C'!$D$57),1),"") -> 2.2 | BI24: =IFERROR(ROUNDDOWN((MAX(BI$2,$J24) + 'C'!$D$57) / (MIN(BI$2,$J24) + 'C'!$D$57),1),"") -> 2.1 | BJ24: =IFERROR(ROUNDDOWN((MAX(BJ$2,$J24) + 'C'!$D$57) / (MIN(BJ$2,$J24) + 'C'!$D$57),1),"") -> 2.3 | BK24: =IFERROR(ROUNDDOWN((MAX(BK$2,$J24) + 'C'!$D$57) / (MIN(BK$2,$J24) + 'C'!$D$57),1),"") -> 3.6 | BL24: =IFERROR(ROUNDDOWN((MAX(BL$2,$J24) + 'C'!$D$57) / (MIN(BL$2,$J24) + 'C'!$D$57),1),"") -> 5.7 | BM24: =IFERROR(ROUNDDOWN((MAX(BM$2,$J24) + 'C'!$D$57) / (MIN(BM$2,$J24) + 'C'!$D$57),1),"") -> 3 | BN24: =IFERROR(ROUNDDOWN((MAX(BN$2,$J24) + 'C'!$D$57) / (MIN(BN$2,$J24) + 'C'!$D$57),1),"") -> 5.1 | BO24: =IFERROR(ROUNDDOWN((MAX(BO$2,$J24) + 'C'!$D$57) / (MIN(BO$2,$J24) + 'C'!$D$57),1),"") -> 4.1 | BP24: =IFERROR(ROUNDDOWN((MAX(BP$2,$J24) + 'C'!$D$57) / (MIN(BP$2,$J24) + 'C'!$D$57),1),"") -> 2.3 | BQ24: =IFERROR(ROUNDDOWN((MAX(BQ$2,$J24) + 'C'!$D$57) / (MIN(BQ$2,$J24) + 'C'!$D$57),1),"") -> 2.9 | BR24: =IFERROR(ROUNDDOWN((MAX(BR$2,$J24) + 'C'!$D$57) / (MIN(BR$2,$J24) + 'C'!$D$57),1),"") -> 2.1 | BS24: =IFERROR(ROUNDDOWN((MAX(BS$2,$J24) + 'C'!$D$57) / (MIN(BS$2,$J24) + 'C'!$D$57),1),"") -> 1 | BT24: =IFERROR(ROUNDDOWN((MAX(BT$2,$J24) + 'C'!$D$57) / (MIN(BT$2,$J24) + 'C'!$D$57),1),"") -> 2.3 | BU24: =IFERROR(ROUNDDOWN((MAX(BU$2,$J24) + 'C'!$D$57) / (MIN(BU$2,$J24) + 'C'!$D$57),1),"") -> 1.3 | BV24: =IFERROR(ROUNDDOWN((MAX(BV$2,$J24) + 'C'!$D$57) / (MIN(BV$2,$J24) + 'C'!$D$57),1),"") -> 1 | BW24: =IFERROR(ROUNDDOWN((MAX(BW$2,$J24) + 'C'!$D$57) / (MIN(BW$2,$J24) + 'C'!$D$57),1),"") -> 1.6 | BX24: =IFERROR(ROUNDDOWN((MAX(BX$2,$J24) + 'C'!$D$57) / (MIN(BX$2,$J24) + 'C'!$D$57),1),"") -> 2.7 | BY24: =IFERROR(ROUNDDOWN((MAX(BY$2,$J24) + 'C'!$D$57) / (MIN(BY$2,$J24) + 'C'!$D$57),1),"") -> 1.6 | BZ24: =IFERROR(ROUNDDOWN((MAX(BZ$2,$J24) + 'C'!$D$57) / (MIN(BZ$2,$J24) + 'C'!$D$57),1),"") -> 2.3 | CA24: =IFERROR(ROUNDDOWN((MAX(CA$2,$J24) + 'C'!$D$57) / (MIN(CA$2,$J24) + 'C'!$D$57),1),"") -> 1.9 | CB24: =IFERROR(ROUNDDOWN((MAX(CB$2,$J24) + 'C'!$D$57) / (MIN(CB$2,$J24) + 'C'!$D$57),1),"") -> 1 | CC24: =IFERROR(ROUNDDOWN((MAX(CC$2,$J24) + 'C'!$D$57) / (MIN(CC$2,$J24) + 'C'!$D$57),1),"") -> 3.6 | CD24: =IFERROR(ROUNDDOWN((MAX(CD$2,$J24) + 'C'!$D$57) / (MIN(CD$2,$J24) + 'C'!$D$57),1),"") -> 3.6 | CE24: =IFERROR(ROUNDDOWN((MAX(CE$2,$J24) + 'C'!$D$57) / (MIN(CE$2,$J24) + 'C'!$D$57),1),"") -> 3.6 | CF24: =IFERROR(ROUNDDOWN((MAX(CF$2,$J24) + 'C'!$D$57) / (MIN(CF$2,$J24) + 'C'!$D$57),1),"") -> 3.6 | CG24: =IFERROR(ROUNDDOWN((MAX(CG$2,$J24) + 'C'!$D$57) / (MIN(CG$2,$J24) + 'C'!$D$57),1),"") -> 3.6 | CH24: =IFERROR(ROUNDDOWN((MAX(CH$2,$J24) + 'C'!$D$57) / (MIN(CH$2,$J24) + 'C'!$D$57),1),"") -> 3.6 | CI24: =IFERROR(ROUNDDOWN((MAX(CI$2,$J24) + 'C'!$D$57) / (MIN(CI$2,$J24) + 'C'!$D$57),1),"") -> 3.6 | CJ24: =IFERROR(ROUNDDOWN((MAX(CJ$2,$J24) + 'C'!$D$57) / (MIN(CJ$2,$J24) + 'C'!$D$57),1),"") -> 3.6 | CK24: =IFERROR(ROUNDDOWN((MAX(CK$2,$J24) + 'C'!$D$57) / (MIN(CK$2,$J24) + 'C'!$D$57),1),"") -> 3.6 | CL24: =IFERROR(ROUNDDOWN((MAX(CL$2,$J24) + 'C'!$D$57) / (MIN(CL$2,$J24) + 'C'!$D$57),1),"") -> 3.6 | CM24: =IFERROR(ROUNDDOWN((MAX(CM$2,$J24) + 'C'!$D$57) / (MIN(CM$2,$J24) + 'C'!$D$57),1),"") -> 3.6 | CN24: =IFERROR(ROUNDDOWN((MAX(CN$2,$J24) + 'C'!$D$57) / (MIN(CN$2,$J24) + 'C'!$D$57),1),"") -> 3.6 | CO24: =IFERROR(ROUNDDOWN((MAX(CO$2,$J24) + 'C'!$D$57) / (MIN(CO$2,$J24) + 'C'!$D$57),1),"") -> 3.6 | CP24: =IFERROR(ROUNDDOWN((MAX(CP$2,$J24) + 'C'!$D$57) / (MIN(CP$2,$J24) + 'C'!$D$57),1),"") -> 3.6 | CQ24: =IFERROR(ROUNDDOWN((MAX(CQ$2,$J24) + 'C'!$D$57) / (MIN(CQ$2,$J24) + 'C'!$D$57),1),"") -> 3.6 | CR24: =IFERROR(ROUNDDOWN((MAX(CR$2,$J24) + 'C'!$D$57) / (MIN(CR$2,$J24) + 'C'!$D$57),1),"") -> 3.6 | CS24: =IFERROR(ROUNDDOWN((MAX(CS$2,$J24) + 'C'!$D$57) / (MIN(CS$2,$J24) + 'C'!$D$57),1),"") -> 3.6 | CT24: =IFERROR(ROUNDDOWN((MAX(CT$2,$J24) + 'C'!$D$57) / (MIN(CT$2,$J24) + 'C'!$D$57),1),"") -> 3.6 | CU24: =IFERROR(ROUNDDOWN((MAX(CU$2,$J24) + 'C'!$D$57) / (MIN(CU$2,$J24) + 'C'!$D$57),1),"") -> 3.6
B25: #ffffff | D25: 0 | E25: 0 | F25: 0 | I25: #FFFFFF | J25: 0.9999999648 | M25: 255 | N25: 255 | O25: 255 | Q25: 1 | R25: 1 | S25: 1 | U25: =IF($Q25 > 'C'!$D$33,((($Q25 + 'C'!$D$30) / 'C'!$D$31)) ^ 'C'!$D$32,($Q25 / 'C'!$D$29)) -> 1 | V25: =IF($R25 > 'C'!$D$33,((($R25 + 'C'!$D$30) / 'C'!$D$31)) ^ 'C'!$D$32,($R25 / 'C'!$D$29)) -> 1 | W25: =IF($S25 > 'C'!$D$33,((($S25 + 'C'!$D$30) / 'C'!$D$31)) ^ 'C'!$D$32,($S25 / 'C'!$D$29)) -> 1 | Y25: =('C'!$D$44 * $U25) +( 'C'!$D$45 * $V25) + ('C'!$D$46 * $W25) -> 1 | Z25: =ROUND( ('C'!$D$69 * $U25) + ('C'!$E$69 * $V25) + ('C'!$F$69 * $W25), 'C'!$D$75) -> 1 | AA25: =ROUND( ('C'!$D$70 * $U25) + ('C'!$E$70 * $V25) + ('C'!$F$70 * $W25), 'C'!$D$75) -> 1 | AB25: =ROUND( ('C'!$D$71 * $U25) + ('C'!$E$71 * $V25) + ('C'!$F$71 * $W25), 'C'!$D$75) -> 1 | AD25: =ROUND( ('C'!$D$82 * ($Z25^'C'!$D$89)) + ('C'!$E$82 * ($AA25^'C'!$D$89)) + ('C'!$F$82 * ($AB25^'C'!$D$89)), 'C'!$D$88) -> 0.99999999 | AE25: =ROUND( ('C'!$D$83 * ($Z25^'C'!$D$89)) + ('C'!$E$83 * ($AA25^'C'!$D$89)) + ('C'!$F$83 * ($AB25^'C'!$D$89)), 'C'!$D$88) -> 0 | AF25: =ROUND( ('C'!$D$84 * ($Z25^'C'!$D$89)) + ('C'!$E$84 * ($AA25^'C'!$D$89)) + ('C'!$F$84 * ($AB25^'C'!$D$89)), 'C'!$D$88) -> 4e-08 | AG25: 4e-08 | AH25: 90 | AJ25: 0.99999999 | AK25: 2.45029691e-24 | AL25: 4e-08 | AM25: 4e-08 | AN25: 90 | AP25: =ROUND( ('C'!$D$105 * $AJ25) + ('C'!$E$105 * $AK25) + ('C'!$F$105 * $AL25), 'C'!$D$111) ^ 'C'!$D$112 -> 1 | AQ25: =ROUND( ('C'!$D$106 * $AJ25) + ('C'!$E$106 * $AK25) + ('C'!$F$106 * $AL25), 'C'!$D$111) ^ 'C'!$D$112 -> 0.99999997 | AR25: =ROUND( ('C'!$D$107 * $AJ25) + ('C'!$E$107 * $AK25) + ('C'!$F$107 * $AL25), 'C'!$D$111) ^ 'C'!$D$112 -> 0.99999982 | AT25: =MIN(1, MAX(0, ROUND( ('C'!$D$119 * $AP25) + ('C'!$E$119 * $AQ25) + ('C'!$F$119 * $AR25), 'C'!$D$125))) -> 1 | AU25: =MIN(1,MAX(0,ROUND( ('C'!$D$120 * $AP25) + ('C'!$E$120 * $AQ25) + ('C'!$F$120 * $AR25), 'C'!$D$125))) -> 0.99999998 | AV25: =MIN(1,MAX(0,ROUND( ('C'!$D$121 * $AP25) + ('C'!$E$121 * $AQ25) + ('C'!$F$121 * $AR25), 'C'!$D$125))) -> 0.99999971 | AX25: =('C'!$D$44 * $AT25) +( 'C'!$D$45 * $AU25) + ('C'!$D$46 * $AV25) -> 0.9999999648 | AY25: =IF($AT25>'C'!$D$142, ($AT25 ^ (1/'C'!$D$141) * 'C'!$D$140) - 'C'!$D$139, $AT25 * 'C'!$D$138) -> 1 | AZ25: =IF($AU25>'C'!$D$142, ($AU25 ^ (1/'C'!$D$141) * 'C'!$D$140) - 'C'!$D$139, $AU25 * 'C'!$D$138) -> 0.9999999912 | BA25: =IF($AV25>'C'!$D$142, ($AV25 ^ (1/'C'!$D$141) * 'C'!$D$140) - 'C'!$D$139, $AV25 * 'C'!$D$138) -> 0.9999998725 | BC25: 255 | BD25: 255 | BE25: 255 | BG25: =myHex($I25) ->  | BH25: =IFERROR(ROUNDDOWN((MAX(BH$2,$J25) + 'C'!$D$57) / (MIN(BH$2,$J25) + 'C'!$D$57),1),"") -> 1.6 | BI25: =IFERROR(ROUNDDOWN((MAX(BI$2,$J25) + 'C'!$D$57) / (MIN(BI$2,$J25) + 'C'!$D$57),1),"") -> 1.7 | BJ25: =IFERROR(ROUNDDOWN((MAX(BJ$2,$J25) + 'C'!$D$57) / (MIN(BJ$2,$J25) + 'C'!$D$57),1),"") -> 1.5 | BK25: =IFERROR(ROUNDDOWN((MAX(BK$2,$J25) + 'C'!$D$57) / (MIN(BK$2,$J25) + 'C'!$D$57),1),"") -> 1 | BL25: =IFERROR(ROUNDDOWN((MAX(BL$2,$J25) + 'C'!$D$57) / (MIN(BL$2,$J25) + 'C'!$D$57),1),"") -> 20.9 | BM25: =IFERROR(ROUNDDOWN((MAX(BM$2,$J25) + 'C'!$D$57) / (MIN(BM$2,$J25) + 'C'!$D$57),1),"") -> 11.2 | BN25: =IFERROR(ROUNDDOWN((MAX(BN$2,$J25) + 'C'!$D$57) / (MIN(BN$2,$J25) + 'C'!$D$57),1),"") -> 18.9 | BO25: =IFERROR(ROUNDDOWN((MAX(BO$2,$J25) + 'C'!$D$57) / (MIN(BO$2,$J25) + 'C'!$D$57),1),"") -> 15.3 | BP25: =IFERROR(ROUNDDOWN((MAX(BP$2,$J25) + 'C'!$D$57) / (MIN(BP$2,$J25) + 'C'!$D$57),1),"") -> 1.5 | BQ25: =IFERROR(ROUNDDOWN((MAX(BQ$2,$J25) + 'C'!$D$57) / (MIN(BQ$2,$J25) + 'C'!$D$57),1),"") -> 1.2 | BR25: =IFERROR(ROUNDDOWN((MAX(BR$2,$J25) + 'C'!$D$57) / (MIN(BR$2,$J25) + 'C'!$D$57),1),"") -> 7.7 | BS25: =IFERROR(ROUNDDOWN((MAX(BS$2,$J25) + 'C'!$D$57) / (MIN(BS$2,$J25) + 'C'!$D$57),1),"") -> 3.9 | BT25: =IFERROR(ROUNDDOWN((MAX(BT$2,$J25) + 'C'!$D$57) / (MIN(BT$2,$J25) + 'C'!$D$57),1),"") -> 8.7 | BU25: =IFERROR(ROUNDDOWN((MAX(BU$2,$J25) + 'C'!$D$57) / (MIN(BU$2,$J25) + 'C'!$D$57),1),"") -> 5 | BV25: =IFERROR(ROUNDDOWN((MAX(BV$2,$J25) + 'C'!$D$57) / (MIN(BV$2,$J25) + 'C'!$D$57),1),"") -> 3.8 | BW25: =IFERROR(ROUNDDOWN((MAX(BW$2,$J25) + 'C'!$D$57) / (MIN(BW$2,$J25) + 'C'!$D$57),1),"") -> 2.1 | BX25: =IFERROR(ROUNDDOWN((MAX(BX$2,$J25) + 'C'!$D$57) / (MIN(BX$2,$J25) + 'C'!$D$57),1),"") -> 1.3 | BY25: =IFERROR(ROUNDDOWN((MAX(BY$2,$J25) + 'C'!$D$57) / (MIN(BY$2,$J25) + 'C'!$D$57),1),"") -> 2.1 | BZ25: =IFERROR(ROUNDDOWN((MAX(BZ$2,$J25) + 'C'!$D$57) / (MIN(BZ$2,$J25) + 'C'!$D$57),1),"") -> 8.7 | CA25: =IFERROR(ROUNDDOWN((MAX(CA$2,$J25) + 'C'!$D$57) / (MIN(CA$2,$J25) + 'C'!$D$57),1),"") -> 1.8 | CB25: =IFERROR(ROUNDDOWN((MAX(CB$2,$J25) + 'C'!$D$57) / (MIN(CB$2,$J25) + 'C'!$D$57),1),"") -> 3.6 | CC25: =IFERROR(ROUNDDOWN((MAX(CC$2,$J25) + 'C'!$D$57) / (MIN(CC$2,$J25) + 'C'!$D$57),1),"") -> 1 | CD25: =IFERROR(ROUNDDOWN((MAX(CD$2,$J25) + 'C'!$D$57) / (MIN(CD$2,$J25) + 'C'!$D$57),1),"") -> 1 | CE25: =IFERROR(ROUNDDOWN((MAX(CE$2,$J25) + 'C'!$D$57) / (MIN(CE$2,$J25) + 'C'!$D$57),1),"") -> 1 | CF25: =IFERROR(ROUNDDOWN((MAX(CF$2,$J25) + 'C'!$D$57) / (MIN(CF$2,$J25) + 'C'!$D$57),1),"") -> 1 | CG25: =IFERROR(ROUNDDOWN((MAX(CG$2,$J25) + 'C'!$D$57) / (MIN(CG$2,$J25) + 'C'!$D$57),1),"") -> 1 | CH25: =IFERROR(ROUNDDOWN((MAX(CH$2,$J25) + 'C'!$D$57) / (MIN(CH$2,$J25) + 'C'!$D$57),1),"") -> 1 | CI25: =IFERROR(ROUNDDOWN((MAX(CI$2,$J25) + 'C'!$D$57) / (MIN(CI$2,$J25) + 'C'!$D$57),1),"") -> 1 | CJ25: =IFERROR(ROUNDDOWN((MAX(CJ$2,$J25) + 'C'!$D$57) / (MIN(CJ$2,$J25) + 'C'!$D$57),1),"") -> 1 | CK25: =IFERROR(ROUNDDOWN((MAX(CK$2,$J25) + 'C'!$D$57) / (MIN(CK$2,$J25) + 'C'!$D$57),1),"") -> 1 | CL25: =IFERROR(ROUNDDOWN((MAX(CL$2,$J25) + 'C'!$D$57) / (MIN(CL$2,$J25) + 'C'!$D$57),1),"") -> 1 | CM25: =IFERROR(ROUNDDOWN((MAX(CM$2,$J25) + 'C'!$D$57) / (MIN(CM$2,$J25) + 'C'!$D$57),1),"") -> 1 | CN25: =IFERROR(ROUNDDOWN((MAX(CN$2,$J25) + 'C'!$D$57) / (MIN(CN$2,$J25) + 'C'!$D$57),1),"") -> 1 | CO25: =IFERROR(ROUNDDOWN((MAX(CO$2,$J25) + 'C'!$D$57) / (MIN(CO$2,$J25) + 'C'!$D$57),1),"") -> 1 | CP25: =IFERROR(ROUNDDOWN((MAX(CP$2,$J25) + 'C'!$D$57) / (MIN(CP$2,$J25) + 'C'!$D$57),1),"") -> 1 | CQ25: =IFERROR(ROUNDDOWN((MAX(CQ$2,$J25) + 'C'!$D$57) / (MIN(CQ$2,$J25) + 'C'!$D$57),1),"") -> 1 | CR25: =IFERROR(ROUNDDOWN((MAX(CR$2,$J25) + 'C'!$D$57) / (MIN(CR$2,$J25) + 'C'!$D$57),1),"") -> 1 | CS25: =IFERROR(ROUNDDOWN((MAX(CS$2,$J25) + 'C'!$D$57) / (MIN(CS$2,$J25) + 'C'!$D$57),1),"") -> 1 | CT25: =IFERROR(ROUNDDOWN((MAX(CT$2,$J25) + 'C'!$D$57) / (MIN(CT$2,$J25) + 'C'!$D$57),1),"") -> 1 | CU25: =IFERROR(ROUNDDOWN((MAX(CU$2,$J25) + 'C'!$D$57) / (MIN(CU$2,$J25) + 'C'!$D$57),1),"") -> 1
B26: #ffffff | D26: 0 | E26: 0 | F26: 0 | I26: #FFFFFF | J26: 0.9999999648 | M26: 255 | N26: 255 | O26: 255 | Q26: 1 | R26: 1 | S26: 1 | U26: =IF($Q26 > 'C'!$D$33,((($Q26 + 'C'!$D$30) / 'C'!$D$31)) ^ 'C'!$D$32,($Q26 / 'C'!$D$29)) -> 1 | V26: =IF($R26 > 'C'!$D$33,((($R26 + 'C'!$D$30) / 'C'!$D$31)) ^ 'C'!$D$32,($R26 / 'C'!$D$29)) -> 1 | W26: =IF($S26 > 'C'!$D$33,((($S26 + 'C'!$D$30) / 'C'!$D$31)) ^ 'C'!$D$32,($S26 / 'C'!$D$29)) -> 1 | Y26: =('C'!$D$44 * $U26) +( 'C'!$D$45 * $V26) + ('C'!$D$46 * $W26) -> 1 | Z26: =ROUND( ('C'!$D$69 * $U26) + ('C'!$E$69 * $V26) + ('C'!$F$69 * $W26), 'C'!$D$75) -> 1 | AA26: =ROUND( ('C'!$D$70 * $U26) + ('C'!$E$70 * $V26) + ('C'!$F$70 * $W26), 'C'!$D$75) -> 1 | AB26: =ROUND( ('C'!$D$71 * $U26) + ('C'!$E$71 * $V26) + ('C'!$F$71 * $W26), 'C'!$D$75) -> 1 | AD26: =ROUND( ('C'!$D$82 * ($Z26^'C'!$D$89)) + ('C'!$E$82 * ($AA26^'C'!$D$89)) + ('C'!$F$82 * ($AB26^'C'!$D$89)), 'C'!$D$88) -> 0.99999999 | AE26: =ROUND( ('C'!$D$83 * ($Z26^'C'!$D$89)) + ('C'!$E$83 * ($AA26^'C'!$D$89)) + ('C'!$F$83 * ($AB26^'C'!$D$89)), 'C'!$D$88) -> 0 | AF26: =ROUND( ('C'!$D$84 * ($Z26^'C'!$D$89)) + ('C'!$E$84 * ($AA26^'C'!$D$89)) + ('C'!$F$84 * ($AB26^'C'!$D$89)), 'C'!$D$88) -> 4e-08 | AG26: 4e-08 | AH26: 90 | AJ26: 0.99999999 | AK26: 2.45029691e-24 | AL26: 4e-08 | AM26: 4e-08 | AN26: 90 | AP26: =ROUND( ('C'!$D$105 * $AJ26) + ('C'!$E$105 * $AK26) + ('C'!$F$105 * $AL26), 'C'!$D$111) ^ 'C'!$D$112 -> 1 | AQ26: =ROUND( ('C'!$D$106 * $AJ26) + ('C'!$E$106 * $AK26) + ('C'!$F$106 * $AL26), 'C'!$D$111) ^ 'C'!$D$112 -> 0.99999997 | AR26: =ROUND( ('C'!$D$107 * $AJ26) + ('C'!$E$107 * $AK26) + ('C'!$F$107 * $AL26), 'C'!$D$111) ^ 'C'!$D$112 -> 0.99999982 | AT26: =MIN(1, MAX(0, ROUND( ('C'!$D$119 * $AP26) + ('C'!$E$119 * $AQ26) + ('C'!$F$119 * $AR26), 'C'!$D$125))) -> 1 | AU26: =MIN(1,MAX(0,ROUND( ('C'!$D$120 * $AP26) + ('C'!$E$120 * $AQ26) + ('C'!$F$120 * $AR26), 'C'!$D$125))) -> 0.99999998 | AV26: =MIN(1,MAX(0,ROUND( ('C'!$D$121 * $AP26) + ('C'!$E$121 * $AQ26) + ('C'!$F$121 * $AR26), 'C'!$D$125))) -> 0.99999971 | AX26: =('C'!$D$44 * $AT26) +( 'C'!$D$45 * $AU26) + ('C'!$D$46 * $AV26) -> 0.9999999648 | AY26: =IF($AT26>'C'!$D$142, ($AT26 ^ (1/'C'!$D$141) * 'C'!$D$140) - 'C'!$D$139, $AT26 * 'C'!$D$138) -> 1 | AZ26: =IF($AU26>'C'!$D$142, ($AU26 ^ (1/'C'!$D$141) * 'C'!$D$140) - 'C'!$D$139, $AU26 * 'C'!$D$138) -> 0.9999999912 | BA26: =IF($AV26>'C'!$D$142, ($AV26 ^ (1/'C'!$D$141) * 'C'!$D$140) - 'C'!$D$139, $AV26 * 'C'!$D$138) -> 0.9999998725 | BC26: 255 | BD26: 255 | BE26: 255 | BH26: =IFERROR(ROUNDDOWN((MAX(BH$2,$J26) + 'C'!$D$57) / (MIN(BH$2,$J26) + 'C'!$D$57),1),"") -> 1.6 | BI26: =IFERROR(ROUNDDOWN((MAX(BI$2,$J26) + 'C'!$D$57) / (MIN(BI$2,$J26) + 'C'!$D$57),1),"") -> 1.7 | BJ26: =IFERROR(ROUNDDOWN((MAX(BJ$2,$J26) + 'C'!$D$57) / (MIN(BJ$2,$J26) + 'C'!$D$57),1),"") -> 1.5 | BK26: =IFERROR(ROUNDDOWN((MAX(BK$2,$J26) + 'C'!$D$57) / (MIN(BK$2,$J26) + 'C'!$D$57),1),"") -> 1 | BL26: =IFERROR(ROUNDDOWN((MAX(BL$2,$J26) + 'C'!$D$57) / (MIN(BL$2,$J26) + 'C'!$D$57),1),"") -> 20.9 | BM26: =IFERROR(ROUNDDOWN((MAX(BM$2,$J26) + 'C'!$D$57) / (MIN(BM$2,$J26) + 'C'!$D$57),1),"") -> 11.2 | BN26: =IFERROR(ROUNDDOWN((MAX(BN$2,$J26) + 'C'!$D$57) / (MIN(BN$2,$J26) + 'C'!$D$57),1),"") -> 18.9 | BO26: =IFERROR(ROUNDDOWN((MAX(BO$2,$J26) + 'C'!$D$57) / (MIN(BO$2,$J26) + 'C'!$D$57),1),"") -> 15.3 | BP26: =IFERROR(ROUNDDOWN((MAX(BP$2,$J26) + 'C'!$D$57) / (MIN(BP$2,$J26) + 'C'!$D$57),1),"") -> 1.5 | BQ26: =IFERROR(ROUNDDOWN((MAX(BQ$2,$J26) + 'C'!$D$57) / (MIN(BQ$2,$J26) + 'C'!$D$57),1),"") -> 1.2 | BR26: =IFERROR(ROUNDDOWN((MAX(BR$2,$J26) + 'C'!$D$57) / (MIN(BR$2,$J26) + 'C'!$D$57),1),"") -> 7.7 | BS26: =IFERROR(ROUNDDOWN((MAX(BS$2,$J26) + 'C'!$D$57) / (MIN(BS$2,$J26) + 'C'!$D$57),1),"") -> 3.9 | BT26: =IFERROR(ROUNDDOWN((MAX(BT$2,$J26) + 'C'!$D$57) / (MIN(BT$2,$J26) + 'C'!$D$57),1),"") -> 8.7 | BU26: =IFERROR(ROUNDDOWN((MAX(BU$2,$J26) + 'C'!$D$57) / (MIN(BU$2,$J26) + 'C'!$D$57),1),"") -> 5 | BV26: =IFERROR(ROUNDDOWN((MAX(BV$2,$J26) + 'C'!$D$57) / (MIN(BV$2,$J26) + 'C'!$D$57),1),"") -> 3.8 | BW26: =IFERROR(ROUNDDOWN((MAX(BW$2,$J26) + 'C'!$D$57) / (MIN(BW$2,$J26) + 'C'!$D$57),1),"") -> 2.1 | BX26: =IFERROR(ROUNDDOWN((MAX(BX$2,$J26) + 'C'!$D$57) / (MIN(BX$2,$J26) + 'C'!$D$57),1),"") -> 1.3 | BY26: =IFERROR(ROUNDDOWN((MAX(BY$2,$J26) + 'C'!$D$57) / (MIN(BY$2,$J26) + 'C'!$D$57),1),"") -> 2.1 | BZ26: =IFERROR(ROUNDDOWN((MAX(BZ$2,$J26) + 'C'!$D$57) / (MIN(BZ$2,$J26) + 'C'!$D$57),1),"") -> 8.7 | CA26: =IFERROR(ROUNDDOWN((MAX(CA$2,$J26) + 'C'!$D$57) / (MIN(CA$2,$J26) + 'C'!$D$57),1),"") -> 1.8 | CB26: =IFERROR(ROUNDDOWN((MAX(CB$2,$J26) + 'C'!$D$57) / (MIN(CB$2,$J26) + 'C'!$D$57),1),"") -> 3.6 | CC26: =IFERROR(ROUNDDOWN((MAX(CC$2,$J26) + 'C'!$D$57) / (MIN(CC$2,$J26) + 'C'!$D$57),1),"") -> 1 | CD26: =IFERROR(ROUNDDOWN((MAX(CD$2,$J26) + 'C'!$D$57) / (MIN(CD$2,$J26) + 'C'!$D$57),1),"") -> 1 | CE26: =IFERROR(ROUNDDOWN((MAX(CE$2,$J26) + 'C'!$D$57) / (MIN(CE$2,$J26) + 'C'!$D$57),1),"") -> 1 | CF26: =IFERROR(ROUNDDOWN((MAX(CF$2,$J26) + 'C'!$D$57) / (MIN(CF$2,$J26) + 'C'!$D$57),1),"") -> 1 | CG26: =IFERROR(ROUNDDOWN((MAX(CG$2,$J26) + 'C'!$D$57) / (MIN(CG$2,$J26) + 'C'!$D$57),1),"") -> 1 | CH26: =IFERROR(ROUNDDOWN((MAX(CH$2,$J26) + 'C'!$D$57) / (MIN(CH$2,$J26) + 'C'!$D$57),1),"") -> 1 | CI26: =IFERROR(ROUNDDOWN((MAX(CI$2,$J26) + 'C'!$D$57) / (MIN(CI$2,$J26) + 'C'!$D$57),1),"") -> 1 | CJ26: =IFERROR(ROUNDDOWN((MAX(CJ$2,$J26) + 'C'!$D$57) / (MIN(CJ$2,$J26) + 'C'!$D$57),1),"") -> 1 | CK26: =IFERROR(ROUNDDOWN((MAX(CK$2,$J26) + 'C'!$D$57) / (MIN(CK$2,$J26) + 'C'!$D$57),1),"") -> 1 | CL26: =IFERROR(ROUNDDOWN((MAX(CL$2,$J26) + 'C'!$D$57) / (MIN(CL$2,$J26) + 'C'!$D$57),1),"") -> 1 | CM26: =IFERROR(ROUNDDOWN((MAX(CM$2,$J26) + 'C'!$D$57) / (MIN(CM$2,$J26) + 'C'!$D$57),1),"") -> 1 | CN26: =IFERROR(ROUNDDOWN((MAX(CN$2,$J26) + 'C'!$D$57) / (MIN(CN$2,$J26) + 'C'!$D$57),1),"") -> 1 | CO26: =IFERROR(ROUNDDOWN((MAX(CO$2,$J26) + 'C'!$D$57) / (MIN(CO$2,$J26) + 'C'!$D$57),1),"") -> 1 | CP26: =IFERROR(ROUNDDOWN((MAX(CP$2,$J26) + 'C'!$D$57) / (MIN(CP$2,$J26) + 'C'!$D$57),1),"") -> 1 | CQ26: =IFERROR(ROUNDDOWN((MAX(CQ$2,$J26) + 'C'!$D$57) / (MIN(CQ$2,$J26) + 'C'!$D$57),1),"") -> 1 | CR26: =IFERROR(ROUNDDOWN((MAX(CR$2,$J26) + 'C'!$D$57) / (MIN(CR$2,$J26) + 'C'!$D$57),1),"") -> 1 | CS26: =IFERROR(ROUNDDOWN((MAX(CS$2,$J26) + 'C'!$D$57) / (MIN(CS$2,$J26) + 'C'!$D$57),1),"") -> 1 | CT26: =IFERROR(ROUNDDOWN((MAX(CT$2,$J26) + 'C'!$D$57) / (MIN(CT$2,$J26) + 'C'!$D$57),1),"") -> 1 | CU26: =IFERROR(ROUNDDOWN((MAX(CU$2,$J26) + 'C'!$D$57) / (MIN(CU$2,$J26) + 'C'!$D$57),1),"") -> 1
B27: #ffffff | D27: 0 | E27: 0 | F27: 0 | I27: #FFFFFF | J27: 0.9999999648 | M27: 255 | N27: 255 | O27: 255 | Q27: 1 | R27: 1 | S27: 1 | U27: =IF($Q27 > 'C'!$D$33,((($Q27 + 'C'!$D$30) / 'C'!$D$31)) ^ 'C'!$D$32,($Q27 / 'C'!$D$29)) -> 1 | V27: =IF($R27 > 'C'!$D$33,((($R27 + 'C'!$D$30) / 'C'!$D$31)) ^ 'C'!$D$32,($R27 / 'C'!$D$29)) -> 1 | W27: =IF($S27 > 'C'!$D$33,((($S27 + 'C'!$D$30) / 'C'!$D$31)) ^ 'C'!$D$32,($S27 / 'C'!$D$29)) -> 1 | Y27: =('C'!$D$44 * $U27) +( 'C'!$D$45 * $V27) + ('C'!$D$46 * $W27) -> 1 | Z27: =ROUND( ('C'!$D$69 * $U27) + ('C'!$E$69 * $V27) + ('C'!$F$69 * $W27), 'C'!$D$75) -> 1 | AA27: =ROUND( ('C'!$D$70 * $U27) + ('C'!$E$70 * $V27) + ('C'!$F$70 * $W27), 'C'!$D$75) -> 1 | AB27: =ROUND( ('C'!$D$71 * $U27) + ('C'!$E$71 * $V27) + ('C'!$F$71 * $W27), 'C'!$D$75) -> 1 | AD27: =ROUND( ('C'!$D$82 * ($Z27^'C'!$D$89)) + ('C'!$E$82 * ($AA27^'C'!$D$89)) + ('C'!$F$82 * ($AB27^'C'!$D$89)), 'C'!$D$88) -> 0.99999999 | AE27: =ROUND( ('C'!$D$83 * ($Z27^'C'!$D$89)) + ('C'!$E$83 * ($AA27^'C'!$D$89)) + ('C'!$F$83 * ($AB27^'C'!$D$89)), 'C'!$D$88) -> 0 | AF27: =ROUND( ('C'!$D$84 * ($Z27^'C'!$D$89)) + ('C'!$E$84 * ($AA27^'C'!$D$89)) + ('C'!$F$84 * ($AB27^'C'!$D$89)), 'C'!$D$88) -> 4e-08 | AG27: 4e-08 | AH27: 90 | AJ27: 0.99999999 | AK27: 2.45029691e-24 | AL27: 4e-08 | AM27: 4e-08 | AN27: 90 | AP27: =ROUND( ('C'!$D$105 * $AJ27) + ('C'!$E$105 * $AK27) + ('C'!$F$105 * $AL27), 'C'!$D$111) ^ 'C'!$D$112 -> 1 | AQ27: =ROUND( ('C'!$D$106 * $AJ27) + ('C'!$E$106 * $AK27) + ('C'!$F$106 * $AL27), 'C'!$D$111) ^ 'C'!$D$112 -> 0.99999997 | AR27: =ROUND( ('C'!$D$107 * $AJ27) + ('C'!$E$107 * $AK27) + ('C'!$F$107 * $AL27), 'C'!$D$111) ^ 'C'!$D$112 -> 0.99999982 | AT27: =MIN(1, MAX(0, ROUND( ('C'!$D$119 * $AP27) + ('C'!$E$119 * $AQ27) + ('C'!$F$119 * $AR27), 'C'!$D$125))) -> 1 | AU27: =MIN(1,MAX(0,ROUND( ('C'!$D$120 * $AP27) + ('C'!$E$120 * $AQ27) + ('C'!$F$120 * $AR27), 'C'!$D$125))) -> 0.99999998 | AV27: =MIN(1,MAX(0,ROUND( ('C'!$D$121 * $AP27) + ('C'!$E$121 * $AQ27) + ('C'!$F$121 * $AR27), 'C'!$D$125))) -> 0.99999971 | AX27: =('C'!$D$44 * $AT27) +( 'C'!$D$45 * $AU27) + ('C'!$D$46 * $AV27) -> 0.9999999648 | AY27: =IF($AT27>'C'!$D$142, ($AT27 ^ (1/'C'!$D$141) * 'C'!$D$140) - 'C'!$D$139, $AT27 * 'C'!$D$138) -> 1 | AZ27: =IF($AU27>'C'!$D$142, ($AU27 ^ (1/'C'!$D$141) * 'C'!$D$140) - 'C'!$D$139, $AU27 * 'C'!$D$138) -> 0.9999999912 | BA27: =IF($AV27>'C'!$D$142, ($AV27 ^ (1/'C'!$D$141) * 'C'!$D$140) - 'C'!$D$139, $AV27 * 'C'!$D$138) -> 0.9999998725 | BC27: 255 | BD27: 255 | BE27: 255 | BH27: =IFERROR(ROUNDDOWN((MAX(BH$2,$J27) + 'C'!$D$57) / (MIN(BH$2,$J27) + 'C'!$D$57),1),"") -> 1.6 | BI27: =IFERROR(ROUNDDOWN((MAX(BI$2,$J27) + 'C'!$D$57) / (MIN(BI$2,$J27) + 'C'!$D$57),1),"") -> 1.7 | BJ27: =IFERROR(ROUNDDOWN((MAX(BJ$2,$J27) + 'C'!$D$57) / (MIN(BJ$2,$J27) + 'C'!$D$57),1),"") -> 1.5 | BK27: =IFERROR(ROUNDDOWN((MAX(BK$2,$J27) + 'C'!$D$57) / (MIN(BK$2,$J27) + 'C'!$D$57),1),"") -> 1 | BL27: =IFERROR(ROUNDDOWN((MAX(BL$2,$J27) + 'C'!$D$57) / (MIN(BL$2,$J27) + 'C'!$D$57),1),"") -> 20.9 | BM27: =IFERROR(ROUNDDOWN((MAX(BM$2,$J27) + 'C'!$D$57) / (MIN(BM$2,$J27) + 'C'!$D$57),1),"") -> 11.2 | BN27: =IFERROR(ROUNDDOWN((MAX(BN$2,$J27) + 'C'!$D$57) / (MIN(BN$2,$J27) + 'C'!$D$57),1),"") -> 18.9 | BO27: =IFERROR(ROUNDDOWN((MAX(BO$2,$J27) + 'C'!$D$57) / (MIN(BO$2,$J27) + 'C'!$D$57),1),"") -> 15.3 | BP27: =IFERROR(ROUNDDOWN((MAX(BP$2,$J27) + 'C'!$D$57) / (MIN(BP$2,$J27) + 'C'!$D$57),1),"") -> 1.5 | BQ27: =IFERROR(ROUNDDOWN((MAX(BQ$2,$J27) + 'C'!$D$57) / (MIN(BQ$2,$J27) + 'C'!$D$57),1),"") -> 1.2 | BR27: =IFERROR(ROUNDDOWN((MAX(BR$2,$J27) + 'C'!$D$57) / (MIN(BR$2,$J27) + 'C'!$D$57),1),"") -> 7.7 | BS27: =IFERROR(ROUNDDOWN((MAX(BS$2,$J27) + 'C'!$D$57) / (MIN(BS$2,$J27) + 'C'!$D$57),1),"") -> 3.9 | BT27: =IFERROR(ROUNDDOWN((MAX(BT$2,$J27) + 'C'!$D$57) / (MIN(BT$2,$J27) + 'C'!$D$57),1),"") -> 8.7 | BU27: =IFERROR(ROUNDDOWN((MAX(BU$2,$J27) + 'C'!$D$57) / (MIN(BU$2,$J27) + 'C'!$D$57),1),"") -> 5 | BV27: =IFERROR(ROUNDDOWN((MAX(BV$2,$J27) + 'C'!$D$57) / (MIN(BV$2,$J27) + 'C'!$D$57),1),"") -> 3.8 | BW27: =IFERROR(ROUNDDOWN((MAX(BW$2,$J27) + 'C'!$D$57) / (MIN(BW$2,$J27) + 'C'!$D$57),1),"") -> 2.1 | BX27: =IFERROR(ROUNDDOWN((MAX(BX$2,$J27) + 'C'!$D$57) / (MIN(BX$2,$J27) + 'C'!$D$57),1),"") -> 1.3 | BY27: =IFERROR(ROUNDDOWN((MAX(BY$2,$J27) + 'C'!$D$57) / (MIN(BY$2,$J27) + 'C'!$D$57),1),"") -> 2.1 | BZ27: =IFERROR(ROUNDDOWN((MAX(BZ$2,$J27) + 'C'!$D$57) / (MIN(BZ$2,$J27) + 'C'!$D$57),1),"") -> 8.7 | CA27: =IFERROR(ROUNDDOWN((MAX(CA$2,$J27) + 'C'!$D$57) / (MIN(CA$2,$J27) + 'C'!$D$57),1),"") -> 1.8 | CB27: =IFERROR(ROUNDDOWN((MAX(CB$2,$J27) + 'C'!$D$57) / (MIN(CB$2,$J27) + 'C'!$D$57),1),"") -> 3.6 | CC27: =IFERROR(ROUNDDOWN((MAX(CC$2,$J27) + 'C'!$D$57) / (MIN(CC$2,$J27) + 'C'!$D$57),1),"") -> 1 | CD27: =IFERROR(ROUNDDOWN((MAX(CD$2,$J27) + 'C'!$D$57) / (MIN(CD$2,$J27) + 'C'!$D$57),1),"") -> 1 | CE27: =IFERROR(ROUNDDOWN((MAX(CE$2,$J27) + 'C'!$D$57) / (MIN(CE$2,$J27) + 'C'!$D$57),1),"") -> 1 | CF27: =IFERROR(ROUNDDOWN((MAX(CF$2,$J27) + 'C'!$D$57) / (MIN(CF$2,$J27) + 'C'!$D$57),1),"") -> 1 | CG27: =IFERROR(ROUNDDOWN((MAX(CG$2,$J27) + 'C'!$D$57) / (MIN(CG$2,$J27) + 'C'!$D$57),1),"") -> 1 | CH27: =IFERROR(ROUNDDOWN((MAX(CH$2,$J27) + 'C'!$D$57) / (MIN(CH$2,$J27) + 'C'!$D$57),1),"") -> 1 | CI27: =IFERROR(ROUNDDOWN((MAX(CI$2,$J27) + 'C'!$D$57) / (MIN(CI$2,$J27) + 'C'!$D$57),1),"") -> 1 | CJ27: =IFERROR(ROUNDDOWN((MAX(CJ$2,$J27) + 'C'!$D$57) / (MIN(CJ$2,$J27) + 'C'!$D$57),1),"") -> 1 | CK27: =IFERROR(ROUNDDOWN((MAX(CK$2,$J27) + 'C'!$D$57) / (MIN(CK$2,$J27) + 'C'!$D$57),1),"") -> 1 | CL27: =IFERROR(ROUNDDOWN((MAX(CL$2,$J27) + 'C'!$D$57) / (MIN(CL$2,$J27) + 'C'!$D$57),1),"") -> 1 | CM27: =IFERROR(ROUNDDOWN((MAX(CM$2,$J27) + 'C'!$D$57) / (MIN(CM$2,$J27) + 'C'!$D$57),1),"") -> 1 | CN27: =IFERROR(ROUNDDOWN((MAX(CN$2,$J27) + 'C'!$D$57) / (MIN(CN$2,$J27) + 'C'!$D$57),1),"") -> 1 | CO27: =IFERROR(ROUNDDOWN((MAX(CO$2,$J27) + 'C'!$D$57) / (MIN(CO$2,$J27) + 'C'!$D$57),1),"") -> 1 | CP27: =IFERROR(ROUNDDOWN((MAX(CP$2,$J27) + 'C'!$D$57) / (MIN(CP$2,$J27) + 'C'!$D$57),1),"") -> 1 | CQ27: =IFERROR(ROUNDDOWN((MAX(CQ$2,$J27) + 'C'!$D$57) / (MIN(CQ$2,$J27) + 'C'!$D$57),1),"") -> 1 | CR27: =IFERROR(ROUNDDOWN((MAX(CR$2,$J27) + 'C'!$D$57) / (MIN(CR$2,$J27) + 'C'!$D$57),1),"") -> 1 | CS27: =IFERROR(ROUNDDOWN((MAX(CS$2,$J27) + 'C'!$D$57) / (MIN(CS$2,$J27) + 'C'!$D$57),1),"") -> 1 | CT27: =IFERROR(ROUNDDOWN((MAX(CT$2,$J27) + 'C'!$D$57) / (MIN(CT$2,$J27) + 'C'!$D$57),1),"") -> 1 | CU27: =IFERROR(ROUNDDOWN((MAX(CU$2,$J27) + 'C'!$D$57) / (MIN(CU$2,$J27) + 'C'!$D$57),1),"") -> 1
B28: #ffffff | D28: 0 | E28: 0 | F28: 0 | I28: #FFFFFF | J28: 0.9999999648 | M28: 255 | N28: 255 | O28: 255 | Q28: 1 | R28: 1 | S28: 1 | U28: =IF($Q28 > 'C'!$D$33,((($Q28 + 'C'!$D$30) / 'C'!$D$31)) ^ 'C'!$D$32,($Q28 / 'C'!$D$29)) -> 1 | V28: =IF($R28 > 'C'!$D$33,((($R28 + 'C'!$D$30) / 'C'!$D$31)) ^ 'C'!$D$32,($R28 / 'C'!$D$29)) -> 1 | W28: =IF($S28 > 'C'!$D$33,((($S28 + 'C'!$D$30) / 'C'!$D$31)) ^ 'C'!$D$32,($S28 / 'C'!$D$29)) -> 1 | Y28: =('C'!$D$44 * $U28) +( 'C'!$D$45 * $V28) + ('C'!$D$46 * $W28) -> 1 | Z28: =ROUND( ('C'!$D$69 * $U28) + ('C'!$E$69 * $V28) + ('C'!$F$69 * $W28), 'C'!$D$75) -> 1 | AA28: =ROUND( ('C'!$D$70 * $U28) + ('C'!$E$70 * $V28) + ('C'!$F$70 * $W28), 'C'!$D$75) -> 1 | AB28: =ROUND( ('C'!$D$71 * $U28) + ('C'!$E$71 * $V28) + ('C'!$F$71 * $W28), 'C'!$D$75) -> 1 | AD28: =ROUND( ('C'!$D$82 * ($Z28^'C'!$D$89)) + ('C'!$E$82 * ($AA28^'C'!$D$89)) + ('C'!$F$82 * ($AB28^'C'!$D$89)), 'C'!$D$88) -> 0.99999999 | AE28: =ROUND( ('C'!$D$83 * ($Z28^'C'!$D$89)) + ('C'!$E$83 * ($AA28^'C'!$D$89)) + ('C'!$F$83 * ($AB28^'C'!$D$89)), 'C'!$D$88) -> 0 | AF28: =ROUND( ('C'!$D$84 * ($Z28^'C'!$D$89)) + ('C'!$E$84 * ($AA28^'C'!$D$89)) + ('C'!$F$84 * ($AB28^'C'!$D$89)), 'C'!$D$88) -> 4e-08 | AG28: 4e-08 | AH28: 90 | AJ28: 0.99999999 | AK28: 2.45029691e-24 | AL28: 4e-08 | AM28: 4e-08 | AN28: 90 | AP28: =ROUND( ('C'!$D$105 * $AJ28) + ('C'!$E$105 * $AK28) + ('C'!$F$105 * $AL28), 'C'!$D$111) ^ 'C'!$D$112 -> 1 | AQ28: =ROUND( ('C'!$D$106 * $AJ28) + ('C'!$E$106 * $AK28) + ('C'!$F$106 * $AL28), 'C'!$D$111) ^ 'C'!$D$112 -> 0.99999997 | AR28: =ROUND( ('C'!$D$107 * $AJ28) + ('C'!$E$107 * $AK28) + ('C'!$F$107 * $AL28), 'C'!$D$111) ^ 'C'!$D$112 -> 0.99999982 | AT28: =MIN(1, MAX(0, ROUND( ('C'!$D$119 * $AP28) + ('C'!$E$119 * $AQ28) + ('C'!$F$119 * $AR28), 'C'!$D$125))) -> 1 | AU28: =MIN(1,MAX(0,ROUND( ('C'!$D$120 * $AP28) + ('C'!$E$120 * $AQ28) + ('C'!$F$120 * $AR28), 'C'!$D$125))) -> 0.99999998 | AV28: =MIN(1,MAX(0,ROUND( ('C'!$D$121 * $AP28) + ('C'!$E$121 * $AQ28) + ('C'!$F$121 * $AR28), 'C'!$D$125))) -> 0.99999971 | AX28: =('C'!$D$44 * $AT28) +( 'C'!$D$45 * $AU28) + ('C'!$D$46 * $AV28) -> 0.9999999648 | AY28: =IF($AT28>'C'!$D$142, ($AT28 ^ (1/'C'!$D$141) * 'C'!$D$140) - 'C'!$D$139, $AT28 * 'C'!$D$138) -> 1 | AZ28: =IF($AU28>'C'!$D$142, ($AU28 ^ (1/'C'!$D$141) * 'C'!$D$140) - 'C'!$D$139, $AU28 * 'C'!$D$138) -> 0.9999999912 | BA28: =IF($AV28>'C'!$D$142, ($AV28 ^ (1/'C'!$D$141) * 'C'!$D$140) - 'C'!$D$139, $AV28 * 'C'!$D$138) -> 0.9999998725 | BC28: 255 | BD28: 255 | BE28: 255 | BH28: =IFERROR(ROUNDDOWN((MAX(BH$2,$J28) + 'C'!$D$57) / (MIN(BH$2,$J28) + 'C'!$D$57),1),"") -> 1.6 | BI28: =IFERROR(ROUNDDOWN((MAX(BI$2,$J28) + 'C'!$D$57) / (MIN(BI$2,$J28) + 'C'!$D$57),1),"") -> 1.7 | BJ28: =IFERROR(ROUNDDOWN((MAX(BJ$2,$J28) + 'C'!$D$57) / (MIN(BJ$2,$J28) + 'C'!$D$57),1),"") -> 1.5 | BK28: =IFERROR(ROUNDDOWN((MAX(BK$2,$J28) + 'C'!$D$57) / (MIN(BK$2,$J28) + 'C'!$D$57),1),"") -> 1 | BL28: =IFERROR(ROUNDDOWN((MAX(BL$2,$J28) + 'C'!$D$57) / (MIN(BL$2,$J28) + 'C'!$D$57),1),"") -> 20.9 | BM28: =IFERROR(ROUNDDOWN((MAX(BM$2,$J28) + 'C'!$D$57) / (MIN(BM$2,$J28) + 'C'!$D$57),1),"") -> 11.2 | BN28: =IFERROR(ROUNDDOWN((MAX(BN$2,$J28) + 'C'!$D$57) / (MIN(BN$2,$J28) + 'C'!$D$57),1),"") -> 18.9 | BO28: =IFERROR(ROUNDDOWN((MAX(BO$2,$J28) + 'C'!$D$57) / (MIN(BO$2,$J28) + 'C'!$D$57),1),"") -> 15.3 | BP28: =IFERROR(ROUNDDOWN((MAX(BP$2,$J28) + 'C'!$D$57) / (MIN(BP$2,$J28) + 'C'!$D$57),1),"") -> 1.5 | BQ28: =IFERROR(ROUNDDOWN((MAX(BQ$2,$J28) + 'C'!$D$57) / (MIN(BQ$2,$J28) + 'C'!$D$57),1),"") -> 1.2 | BR28: =IFERROR(ROUNDDOWN((MAX(BR$2,$J28) + 'C'!$D$57) / (MIN(BR$2,$J28) + 'C'!$D$57),1),"") -> 7.7 | BS28: =IFERROR(ROUNDDOWN((MAX(BS$2,$J28) + 'C'!$D$57) / (MIN(BS$2,$J28) + 'C'!$D$57),1),"") -> 3.9 | BT28: =IFERROR(ROUNDDOWN((MAX(BT$2,$J28) + 'C'!$D$57) / (MIN(BT$2,$J28) + 'C'!$D$57),1),"") -> 8.7 | BU28: =IFERROR(ROUNDDOWN((MAX(BU$2,$J28) + 'C'!$D$57) / (MIN(BU$2,$J28) + 'C'!$D$57),1),"") -> 5 | BV28: =IFERROR(ROUNDDOWN((MAX(BV$2,$J28) + 'C'!$D$57) / (MIN(BV$2,$J28) + 'C'!$D$57),1),"") -> 3.8 | BW28: =IFERROR(ROUNDDOWN((MAX(BW$2,$J28) + 'C'!$D$57) / (MIN(BW$2,$J28) + 'C'!$D$57),1),"") -> 2.1 | BX28: =IFERROR(ROUNDDOWN((MAX(BX$2,$J28) + 'C'!$D$57) / (MIN(BX$2,$J28) + 'C'!$D$57),1),"") -> 1.3 | BY28: =IFERROR(ROUNDDOWN((MAX(BY$2,$J28) + 'C'!$D$57) / (MIN(BY$2,$J28) + 'C'!$D$57),1),"") -> 2.1 | BZ28: =IFERROR(ROUNDDOWN((MAX(BZ$2,$J28) + 'C'!$D$57) / (MIN(BZ$2,$J28) + 'C'!$D$57),1),"") -> 8.7 | CA28: =IFERROR(ROUNDDOWN((MAX(CA$2,$J28) + 'C'!$D$57) / (MIN(CA$2,$J28) + 'C'!$D$57),1),"") -> 1.8 | CB28: =IFERROR(ROUNDDOWN((MAX(CB$2,$J28) + 'C'!$D$57) / (MIN(CB$2,$J28) + 'C'!$D$57),1),"") -> 3.6 | CC28: =IFERROR(ROUNDDOWN((MAX(CC$2,$J28) + 'C'!$D$57) / (MIN(CC$2,$J28) + 'C'!$D$57),1),"") -> 1 | CD28: =IFERROR(ROUNDDOWN((MAX(CD$2,$J28) + 'C'!$D$57) / (MIN(CD$2,$J28) + 'C'!$D$57),1),"") -> 1 | CE28: =IFERROR(ROUNDDOWN((MAX(CE$2,$J28) + 'C'!$D$57) / (MIN(CE$2,$J28) + 'C'!$D$57),1),"") -> 1 | CF28: =IFERROR(ROUNDDOWN((MAX(CF$2,$J28) + 'C'!$D$57) / (MIN(CF$2,$J28) + 'C'!$D$57),1),"") -> 1 | CG28: =IFERROR(ROUNDDOWN((MAX(CG$2,$J28) + 'C'!$D$57) / (MIN(CG$2,$J28) + 'C'!$D$57),1),"") -> 1 | CH28: =IFERROR(ROUNDDOWN((MAX(CH$2,$J28) + 'C'!$D$57) / (MIN(CH$2,$J28) + 'C'!$D$57),1),"") -> 1 | CI28: =IFERROR(ROUNDDOWN((MAX(CI$2,$J28) + 'C'!$D$57) / (MIN(CI$2,$J28) + 'C'!$D$57),1),"") -> 1 | CJ28: =IFERROR(ROUNDDOWN((MAX(CJ$2,$J28) + 'C'!$D$57) / (MIN(CJ$2,$J28) + 'C'!$D$57),1),"") -> 1 | CK28: =IFERROR(ROUNDDOWN((MAX(CK$2,$J28) + 'C'!$D$57) / (MIN(CK$2,$J28) + 'C'!$D$57),1),"") -> 1 | CL28: =IFERROR(ROUNDDOWN((MAX(CL$2,$J28) + 'C'!$D$57) / (MIN(CL$2,$J28) + 'C'!$D$57),1),"") -> 1 | CM28: =IFERROR(ROUNDDOWN((MAX(CM$2,$J28) + 'C'!$D$57) / (MIN(CM$2,$J28) + 'C'!$D$57),1),"") -> 1 | CN28: =IFERROR(ROUNDDOWN((MAX(CN$2,$J28) + 'C'!$D$57) / (MIN(CN$2,$J28) + 'C'!$D$57),1),"") -> 1 | CO28: =IFERROR(ROUNDDOWN((MAX(CO$2,$J28) + 'C'!$D$57) / (MIN(CO$2,$J28) + 'C'!$D$57),1),"") -> 1 | CP28: =IFERROR(ROUNDDOWN((MAX(CP$2,$J28) + 'C'!$D$57) / (MIN(CP$2,$J28) + 'C'!$D$57),1),"") -> 1 | CQ28: =IFERROR(ROUNDDOWN((MAX(CQ$2,$J28) + 'C'!$D$57) / (MIN(CQ$2,$J28) + 'C'!$D$57),1),"") -> 1 | CR28: =IFERROR(ROUNDDOWN((MAX(CR$2,$J28) + 'C'!$D$57) / (MIN(CR$2,$J28) + 'C'!$D$57),1),"") -> 1 | CS28: =IFERROR(ROUNDDOWN((MAX(CS$2,$J28) + 'C'!$D$57) / (MIN(CS$2,$J28) + 'C'!$D$57),1),"") -> 1 | CT28: =IFERROR(ROUNDDOWN((MAX(CT$2,$J28) + 'C'!$D$57) / (MIN(CT$2,$J28) + 'C'!$D$57),1),"") -> 1 | CU28: =IFERROR(ROUNDDOWN((MAX(CU$2,$J28) + 'C'!$D$57) / (MIN(CU$2,$J28) + 'C'!$D$57),1),"") -> 1
B29: #ffffff | D29: 0 | E29: 0 | F29: 0 | I29: #FFFFFF | J29: 0.9999999648 | M29: 255 | N29: 255 | O29: 255 | Q29: 1 | R29: 1 | S29: 1 | U29: =IF($Q29 > 'C'!$D$33,((($Q29 + 'C'!$D$30) / 'C'!$D$31)) ^ 'C'!$D$32,($Q29 / 'C'!$D$29)) -> 1 | V29: =IF($R29 > 'C'!$D$33,((($R29 + 'C'!$D$30) / 'C'!$D$31)) ^ 'C'!$D$32,($R29 / 'C'!$D$29)) -> 1 | W29: =IF($S29 > 'C'!$D$33,((($S29 + 'C'!$D$30) / 'C'!$D$31)) ^ 'C'!$D$32,($S29 / 'C'!$D$29)) -> 1 | Y29: =('C'!$D$44 * $U29) +( 'C'!$D$45 * $V29) + ('C'!$D$46 * $W29) -> 1 | Z29: =ROUND( ('C'!$D$69 * $U29) + ('C'!$E$69 * $V29) + ('C'!$F$69 * $W29), 'C'!$D$75) -> 1 | AA29: =ROUND( ('C'!$D$70 * $U29) + ('C'!$E$70 * $V29) + ('C'!$F$70 * $W29), 'C'!$D$75) -> 1 | AB29: =ROUND( ('C'!$D$71 * $U29) + ('C'!$E$71 * $V29) + ('C'!$F$71 * $W29), 'C'!$D$75) -> 1 | AD29: =ROUND( ('C'!$D$82 * ($Z29^'C'!$D$89)) + ('C'!$E$82 * ($AA29^'C'!$D$89)) + ('C'!$F$82 * ($AB29^'C'!$D$89)), 'C'!$D$88) -> 0.99999999 | AE29: =ROUND( ('C'!$D$83 * ($Z29^'C'!$D$89)) + ('C'!$E$83 * ($AA29^'C'!$D$89)) + ('C'!$F$83 * ($AB29^'C'!$D$89)), 'C'!$D$88) -> 0 | AF29: =ROUND( ('C'!$D$84 * ($Z29^'C'!$D$89)) + ('C'!$E$84 * ($AA29^'C'!$D$89)) + ('C'!$F$84 * ($AB29^'C'!$D$89)), 'C'!$D$88) -> 4e-08 | AG29: 4e-08 | AH29: 90 | AJ29: 0.99999999 | AK29: 2.45029691e-24 | AL29: 4e-08 | AM29: 4e-08 | AN29: 90 | AP29: =ROUND( ('C'!$D$105 * $AJ29) + ('C'!$E$105 * $AK29) + ('C'!$F$105 * $AL29), 'C'!$D$111) ^ 'C'!$D$112 -> 1 | AQ29: =ROUND( ('C'!$D$106 * $AJ29) + ('C'!$E$106 * $AK29) + ('C'!$F$106 * $AL29), 'C'!$D$111) ^ 'C'!$D$112 -> 0.99999997 | AR29: =ROUND( ('C'!$D$107 * $AJ29) + ('C'!$E$107 * $AK29) + ('C'!$F$107 * $AL29), 'C'!$D$111) ^ 'C'!$D$112 -> 0.99999982 | AT29: =MIN(1, MAX(0, ROUND( ('C'!$D$119 * $AP29) + ('C'!$E$119 * $AQ29) + ('C'!$F$119 * $AR29), 'C'!$D$125))) -> 1 | AU29: =MIN(1,MAX(0,ROUND( ('C'!$D$120 * $AP29) + ('C'!$E$120 * $AQ29) + ('C'!$F$120 * $AR29), 'C'!$D$125))) -> 0.99999998 | AV29: =MIN(1,MAX(0,ROUND( ('C'!$D$121 * $AP29) + ('C'!$E$121 * $AQ29) + ('C'!$F$121 * $AR29), 'C'!$D$125))) -> 0.99999971 | AX29: =('C'!$D$44 * $AT29) +( 'C'!$D$45 * $AU29) + ('C'!$D$46 * $AV29) -> 0.9999999648 | AY29: =IF($AT29>'C'!$D$142, ($AT29 ^ (1/'C'!$D$141) * 'C'!$D$140) - 'C'!$D$139, $AT29 * 'C'!$D$138) -> 1 | AZ29: =IF($AU29>'C'!$D$142, ($AU29 ^ (1/'C'!$D$141) * 'C'!$D$140) - 'C'!$D$139, $AU29 * 'C'!$D$138) -> 0.9999999912 | BA29: =IF($AV29>'C'!$D$142, ($AV29 ^ (1/'C'!$D$141) * 'C'!$D$140) - 'C'!$D$139, $AV29 * 'C'!$D$138) -> 0.9999998725 | BC29: 255 | BD29: 255 | BE29: 255 | BH29: =IFERROR(ROUNDDOWN((MAX(BH$2,$J29) + 'C'!$D$57) / (MIN(BH$2,$J29) + 'C'!$D$57),1),"") -> 1.6 | BI29: =IFERROR(ROUNDDOWN((MAX(BI$2,$J29) + 'C'!$D$57) / (MIN(BI$2,$J29) + 'C'!$D$57),1),"") -> 1.7 | BJ29: =IFERROR(ROUNDDOWN((MAX(BJ$2,$J29) + 'C'!$D$57) / (MIN(BJ$2,$J29) + 'C'!$D$57),1),"") -> 1.5 | BK29: =IFERROR(ROUNDDOWN((MAX(BK$2,$J29) + 'C'!$D$57) / (MIN(BK$2,$J29) + 'C'!$D$57),1),"") -> 1 | BL29: =IFERROR(ROUNDDOWN((MAX(BL$2,$J29) + 'C'!$D$57) / (MIN(BL$2,$J29) + 'C'!$D$57),1),"") -> 20.9 | BM29: =IFERROR(ROUNDDOWN((MAX(BM$2,$J29) + 'C'!$D$57) / (MIN(BM$2,$J29) + 'C'!$D$57),1),"") -> 11.2 | BN29: =IFERROR(ROUNDDOWN((MAX(BN$2,$J29) + 'C'!$D$57) / (MIN(BN$2,$J29) + 'C'!$D$57),1),"") -> 18.9 | BO29: =IFERROR(ROUNDDOWN((MAX(BO$2,$J29) + 'C'!$D$57) / (MIN(BO$2,$J29) + 'C'!$D$57),1),"") -> 15.3 | BP29: =IFERROR(ROUNDDOWN((MAX(BP$2,$J29) + 'C'!$D$57) / (MIN(BP$2,$J29) + 'C'!$D$57),1),"") -> 1.5 | BQ29: =IFERROR(ROUNDDOWN((MAX(BQ$2,$J29) + 'C'!$D$57) / (MIN(BQ$2,$J29) + 'C'!$D$57),1),"") -> 1.2 | BR29: =IFERROR(ROUNDDOWN((MAX(BR$2,$J29) + 'C'!$D$57) / (MIN(BR$2,$J29) + 'C'!$D$57),1),"") -> 7.7 | BS29: =IFERROR(ROUNDDOWN((MAX(BS$2,$J29) + 'C'!$D$57) / (MIN(BS$2,$J29) + 'C'!$D$57),1),"") -> 3.9 | BT29: =IFERROR(ROUNDDOWN((MAX(BT$2,$J29) + 'C'!$D$57) / (MIN(BT$2,$J29) + 'C'!$D$57),1),"") -> 8.7 | BU29: =IFERROR(ROUNDDOWN((MAX(BU$2,$J29) + 'C'!$D$57) / (MIN(BU$2,$J29) + 'C'!$D$57),1),"") -> 5 | BV29: =IFERROR(ROUNDDOWN((MAX(BV$2,$J29) + 'C'!$D$57) / (MIN(BV$2,$J29) + 'C'!$D$57),1),"") -> 3.8 | BW29: =IFERROR(ROUNDDOWN((MAX(BW$2,$J29) + 'C'!$D$57) / (MIN(BW$2,$J29) + 'C'!$D$57),1),"") -> 2.1 | BX29: =IFERROR(ROUNDDOWN((MAX(BX$2,$J29) + 'C'!$D$57) / (MIN(BX$2,$J29) + 'C'!$D$57),1),"") -> 1.3 | BY29: =IFERROR(ROUNDDOWN((MAX(BY$2,$J29) + 'C'!$D$57) / (MIN(BY$2,$J29) + 'C'!$D$57),1),"") -> 2.1 | BZ29: =IFERROR(ROUNDDOWN((MAX(BZ$2,$J29) + 'C'!$D$57) / (MIN(BZ$2,$J29) + 'C'!$D$57),1),"") -> 8.7 | CA29: =IFERROR(ROUNDDOWN((MAX(CA$2,$J29) + 'C'!$D$57) / (MIN(CA$2,$J29) + 'C'!$D$57),1),"") -> 1.8 | CB29: =IFERROR(ROUNDDOWN((MAX(CB$2,$J29) + 'C'!$D$57) / (MIN(CB$2,$J29) + 'C'!$D$57),1),"") -> 3.6 | CC29: =IFERROR(ROUNDDOWN((MAX(CC$2,$J29) + 'C'!$D$57) / (MIN(CC$2,$J29) + 'C'!$D$57),1),"") -> 1 | CD29: =IFERROR(ROUNDDOWN((MAX(CD$2,$J29) + 'C'!$D$57) / (MIN(CD$2,$J29) + 'C'!$D$57),1),"") -> 1 | CE29: =IFERROR(ROUNDDOWN((MAX(CE$2,$J29) + 'C'!$D$57) / (MIN(CE$2,$J29) + 'C'!$D$57),1),"") -> 1 | CF29: =IFERROR(ROUNDDOWN((MAX(CF$2,$J29) + 'C'!$D$57) / (MIN(CF$2,$J29) + 'C'!$D$57),1),"") -> 1 | CG29: =IFERROR(ROUNDDOWN((MAX(CG$2,$J29) + 'C'!$D$57) / (MIN(CG$2,$J29) + 'C'!$D$57),1),"") -> 1 | CH29: =IFERROR(ROUNDDOWN((MAX(CH$2,$J29) + 'C'!$D$57) / (MIN(CH$2,$J29) + 'C'!$D$57),1),"") -> 1 | CI29: =IFERROR(ROUNDDOWN((MAX(CI$2,$J29) + 'C'!$D$57) / (MIN(CI$2,$J29) + 'C'!$D$57),1),"") -> 1 | CJ29: =IFERROR(ROUNDDOWN((MAX(CJ$2,$J29) + 'C'!$D$57) / (MIN(CJ$2,$J29) + 'C'!$D$57),1),"") -> 1 | CK29: =IFERROR(ROUNDDOWN((MAX(CK$2,$J29) + 'C'!$D$57) / (MIN(CK$2,$J29) + 'C'!$D$57),1),"") -> 1 | CL29: =IFERROR(ROUNDDOWN((MAX(CL$2,$J29) + 'C'!$D$57) / (MIN(CL$2,$J29) + 'C'!$D$57),1),"") -> 1 | CM29: =IFERROR(ROUNDDOWN((MAX(CM$2,$J29) + 'C'!$D$57) / (MIN(CM$2,$J29) + 'C'!$D$57),1),"") -> 1 | CN29: =IFERROR(ROUNDDOWN((MAX(CN$2,$J29) + 'C'!$D$57) / (MIN(CN$2,$J29) + 'C'!$D$57),1),"") -> 1 | CO29: =IFERROR(ROUNDDOWN((MAX(CO$2,$J29) + 'C'!$D$57) / (MIN(CO$2,$J29) + 'C'!$D$57),1),"") -> 1 | CP29: =IFERROR(ROUNDDOWN((MAX(CP$2,$J29) + 'C'!$D$57) / (MIN(CP$2,$J29) + 'C'!$D$57),1),"") -> 1 | CQ29: =IFERROR(ROUNDDOWN((MAX(CQ$2,$J29) + 'C'!$D$57) / (MIN(CQ$2,$J29) + 'C'!$D$57),1),"") -> 1 | CR29: =IFERROR(ROUNDDOWN((MAX(CR$2,$J29) + 'C'!$D$57) / (MIN(CR$2,$J29) + 'C'!$D$57),1),"") -> 1 | CS29: =IFERROR(ROUNDDOWN((MAX(CS$2,$J29) + 'C'!$D$57) / (MIN(CS$2,$J29) + 'C'!$D$57),1),"") -> 1 | CT29: =IFERROR(ROUNDDOWN((MAX(CT$2,$J29) + 'C'!$D$57) / (MIN(CT$2,$J29) + 'C'!$D$57),1),"") -> 1 | CU29: =IFERROR(ROUNDDOWN((MAX(CU$2,$J29) + 'C'!$D$57) / (MIN(CU$2,$J29) + 'C'!$D$57),1),"") -> 1
B30: #ffffff | D30: 0 | E30: 0 | F30: 0 | I30: #FFFFFF | J30: 0.9999999648 | M30: 255 | N30: 255 | O30: 255 | Q30: 1 | R30: 1 | S30: 1 | U30: =IF($Q30 > 'C'!$D$33,((($Q30 + 'C'!$D$30) / 'C'!$D$31)) ^ 'C'!$D$32,($Q30 / 'C'!$D$29)) -> 1 | V30: =IF($R30 > 'C'!$D$33,((($R30 + 'C'!$D$30) / 'C'!$D$31)) ^ 'C'!$D$32,($R30 / 'C'!$D$29)) -> 1 | W30: =IF($S30 > 'C'!$D$33,((($S30 + 'C'!$D$30) / 'C'!$D$31)) ^ 'C'!$D$32,($S30 / 'C'!$D$29)) -> 1 | Y30: =('C'!$D$44 * $U30) +( 'C'!$D$45 * $V30) + ('C'!$D$46 * $W30) -> 1 | Z30: =ROUND( ('C'!$D$69 * $U30) + ('C'!$E$69 * $V30) + ('C'!$F$69 * $W30), 'C'!$D$75) -> 1 | AA30: =ROUND( ('C'!$D$70 * $U30) + ('C'!$E$70 * $V30) + ('C'!$F$70 * $W30), 'C'!$D$75) -> 1 | AB30: =ROUND( ('C'!$D$71 * $U30) + ('C'!$E$71 * $V30) + ('C'!$F$71 * $W30), 'C'!$D$75) -> 1 | AD30: =ROUND( ('C'!$D$82 * ($Z30^'C'!$D$89)) + ('C'!$E$82 * ($AA30^'C'!$D$89)) + ('C'!$F$82 * ($AB30^'C'!$D$89)), 'C'!$D$88) -> 0.99999999 | AE30: =ROUND( ('C'!$D$83 * ($Z30^'C'!$D$89)) + ('C'!$E$83 * ($AA30^'C'!$D$89)) + ('C'!$F$83 * ($AB30^'C'!$D$89)), 'C'!$D$88) -> 0 | AF30: =ROUND( ('C'!$D$84 * ($Z30^'C'!$D$89)) + ('C'!$E$84 * ($AA30^'C'!$D$89)) + ('C'!$F$84 * ($AB30^'C'!$D$89)), 'C'!$D$88) -> 4e-08 | AG30: 4e-08 | AH30: 90 | AJ30: 0.99999999 | AK30: 2.45029691e-24 | AL30: 4e-08 | AM30: =MIN(1,MAX(0,$AG30+($E30*$AG30))) -> 4e-08 | AN30: 90 | AP30: =ROUND( ('C'!$D$105 * $AJ30) + ('C'!$E$105 * $AK30) + ('C'!$F$105 * $AL30), 'C'!$D$111) ^ 'C'!$D$112 -> 1 | AQ30: =ROUND( ('C'!$D$106 * $AJ30) + ('C'!$E$106 * $AK30) + ('C'!$F$106 * $AL30), 'C'!$D$111) ^ 'C'!$D$112 -> 0.99999997 | AR30: =ROUND( ('C'!$D$107 * $AJ30) + ('C'!$E$107 * $AK30) + ('C'!$F$107 * $AL30), 'C'!$D$111) ^ 'C'!$D$112 -> 0.99999982 | AT30: =MIN(1, MAX(0, ROUND( ('C'!$D$119 * $AP30) + ('C'!$E$119 * $AQ30) + ('C'!$F$119 * $AR30), 'C'!$D$125))) -> 1 | AU30: =MIN(1,MAX(0,ROUND( ('C'!$D$120 * $AP30) + ('C'!$E$120 * $AQ30) + ('C'!$F$120 * $AR30), 'C'!$D$125))) -> 0.99999998 | AV30: =MIN(1,MAX(0,ROUND( ('C'!$D$121 * $AP30) + ('C'!$E$121 * $AQ30) + ('C'!$F$121 * $AR30), 'C'!$D$125))) -> 0.99999971 | AX30: =('C'!$D$44 * $AT30) +( 'C'!$D$45 * $AU30) + ('C'!$D$46 * $AV30) -> 0.9999999648 | AY30: =IF($AT30>'C'!$D$142, ($AT30 ^ (1/'C'!$D$141) * 'C'!$D$140) - 'C'!$D$139, $AT30 * 'C'!$D$138) -> 1 | AZ30: =IF($AU30>'C'!$D$142, ($AU30 ^ (1/'C'!$D$141) * 'C'!$D$140) - 'C'!$D$139, $AU30 * 'C'!$D$138) -> 0.9999999912 | BA30: =IF($AV30>'C'!$D$142, ($AV30 ^ (1/'C'!$D$141) * 'C'!$D$140) - 'C'!$D$139, $AV30 * 'C'!$D$138) -> 0.9999998725 | BC30: 255 | BD30: 255 | BE30: 255 | BH30: =IFERROR(ROUNDDOWN((MAX(BH$2,$J30) + 'C'!$D$57) / (MIN(BH$2,$J30) + 'C'!$D$57),1),"") -> 1.6 | BI30: =IFERROR(ROUNDDOWN((MAX(BI$2,$J30) + 'C'!$D$57) / (MIN(BI$2,$J30) + 'C'!$D$57),1),"") -> 1.7 | BJ30: =IFERROR(ROUNDDOWN((MAX(BJ$2,$J30) + 'C'!$D$57) / (MIN(BJ$2,$J30) + 'C'!$D$57),1),"") -> 1.5 | BK30: =IFERROR(ROUNDDOWN((MAX(BK$2,$J30) + 'C'!$D$57) / (MIN(BK$2,$J30) + 'C'!$D$57),1),"") -> 1 | BL30: =IFERROR(ROUNDDOWN((MAX(BL$2,$J30) + 'C'!$D$57) / (MIN(BL$2,$J30) + 'C'!$D$57),1),"") -> 20.9 | BM30: =IFERROR(ROUNDDOWN((MAX(BM$2,$J30) + 'C'!$D$57) / (MIN(BM$2,$J30) + 'C'!$D$57),1),"") -> 11.2 | BN30: =IFERROR(ROUNDDOWN((MAX(BN$2,$J30) + 'C'!$D$57) / (MIN(BN$2,$J30) + 'C'!$D$57),1),"") -> 18.9 | BO30: =IFERROR(ROUNDDOWN((MAX(BO$2,$J30) + 'C'!$D$57) / (MIN(BO$2,$J30) + 'C'!$D$57),1),"") -> 15.3 | BP30: =IFERROR(ROUNDDOWN((MAX(BP$2,$J30) + 'C'!$D$57) / (MIN(BP$2,$J30) + 'C'!$D$57),1),"") -> 1.5 | BQ30: =IFERROR(ROUNDDOWN((MAX(BQ$2,$J30) + 'C'!$D$57) / (MIN(BQ$2,$J30) + 'C'!$D$57),1),"") -> 1.2 | BR30: =IFERROR(ROUNDDOWN((MAX(BR$2,$J30) + 'C'!$D$57) / (MIN(BR$2,$J30) + 'C'!$D$57),1),"") -> 7.7 | BS30: =IFERROR(ROUNDDOWN((MAX(BS$2,$J30) + 'C'!$D$57) / (MIN(BS$2,$J30) + 'C'!$D$57),1),"") -> 3.9 | BT30: =IFERROR(ROUNDDOWN((MAX(BT$2,$J30) + 'C'!$D$57) / (MIN(BT$2,$J30) + 'C'!$D$57),1),"") -> 8.7 | BU30: =IFERROR(ROUNDDOWN((MAX(BU$2,$J30) + 'C'!$D$57) / (MIN(BU$2,$J30) + 'C'!$D$57),1),"") -> 5 | BV30: =IFERROR(ROUNDDOWN((MAX(BV$2,$J30) + 'C'!$D$57) / (MIN(BV$2,$J30) + 'C'!$D$57),1),"") -> 3.8 | BW30: =IFERROR(ROUNDDOWN((MAX(BW$2,$J30) + 'C'!$D$57) / (MIN(BW$2,$J30) + 'C'!$D$57),1),"") -> 2.1 | BX30: =IFERROR(ROUNDDOWN((MAX(BX$2,$J30) + 'C'!$D$57) / (MIN(BX$2,$J30) + 'C'!$D$57),1),"") -> 1.3 | BY30: =IFERROR(ROUNDDOWN((MAX(BY$2,$J30) + 'C'!$D$57) / (MIN(BY$2,$J30) + 'C'!$D$57),1),"") -> 2.1 | BZ30: =IFERROR(ROUNDDOWN((MAX(BZ$2,$J30) + 'C'!$D$57) / (MIN(BZ$2,$J30) + 'C'!$D$57),1),"") -> 8.7 | CA30: =IFERROR(ROUNDDOWN((MAX(CA$2,$J30) + 'C'!$D$57) / (MIN(CA$2,$J30) + 'C'!$D$57),1),"") -> 1.8 | CB30: =IFERROR(ROUNDDOWN((MAX(CB$2,$J30) + 'C'!$D$57) / (MIN(CB$2,$J30) + 'C'!$D$57),1),"") -> 3.6 | CC30: =IFERROR(ROUNDDOWN((MAX(CC$2,$J30) + 'C'!$D$57) / (MIN(CC$2,$J30) + 'C'!$D$57),1),"") -> 1 | CD30: =IFERROR(ROUNDDOWN((MAX(CD$2,$J30) + 'C'!$D$57) / (MIN(CD$2,$J30) + 'C'!$D$57),1),"") -> 1 | CE30: =IFERROR(ROUNDDOWN((MAX(CE$2,$J30) + 'C'!$D$57) / (MIN(CE$2,$J30) + 'C'!$D$57),1),"") -> 1 | CF30: =IFERROR(ROUNDDOWN((MAX(CF$2,$J30) + 'C'!$D$57) / (MIN(CF$2,$J30) + 'C'!$D$57),1),"") -> 1 | CG30: =IFERROR(ROUNDDOWN((MAX(CG$2,$J30) + 'C'!$D$57) / (MIN(CG$2,$J30) + 'C'!$D$57),1),"") -> 1 | CH30: =IFERROR(ROUNDDOWN((MAX(CH$2,$J30) + 'C'!$D$57) / (MIN(CH$2,$J30) + 'C'!$D$57),1),"") -> 1 | CI30: =IFERROR(ROUNDDOWN((MAX(CI$2,$J30) + 'C'!$D$57) / (MIN(CI$2,$J30) + 'C'!$D$57),1),"") -> 1 | CJ30: =IFERROR(ROUNDDOWN((MAX(CJ$2,$J30) + 'C'!$D$57) / (MIN(CJ$2,$J30) + 'C'!$D$57),1),"") -> 1 | CK30: =IFERROR(ROUNDDOWN((MAX(CK$2,$J30) + 'C'!$D$57) / (MIN(CK$2,$J30) + 'C'!$D$57),1),"") -> 1 | CL30: =IFERROR(ROUNDDOWN((MAX(CL$2,$J30) + 'C'!$D$57) / (MIN(CL$2,$J30) + 'C'!$D$57),1),"") -> 1 | CM30: =IFERROR(ROUNDDOWN((MAX(CM$2,$J30) + 'C'!$D$57) / (MIN(CM$2,$J30) + 'C'!$D$57),1),"") -> 1 | CN30: =IFERROR(ROUNDDOWN((MAX(CN$2,$J30) + 'C'!$D$57) / (MIN(CN$2,$J30) + 'C'!$D$57),1),"") -> 1 | CO30: =IFERROR(ROUNDDOWN((MAX(CO$2,$J30) + 'C'!$D$57) / (MIN(CO$2,$J30) + 'C'!$D$57),1),"") -> 1 | CP30: =IFERROR(ROUNDDOWN((MAX(CP$2,$J30) + 'C'!$D$57) / (MIN(CP$2,$J30) + 'C'!$D$57),1),"") -> 1 | CQ30: =IFERROR(ROUNDDOWN((MAX(CQ$2,$J30) + 'C'!$D$57) / (MIN(CQ$2,$J30) + 'C'!$D$57),1),"") -> 1 | CR30: =IFERROR(ROUNDDOWN((MAX(CR$2,$J30) + 'C'!$D$57) / (MIN(CR$2,$J30) + 'C'!$D$57),1),"") -> 1 | CS30: =IFERROR(ROUNDDOWN((MAX(CS$2,$J30) + 'C'!$D$57) / (MIN(CS$2,$J30) + 'C'!$D$57),1),"") -> 1 | CT30: =IFERROR(ROUNDDOWN((MAX(CT$2,$J30) + 'C'!$D$57) / (MIN(CT$2,$J30) + 'C'!$D$57),1),"") -> 1 | CU30: =IFERROR(ROUNDDOWN((MAX(CU$2,$J30) + 'C'!$D$57) / (MIN(CU$2,$J30) + 'C'!$D$57),1),"") -> 1
B31: #ffffff | D31: 0 | E31: 0 | F31: 0 | I31: #FFFFFF | J31: 0.9999999648 | M31: 255 | N31: 255 | O31: 255 | Q31: 1 | R31: 1 | S31: 1 | U31: =IF($Q31 > 'C'!$D$33,((($Q31 + 'C'!$D$30) / 'C'!$D$31)) ^ 'C'!$D$32,($Q31 / 'C'!$D$29)) -> 1 | V31: =IF($R31 > 'C'!$D$33,((($R31 + 'C'!$D$30) / 'C'!$D$31)) ^ 'C'!$D$32,($R31 / 'C'!$D$29)) -> 1 | W31: =IF($S31 > 'C'!$D$33,((($S31 + 'C'!$D$30) / 'C'!$D$31)) ^ 'C'!$D$32,($S31 / 'C'!$D$29)) -> 1 | Y31: =('C'!$D$44 * $U31) +( 'C'!$D$45 * $V31) + ('C'!$D$46 * $W31) -> 1 | Z31: =ROUND( ('C'!$D$69 * $U31) + ('C'!$E$69 * $V31) + ('C'!$F$69 * $W31), 'C'!$D$75) -> 1 | AA31: =ROUND( ('C'!$D$70 * $U31) + ('C'!$E$70 * $V31) + ('C'!$F$70 * $W31), 'C'!$D$75) -> 1 | AB31: =ROUND( ('C'!$D$71 * $U31) + ('C'!$E$71 * $V31) + ('C'!$F$71 * $W31), 'C'!$D$75) -> 1 | AD31: =ROUND( ('C'!$D$82 * ($Z31^'C'!$D$89)) + ('C'!$E$82 * ($AA31^'C'!$D$89)) + ('C'!$F$82 * ($AB31^'C'!$D$89)), 'C'!$D$88) -> 0.99999999 | AE31: =ROUND( ('C'!$D$83 * ($Z31^'C'!$D$89)) + ('C'!$E$83 * ($AA31^'C'!$D$89)) + ('C'!$F$83 * ($AB31^'C'!$D$89)), 'C'!$D$88) -> 0 | AF31: =ROUND( ('C'!$D$84 * ($Z31^'C'!$D$89)) + ('C'!$E$84 * ($AA31^'C'!$D$89)) + ('C'!$F$84 * ($AB31^'C'!$D$89)), 'C'!$D$88) -> 4e-08 | AG31: 4e-08 | AH31: 90 | AJ31: 0.99999999 | AK31: 2.45029691e-24 | AL31: 4e-08 | AM31: =MIN(1,MAX(0,$AG31+($E31*$AG31))) -> 4e-08 | AN31: 90 | AP31: =ROUND( ('C'!$D$105 * $AJ31) + ('C'!$E$105 * $AK31) + ('C'!$F$105 * $AL31), 'C'!$D$111) ^ 'C'!$D$112 -> 1 | AQ31: =ROUND( ('C'!$D$106 * $AJ31) + ('C'!$E$106 * $AK31) + ('C'!$F$106 * $AL31), 'C'!$D$111) ^ 'C'!$D$112 -> 0.99999997 | AR31: =ROUND( ('C'!$D$107 * $AJ31) + ('C'!$E$107 * $AK31) + ('C'!$F$107 * $AL31), 'C'!$D$111) ^ 'C'!$D$112 -> 0.99999982 | AT31: =MIN(1, MAX(0, ROUND( ('C'!$D$119 * $AP31) + ('C'!$E$119 * $AQ31) + ('C'!$F$119 * $AR31), 'C'!$D$125))) -> 1 | AU31: =MIN(1,MAX(0,ROUND( ('C'!$D$120 * $AP31) + ('C'!$E$120 * $AQ31) + ('C'!$F$120 * $AR31), 'C'!$D$125))) -> 0.99999998 | AV31: =MIN(1,MAX(0,ROUND( ('C'!$D$121 * $AP31) + ('C'!$E$121 * $AQ31) + ('C'!$F$121 * $AR31), 'C'!$D$125))) -> 0.99999971 | AX31: =('C'!$D$44 * $AT31) +( 'C'!$D$45 * $AU31) + ('C'!$D$46 * $AV31) -> 0.9999999648 | AY31: =IF($AT31>'C'!$D$142, ($AT31 ^ (1/'C'!$D$141) * 'C'!$D$140) - 'C'!$D$139, $AT31 * 'C'!$D$138) -> 1 | AZ31: =IF($AU31>'C'!$D$142, ($AU31 ^ (1/'C'!$D$141) * 'C'!$D$140) - 'C'!$D$139, $AU31 * 'C'!$D$138) -> 0.9999999912 | BA31: =IF($AV31>'C'!$D$142, ($AV31 ^ (1/'C'!$D$141) * 'C'!$D$140) - 'C'!$D$139, $AV31 * 'C'!$D$138) -> 0.9999998725 | BC31: 255 | BD31: 255 | BE31: 255 | BH31: =IFERROR(ROUNDDOWN((MAX(BH$2,$J31) + 'C'!$D$57) / (MIN(BH$2,$J31) + 'C'!$D$57),1),"") -> 1.6 | BI31: =IFERROR(ROUNDDOWN((MAX(BI$2,$J31) + 'C'!$D$57) / (MIN(BI$2,$J31) + 'C'!$D$57),1),"") -> 1.7 | BJ31: =IFERROR(ROUNDDOWN((MAX(BJ$2,$J31) + 'C'!$D$57) / (MIN(BJ$2,$J31) + 'C'!$D$57),1),"") -> 1.5 | BK31: =IFERROR(ROUNDDOWN((MAX(BK$2,$J31) + 'C'!$D$57) / (MIN(BK$2,$J31) + 'C'!$D$57),1),"") -> 1 | BL31: =IFERROR(ROUNDDOWN((MAX(BL$2,$J31) + 'C'!$D$57) / (MIN(BL$2,$J31) + 'C'!$D$57),1),"") -> 20.9 | BM31: =IFERROR(ROUNDDOWN((MAX(BM$2,$J31) + 'C'!$D$57) / (MIN(BM$2,$J31) + 'C'!$D$57),1),"") -> 11.2 | BN31: =IFERROR(ROUNDDOWN((MAX(BN$2,$J31) + 'C'!$D$57) / (MIN(BN$2,$J31) + 'C'!$D$57),1),"") -> 18.9 | BO31: =IFERROR(ROUNDDOWN((MAX(BO$2,$J31) + 'C'!$D$57) / (MIN(BO$2,$J31) + 'C'!$D$57),1),"") -> 15.3 | BP31: =IFERROR(ROUNDDOWN((MAX(BP$2,$J31) + 'C'!$D$57) / (MIN(BP$2,$J31) + 'C'!$D$57),1),"") -> 1.5 | BQ31: =IFERROR(ROUNDDOWN((MAX(BQ$2,$J31) + 'C'!$D$57) / (MIN(BQ$2,$J31) + 'C'!$D$57),1),"") -> 1.2 | BR31: =IFERROR(ROUNDDOWN((MAX(BR$2,$J31) + 'C'!$D$57) / (MIN(BR$2,$J31) + 'C'!$D$57),1),"") -> 7.7 | BS31: =IFERROR(ROUNDDOWN((MAX(BS$2,$J31) + 'C'!$D$57) / (MIN(BS$2,$J31) + 'C'!$D$57),1),"") -> 3.9 | BT31: =IFERROR(ROUNDDOWN((MAX(BT$2,$J31) + 'C'!$D$57) / (MIN(BT$2,$J31) + 'C'!$D$57),1),"") -> 8.7 | BU31: =IFERROR(ROUNDDOWN((MAX(BU$2,$J31) + 'C'!$D$57) / (MIN(BU$2,$J31) + 'C'!$D$57),1),"") -> 5 | BV31: =IFERROR(ROUNDDOWN((MAX(BV$2,$J31) + 'C'!$D$57) / (MIN(BV$2,$J31) + 'C'!$D$57),1),"") -> 3.8 | BW31: =IFERROR(ROUNDDOWN((MAX(BW$2,$J31) + 'C'!$D$57) / (MIN(BW$2,$J31) + 'C'!$D$57),1),"") -> 2.1 | BX31: =IFERROR(ROUNDDOWN((MAX(BX$2,$J31) + 'C'!$D$57) / (MIN(BX$2,$J31) + 'C'!$D$57),1),"") -> 1.3 | BY31: =IFERROR(ROUNDDOWN((MAX(BY$2,$J31) + 'C'!$D$57) / (MIN(BY$2,$J31) + 'C'!$D$57),1),"") -> 2.1 | BZ31: =IFERROR(ROUNDDOWN((MAX(BZ$2,$J31) + 'C'!$D$57) / (MIN(BZ$2,$J31) + 'C'!$D$57),1),"") -> 8.7 | CA31: =IFERROR(ROUNDDOWN((MAX(CA$2,$J31) + 'C'!$D$57) / (MIN(CA$2,$J31) + 'C'!$D$57),1),"") -> 1.8 | CB31: =IFERROR(ROUNDDOWN((MAX(CB$2,$J31) + 'C'!$D$57) / (MIN(CB$2,$J31) + 'C'!$D$57),1),"") -> 3.6 | CC31: =IFERROR(ROUNDDOWN((MAX(CC$2,$J31) + 'C'!$D$57) / (MIN(CC$2,$J31) + 'C'!$D$57),1),"") -> 1 | CD31: =IFERROR(ROUNDDOWN((MAX(CD$2,$J31) + 'C'!$D$57) / (MIN(CD$2,$J31) + 'C'!$D$57),1),"") -> 1 | CE31: =IFERROR(ROUNDDOWN((MAX(CE$2,$J31) + 'C'!$D$57) / (MIN(CE$2,$J31) + 'C'!$D$57),1),"") -> 1 | CF31: =IFERROR(ROUNDDOWN((MAX(CF$2,$J31) + 'C'!$D$57) / (MIN(CF$2,$J31) + 'C'!$D$57),1),"") -> 1 | CG31: =IFERROR(ROUNDDOWN((MAX(CG$2,$J31) + 'C'!$D$57) / (MIN(CG$2,$J31) + 'C'!$D$57),1),"") -> 1 | CH31: =IFERROR(ROUNDDOWN((MAX(CH$2,$J31) + 'C'!$D$57) / (MIN(CH$2,$J31) + 'C'!$D$57),1),"") -> 1 | CI31: =IFERROR(ROUNDDOWN((MAX(CI$2,$J31) + 'C'!$D$57) / (MIN(CI$2,$J31) + 'C'!$D$57),1),"") -> 1 | CJ31: =IFERROR(ROUNDDOWN((MAX(CJ$2,$J31) + 'C'!$D$57) / (MIN(CJ$2,$J31) + 'C'!$D$57),1),"") -> 1 | CK31: =IFERROR(ROUNDDOWN((MAX(CK$2,$J31) + 'C'!$D$57) / (MIN(CK$2,$J31) + 'C'!$D$57),1),"") -> 1 | CL31: =IFERROR(ROUNDDOWN((MAX(CL$2,$J31) + 'C'!$D$57) / (MIN(CL$2,$J31) + 'C'!$D$57),1),"") -> 1 | CM31: =IFERROR(ROUNDDOWN((MAX(CM$2,$J31) + 'C'!$D$57) / (MIN(CM$2,$J31) + 'C'!$D$57),1),"") -> 1 | CN31: =IFERROR(ROUNDDOWN((MAX(CN$2,$J31) + 'C'!$D$57) / (MIN(CN$2,$J31) + 'C'!$D$57),1),"") -> 1 | CO31: =IFERROR(ROUNDDOWN((MAX(CO$2,$J31) + 'C'!$D$57) / (MIN(CO$2,$J31) + 'C'!$D$57),1),"") -> 1 | CP31: =IFERROR(ROUNDDOWN((MAX(CP$2,$J31) + 'C'!$D$57) / (MIN(CP$2,$J31) + 'C'!$D$57),1),"") -> 1 | CQ31: =IFERROR(ROUNDDOWN((MAX(CQ$2,$J31) + 'C'!$D$57) / (MIN(CQ$2,$J31) + 'C'!$D$57),1),"") -> 1 | CR31: =IFERROR(ROUNDDOWN((MAX(CR$2,$J31) + 'C'!$D$57) / (MIN(CR$2,$J31) + 'C'!$D$57),1),"") -> 1 | CS31: =IFERROR(ROUNDDOWN((MAX(CS$2,$J31) + 'C'!$D$57) / (MIN(CS$2,$J31) + 'C'!$D$57),1),"") -> 1 | CT31: =IFERROR(ROUNDDOWN((MAX(CT$2,$J31) + 'C'!$D$57) / (MIN(CT$2,$J31) + 'C'!$D$57),1),"") -> 1 | CU31: =IFERROR(ROUNDDOWN((MAX(CU$2,$J31) + 'C'!$D$57) / (MIN(CU$2,$J31) + 'C'!$D$57),1),"") -> 1
B32: #ffffff | D32: 0 | E32: 0 | F32: 0 | I32: #FFFFFF | J32: 0.9999999648 | M32: 255 | N32: 255 | O32: 255 | Q32: 1 | R32: 1 | S32: 1 | U32: =IF($Q32 > 'C'!$D$33,((($Q32 + 'C'!$D$30) / 'C'!$D$31)) ^ 'C'!$D$32,($Q32 / 'C'!$D$29)) -> 1 | V32: =IF($R32 > 'C'!$D$33,((($R32 + 'C'!$D$30) / 'C'!$D$31)) ^ 'C'!$D$32,($R32 / 'C'!$D$29)) -> 1 | W32: =IF($S32 > 'C'!$D$33,((($S32 + 'C'!$D$30) / 'C'!$D$31)) ^ 'C'!$D$32,($S32 / 'C'!$D$29)) -> 1 | Y32: =('C'!$D$44 * $U32) +( 'C'!$D$45 * $V32) + ('C'!$D$46 * $W32) -> 1 | Z32: =ROUND( ('C'!$D$69 * $U32) + ('C'!$E$69 * $V32) + ('C'!$F$69 * $W32), 'C'!$D$75) -> 1 | AA32: =ROUND( ('C'!$D$70 * $U32) + ('C'!$E$70 * $V32) + ('C'!$F$70 * $W32), 'C'!$D$75) -> 1 | AB32: =ROUND( ('C'!$D$71 * $U32) + ('C'!$E$71 * $V32) + ('C'!$F$71 * $W32), 'C'!$D$75) -> 1 | AD32: =ROUND( ('C'!$D$82 * ($Z32^'C'!$D$89)) + ('C'!$E$82 * ($AA32^'C'!$D$89)) + ('C'!$F$82 * ($AB32^'C'!$D$89)), 'C'!$D$88) -> 0.99999999 | AE32: =ROUND( ('C'!$D$83 * ($Z32^'C'!$D$89)) + ('C'!$E$83 * ($AA32^'C'!$D$89)) + ('C'!$F$83 * ($AB32^'C'!$D$89)), 'C'!$D$88) -> 0 | AF32: =ROUND( ('C'!$D$84 * ($Z32^'C'!$D$89)) + ('C'!$E$84 * ($AA32^'C'!$D$89)) + ('C'!$F$84 * ($AB32^'C'!$D$89)), 'C'!$D$88) -> 4e-08 | AG32: 4e-08 | AH32: 90 | AJ32: 0.99999999 | AK32: 2.45029691e-24 | AL32: 4e-08 | AM32: 4e-08 | AN32: 90 | AP32: =ROUND( ('C'!$D$105 * $AJ32) + ('C'!$E$105 * $AK32) + ('C'!$F$105 * $AL32), 'C'!$D$111) ^ 'C'!$D$112 -> 1 | AQ32: =ROUND( ('C'!$D$106 * $AJ32) + ('C'!$E$106 * $AK32) + ('C'!$F$106 * $AL32), 'C'!$D$111) ^ 'C'!$D$112 -> 0.99999997 | AR32: =ROUND( ('C'!$D$107 * $AJ32) + ('C'!$E$107 * $AK32) + ('C'!$F$107 * $AL32), 'C'!$D$111) ^ 'C'!$D$112 -> 0.99999982 | AT32: =MIN(1, MAX(0, ROUND( ('C'!$D$119 * $AP32) + ('C'!$E$119 * $AQ32) + ('C'!$F$119 * $AR32), 'C'!$D$125))) -> 1 | AU32: =MIN(1,MAX(0,ROUND( ('C'!$D$120 * $AP32) + ('C'!$E$120 * $AQ32) + ('C'!$F$120 * $AR32), 'C'!$D$125))) -> 0.99999998 | AV32: =MIN(1,MAX(0,ROUND( ('C'!$D$121 * $AP32) + ('C'!$E$121 * $AQ32) + ('C'!$F$121 * $AR32), 'C'!$D$125))) -> 0.99999971 | AX32: =('C'!$D$44 * $AT32) +( 'C'!$D$45 * $AU32) + ('C'!$D$46 * $AV32) -> 0.9999999648 | AY32: =IF($AT32>'C'!$D$142, ($AT32 ^ (1/'C'!$D$141) * 'C'!$D$140) - 'C'!$D$139, $AT32 * 'C'!$D$138) -> 1 | AZ32: =IF($AU32>'C'!$D$142, ($AU32 ^ (1/'C'!$D$141) * 'C'!$D$140) - 'C'!$D$139, $AU32 * 'C'!$D$138) -> 0.9999999912 | BA32: =IF($AV32>'C'!$D$142, ($AV32 ^ (1/'C'!$D$141) * 'C'!$D$140) - 'C'!$D$139, $AV32 * 'C'!$D$138) -> 0.9999998725 | BC32: 255 | BD32: 255 | BE32: 255 | BH32: =IFERROR(ROUNDDOWN((MAX(BH$2,$J32) + 'C'!$D$57) / (MIN(BH$2,$J32) + 'C'!$D$57),1),"") -> 1.6 | BI32: =IFERROR(ROUNDDOWN((MAX(BI$2,$J32) + 'C'!$D$57) / (MIN(BI$2,$J32) + 'C'!$D$57),1),"") -> 1.7 | BJ32: =IFERROR(ROUNDDOWN((MAX(BJ$2,$J32) + 'C'!$D$57) / (MIN(BJ$2,$J32) + 'C'!$D$57),1),"") -> 1.5 | BK32: =IFERROR(ROUNDDOWN((MAX(BK$2,$J32) + 'C'!$D$57) / (MIN(BK$2,$J32) + 'C'!$D$57),1),"") -> 1 | BL32: =IFERROR(ROUNDDOWN((MAX(BL$2,$J32) + 'C'!$D$57) / (MIN(BL$2,$J32) + 'C'!$D$57),1),"") -> 20.9 | BM32: =IFERROR(ROUNDDOWN((MAX(BM$2,$J32) + 'C'!$D$57) / (MIN(BM$2,$J32) + 'C'!$D$57),1),"") -> 11.2 | BN32: =IFERROR(ROUNDDOWN((MAX(BN$2,$J32) + 'C'!$D$57) / (MIN(BN$2,$J32) + 'C'!$D$57),1),"") -> 18.9 | BO32: =IFERROR(ROUNDDOWN((MAX(BO$2,$J32) + 'C'!$D$57) / (MIN(BO$2,$J32) + 'C'!$D$57),1),"") -> 15.3 | BP32: =IFERROR(ROUNDDOWN((MAX(BP$2,$J32) + 'C'!$D$57) / (MIN(BP$2,$J32) + 'C'!$D$57),1),"") -> 1.5 | BQ32: =IFERROR(ROUNDDOWN((MAX(BQ$2,$J32) + 'C'!$D$57) / (MIN(BQ$2,$J32) + 'C'!$D$57),1),"") -> 1.2 | BR32: =IFERROR(ROUNDDOWN((MAX(BR$2,$J32) + 'C'!$D$57) / (MIN(BR$2,$J32) + 'C'!$D$57),1),"") -> 7.7 | BS32: =IFERROR(ROUNDDOWN((MAX(BS$2,$J32) + 'C'!$D$57) / (MIN(BS$2,$J32) + 'C'!$D$57),1),"") -> 3.9 | BT32: =IFERROR(ROUNDDOWN((MAX(BT$2,$J32) + 'C'!$D$57) / (MIN(BT$2,$J32) + 'C'!$D$57),1),"") -> 8.7 | BU32: =IFERROR(ROUNDDOWN((MAX(BU$2,$J32) + 'C'!$D$57) / (MIN(BU$2,$J32) + 'C'!$D$57),1),"") -> 5 | BV32: =IFERROR(ROUNDDOWN((MAX(BV$2,$J32) + 'C'!$D$57) / (MIN(BV$2,$J32) + 'C'!$D$57),1),"") -> 3.8 | BW32: =IFERROR(ROUNDDOWN((MAX(BW$2,$J32) + 'C'!$D$57) / (MIN(BW$2,$J32) + 'C'!$D$57),1),"") -> 2.1 | BX32: =IFERROR(ROUNDDOWN((MAX(BX$2,$J32) + 'C'!$D$57) / (MIN(BX$2,$J32) + 'C'!$D$57),1),"") -> 1.3 | BY32: =IFERROR(ROUNDDOWN((MAX(BY$2,$J32) + 'C'!$D$57) / (MIN(BY$2,$J32) + 'C'!$D$57),1),"") -> 2.1 | BZ32: =IFERROR(ROUNDDOWN((MAX(BZ$2,$J32) + 'C'!$D$57) / (MIN(BZ$2,$J32) + 'C'!$D$57),1),"") -> 8.7 | CA32: =IFERROR(ROUNDDOWN((MAX(CA$2,$J32) + 'C'!$D$57) / (MIN(CA$2,$J32) + 'C'!$D$57),1),"") -> 1.8 | CB32: =IFERROR(ROUNDDOWN((MAX(CB$2,$J32) + 'C'!$D$57) / (MIN(CB$2,$J32) + 'C'!$D$57),1),"") -> 3.6 | CC32: =IFERROR(ROUNDDOWN((MAX(CC$2,$J32) + 'C'!$D$57) / (MIN(CC$2,$J32) + 'C'!$D$57),1),"") -> 1 | CD32: =IFERROR(ROUNDDOWN((MAX(CD$2,$J32) + 'C'!$D$57) / (MIN(CD$2,$J32) + 'C'!$D$57),1),"") -> 1 | CE32: =IFERROR(ROUNDDOWN((MAX(CE$2,$J32) + 'C'!$D$57) / (MIN(CE$2,$J32) + 'C'!$D$57),1),"") -> 1 | CF32: =IFERROR(ROUNDDOWN((MAX(CF$2,$J32) + 'C'!$D$57) / (MIN(CF$2,$J32) + 'C'!$D$57),1),"") -> 1 | CG32: =IFERROR(ROUNDDOWN((MAX(CG$2,$J32) + 'C'!$D$57) / (MIN(CG$2,$J32) + 'C'!$D$57),1),"") -> 1 | CH32: =IFERROR(ROUNDDOWN((MAX(CH$2,$J32) + 'C'!$D$57) / (MIN(CH$2,$J32) + 'C'!$D$57),1),"") -> 1 | CI32: =IFERROR(ROUNDDOWN((MAX(CI$2,$J32) + 'C'!$D$57) / (MIN(CI$2,$J32) + 'C'!$D$57),1),"") -> 1 | CJ32: =IFERROR(ROUNDDOWN((MAX(CJ$2,$J32) + 'C'!$D$57) / (MIN(CJ$2,$J32) + 'C'!$D$57),1),"") -> 1 | CK32: =IFERROR(ROUNDDOWN((MAX(CK$2,$J32) + 'C'!$D$57) / (MIN(CK$2,$J32) + 'C'!$D$57),1),"") -> 1 | CL32: =IFERROR(ROUNDDOWN((MAX(CL$2,$J32) + 'C'!$D$57) / (MIN(CL$2,$J32) + 'C'!$D$57),1),"") -> 1 | CM32: =IFERROR(ROUNDDOWN((MAX(CM$2,$J32) + 'C'!$D$57) / (MIN(CM$2,$J32) + 'C'!$D$57),1),"") -> 1 | CN32: =IFERROR(ROUNDDOWN((MAX(CN$2,$J32) + 'C'!$D$57) / (MIN(CN$2,$J32) + 'C'!$D$57),1),"") -> 1 | CO32: =IFERROR(ROUNDDOWN((MAX(CO$2,$J32) + 'C'!$D$57) / (MIN(CO$2,$J32) + 'C'!$D$57),1),"") -> 1 | CP32: =IFERROR(ROUNDDOWN((MAX(CP$2,$J32) + 'C'!$D$57) / (MIN(CP$2,$J32) + 'C'!$D$57),1),"") -> 1 | CQ32: =IFERROR(ROUNDDOWN((MAX(CQ$2,$J32) + 'C'!$D$57) / (MIN(CQ$2,$J32) + 'C'!$D$57),1),"") -> 1 | CR32: =IFERROR(ROUNDDOWN((MAX(CR$2,$J32) + 'C'!$D$57) / (MIN(CR$2,$J32) + 'C'!$D$57),1),"") -> 1 | CS32: =IFERROR(ROUNDDOWN((MAX(CS$2,$J32) + 'C'!$D$57) / (MIN(CS$2,$J32) + 'C'!$D$57),1),"") -> 1 | CT32: =IFERROR(ROUNDDOWN((MAX(CT$2,$J32) + 'C'!$D$57) / (MIN(CT$2,$J32) + 'C'!$D$57),1),"") -> 1 | CU32: =IFERROR(ROUNDDOWN((MAX(CU$2,$J32) + 'C'!$D$57) / (MIN(CU$2,$J32) + 'C'!$D$57),1),"") -> 1
B33: #ffffff | D33: 0 | E33: 0 | F33: 0 | I33: #FFFFFF | J33: 0.9999999648 | M33: 255 | N33: 255 | O33: 255 | Q33: 1 | R33: 1 | S33: 1 | U33: =IF($Q33 > 'C'!$D$33,((($Q33 + 'C'!$D$30) / 'C'!$D$31)) ^ 'C'!$D$32,($Q33 / 'C'!$D$29)) -> 1 | V33: =IF($R33 > 'C'!$D$33,((($R33 + 'C'!$D$30) / 'C'!$D$31)) ^ 'C'!$D$32,($R33 / 'C'!$D$29)) -> 1 | W33: =IF($S33 > 'C'!$D$33,((($S33 + 'C'!$D$30) / 'C'!$D$31)) ^ 'C'!$D$32,($S33 / 'C'!$D$29)) -> 1 | Y33: =('C'!$D$44 * $U33) +( 'C'!$D$45 * $V33) + ('C'!$D$46 * $W33) -> 1 | Z33: =ROUND( ('C'!$D$69 * $U33) + ('C'!$E$69 * $V33) + ('C'!$F$69 * $W33), 'C'!$D$75) -> 1 | AA33: =ROUND( ('C'!$D$70 * $U33) + ('C'!$E$70 * $V33) + ('C'!$F$70 * $W33), 'C'!$D$75) -> 1 | AB33: =ROUND( ('C'!$D$71 * $U33) + ('C'!$E$71 * $V33) + ('C'!$F$71 * $W33), 'C'!$D$75) -> 1 | AD33: =ROUND( ('C'!$D$82 * ($Z33^'C'!$D$89)) + ('C'!$E$82 * ($AA33^'C'!$D$89)) + ('C'!$F$82 * ($AB33^'C'!$D$89)), 'C'!$D$88) -> 0.99999999 | AE33: =ROUND( ('C'!$D$83 * ($Z33^'C'!$D$89)) + ('C'!$E$83 * ($AA33^'C'!$D$89)) + ('C'!$F$83 * ($AB33^'C'!$D$89)), 'C'!$D$88) -> 0 | AF33: =ROUND( ('C'!$D$84 * ($Z33^'C'!$D$89)) + ('C'!$E$84 * ($AA33^'C'!$D$89)) + ('C'!$F$84 * ($AB33^'C'!$D$89)), 'C'!$D$88) -> 4e-08 | AG33: 4e-08 | AH33: 90 | AJ33: 0.99999999 | AK33: 2.45029691e-24 | AL33: 4e-08 | AM33: 4e-08 | AN33: 90 | AP33: =ROUND( ('C'!$D$105 * $AJ33) + ('C'!$E$105 * $AK33) + ('C'!$F$105 * $AL33), 'C'!$D$111) ^ 'C'!$D$112 -> 1 | AQ33: =ROUND( ('C'!$D$106 * $AJ33) + ('C'!$E$106 * $AK33) + ('C'!$F$106 * $AL33), 'C'!$D$111) ^ 'C'!$D$112 -> 0.99999997 | AR33: =ROUND( ('C'!$D$107 * $AJ33) + ('C'!$E$107 * $AK33) + ('C'!$F$107 * $AL33), 'C'!$D$111) ^ 'C'!$D$112 -> 0.99999982 | AT33: =MIN(1, MAX(0, ROUND( ('C'!$D$119 * $AP33) + ('C'!$E$119 * $AQ33) + ('C'!$F$119 * $AR33), 'C'!$D$125))) -> 1 | AU33: =MIN(1,MAX(0,ROUND( ('C'!$D$120 * $AP33) + ('C'!$E$120 * $AQ33) + ('C'!$F$120 * $AR33), 'C'!$D$125))) -> 0.99999998 | AV33: =MIN(1,MAX(0,ROUND( ('C'!$D$121 * $AP33) + ('C'!$E$121 * $AQ33) + ('C'!$F$121 * $AR33), 'C'!$D$125))) -> 0.99999971 | AX33: =('C'!$D$44 * $AT33) +( 'C'!$D$45 * $AU33) + ('C'!$D$46 * $AV33) -> 0.9999999648 | AY33: =IF($AT33>'C'!$D$142, ($AT33 ^ (1/'C'!$D$141) * 'C'!$D$140) - 'C'!$D$139, $AT33 * 'C'!$D$138) -> 1 | AZ33: =IF($AU33>'C'!$D$142, ($AU33 ^ (1/'C'!$D$141) * 'C'!$D$140) - 'C'!$D$139, $AU33 * 'C'!$D$138) -> 0.9999999912 | BA33: =IF($AV33>'C'!$D$142, ($AV33 ^ (1/'C'!$D$141) * 'C'!$D$140) - 'C'!$D$139, $AV33 * 'C'!$D$138) -> 0.9999998725 | BC33: 255 | BD33: 255 | BE33: 255 | BH33: =IFERROR(ROUNDDOWN((MAX(BH$2,$J33) + 'C'!$D$57) / (MIN(BH$2,$J33) + 'C'!$D$57),1),"") -> 1.6 | BI33: =IFERROR(ROUNDDOWN((MAX(BI$2,$J33) + 'C'!$D$57) / (MIN(BI$2,$J33) + 'C'!$D$57),1),"") -> 1.7 | BJ33: =IFERROR(ROUNDDOWN((MAX(BJ$2,$J33) + 'C'!$D$57) / (MIN(BJ$2,$J33) + 'C'!$D$57),1),"") -> 1.5 | BK33: =IFERROR(ROUNDDOWN((MAX(BK$2,$J33) + 'C'!$D$57) / (MIN(BK$2,$J33) + 'C'!$D$57),1),"") -> 1 | BL33: =IFERROR(ROUNDDOWN((MAX(BL$2,$J33) + 'C'!$D$57) / (MIN(BL$2,$J33) + 'C'!$D$57),1),"") -> 20.9 | BM33: =IFERROR(ROUNDDOWN((MAX(BM$2,$J33) + 'C'!$D$57) / (MIN(BM$2,$J33) + 'C'!$D$57),1),"") -> 11.2 | BN33: =IFERROR(ROUNDDOWN((MAX(BN$2,$J33) + 'C'!$D$57) / (MIN(BN$2,$J33) + 'C'!$D$57),1),"") -> 18.9 | BO33: =IFERROR(ROUNDDOWN((MAX(BO$2,$J33) + 'C'!$D$57) / (MIN(BO$2,$J33) + 'C'!$D$57),1),"") -> 15.3 | BP33: =IFERROR(ROUNDDOWN((MAX(BP$2,$J33) + 'C'!$D$57) / (MIN(BP$2,$J33) + 'C'!$D$57),1),"") -> 1.5 | BQ33: =IFERROR(ROUNDDOWN((MAX(BQ$2,$J33) + 'C'!$D$57) / (MIN(BQ$2,$J33) + 'C'!$D$57),1),"") -> 1.2 | BR33: =IFERROR(ROUNDDOWN((MAX(BR$2,$J33) + 'C'!$D$57) / (MIN(BR$2,$J33) + 'C'!$D$57),1),"") -> 7.7 | BS33: =IFERROR(ROUNDDOWN((MAX(BS$2,$J33) + 'C'!$D$57) / (MIN(BS$2,$J33) + 'C'!$D$57),1),"") -> 3.9 | BT33: =IFERROR(ROUNDDOWN((MAX(BT$2,$J33) + 'C'!$D$57) / (MIN(BT$2,$J33) + 'C'!$D$57),1),"") -> 8.7 | BU33: =IFERROR(ROUNDDOWN((MAX(BU$2,$J33) + 'C'!$D$57) / (MIN(BU$2,$J33) + 'C'!$D$57),1),"") -> 5 | BV33: =IFERROR(ROUNDDOWN((MAX(BV$2,$J33) + 'C'!$D$57) / (MIN(BV$2,$J33) + 'C'!$D$57),1),"") -> 3.8 | BW33: =IFERROR(ROUNDDOWN((MAX(BW$2,$J33) + 'C'!$D$57) / (MIN(BW$2,$J33) + 'C'!$D$57),1),"") -> 2.1 | BX33: =IFERROR(ROUNDDOWN((MAX(BX$2,$J33) + 'C'!$D$57) / (MIN(BX$2,$J33) + 'C'!$D$57),1),"") -> 1.3 | BY33: =IFERROR(ROUNDDOWN((MAX(BY$2,$J33) + 'C'!$D$57) / (MIN(BY$2,$J33) + 'C'!$D$57),1),"") -> 2.1 | BZ33: =IFERROR(ROUNDDOWN((MAX(BZ$2,$J33) + 'C'!$D$57) / (MIN(BZ$2,$J33) + 'C'!$D$57),1),"") -> 8.7 | CA33: =IFERROR(ROUNDDOWN((MAX(CA$2,$J33) + 'C'!$D$57) / (MIN(CA$2,$J33) + 'C'!$D$57),1),"") -> 1.8 | CB33: =IFERROR(ROUNDDOWN((MAX(CB$2,$J33) + 'C'!$D$57) / (MIN(CB$2,$J33) + 'C'!$D$57),1),"") -> 3.6 | CC33: =IFERROR(ROUNDDOWN((MAX(CC$2,$J33) + 'C'!$D$57) / (MIN(CC$2,$J33) + 'C'!$D$57),1),"") -> 1 | CD33: =IFERROR(ROUNDDOWN((MAX(CD$2,$J33) + 'C'!$D$57) / (MIN(CD$2,$J33) + 'C'!$D$57),1),"") -> 1 | CE33: =IFERROR(ROUNDDOWN((MAX(CE$2,$J33) + 'C'!$D$57) / (MIN(CE$2,$J33) + 'C'!$D$57),1),"") -> 1 | CF33: =IFERROR(ROUNDDOWN((MAX(CF$2,$J33) + 'C'!$D$57) / (MIN(CF$2,$J33) + 'C'!$D$57),1),"") -> 1 | CG33: =IFERROR(ROUNDDOWN((MAX(CG$2,$J33) + 'C'!$D$57) / (MIN(CG$2,$J33) + 'C'!$D$57),1),"") -> 1 | CH33: =IFERROR(ROUNDDOWN((MAX(CH$2,$J33) + 'C'!$D$57) / (MIN(CH$2,$J33) + 'C'!$D$57),1),"") -> 1 | CI33: =IFERROR(ROUNDDOWN((MAX(CI$2,$J33) + 'C'!$D$57) / (MIN(CI$2,$J33) + 'C'!$D$57),1),"") -> 1 | CJ33: =IFERROR(ROUNDDOWN((MAX(CJ$2,$J33) + 'C'!$D$57) / (MIN(CJ$2,$J33) + 'C'!$D$57),1),"") -> 1 | CK33: =IFERROR(ROUNDDOWN((MAX(CK$2,$J33) + 'C'!$D$57) / (MIN(CK$2,$J33) + 'C'!$D$57),1),"") -> 1 | CL33: =IFERROR(ROUNDDOWN((MAX(CL$2,$J33) + 'C'!$D$57) / (MIN(CL$2,$J33) + 'C'!$D$57),1),"") -> 1 | CM33: =IFERROR(ROUNDDOWN((MAX(CM$2,$J33) + 'C'!$D$57) / (MIN(CM$2,$J33) + 'C'!$D$57),1),"") -> 1 | CN33: =IFERROR(ROUNDDOWN((MAX(CN$2,$J33) + 'C'!$D$57) / (MIN(CN$2,$J33) + 'C'!$D$57),1),"") -> 1 | CO33: =IFERROR(ROUNDDOWN((MAX(CO$2,$J33) + 'C'!$D$57) / (MIN(CO$2,$J33) + 'C'!$D$57),1),"") -> 1 | CP33: =IFERROR(ROUNDDOWN((MAX(CP$2,$J33) + 'C'!$D$57) / (MIN(CP$2,$J33) + 'C'!$D$57),1),"") -> 1 | CQ33: =IFERROR(ROUNDDOWN((MAX(CQ$2,$J33) + 'C'!$D$57) / (MIN(CQ$2,$J33) + 'C'!$D$57),1),"") -> 1 | CR33: =IFERROR(ROUNDDOWN((MAX(CR$2,$J33) + 'C'!$D$57) / (MIN(CR$2,$J33) + 'C'!$D$57),1),"") -> 1 | CS33: =IFERROR(ROUNDDOWN((MAX(CS$2,$J33) + 'C'!$D$57) / (MIN(CS$2,$J33) + 'C'!$D$57),1),"") -> 1 | CT33: =IFERROR(ROUNDDOWN((MAX(CT$2,$J33) + 'C'!$D$57) / (MIN(CT$2,$J33) + 'C'!$D$57),1),"") -> 1 | CU33: =IFERROR(ROUNDDOWN((MAX(CU$2,$J33) + 'C'!$D$57) / (MIN(CU$2,$J33) + 'C'!$D$57),1),"") -> 1
B34: #ffffff | D34: 0 | E34: 0 | F34: 0 | I34: #FFFFFF | J34: 0.9999999648 | M34: 255 | N34: 255 | O34: 255 | Q34: 1 | R34: 1 | S34: 1 | U34: =IF($Q34 > 'C'!$D$33,((($Q34 + 'C'!$D$30) / 'C'!$D$31)) ^ 'C'!$D$32,($Q34 / 'C'!$D$29)) -> 1 | V34: =IF($R34 > 'C'!$D$33,((($R34 + 'C'!$D$30) / 'C'!$D$31)) ^ 'C'!$D$32,($R34 / 'C'!$D$29)) -> 1 | W34: =IF($S34 > 'C'!$D$33,((($S34 + 'C'!$D$30) / 'C'!$D$31)) ^ 'C'!$D$32,($S34 / 'C'!$D$29)) -> 1 | Y34: =('C'!$D$44 * $U34) +( 'C'!$D$45 * $V34) + ('C'!$D$46 * $W34) -> 1 | Z34: =ROUND( ('C'!$D$69 * $U34) + ('C'!$E$69 * $V34) + ('C'!$F$69 * $W34), 'C'!$D$75) -> 1 | AA34: =ROUND( ('C'!$D$70 * $U34) + ('C'!$E$70 * $V34) + ('C'!$F$70 * $W34), 'C'!$D$75) -> 1 | AB34: =ROUND( ('C'!$D$71 * $U34) + ('C'!$E$71 * $V34) + ('C'!$F$71 * $W34), 'C'!$D$75) -> 1 | AD34: =ROUND( ('C'!$D$82 * ($Z34^'C'!$D$89)) + ('C'!$E$82 * ($AA34^'C'!$D$89)) + ('C'!$F$82 * ($AB34^'C'!$D$89)), 'C'!$D$88) -> 0.99999999 | AE34: =ROUND( ('C'!$D$83 * ($Z34^'C'!$D$89)) + ('C'!$E$83 * ($AA34^'C'!$D$89)) + ('C'!$F$83 * ($AB34^'C'!$D$89)), 'C'!$D$88) -> 0 | AF34: =ROUND( ('C'!$D$84 * ($Z34^'C'!$D$89)) + ('C'!$E$84 * ($AA34^'C'!$D$89)) + ('C'!$F$84 * ($AB34^'C'!$D$89)), 'C'!$D$88) -> 4e-08 | AG34: 4e-08 | AH34: 90 | AJ34: 0.99999999 | AK34: 2.45029691e-24 | AL34: 4e-08 | AM34: 4e-08 | AN34: 90 | AP34: =ROUND( ('C'!$D$105 * $AJ34) + ('C'!$E$105 * $AK34) + ('C'!$F$105 * $AL34), 'C'!$D$111) ^ 'C'!$D$112 -> 1 | AQ34: =ROUND( ('C'!$D$106 * $AJ34) + ('C'!$E$106 * $AK34) + ('C'!$F$106 * $AL34), 'C'!$D$111) ^ 'C'!$D$112 -> 0.99999997 | AR34: =ROUND( ('C'!$D$107 * $AJ34) + ('C'!$E$107 * $AK34) + ('C'!$F$107 * $AL34), 'C'!$D$111) ^ 'C'!$D$112 -> 0.99999982 | AT34: =MIN(1, MAX(0, ROUND( ('C'!$D$119 * $AP34) + ('C'!$E$119 * $AQ34) + ('C'!$F$119 * $AR34), 'C'!$D$125))) -> 1 | AU34: =MIN(1,MAX(0,ROUND( ('C'!$D$120 * $AP34) + ('C'!$E$120 * $AQ34) + ('C'!$F$120 * $AR34), 'C'!$D$125))) -> 0.99999998 | AV34: =MIN(1,MAX(0,ROUND( ('C'!$D$121 * $AP34) + ('C'!$E$121 * $AQ34) + ('C'!$F$121 * $AR34), 'C'!$D$125))) -> 0.99999971 | AX34: =('C'!$D$44 * $AT34) +( 'C'!$D$45 * $AU34) + ('C'!$D$46 * $AV34) -> 0.9999999648 | AY34: =IF($AT34>'C'!$D$142, ($AT34 ^ (1/'C'!$D$141) * 'C'!$D$140) - 'C'!$D$139, $AT34 * 'C'!$D$138) -> 1 | AZ34: =IF($AU34>'C'!$D$142, ($AU34 ^ (1/'C'!$D$141) * 'C'!$D$140) - 'C'!$D$139, $AU34 * 'C'!$D$138) -> 0.9999999912 | BA34: =IF($AV34>'C'!$D$142, ($AV34 ^ (1/'C'!$D$141) * 'C'!$D$140) - 'C'!$D$139, $AV34 * 'C'!$D$138) -> 0.9999998725 | BC34: 255 | BD34: 255 | BE34: 255 | BH34: =IFERROR(ROUNDDOWN((MAX(BH$2,$J34) + 'C'!$D$57) / (MIN(BH$2,$J34) + 'C'!$D$57),1),"") -> 1.6 | BI34: =IFERROR(ROUNDDOWN((MAX(BI$2,$J34) + 'C'!$D$57) / (MIN(BI$2,$J34) + 'C'!$D$57),1),"") -> 1.7 | BJ34: =IFERROR(ROUNDDOWN((MAX(BJ$2,$J34) + 'C'!$D$57) / (MIN(BJ$2,$J34) + 'C'!$D$57),1),"") -> 1.5 | BK34: =IFERROR(ROUNDDOWN((MAX(BK$2,$J34) + 'C'!$D$57) / (MIN(BK$2,$J34) + 'C'!$D$57),1),"") -> 1 | BL34: =IFERROR(ROUNDDOWN((MAX(BL$2,$J34) + 'C'!$D$57) / (MIN(BL$2,$J34) + 'C'!$D$57),1),"") -> 20.9 | BM34: =IFERROR(ROUNDDOWN((MAX(BM$2,$J34) + 'C'!$D$57) / (MIN(BM$2,$J34) + 'C'!$D$57),1),"") -> 11.2 | BN34: =IFERROR(ROUNDDOWN((MAX(BN$2,$J34) + 'C'!$D$57) / (MIN(BN$2,$J34) + 'C'!$D$57),1),"") -> 18.9 | BO34: =IFERROR(ROUNDDOWN((MAX(BO$2,$J34) + 'C'!$D$57) / (MIN(BO$2,$J34) + 'C'!$D$57),1),"") -> 15.3 | BP34: =IFERROR(ROUNDDOWN((MAX(BP$2,$J34) + 'C'!$D$57) / (MIN(BP$2,$J34) + 'C'!$D$57),1),"") -> 1.5 | BQ34: =IFERROR(ROUNDDOWN((MAX(BQ$2,$J34) + 'C'!$D$57) / (MIN(BQ$2,$J34) + 'C'!$D$57),1),"") -> 1.2 | BR34: =IFERROR(ROUNDDOWN((MAX(BR$2,$J34) + 'C'!$D$57) / (MIN(BR$2,$J34) + 'C'!$D$57),1),"") -> 7.7 | BS34: =IFERROR(ROUNDDOWN((MAX(BS$2,$J34) + 'C'!$D$57) / (MIN(BS$2,$J34) + 'C'!$D$57),1),"") -> 3.9 | BT34: =IFERROR(ROUNDDOWN((MAX(BT$2,$J34) + 'C'!$D$57) / (MIN(BT$2,$J34) + 'C'!$D$57),1),"") -> 8.7 | BU34: =IFERROR(ROUNDDOWN((MAX(BU$2,$J34) + 'C'!$D$57) / (MIN(BU$2,$J34) + 'C'!$D$57),1),"") -> 5 | BV34: =IFERROR(ROUNDDOWN((MAX(BV$2,$J34) + 'C'!$D$57) / (MIN(BV$2,$J34) + 'C'!$D$57),1),"") -> 3.8 | BW34: =IFERROR(ROUNDDOWN((MAX(BW$2,$J34) + 'C'!$D$57) / (MIN(BW$2,$J34) + 'C'!$D$57),1),"") -> 2.1 | BX34: =IFERROR(ROUNDDOWN((MAX(BX$2,$J34) + 'C'!$D$57) / (MIN(BX$2,$J34) + 'C'!$D$57),1),"") -> 1.3 | BY34: =IFERROR(ROUNDDOWN((MAX(BY$2,$J34) + 'C'!$D$57) / (MIN(BY$2,$J34) + 'C'!$D$57),1),"") -> 2.1 | BZ34: =IFERROR(ROUNDDOWN((MAX(BZ$2,$J34) + 'C'!$D$57) / (MIN(BZ$2,$J34) + 'C'!$D$57),1),"") -> 8.7 | CA34: =IFERROR(ROUNDDOWN((MAX(CA$2,$J34) + 'C'!$D$57) / (MIN(CA$2,$J34) + 'C'!$D$57),1),"") -> 1.8 | CB34: =IFERROR(ROUNDDOWN((MAX(CB$2,$J34) + 'C'!$D$57) / (MIN(CB$2,$J34) + 'C'!$D$57),1),"") -> 3.6 | CC34: =IFERROR(ROUNDDOWN((MAX(CC$2,$J34) + 'C'!$D$57) / (MIN(CC$2,$J34) + 'C'!$D$57),1),"") -> 1 | CD34: =IFERROR(ROUNDDOWN((MAX(CD$2,$J34) + 'C'!$D$57) / (MIN(CD$2,$J34) + 'C'!$D$57),1),"") -> 1 | CE34: =IFERROR(ROUNDDOWN((MAX(CE$2,$J34) + 'C'!$D$57) / (MIN(CE$2,$J34) + 'C'!$D$57),1),"") -> 1 | CF34: =IFERROR(ROUNDDOWN((MAX(CF$2,$J34) + 'C'!$D$57) / (MIN(CF$2,$J34) + 'C'!$D$57),1),"") -> 1 | CG34: =IFERROR(ROUNDDOWN((MAX(CG$2,$J34) + 'C'!$D$57) / (MIN(CG$2,$J34) + 'C'!$D$57),1),"") -> 1 | CH34: =IFERROR(ROUNDDOWN((MAX(CH$2,$J34) + 'C'!$D$57) / (MIN(CH$2,$J34) + 'C'!$D$57),1),"") -> 1 | CI34: =IFERROR(ROUNDDOWN((MAX(CI$2,$J34) + 'C'!$D$57) / (MIN(CI$2,$J34) + 'C'!$D$57),1),"") -> 1 | CJ34: =IFERROR(ROUNDDOWN((MAX(CJ$2,$J34) + 'C'!$D$57) / (MIN(CJ$2,$J34) + 'C'!$D$57),1),"") -> 1 | CK34: =IFERROR(ROUNDDOWN((MAX(CK$2,$J34) + 'C'!$D$57) / (MIN(CK$2,$J34) + 'C'!$D$57),1),"") -> 1 | CL34: =IFERROR(ROUNDDOWN((MAX(CL$2,$J34) + 'C'!$D$57) / (MIN(CL$2,$J34) + 'C'!$D$57),1),"") -> 1 | CM34: =IFERROR(ROUNDDOWN((MAX(CM$2,$J34) + 'C'!$D$57) / (MIN(CM$2,$J34) + 'C'!$D$57),1),"") -> 1 | CN34: =IFERROR(ROUNDDOWN((MAX(CN$2,$J34) + 'C'!$D$57) / (MIN(CN$2,$J34) + 'C'!$D$57),1),"") -> 1 | CO34: =IFERROR(ROUNDDOWN((MAX(CO$2,$J34) + 'C'!$D$57) / (MIN(CO$2,$J34) + 'C'!$D$57),1),"") -> 1 | CP34: =IFERROR(ROUNDDOWN((MAX(CP$2,$J34) + 'C'!$D$57) / (MIN(CP$2,$J34) + 'C'!$D$57),1),"") -> 1 | CQ34: =IFERROR(ROUNDDOWN((MAX(CQ$2,$J34) + 'C'!$D$57) / (MIN(CQ$2,$J34) + 'C'!$D$57),1),"") -> 1 | CR34: =IFERROR(ROUNDDOWN((MAX(CR$2,$J34) + 'C'!$D$57) / (MIN(CR$2,$J34) + 'C'!$D$57),1),"") -> 1 | CS34: =IFERROR(ROUNDDOWN((MAX(CS$2,$J34) + 'C'!$D$57) / (MIN(CS$2,$J34) + 'C'!$D$57),1),"") -> 1 | CT34: =IFERROR(ROUNDDOWN((MAX(CT$2,$J34) + 'C'!$D$57) / (MIN(CT$2,$J34) + 'C'!$D$57),1),"") -> 1 | CU34: =IFERROR(ROUNDDOWN((MAX(CU$2,$J34) + 'C'!$D$57) / (MIN(CU$2,$J34) + 'C'!$D$57),1),"") -> 1
B35: #ffffff | D35: 0 | E35: 0 | F35: 0 | I35: #FFFFFF | J35: 0.9999999648 | M35: 255 | N35: 255 | O35: 255 | Q35: 1 | R35: 1 | S35: 1 | U35: =IF($Q35 > 'C'!$D$33,((($Q35 + 'C'!$D$30) / 'C'!$D$31)) ^ 'C'!$D$32,($Q35 / 'C'!$D$29)) -> 1 | V35: =IF($R35 > 'C'!$D$33,((($R35 + 'C'!$D$30) / 'C'!$D$31)) ^ 'C'!$D$32,($R35 / 'C'!$D$29)) -> 1 | W35: =IF($S35 > 'C'!$D$33,((($S35 + 'C'!$D$30) / 'C'!$D$31)) ^ 'C'!$D$32,($S35 / 'C'!$D$29)) -> 1 | Y35: =('C'!$D$44 * $U35) +( 'C'!$D$45 * $V35) + ('C'!$D$46 * $W35) -> 1 | Z35: =ROUND( ('C'!$D$69 * $U35) + ('C'!$E$69 * $V35) + ('C'!$F$69 * $W35), 'C'!$D$75) -> 1 | AA35: =ROUND( ('C'!$D$70 * $U35) + ('C'!$E$70 * $V35) + ('C'!$F$70 * $W35), 'C'!$D$75) -> 1 | AB35: =ROUND( ('C'!$D$71 * $U35) + ('C'!$E$71 * $V35) + ('C'!$F$71 * $W35), 'C'!$D$75) -> 1 | AD35: =ROUND( ('C'!$D$82 * ($Z35^'C'!$D$89)) + ('C'!$E$82 * ($AA35^'C'!$D$89)) + ('C'!$F$82 * ($AB35^'C'!$D$89)), 'C'!$D$88) -> 0.99999999 | AE35: =ROUND( ('C'!$D$83 * ($Z35^'C'!$D$89)) + ('C'!$E$83 * ($AA35^'C'!$D$89)) + ('C'!$F$83 * ($AB35^'C'!$D$89)), 'C'!$D$88) -> 0 | AF35: =ROUND( ('C'!$D$84 * ($Z35^'C'!$D$89)) + ('C'!$E$84 * ($AA35^'C'!$D$89)) + ('C'!$F$84 * ($AB35^'C'!$D$89)), 'C'!$D$88) -> 4e-08 | AG35: 4e-08 | AH35: 90 | AJ35: 0.99999999 | AK35: 2.45029691e-24 | AL35: 4e-08 | AM35: 4e-08 | AN35: 90 | AP35: =ROUND( ('C'!$D$105 * $AJ35) + ('C'!$E$105 * $AK35) + ('C'!$F$105 * $AL35), 'C'!$D$111) ^ 'C'!$D$112 -> 1 | AQ35: =ROUND( ('C'!$D$106 * $AJ35) + ('C'!$E$106 * $AK35) + ('C'!$F$106 * $AL35), 'C'!$D$111) ^ 'C'!$D$112 -> 0.99999997 | AR35: =ROUND( ('C'!$D$107 * $AJ35) + ('C'!$E$107 * $AK35) + ('C'!$F$107 * $AL35), 'C'!$D$111) ^ 'C'!$D$112 -> 0.99999982 | AT35: =MIN(1, MAX(0, ROUND( ('C'!$D$119 * $AP35) + ('C'!$E$119 * $AQ35) + ('C'!$F$119 * $AR35), 'C'!$D$125))) -> 1 | AU35: =MIN(1,MAX(0,ROUND( ('C'!$D$120 * $AP35) + ('C'!$E$120 * $AQ35) + ('C'!$F$120 * $AR35), 'C'!$D$125))) -> 0.99999998 | AV35: =MIN(1,MAX(0,ROUND( ('C'!$D$121 * $AP35) + ('C'!$E$121 * $AQ35) + ('C'!$F$121 * $AR35), 'C'!$D$125))) -> 0.99999971 | AX35: =('C'!$D$44 * $AT35) +( 'C'!$D$45 * $AU35) + ('C'!$D$46 * $AV35) -> 0.9999999648 | AY35: =IF($AT35>'C'!$D$142, ($AT35 ^ (1/'C'!$D$141) * 'C'!$D$140) - 'C'!$D$139, $AT35 * 'C'!$D$138) -> 1 | AZ35: =IF($AU35>'C'!$D$142, ($AU35 ^ (1/'C'!$D$141) * 'C'!$D$140) - 'C'!$D$139, $AU35 * 'C'!$D$138) -> 0.9999999912 | BA35: =IF($AV35>'C'!$D$142, ($AV35 ^ (1/'C'!$D$141) * 'C'!$D$140) - 'C'!$D$139, $AV35 * 'C'!$D$138) -> 0.9999998725 | BC35: 255 | BD35: 255 | BE35: 255 | BH35: =IFERROR(ROUNDDOWN((MAX(BH$2,$J35) + 'C'!$D$57) / (MIN(BH$2,$J35) + 'C'!$D$57),1),"") -> 1.6 | BI35: =IFERROR(ROUNDDOWN((MAX(BI$2,$J35) + 'C'!$D$57) / (MIN(BI$2,$J35) + 'C'!$D$57),1),"") -> 1.7 | BJ35: =IFERROR(ROUNDDOWN((MAX(BJ$2,$J35) + 'C'!$D$57) / (MIN(BJ$2,$J35) + 'C'!$D$57),1),"") -> 1.5 | BK35: =IFERROR(ROUNDDOWN((MAX(BK$2,$J35) + 'C'!$D$57) / (MIN(BK$2,$J35) + 'C'!$D$57),1),"") -> 1 | BL35: =IFERROR(ROUNDDOWN((MAX(BL$2,$J35) + 'C'!$D$57) / (MIN(BL$2,$J35) + 'C'!$D$57),1),"") -> 20.9 | BM35: =IFERROR(ROUNDDOWN((MAX(BM$2,$J35) + 'C'!$D$57) / (MIN(BM$2,$J35) + 'C'!$D$57),1),"") -> 11.2 | BN35: =IFERROR(ROUNDDOWN((MAX(BN$2,$J35) + 'C'!$D$57) / (MIN(BN$2,$J35) + 'C'!$D$57),1),"") -> 18.9 | BO35: =IFERROR(ROUNDDOWN((MAX(BO$2,$J35) + 'C'!$D$57) / (MIN(BO$2,$J35) + 'C'!$D$57),1),"") -> 15.3 | BP35: =IFERROR(ROUNDDOWN((MAX(BP$2,$J35) + 'C'!$D$57) / (MIN(BP$2,$J35) + 'C'!$D$57),1),"") -> 1.5 | BQ35: =IFERROR(ROUNDDOWN((MAX(BQ$2,$J35) + 'C'!$D$57) / (MIN(BQ$2,$J35) + 'C'!$D$57),1),"") -> 1.2 | BR35: =IFERROR(ROUNDDOWN((MAX(BR$2,$J35) + 'C'!$D$57) / (MIN(BR$2,$J35) + 'C'!$D$57),1),"") -> 7.7 | BS35: =IFERROR(ROUNDDOWN((MAX(BS$2,$J35) + 'C'!$D$57) / (MIN(BS$2,$J35) + 'C'!$D$57),1),"") -> 3.9 | BT35: =IFERROR(ROUNDDOWN((MAX(BT$2,$J35) + 'C'!$D$57) / (MIN(BT$2,$J35) + 'C'!$D$57),1),"") -> 8.7 | BU35: =IFERROR(ROUNDDOWN((MAX(BU$2,$J35) + 'C'!$D$57) / (MIN(BU$2,$J35) + 'C'!$D$57),1),"") -> 5 | BV35: =IFERROR(ROUNDDOWN((MAX(BV$2,$J35) + 'C'!$D$57) / (MIN(BV$2,$J35) + 'C'!$D$57),1),"") -> 3.8 | BW35: =IFERROR(ROUNDDOWN((MAX(BW$2,$J35) + 'C'!$D$57) / (MIN(BW$2,$J35) + 'C'!$D$57),1),"") -> 2.1 | BX35: =IFERROR(ROUNDDOWN((MAX(BX$2,$J35) + 'C'!$D$57) / (MIN(BX$2,$J35) + 'C'!$D$57),1),"") -> 1.3 | BY35: =IFERROR(ROUNDDOWN((MAX(BY$2,$J35) + 'C'!$D$57) / (MIN(BY$2,$J35) + 'C'!$D$57),1),"") -> 2.1 | BZ35: =IFERROR(ROUNDDOWN((MAX(BZ$2,$J35) + 'C'!$D$57) / (MIN(BZ$2,$J35) + 'C'!$D$57),1),"") -> 8.7 | CA35: =IFERROR(ROUNDDOWN((MAX(CA$2,$J35) + 'C'!$D$57) / (MIN(CA$2,$J35) + 'C'!$D$57),1),"") -> 1.8 | CB35: =IFERROR(ROUNDDOWN((MAX(CB$2,$J35) + 'C'!$D$57) / (MIN(CB$2,$J35) + 'C'!$D$57),1),"") -> 3.6 | CC35: =IFERROR(ROUNDDOWN((MAX(CC$2,$J35) + 'C'!$D$57) / (MIN(CC$2,$J35) + 'C'!$D$57),1),"") -> 1 | CD35: =IFERROR(ROUNDDOWN((MAX(CD$2,$J35) + 'C'!$D$57) / (MIN(CD$2,$J35) + 'C'!$D$57),1),"") -> 1 | CE35: =IFERROR(ROUNDDOWN((MAX(CE$2,$J35) + 'C'!$D$57) / (MIN(CE$2,$J35) + 'C'!$D$57),1),"") -> 1 | CF35: =IFERROR(ROUNDDOWN((MAX(CF$2,$J35) + 'C'!$D$57) / (MIN(CF$2,$J35) + 'C'!$D$57),1),"") -> 1 | CG35: =IFERROR(ROUNDDOWN((MAX(CG$2,$J35) + 'C'!$D$57) / (MIN(CG$2,$J35) + 'C'!$D$57),1),"") -> 1 | CH35: =IFERROR(ROUNDDOWN((MAX(CH$2,$J35) + 'C'!$D$57) / (MIN(CH$2,$J35) + 'C'!$D$57),1),"") -> 1 | CI35: =IFERROR(ROUNDDOWN((MAX(CI$2,$J35) + 'C'!$D$57) / (MIN(CI$2,$J35) + 'C'!$D$57),1),"") -> 1 | CJ35: =IFERROR(ROUNDDOWN((MAX(CJ$2,$J35) + 'C'!$D$57) / (MIN(CJ$2,$J35) + 'C'!$D$57),1),"") -> 1 | CK35: =IFERROR(ROUNDDOWN((MAX(CK$2,$J35) + 'C'!$D$57) / (MIN(CK$2,$J35) + 'C'!$D$57),1),"") -> 1 | CL35: =IFERROR(ROUNDDOWN((MAX(CL$2,$J35) + 'C'!$D$57) / (MIN(CL$2,$J35) + 'C'!$D$57),1),"") -> 1 | CM35: =IFERROR(ROUNDDOWN((MAX(CM$2,$J35) + 'C'!$D$57) / (MIN(CM$2,$J35) + 'C'!$D$57),1),"") -> 1 | CN35: =IFERROR(ROUNDDOWN((MAX(CN$2,$J35) + 'C'!$D$57) / (MIN(CN$2,$J35) + 'C'!$D$57),1),"") -> 1 | CO35: =IFERROR(ROUNDDOWN((MAX(CO$2,$J35) + 'C'!$D$57) / (MIN(CO$2,$J35) + 'C'!$D$57),1),"") -> 1 | CP35: =IFERROR(ROUNDDOWN((MAX(CP$2,$J35) + 'C'!$D$57) / (MIN(CP$2,$J35) + 'C'!$D$57),1),"") -> 1 | CQ35: =IFERROR(ROUNDDOWN((MAX(CQ$2,$J35) + 'C'!$D$57) / (MIN(CQ$2,$J35) + 'C'!$D$57),1),"") -> 1 | CR35: =IFERROR(ROUNDDOWN((MAX(CR$2,$J35) + 'C'!$D$57) / (MIN(CR$2,$J35) + 'C'!$D$57),1),"") -> 1 | CS35: =IFERROR(ROUNDDOWN((MAX(CS$2,$J35) + 'C'!$D$57) / (MIN(CS$2,$J35) + 'C'!$D$57),1),"") -> 1 | CT35: =IFERROR(ROUNDDOWN((MAX(CT$2,$J35) + 'C'!$D$57) / (MIN(CT$2,$J35) + 'C'!$D$57),1),"") -> 1 | CU35: =IFERROR(ROUNDDOWN((MAX(CU$2,$J35) + 'C'!$D$57) / (MIN(CU$2,$J35) + 'C'!$D$57),1),"") -> 1
A36: =myHex(B36) ->  | B36: #ffffff | D36: 0 | E36: 0 | F36: 0 | I36: #FFFFFF | J36: 0.9999999648 | K36: =myHex(B36) ->  | L36: =myHex(I36) ->  | M36: 255 | N36: 255 | O36: 255 | Q36: 1 | R36: 1 | S36: 1 | U36: =IF($Q36 > 'C'!$D$33,((($Q36 + 'C'!$D$30) / 'C'!$D$31)) ^ 'C'!$D$32,($Q36 / 'C'!$D$29)) -> 1 | V36: =IF($R36 > 'C'!$D$33,((($R36 + 'C'!$D$30) / 'C'!$D$31)) ^ 'C'!$D$32,($R36 / 'C'!$D$29)) -> 1 | W36: =IF($S36 > 'C'!$D$33,((($S36 + 'C'!$D$30) / 'C'!$D$31)) ^ 'C'!$D$32,($S36 / 'C'!$D$29)) -> 1 | Y36: =('C'!$D$44 * $U36) +( 'C'!$D$45 * $V36) + ('C'!$D$46 * $W36) -> 1 | Z36: =ROUND( ('C'!$D$69 * $U36) + ('C'!$E$69 * $V36) + ('C'!$F$69 * $W36), 'C'!$D$75) -> 1 | AA36: =ROUND( ('C'!$D$70 * $U36) + ('C'!$E$70 * $V36) + ('C'!$F$70 * $W36), 'C'!$D$75) -> 1 | AB36: =ROUND( ('C'!$D$71 * $U36) + ('C'!$E$71 * $V36) + ('C'!$F$71 * $W36), 'C'!$D$75) -> 1 | AD36: =ROUND( ('C'!$D$82 * ($Z36^'C'!$D$89)) + ('C'!$E$82 * ($AA36^'C'!$D$89)) + ('C'!$F$82 * ($AB36^'C'!$D$89)), 'C'!$D$88) -> 0.99999999 | AE36: =ROUND( ('C'!$D$83 * ($Z36^'C'!$D$89)) + ('C'!$E$83 * ($AA36^'C'!$D$89)) + ('C'!$F$83 * ($AB36^'C'!$D$89)), 'C'!$D$88) -> 0 | AF36: =ROUND( ('C'!$D$84 * ($Z36^'C'!$D$89)) + ('C'!$E$84 * ($AA36^'C'!$D$89)) + ('C'!$F$84 * ($AB36^'C'!$D$89)), 'C'!$D$88) -> 4e-08 | AG36: 4e-08 | AH36: 90 | AJ36: 0.99999999 | AK36: 2.45029691e-24 | AL36: 4e-08 | AM36: 4e-08 | AN36: 90 | AP36: =ROUND( ('C'!$D$105 * $AJ36) + ('C'!$E$105 * $AK36) + ('C'!$F$105 * $AL36), 'C'!$D$111) ^ 'C'!$D$112 -> 1 | AQ36: =ROUND( ('C'!$D$106 * $AJ36) + ('C'!$E$106 * $AK36) + ('C'!$F$106 * $AL36), 'C'!$D$111) ^ 'C'!$D$112 -> 0.99999997 | AR36: =ROUND( ('C'!$D$107 * $AJ36) + ('C'!$E$107 * $AK36) + ('C'!$F$107 * $AL36), 'C'!$D$111) ^ 'C'!$D$112 -> 0.99999982 | AT36: =MIN(1, MAX(0, ROUND( ('C'!$D$119 * $AP36) + ('C'!$E$119 * $AQ36) + ('C'!$F$119 * $AR36), 'C'!$D$125))) -> 1 | AU36: =MIN(1,MAX(0,ROUND( ('C'!$D$120 * $AP36) + ('C'!$E$120 * $AQ36) + ('C'!$F$120 * $AR36), 'C'!$D$125))) -> 0.99999998 | AV36: =MIN(1,MAX(0,ROUND( ('C'!$D$121 * $AP36) + ('C'!$E$121 * $AQ36) + ('C'!$F$121 * $AR36), 'C'!$D$125))) -> 0.99999971 | AX36: =('C'!$D$44 * $AT36) +( 'C'!$D$45 * $AU36) + ('C'!$D$46 * $AV36) -> 0.9999999648 | AY36: =IF($AT36>'C'!$D$142, ($AT36 ^ (1/'C'!$D$141) * 'C'!$D$140) - 'C'!$D$139, $AT36 * 'C'!$D$138) -> 1 | AZ36: =IF($AU36>'C'!$D$142, ($AU36 ^ (1/'C'!$D$141) * 'C'!$D$140) - 'C'!$D$139, $AU36 * 'C'!$D$138) -> 0.9999999912 | BA36: =IF($AV36>'C'!$D$142, ($AV36 ^ (1/'C'!$D$141) * 'C'!$D$140) - 'C'!$D$139, $AV36 * 'C'!$D$138) -> 0.9999998725 | BC36: 255 | BD36: 255 | BE36: 255 | BH36: =IFERROR(ROUNDDOWN((MAX(BH$2,$J36) + 'C'!$D$57) / (MIN(BH$2,$J36) + 'C'!$D$57),1),"") -> 1.6 | BI36: =IFERROR(ROUNDDOWN((MAX(BI$2,$J36) + 'C'!$D$57) / (MIN(BI$2,$J36) + 'C'!$D$57),1),"") -> 1.7 | BJ36: =IFERROR(ROUNDDOWN((MAX(BJ$2,$J36) + 'C'!$D$57) / (MIN(BJ$2,$J36) + 'C'!$D$57),1),"") -> 1.5 | BK36: =IFERROR(ROUNDDOWN((MAX(BK$2,$J36) + 'C'!$D$57) / (MIN(BK$2,$J36) + 'C'!$D$57),1),"") -> 1 | BL36: =IFERROR(ROUNDDOWN((MAX(BL$2,$J36) + 'C'!$D$57) / (MIN(BL$2,$J36) + 'C'!$D$57),1),"") -> 20.9 | BM36: =IFERROR(ROUNDDOWN((MAX(BM$2,$J36) + 'C'!$D$57) / (MIN(BM$2,$J36) + 'C'!$D$57),1),"") -> 11.2 | BN36: =IFERROR(ROUNDDOWN((MAX(BN$2,$J36) + 'C'!$D$57) / (MIN(BN$2,$J36) + 'C'!$D$57),1),"") -> 18.9 | BO36: =IFERROR(ROUNDDOWN((MAX(BO$2,$J36) + 'C'!$D$57) / (MIN(BO$2,$J36) + 'C'!$D$57),1),"") -> 15.3 | BP36: =IFERROR(ROUNDDOWN((MAX(BP$2,$J36) + 'C'!$D$57) / (MIN(BP$2,$J36) + 'C'!$D$57),1),"") -> 1.5 | BQ36: =IFERROR(ROUNDDOWN((MAX(BQ$2,$J36) + 'C'!$D$57) / (MIN(BQ$2,$J36) + 'C'!$D$57),1),"") -> 1.2 | BR36: =IFERROR(ROUNDDOWN((MAX(BR$2,$J36) + 'C'!$D$57) / (MIN(BR$2,$J36) + 'C'!$D$57),1),"") -> 7.7 | BS36: =IFERROR(ROUNDDOWN((MAX(BS$2,$J36) + 'C'!$D$57) / (MIN(BS$2,$J36) + 'C'!$D$57),1),"") -> 3.9 | BT36: =IFERROR(ROUNDDOWN((MAX(BT$2,$J36) + 'C'!$D$57) / (MIN(BT$2,$J36) + 'C'!$D$57),1),"") -> 8.7 | BU36: =IFERROR(ROUNDDOWN((MAX(BU$2,$J36) + 'C'!$D$57) / (MIN(BU$2,$J36) + 'C'!$D$57),1),"") -> 5 | BV36: =IFERROR(ROUNDDOWN((MAX(BV$2,$J36) + 'C'!$D$57) / (MIN(BV$2,$J36) + 'C'!$D$57),1),"") -> 3.8 | BW36: =IFERROR(ROUNDDOWN((MAX(BW$2,$J36) + 'C'!$D$57) / (MIN(BW$2,$J36) + 'C'!$D$57),1),"") -> 2.1 | BX36: =IFERROR(ROUNDDOWN((MAX(BX$2,$J36) + 'C'!$D$57) / (MIN(BX$2,$J36) + 'C'!$D$57),1),"") -> 1.3 | BY36: =IFERROR(ROUNDDOWN((MAX(BY$2,$J36) + 'C'!$D$57) / (MIN(BY$2,$J36) + 'C'!$D$57),1),"") -> 2.1 | BZ36: =IFERROR(ROUNDDOWN((MAX(BZ$2,$J36) + 'C'!$D$57) / (MIN(BZ$2,$J36) + 'C'!$D$57),1),"") -> 8.7 | CA36: =IFERROR(ROUNDDOWN((MAX(CA$2,$J36) + 'C'!$D$57) / (MIN(CA$2,$J36) + 'C'!$D$57),1),"") -> 1.8 | CB36: =IFERROR(ROUNDDOWN((MAX(CB$2,$J36) + 'C'!$D$57) / (MIN(CB$2,$J36) + 'C'!$D$57),1),"") -> 3.6 | CC36: =IFERROR(ROUNDDOWN((MAX(CC$2,$J36) + 'C'!$D$57) / (MIN(CC$2,$J36) + 'C'!$D$57),1),"") -> 1 | CD36: =IFERROR(ROUNDDOWN((MAX(CD$2,$J36) + 'C'!$D$57) / (MIN(CD$2,$J36) + 'C'!$D$57),1),"") -> 1 | CE36: =IFERROR(ROUNDDOWN((MAX(CE$2,$J36) + 'C'!$D$57) / (MIN(CE$2,$J36) + 'C'!$D$57),1),"") -> 1 | CF36: =IFERROR(ROUNDDOWN((MAX(CF$2,$J36) + 'C'!$D$57) / (MIN(CF$2,$J36) + 'C'!$D$57),1),"") -> 1 | CG36: =IFERROR(ROUNDDOWN((MAX(CG$2,$J36) + 'C'!$D$57) / (MIN(CG$2,$J36) + 'C'!$D$57),1),"") -> 1 | CH36: =IFERROR(ROUNDDOWN((MAX(CH$2,$J36) + 'C'!$D$57) / (MIN(CH$2,$J36) + 'C'!$D$57),1),"") -> 1 | CI36: =IFERROR(ROUNDDOWN((MAX(CI$2,$J36) + 'C'!$D$57) / (MIN(CI$2,$J36) + 'C'!$D$57),1),"") -> 1 | CJ36: =IFERROR(ROUNDDOWN((MAX(CJ$2,$J36) + 'C'!$D$57) / (MIN(CJ$2,$J36) + 'C'!$D$57),1),"") -> 1 | CK36: =IFERROR(ROUNDDOWN((MAX(CK$2,$J36) + 'C'!$D$57) / (MIN(CK$2,$J36) + 'C'!$D$57),1),"") -> 1 | CL36: =IFERROR(ROUNDDOWN((MAX(CL$2,$J36) + 'C'!$D$57) / (MIN(CL$2,$J36) + 'C'!$D$57),1),"") -> 1 | CM36: =IFERROR(ROUNDDOWN((MAX(CM$2,$J36) + 'C'!$D$57) / (MIN(CM$2,$J36) + 'C'!$D$57),1),"") -> 1 | CN36: =IFERROR(ROUNDDOWN((MAX(CN$2,$J36) + 'C'!$D$57) / (MIN(CN$2,$J36) + 'C'!$D$57),1),"") -> 1 | CO36: =IFERROR(ROUNDDOWN((MAX(CO$2,$J36) + 'C'!$D$57) / (MIN(CO$2,$J36) + 'C'!$D$57),1),"") -> 1 | CP36: =IFERROR(ROUNDDOWN((MAX(CP$2,$J36) + 'C'!$D$57) / (MIN(CP$2,$J36) + 'C'!$D$57),1),"") -> 1 | CQ36: =IFERROR(ROUNDDOWN((MAX(CQ$2,$J36) + 'C'!$D$57) / (MIN(CQ$2,$J36) + 'C'!$D$57),1),"") -> 1 | CR36: =IFERROR(ROUNDDOWN((MAX(CR$2,$J36) + 'C'!$D$57) / (MIN(CR$2,$J36) + 'C'!$D$57),1),"") -> 1 | CS36: =IFERROR(ROUNDDOWN((MAX(CS$2,$J36) + 'C'!$D$57) / (MIN(CS$2,$J36) + 'C'!$D$57),1),"") -> 1 | CT36: =IFERROR(ROUNDDOWN((MAX(CT$2,$J36) + 'C'!$D$57) / (MIN(CT$2,$J36) + 'C'!$D$57),1),"") -> 1 | CU36: =IFERROR(ROUNDDOWN((MAX(CU$2,$J36) + 'C'!$D$57) / (MIN(CU$2,$J36) + 'C'!$D$57),1),"") -> 1
B37: #ffffff | D37: 0 | E37: 0 | F37: 0 | I37: #FFFFFF | J37: 0.9999999648 | M37: 255 | N37: 255 | O37: 255 | Q37: 1 | R37: 1 | S37: 1 | U37: =IF($Q37 > 'C'!$D$33,((($Q37 + 'C'!$D$30) / 'C'!$D$31)) ^ 'C'!$D$32,($Q37 / 'C'!$D$29)) -> 1 | V37: =IF($R37 > 'C'!$D$33,((($R37 + 'C'!$D$30) / 'C'!$D$31)) ^ 'C'!$D$32,($R37 / 'C'!$D$29)) -> 1 | W37: =IF($S37 > 'C'!$D$33,((($S37 + 'C'!$D$30) / 'C'!$D$31)) ^ 'C'!$D$32,($S37 / 'C'!$D$29)) -> 1 | Y37: =('C'!$D$44 * $U37) +( 'C'!$D$45 * $V37) + ('C'!$D$46 * $W37) -> 1 | Z37: =ROUND( ('C'!$D$69 * $U37) + ('C'!$E$69 * $V37) + ('C'!$F$69 * $W37), 'C'!$D$75) -> 1 | AA37: =ROUND( ('C'!$D$70 * $U37) + ('C'!$E$70 * $V37) + ('C'!$F$70 * $W37), 'C'!$D$75) -> 1 | AB37: =ROUND( ('C'!$D$71 * $U37) + ('C'!$E$71 * $V37) + ('C'!$F$71 * $W37), 'C'!$D$75) -> 1 | AD37: =ROUND( ('C'!$D$82 * ($Z37^'C'!$D$89)) + ('C'!$E$82 * ($AA37^'C'!$D$89)) + ('C'!$F$82 * ($AB37^'C'!$D$89)), 'C'!$D$88) -> 0.99999999 | AE37: =ROUND( ('C'!$D$83 * ($Z37^'C'!$D$89)) + ('C'!$E$83 * ($AA37^'C'!$D$89)) + ('C'!$F$83 * ($AB37^'C'!$D$89)), 'C'!$D$88) -> 0 | AF37: =ROUND( ('C'!$D$84 * ($Z37^'C'!$D$89)) + ('C'!$E$84 * ($AA37^'C'!$D$89)) + ('C'!$F$84 * ($AB37^'C'!$D$89)), 'C'!$D$88) -> 4e-08 | AG37: 4e-08 | AH37: 90 | AJ37: 0.99999999 | AK37: 2.45029691e-24 | AL37: 4e-08 | AM37: 4e-08 | AN37: 90 | AP37: =ROUND( ('C'!$D$105 * $AJ37) + ('C'!$E$105 * $AK37) + ('C'!$F$105 * $AL37), 'C'!$D$111) ^ 'C'!$D$112 -> 1 | AQ37: =ROUND( ('C'!$D$106 * $AJ37) + ('C'!$E$106 * $AK37) + ('C'!$F$106 * $AL37), 'C'!$D$111) ^ 'C'!$D$112 -> 0.99999997 | AR37: =ROUND( ('C'!$D$107 * $AJ37) + ('C'!$E$107 * $AK37) + ('C'!$F$107 * $AL37), 'C'!$D$111) ^ 'C'!$D$112 -> 0.99999982 | AT37: =MIN(1, MAX(0, ROUND( ('C'!$D$119 * $AP37) + ('C'!$E$119 * $AQ37) + ('C'!$F$119 * $AR37), 'C'!$D$125))) -> 1 | AU37: =MIN(1,MAX(0,ROUND( ('C'!$D$120 * $AP37) + ('C'!$E$120 * $AQ37) + ('C'!$F$120 * $AR37), 'C'!$D$125))) -> 0.99999998 | AV37: =MIN(1,MAX(0,ROUND( ('C'!$D$121 * $AP37) + ('C'!$E$121 * $AQ37) + ('C'!$F$121 * $AR37), 'C'!$D$125))) -> 0.99999971 | AX37: =('C'!$D$44 * $AT37) +( 'C'!$D$45 * $AU37) + ('C'!$D$46 * $AV37) -> 0.9999999648 | AY37: =IF($AT37>'C'!$D$142, ($AT37 ^ (1/'C'!$D$141) * 'C'!$D$140) - 'C'!$D$139, $AT37 * 'C'!$D$138) -> 1 | AZ37: =IF($AU37>'C'!$D$142, ($AU37 ^ (1/'C'!$D$141) * 'C'!$D$140) - 'C'!$D$139, $AU37 * 'C'!$D$138) -> 0.9999999912 | BA37: =IF($AV37>'C'!$D$142, ($AV37 ^ (1/'C'!$D$141) * 'C'!$D$140) - 'C'!$D$139, $AV37 * 'C'!$D$138) -> 0.9999998725 | BC37: 255 | BD37: 255 | BE37: 255 | BH37: =IFERROR(ROUNDDOWN((MAX(BH$2,$J37) + 'C'!$D$57) / (MIN(BH$2,$J37) + 'C'!$D$57),1),"") -> 1.6 | BI37: =IFERROR(ROUNDDOWN((MAX(BI$2,$J37) + 'C'!$D$57) / (MIN(BI$2,$J37) + 'C'!$D$57),1),"") -> 1.7 | BJ37: =IFERROR(ROUNDDOWN((MAX(BJ$2,$J37) + 'C'!$D$57) / (MIN(BJ$2,$J37) + 'C'!$D$57),1),"") -> 1.5 | BK37: =IFERROR(ROUNDDOWN((MAX(BK$2,$J37) + 'C'!$D$57) / (MIN(BK$2,$J37) + 'C'!$D$57),1),"") -> 1 | BL37: =IFERROR(ROUNDDOWN((MAX(BL$2,$J37) + 'C'!$D$57) / (MIN(BL$2,$J37) + 'C'!$D$57),1),"") -> 20.9 | BM37: =IFERROR(ROUNDDOWN((MAX(BM$2,$J37) + 'C'!$D$57) / (MIN(BM$2,$J37) + 'C'!$D$57),1),"") -> 11.2 | BN37: =IFERROR(ROUNDDOWN((MAX(BN$2,$J37) + 'C'!$D$57) / (MIN(BN$2,$J37) + 'C'!$D$57),1),"") -> 18.9 | BO37: =IFERROR(ROUNDDOWN((MAX(BO$2,$J37) + 'C'!$D$57) / (MIN(BO$2,$J37) + 'C'!$D$57),1),"") -> 15.3 | BP37: =IFERROR(ROUNDDOWN((MAX(BP$2,$J37) + 'C'!$D$57) / (MIN(BP$2,$J37) + 'C'!$D$57),1),"") -> 1.5 | BQ37: =IFERROR(ROUNDDOWN((MAX(BQ$2,$J37) + 'C'!$D$57) / (MIN(BQ$2,$J37) + 'C'!$D$57),1),"") -> 1.2 | BR37: =IFERROR(ROUNDDOWN((MAX(BR$2,$J37) + 'C'!$D$57) / (MIN(BR$2,$J37) + 'C'!$D$57),1),"") -> 7.7 | BS37: =IFERROR(ROUNDDOWN((MAX(BS$2,$J37) + 'C'!$D$57) / (MIN(BS$2,$J37) + 'C'!$D$57),1),"") -> 3.9 | BT37: =IFERROR(ROUNDDOWN((MAX(BT$2,$J37) + 'C'!$D$57) / (MIN(BT$2,$J37) + 'C'!$D$57),1),"") -> 8.7 | BU37: =IFERROR(ROUNDDOWN((MAX(BU$2,$J37) + 'C'!$D$57) / (MIN(BU$2,$J37) + 'C'!$D$57),1),"") -> 5 | BV37: =IFERROR(ROUNDDOWN((MAX(BV$2,$J37) + 'C'!$D$57) / (MIN(BV$2,$J37) + 'C'!$D$57),1),"") -> 3.8 | BW37: =IFERROR(ROUNDDOWN((MAX(BW$2,$J37) + 'C'!$D$57) / (MIN(BW$2,$J37) + 'C'!$D$57),1),"") -> 2.1 | BX37: =IFERROR(ROUNDDOWN((MAX(BX$2,$J37) + 'C'!$D$57) / (MIN(BX$2,$J37) + 'C'!$D$57),1),"") -> 1.3 | BY37: =IFERROR(ROUNDDOWN((MAX(BY$2,$J37) + 'C'!$D$57) / (MIN(BY$2,$J37) + 'C'!$D$57),1),"") -> 2.1 | BZ37: =IFERROR(ROUNDDOWN((MAX(BZ$2,$J37) + 'C'!$D$57) / (MIN(BZ$2,$J37) + 'C'!$D$57),1),"") -> 8.7 | CA37: =IFERROR(ROUNDDOWN((MAX(CA$2,$J37) + 'C'!$D$57) / (MIN(CA$2,$J37) + 'C'!$D$57),1),"") -> 1.8 | CB37: =IFERROR(ROUNDDOWN((MAX(CB$2,$J37) + 'C'!$D$57) / (MIN(CB$2,$J37) + 'C'!$D$57),1),"") -> 3.6 | CC37: =IFERROR(ROUNDDOWN((MAX(CC$2,$J37) + 'C'!$D$57) / (MIN(CC$2,$J37) + 'C'!$D$57),1),"") -> 1 | CD37: =IFERROR(ROUNDDOWN((MAX(CD$2,$J37) + 'C'!$D$57) / (MIN(CD$2,$J37) + 'C'!$D$57),1),"") -> 1 | CE37: =IFERROR(ROUNDDOWN((MAX(CE$2,$J37) + 'C'!$D$57) / (MIN(CE$2,$J37) + 'C'!$D$57),1),"") -> 1 | CF37: =IFERROR(ROUNDDOWN((MAX(CF$2,$J37) + 'C'!$D$57) / (MIN(CF$2,$J37) + 'C'!$D$57),1),"") -> 1 | CG37: =IFERROR(ROUNDDOWN((MAX(CG$2,$J37) + 'C'!$D$57) / (MIN(CG$2,$J37) + 'C'!$D$57),1),"") -> 1 | CH37: =IFERROR(ROUNDDOWN((MAX(CH$2,$J37) + 'C'!$D$57) / (MIN(CH$2,$J37) + 'C'!$D$57),1),"") -> 1 | CI37: =IFERROR(ROUNDDOWN((MAX(CI$2,$J37) + 'C'!$D$57) / (MIN(CI$2,$J37) + 'C'!$D$57),1),"") -> 1 | CJ37: =IFERROR(ROUNDDOWN((MAX(CJ$2,$J37) + 'C'!$D$57) / (MIN(CJ$2,$J37) + 'C'!$D$57),1),"") -> 1 | CK37: =IFERROR(ROUNDDOWN((MAX(CK$2,$J37) + 'C'!$D$57) / (MIN(CK$2,$J37) + 'C'!$D$57),1),"") -> 1 | CL37: =IFERROR(ROUNDDOWN((MAX(CL$2,$J37) + 'C'!$D$57) / (MIN(CL$2,$J37) + 'C'!$D$57),1),"") -> 1 | CM37: =IFERROR(ROUNDDOWN((MAX(CM$2,$J37) + 'C'!$D$57) / (MIN(CM$2,$J37) + 'C'!$D$57),1),"") -> 1 | CN37: =IFERROR(ROUNDDOWN((MAX(CN$2,$J37) + 'C'!$D$57) / (MIN(CN$2,$J37) + 'C'!$D$57),1),"") -> 1 | CO37: =IFERROR(ROUNDDOWN((MAX(CO$2,$J37) + 'C'!$D$57) / (MIN(CO$2,$J37) + 'C'!$D$57),1),"") -> 1 | CP37: =IFERROR(ROUNDDOWN((MAX(CP$2,$J37) + 'C'!$D$57) / (MIN(CP$2,$J37) + 'C'!$D$57),1),"") -> 1 | CQ37: =IFERROR(ROUNDDOWN((MAX(CQ$2,$J37) + 'C'!$D$57) / (MIN(CQ$2,$J37) + 'C'!$D$57),1),"") -> 1 | CR37: =IFERROR(ROUNDDOWN((MAX(CR$2,$J37) + 'C'!$D$57) / (MIN(CR$2,$J37) + 'C'!$D$57),1),"") -> 1 | CS37: =IFERROR(ROUNDDOWN((MAX(CS$2,$J37) + 'C'!$D$57) / (MIN(CS$2,$J37) + 'C'!$D$57),1),"") -> 1 | CT37: =IFERROR(ROUNDDOWN((MAX(CT$2,$J37) + 'C'!$D$57) / (MIN(CT$2,$J37) + 'C'!$D$57),1),"") -> 1 | CU37: =IFERROR(ROUNDDOWN((MAX(CU$2,$J37) + 'C'!$D$57) / (MIN(CU$2,$J37) + 'C'!$D$57),1),"") -> 1
B38: #ffffff | D38: 0 | E38: 0 | F38: 0 | I38: #FFFFFF | J38: 0.9999999648 | M38: 255 | N38: 255 | O38: 255 | Q38: 1 | R38: 1 | S38: 1 | U38: =IF($Q38 > 'C'!$D$33,((($Q38 + 'C'!$D$30) / 'C'!$D$31)) ^ 'C'!$D$32,($Q38 / 'C'!$D$29)) -> 1 | V38: =IF($R38 > 'C'!$D$33,((($R38 + 'C'!$D$30) / 'C'!$D$31)) ^ 'C'!$D$32,($R38 / 'C'!$D$29)) -> 1 | W38: =IF($S38 > 'C'!$D$33,((($S38 + 'C'!$D$30) / 'C'!$D$31)) ^ 'C'!$D$32,($S38 / 'C'!$D$29)) -> 1 | Y38: =('C'!$D$44 * $U38) +( 'C'!$D$45 * $V38) + ('C'!$D$46 * $W38) -> 1 | Z38: =ROUND( ('C'!$D$69 * $U38) + ('C'!$E$69 * $V38) + ('C'!$F$69 * $W38), 'C'!$D$75) -> 1 | AA38: =ROUND( ('C'!$D$70 * $U38) + ('C'!$E$70 * $V38) + ('C'!$F$70 * $W38), 'C'!$D$75) -> 1 | AB38: =ROUND( ('C'!$D$71 * $U38) + ('C'!$E$71 * $V38) + ('C'!$F$71 * $W38), 'C'!$D$75) -> 1 | AD38: =ROUND( ('C'!$D$82 * ($Z38^'C'!$D$89)) + ('C'!$E$82 * ($AA38^'C'!$D$89)) + ('C'!$F$82 * ($AB38^'C'!$D$89)), 'C'!$D$88) -> 0.99999999 | AE38: =ROUND( ('C'!$D$83 * ($Z38^'C'!$D$89)) + ('C'!$E$83 * ($AA38^'C'!$D$89)) + ('C'!$F$83 * ($AB38^'C'!$D$89)), 'C'!$D$88) -> 0 | AF38: =ROUND( ('C'!$D$84 * ($Z38^'C'!$D$89)) + ('C'!$E$84 * ($AA38^'C'!$D$89)) + ('C'!$F$84 * ($AB38^'C'!$D$89)), 'C'!$D$88) -> 4e-08 | AG38: 4e-08 | AH38: 90 | AJ38: 0.99999999 | AK38: 2.45029691e-24 | AL38: 4e-08 | AM38: 4e-08 | AN38: 90 | AP38: =ROUND( ('C'!$D$105 * $AJ38) + ('C'!$E$105 * $AK38) + ('C'!$F$105 * $AL38), 'C'!$D$111) ^ 'C'!$D$112 -> 1 | AQ38: =ROUND( ('C'!$D$106 * $AJ38) + ('C'!$E$106 * $AK38) + ('C'!$F$106 * $AL38), 'C'!$D$111) ^ 'C'!$D$112 -> 0.99999997 | AR38: =ROUND( ('C'!$D$107 * $AJ38) + ('C'!$E$107 * $AK38) + ('C'!$F$107 * $AL38), 'C'!$D$111) ^ 'C'!$D$112 -> 0.99999982 | AT38: =MIN(1, MAX(0, ROUND( ('C'!$D$119 * $AP38) + ('C'!$E$119 * $AQ38) + ('C'!$F$119 * $AR38), 'C'!$D$125))) -> 1 | AU38: =MIN(1,MAX(0,ROUND( ('C'!$D$120 * $AP38) + ('C'!$E$120 * $AQ38) + ('C'!$F$120 * $AR38), 'C'!$D$125))) -> 0.99999998 | AV38: =MIN(1,MAX(0,ROUND( ('C'!$D$121 * $AP38) + ('C'!$E$121 * $AQ38) + ('C'!$F$121 * $AR38), 'C'!$D$125))) -> 0.99999971 | AX38: =('C'!$D$44 * $AT38) +( 'C'!$D$45 * $AU38) + ('C'!$D$46 * $AV38) -> 0.9999999648 | AY38: =IF($AT38>'C'!$D$142, ($AT38 ^ (1/'C'!$D$141) * 'C'!$D$140) - 'C'!$D$139, $AT38 * 'C'!$D$138) -> 1 | AZ38: =IF($AU38>'C'!$D$142, ($AU38 ^ (1/'C'!$D$141) * 'C'!$D$140) - 'C'!$D$139, $AU38 * 'C'!$D$138) -> 0.9999999912 | BA38: =IF($AV38>'C'!$D$142, ($AV38 ^ (1/'C'!$D$141) * 'C'!$D$140) - 'C'!$D$139, $AV38 * 'C'!$D$138) -> 0.9999998725 | BC38: 255 | BD38: 255 | BE38: 255 | BH38: =IFERROR(ROUNDDOWN((MAX(BH$2,$J38) + 'C'!$D$57) / (MIN(BH$2,$J38) + 'C'!$D$57),1),"") -> 1.6 | BI38: =IFERROR(ROUNDDOWN((MAX(BI$2,$J38) + 'C'!$D$57) / (MIN(BI$2,$J38) + 'C'!$D$57),1),"") -> 1.7 | BJ38: =IFERROR(ROUNDDOWN((MAX(BJ$2,$J38) + 'C'!$D$57) / (MIN(BJ$2,$J38) + 'C'!$D$57),1),"") -> 1.5 | BK38: =IFERROR(ROUNDDOWN((MAX(BK$2,$J38) + 'C'!$D$57) / (MIN(BK$2,$J38) + 'C'!$D$57),1),"") -> 1 | BL38: =IFERROR(ROUNDDOWN((MAX(BL$2,$J38) + 'C'!$D$57) / (MIN(BL$2,$J38) + 'C'!$D$57),1),"") -> 20.9 | BM38: =IFERROR(ROUNDDOWN((MAX(BM$2,$J38) + 'C'!$D$57) / (MIN(BM$2,$J38) + 'C'!$D$57),1),"") -> 11.2 | BN38: =IFERROR(ROUNDDOWN((MAX(BN$2,$J38) + 'C'!$D$57) / (MIN(BN$2,$J38) + 'C'!$D$57),1),"") -> 18.9 | BO38: =IFERROR(ROUNDDOWN((MAX(BO$2,$J38) + 'C'!$D$57) / (MIN(BO$2,$J38) + 'C'!$D$57),1),"") -> 15.3 | BP38: =IFERROR(ROUNDDOWN((MAX(BP$2,$J38) + 'C'!$D$57) / (MIN(BP$2,$J38) + 'C'!$D$57),1),"") -> 1.5 | BQ38: =IFERROR(ROUNDDOWN((MAX(BQ$2,$J38) + 'C'!$D$57) / (MIN(BQ$2,$J38) + 'C'!$D$57),1),"") -> 1.2 | BR38: =IFERROR(ROUNDDOWN((MAX(BR$2,$J38) + 'C'!$D$57) / (MIN(BR$2,$J38) + 'C'!$D$57),1),"") -> 7.7 | BS38: =IFERROR(ROUNDDOWN((MAX(BS$2,$J38) + 'C'!$D$57) / (MIN(BS$2,$J38) + 'C'!$D$57),1),"") -> 3.9 | BT38: =IFERROR(ROUNDDOWN((MAX(BT$2,$J38) + 'C'!$D$57) / (MIN(BT$2,$J38) + 'C'!$D$57),1),"") -> 8.7 | BU38: =IFERROR(ROUNDDOWN((MAX(BU$2,$J38) + 'C'!$D$57) / (MIN(BU$2,$J38) + 'C'!$D$57),1),"") -> 5 | BV38: =IFERROR(ROUNDDOWN((MAX(BV$2,$J38) + 'C'!$D$57) / (MIN(BV$2,$J38) + 'C'!$D$57),1),"") -> 3.8 | BW38: =IFERROR(ROUNDDOWN((MAX(BW$2,$J38) + 'C'!$D$57) / (MIN(BW$2,$J38) + 'C'!$D$57),1),"") -> 2.1 | BX38: =IFERROR(ROUNDDOWN((MAX(BX$2,$J38) + 'C'!$D$57) / (MIN(BX$2,$J38) + 'C'!$D$57),1),"") -> 1.3 | BY38: =IFERROR(ROUNDDOWN((MAX(BY$2,$J38) + 'C'!$D$57) / (MIN(BY$2,$J38) + 'C'!$D$57),1),"") -> 2.1 | BZ38: =IFERROR(ROUNDDOWN((MAX(BZ$2,$J38) + 'C'!$D$57) / (MIN(BZ$2,$J38) + 'C'!$D$57),1),"") -> 8.7 | CA38: =IFERROR(ROUNDDOWN((MAX(CA$2,$J38) + 'C'!$D$57) / (MIN(CA$2,$J38) + 'C'!$D$57),1),"") -> 1.8 | CB38: =IFERROR(ROUNDDOWN((MAX(CB$2,$J38) + 'C'!$D$57) / (MIN(CB$2,$J38) + 'C'!$D$57),1),"") -> 3.6 | CC38: =IFERROR(ROUNDDOWN((MAX(CC$2,$J38) + 'C'!$D$57) / (MIN(CC$2,$J38) + 'C'!$D$57),1),"") -> 1 | CD38: =IFERROR(ROUNDDOWN((MAX(CD$2,$J38) + 'C'!$D$57) / (MIN(CD$2,$J38) + 'C'!$D$57),1),"") -> 1 | CE38: =IFERROR(ROUNDDOWN((MAX(CE$2,$J38) + 'C'!$D$57) / (MIN(CE$2,$J38) + 'C'!$D$57),1),"") -> 1 | CF38: =IFERROR(ROUNDDOWN((MAX(CF$2,$J38) + 'C'!$D$57) / (MIN(CF$2,$J38) + 'C'!$D$57),1),"") -> 1 | CG38: =IFERROR(ROUNDDOWN((MAX(CG$2,$J38) + 'C'!$D$57) / (MIN(CG$2,$J38) + 'C'!$D$57),1),"") -> 1 | CH38: =IFERROR(ROUNDDOWN((MAX(CH$2,$J38) + 'C'!$D$57) / (MIN(CH$2,$J38) + 'C'!$D$57),1),"") -> 1 | CI38: =IFERROR(ROUNDDOWN((MAX(CI$2,$J38) + 'C'!$D$57) / (MIN(CI$2,$J38) + 'C'!$D$57),1),"") -> 1 | CJ38: =IFERROR(ROUNDDOWN((MAX(CJ$2,$J38) + 'C'!$D$57) / (MIN(CJ$2,$J38) + 'C'!$D$57),1),"") -> 1 | CK38: =IFERROR(ROUNDDOWN((MAX(CK$2,$J38) + 'C'!$D$57) / (MIN(CK$2,$J38) + 'C'!$D$57),1),"") -> 1 | CL38: =IFERROR(ROUNDDOWN((MAX(CL$2,$J38) + 'C'!$D$57) / (MIN(CL$2,$J38) + 'C'!$D$57),1),"") -> 1 | CM38: =IFERROR(ROUNDDOWN((MAX(CM$2,$J38) + 'C'!$D$57) / (MIN(CM$2,$J38) + 'C'!$D$57),1),"") -> 1 | CN38: =IFERROR(ROUNDDOWN((MAX(CN$2,$J38) + 'C'!$D$57) / (MIN(CN$2,$J38) + 'C'!$D$57),1),"") -> 1 | CO38: =IFERROR(ROUNDDOWN((MAX(CO$2,$J38) + 'C'!$D$57) / (MIN(CO$2,$J38) + 'C'!$D$57),1),"") -> 1 | CP38: =IFERROR(ROUNDDOWN((MAX(CP$2,$J38) + 'C'!$D$57) / (MIN(CP$2,$J38) + 'C'!$D$57),1),"") -> 1 | CQ38: =IFERROR(ROUNDDOWN((MAX(CQ$2,$J38) + 'C'!$D$57) / (MIN(CQ$2,$J38) + 'C'!$D$57),1),"") -> 1 | CR38: =IFERROR(ROUNDDOWN((MAX(CR$2,$J38) + 'C'!$D$57) / (MIN(CR$2,$J38) + 'C'!$D$57),1),"") -> 1 | CS38: =IFERROR(ROUNDDOWN((MAX(CS$2,$J38) + 'C'!$D$57) / (MIN(CS$2,$J38) + 'C'!$D$57),1),"") -> 1 | CT38: =IFERROR(ROUNDDOWN((MAX(CT$2,$J38) + 'C'!$D$57) / (MIN(CT$2,$J38) + 'C'!$D$57),1),"") -> 1 | CU38: =IFERROR(ROUNDDOWN((MAX(CU$2,$J38) + 'C'!$D$57) / (MIN(CU$2,$J38) + 'C'!$D$57),1),"") -> 1
B39: #ffffff | D39: 0 | E39: 0 | F39: 0 | I39: #FFFFFF | J39: 0.9999999648 | M39: 255 | N39: 255 | O39: 255 | Q39: 1 | R39: 1 | S39: 1 | U39: =IF($Q39 > 'C'!$D$33,((($Q39 + 'C'!$D$30) / 'C'!$D$31)) ^ 'C'!$D$32,($Q39 / 'C'!$D$29)) -> 1 | V39: =IF($R39 > 'C'!$D$33,((($R39 + 'C'!$D$30) / 'C'!$D$31)) ^ 'C'!$D$32,($R39 / 'C'!$D$29)) -> 1 | W39: =IF($S39 > 'C'!$D$33,((($S39 + 'C'!$D$30) / 'C'!$D$31)) ^ 'C'!$D$32,($S39 / 'C'!$D$29)) -> 1 | Y39: =('C'!$D$44 * $U39) +( 'C'!$D$45 * $V39) + ('C'!$D$46 * $W39) -> 1 | Z39: =ROUND( ('C'!$D$69 * $U39) + ('C'!$E$69 * $V39) + ('C'!$F$69 * $W39), 'C'!$D$75) -> 1 | AA39: =ROUND( ('C'!$D$70 * $U39) + ('C'!$E$70 * $V39) + ('C'!$F$70 * $W39), 'C'!$D$75) -> 1 | AB39: =ROUND( ('C'!$D$71 * $U39) + ('C'!$E$71 * $V39) + ('C'!$F$71 * $W39), 'C'!$D$75) -> 1 | AD39: =ROUND( ('C'!$D$82 * ($Z39^'C'!$D$89)) + ('C'!$E$82 * ($AA39^'C'!$D$89)) + ('C'!$F$82 * ($AB39^'C'!$D$89)), 'C'!$D$88) -> 0.99999999 | AE39: =ROUND( ('C'!$D$83 * ($Z39^'C'!$D$89)) + ('C'!$E$83 * ($AA39^'C'!$D$89)) + ('C'!$F$83 * ($AB39^'C'!$D$89)), 'C'!$D$88) -> 0 | AF39: =ROUND( ('C'!$D$84 * ($Z39^'C'!$D$89)) + ('C'!$E$84 * ($AA39^'C'!$D$89)) + ('C'!$F$84 * ($AB39^'C'!$D$89)), 'C'!$D$88) -> 4e-08 | AG39: 4e-08 | AH39: 90 | AJ39: 0.99999999 | AK39: 2.45029691e-24 | AL39: 4e-08 | AM39: 4e-08 | AN39: 90 | AP39: =ROUND( ('C'!$D$105 * $AJ39) + ('C'!$E$105 * $AK39) + ('C'!$F$105 * $AL39), 'C'!$D$111) ^ 'C'!$D$112 -> 1 | AQ39: =ROUND( ('C'!$D$106 * $AJ39) + ('C'!$E$106 * $AK39) + ('C'!$F$106 * $AL39), 'C'!$D$111) ^ 'C'!$D$112 -> 0.99999997 | AR39: =ROUND( ('C'!$D$107 * $AJ39) + ('C'!$E$107 * $AK39) + ('C'!$F$107 * $AL39), 'C'!$D$111) ^ 'C'!$D$112 -> 0.99999982 | AT39: =MIN(1, MAX(0, ROUND( ('C'!$D$119 * $AP39) + ('C'!$E$119 * $AQ39) + ('C'!$F$119 * $AR39), 'C'!$D$125))) -> 1 | AU39: =MIN(1,MAX(0,ROUND( ('C'!$D$120 * $AP39) + ('C'!$E$120 * $AQ39) + ('C'!$F$120 * $AR39), 'C'!$D$125))) -> 0.99999998 | AV39: =MIN(1,MAX(0,ROUND( ('C'!$D$121 * $AP39) + ('C'!$E$121 * $AQ39) + ('C'!$F$121 * $AR39), 'C'!$D$125))) -> 0.99999971 | AX39: =('C'!$D$44 * $AT39) +( 'C'!$D$45 * $AU39) + ('C'!$D$46 * $AV39) -> 0.9999999648 | AY39: =IF($AT39>'C'!$D$142, ($AT39 ^ (1/'C'!$D$141) * 'C'!$D$140) - 'C'!$D$139, $AT39 * 'C'!$D$138) -> 1 | AZ39: =IF($AU39>'C'!$D$142, ($AU39 ^ (1/'C'!$D$141) * 'C'!$D$140) - 'C'!$D$139, $AU39 * 'C'!$D$138) -> 0.9999999912 | BA39: =IF($AV39>'C'!$D$142, ($AV39 ^ (1/'C'!$D$141) * 'C'!$D$140) - 'C'!$D$139, $AV39 * 'C'!$D$138) -> 0.9999998725 | BC39: 255 | BD39: 255 | BE39: 255 | BH39: =IFERROR(ROUNDDOWN((MAX(BH$2,$J39) + 'C'!$D$57) / (MIN(BH$2,$J39) + 'C'!$D$57),1),"") -> 1.6 | BI39: =IFERROR(ROUNDDOWN((MAX(BI$2,$J39) + 'C'!$D$57) / (MIN(BI$2,$J39) + 'C'!$D$57),1),"") -> 1.7 | BJ39: =IFERROR(ROUNDDOWN((MAX(BJ$2,$J39) + 'C'!$D$57) / (MIN(BJ$2,$J39) + 'C'!$D$57),1),"") -> 1.5 | BK39: =IFERROR(ROUNDDOWN((MAX(BK$2,$J39) + 'C'!$D$57) / (MIN(BK$2,$J39) + 'C'!$D$57),1),"") -> 1 | BL39: =IFERROR(ROUNDDOWN((MAX(BL$2,$J39) + 'C'!$D$57) / (MIN(BL$2,$J39) + 'C'!$D$57),1),"") -> 20.9 | BM39: =IFERROR(ROUNDDOWN((MAX(BM$2,$J39) + 'C'!$D$57) / (MIN(BM$2,$J39) + 'C'!$D$57),1),"") -> 11.2 | BN39: =IFERROR(ROUNDDOWN((MAX(BN$2,$J39) + 'C'!$D$57) / (MIN(BN$2,$J39) + 'C'!$D$57),1),"") -> 18.9 | BO39: =IFERROR(ROUNDDOWN((MAX(BO$2,$J39) + 'C'!$D$57) / (MIN(BO$2,$J39) + 'C'!$D$57),1),"") -> 15.3 | BP39: =IFERROR(ROUNDDOWN((MAX(BP$2,$J39) + 'C'!$D$57) / (MIN(BP$2,$J39) + 'C'!$D$57),1),"") -> 1.5 | BQ39: =IFERROR(ROUNDDOWN((MAX(BQ$2,$J39) + 'C'!$D$57) / (MIN(BQ$2,$J39) + 'C'!$D$57),1),"") -> 1.2 | BR39: =IFERROR(ROUNDDOWN((MAX(BR$2,$J39) + 'C'!$D$57) / (MIN(BR$2,$J39) + 'C'!$D$57),1),"") -> 7.7 | BS39: =IFERROR(ROUNDDOWN((MAX(BS$2,$J39) + 'C'!$D$57) / (MIN(BS$2,$J39) + 'C'!$D$57),1),"") -> 3.9 | BT39: =IFERROR(ROUNDDOWN((MAX(BT$2,$J39) + 'C'!$D$57) / (MIN(BT$2,$J39) + 'C'!$D$57),1),"") -> 8.7 | BU39: =IFERROR(ROUNDDOWN((MAX(BU$2,$J39) + 'C'!$D$57) / (MIN(BU$2,$J39) + 'C'!$D$57),1),"") -> 5 | BV39: =IFERROR(ROUNDDOWN((MAX(BV$2,$J39) + 'C'!$D$57) / (MIN(BV$2,$J39) + 'C'!$D$57),1),"") -> 3.8 | BW39: =IFERROR(ROUNDDOWN((MAX(BW$2,$J39) + 'C'!$D$57) / (MIN(BW$2,$J39) + 'C'!$D$57),1),"") -> 2.1 | BX39: =IFERROR(ROUNDDOWN((MAX(BX$2,$J39) + 'C'!$D$57) / (MIN(BX$2,$J39) + 'C'!$D$57),1),"") -> 1.3 | BY39: =IFERROR(ROUNDDOWN((MAX(BY$2,$J39) + 'C'!$D$57) / (MIN(BY$2,$J39) + 'C'!$D$57),1),"") -> 2.1 | BZ39: =IFERROR(ROUNDDOWN((MAX(BZ$2,$J39) + 'C'!$D$57) / (MIN(BZ$2,$J39) + 'C'!$D$57),1),"") -> 8.7 | CA39: =IFERROR(ROUNDDOWN((MAX(CA$2,$J39) + 'C'!$D$57) / (MIN(CA$2,$J39) + 'C'!$D$57),1),"") -> 1.8 | CB39: =IFERROR(ROUNDDOWN((MAX(CB$2,$J39) + 'C'!$D$57) / (MIN(CB$2,$J39) + 'C'!$D$57),1),"") -> 3.6 | CC39: =IFERROR(ROUNDDOWN((MAX(CC$2,$J39) + 'C'!$D$57) / (MIN(CC$2,$J39) + 'C'!$D$57),1),"") -> 1 | CD39: =IFERROR(ROUNDDOWN((MAX(CD$2,$J39) + 'C'!$D$57) / (MIN(CD$2,$J39) + 'C'!$D$57),1),"") -> 1 | CE39: =IFERROR(ROUNDDOWN((MAX(CE$2,$J39) + 'C'!$D$57) / (MIN(CE$2,$J39) + 'C'!$D$57),1),"") -> 1 | CF39: =IFERROR(ROUNDDOWN((MAX(CF$2,$J39) + 'C'!$D$57) / (MIN(CF$2,$J39) + 'C'!$D$57),1),"") -> 1 | CG39: =IFERROR(ROUNDDOWN((MAX(CG$2,$J39) + 'C'!$D$57) / (MIN(CG$2,$J39) + 'C'!$D$57),1),"") -> 1 | CH39: =IFERROR(ROUNDDOWN((MAX(CH$2,$J39) + 'C'!$D$57) / (MIN(CH$2,$J39) + 'C'!$D$57),1),"") -> 1 | CI39: =IFERROR(ROUNDDOWN((MAX(CI$2,$J39) + 'C'!$D$57) / (MIN(CI$2,$J39) + 'C'!$D$57),1),"") -> 1 | CJ39: =IFERROR(ROUNDDOWN((MAX(CJ$2,$J39) + 'C'!$D$57) / (MIN(CJ$2,$J39) + 'C'!$D$57),1),"") -> 1 | CK39: =IFERROR(ROUNDDOWN((MAX(CK$2,$J39) + 'C'!$D$57) / (MIN(CK$2,$J39) + 'C'!$D$57),1),"") -> 1 | CL39: =IFERROR(ROUNDDOWN((MAX(CL$2,$J39) + 'C'!$D$57) / (MIN(CL$2,$J39) + 'C'!$D$57),1),"") -> 1 | CM39: =IFERROR(ROUNDDOWN((MAX(CM$2,$J39) + 'C'!$D$57) / (MIN(CM$2,$J39) + 'C'!$D$57),1),"") -> 1 | CN39: =IFERROR(ROUNDDOWN((MAX(CN$2,$J39) + 'C'!$D$57) / (MIN(CN$2,$J39) + 'C'!$D$57),1),"") -> 1 | CO39: =IFERROR(ROUNDDOWN((MAX(CO$2,$J39) + 'C'!$D$57) / (MIN(CO$2,$J39) + 'C'!$D$57),1),"") -> 1 | CP39: =IFERROR(ROUNDDOWN((MAX(CP$2,$J39) + 'C'!$D$57) / (MIN(CP$2,$J39) + 'C'!$D$57),1),"") -> 1 | CQ39: =IFERROR(ROUNDDOWN((MAX(CQ$2,$J39) + 'C'!$D$57) / (MIN(CQ$2,$J39) + 'C'!$D$57),1),"") -> 1 | CR39: =IFERROR(ROUNDDOWN((MAX(CR$2,$J39) + 'C'!$D$57) / (MIN(CR$2,$J39) + 'C'!$D$57),1),"") -> 1 | CS39: =IFERROR(ROUNDDOWN((MAX(CS$2,$J39) + 'C'!$D$57) / (MIN(CS$2,$J39) + 'C'!$D$57),1),"") -> 1 | CT39: =IFERROR(ROUNDDOWN((MAX(CT$2,$J39) + 'C'!$D$57) / (MIN(CT$2,$J39) + 'C'!$D$57),1),"") -> 1 | CU39: =IFERROR(ROUNDDOWN((MAX(CU$2,$J39) + 'C'!$D$57) / (MIN(CU$2,$J39) + 'C'!$D$57),1),"") -> 1
B40: #ffffff | D40: 0 | E40: 0 | F40: 0 | I40: #FFFFFF | J40: 0.9999999648 | M40: 255 | N40: 255 | O40: 255 | Q40: 1 | R40: 1 | S40: 1 | U40: =IF($Q40 > 'C'!$D$33,((($Q40 + 'C'!$D$30) / 'C'!$D$31)) ^ 'C'!$D$32,($Q40 / 'C'!$D$29)) -> 1 | V40: =IF($R40 > 'C'!$D$33,((($R40 + 'C'!$D$30) / 'C'!$D$31)) ^ 'C'!$D$32,($R40 / 'C'!$D$29)) -> 1 | W40: =IF($S40 > 'C'!$D$33,((($S40 + 'C'!$D$30) / 'C'!$D$31)) ^ 'C'!$D$32,($S40 / 'C'!$D$29)) -> 1 | Y40: =('C'!$D$44 * $U40) +( 'C'!$D$45 * $V40) + ('C'!$D$46 * $W40) -> 1 | Z40: =ROUND( ('C'!$D$69 * $U40) + ('C'!$E$69 * $V40) + ('C'!$F$69 * $W40), 'C'!$D$75) -> 1 | AA40: =ROUND( ('C'!$D$70 * $U40) + ('C'!$E$70 * $V40) + ('C'!$F$70 * $W40), 'C'!$D$75) -> 1 | AB40: =ROUND( ('C'!$D$71 * $U40) + ('C'!$E$71 * $V40) + ('C'!$F$71 * $W40), 'C'!$D$75) -> 1 | AD40: =ROUND( ('C'!$D$82 * ($Z40^'C'!$D$89)) + ('C'!$E$82 * ($AA40^'C'!$D$89)) + ('C'!$F$82 * ($AB40^'C'!$D$89)), 'C'!$D$88) -> 0.99999999 | AE40: =ROUND( ('C'!$D$83 * ($Z40^'C'!$D$89)) + ('C'!$E$83 * ($AA40^'C'!$D$89)) + ('C'!$F$83 * ($AB40^'C'!$D$89)), 'C'!$D$88) -> 0 | AF40: =ROUND( ('C'!$D$84 * ($Z40^'C'!$D$89)) + ('C'!$E$84 * ($AA40^'C'!$D$89)) + ('C'!$F$84 * ($AB40^'C'!$D$89)), 'C'!$D$88) -> 4e-08 | AG40: 4e-08 | AH40: 90 | AJ40: 0.99999999 | AK40: 2.45029691e-24 | AL40: 4e-08 | AM40: 4e-08 | AN40: 90 | AP40: =ROUND( ('C'!$D$105 * $AJ40) + ('C'!$E$105 * $AK40) + ('C'!$F$105 * $AL40), 'C'!$D$111) ^ 'C'!$D$112 -> 1 | AQ40: =ROUND( ('C'!$D$106 * $AJ40) + ('C'!$E$106 * $AK40) + ('C'!$F$106 * $AL40), 'C'!$D$111) ^ 'C'!$D$112 -> 0.99999997 | AR40: =ROUND( ('C'!$D$107 * $AJ40) + ('C'!$E$107 * $AK40) + ('C'!$F$107 * $AL40), 'C'!$D$111) ^ 'C'!$D$112 -> 0.99999982 | AT40: =MIN(1, MAX(0, ROUND( ('C'!$D$119 * $AP40) + ('C'!$E$119 * $AQ40) + ('C'!$F$119 * $AR40), 'C'!$D$125))) -> 1 | AU40: =MIN(1,MAX(0,ROUND( ('C'!$D$120 * $AP40) + ('C'!$E$120 * $AQ40) + ('C'!$F$120 * $AR40), 'C'!$D$125))) -> 0.99999998 | AV40: =MIN(1,MAX(0,ROUND( ('C'!$D$121 * $AP40) + ('C'!$E$121 * $AQ40) + ('C'!$F$121 * $AR40), 'C'!$D$125))) -> 0.99999971 | AX40: =('C'!$D$44 * $AT40) +( 'C'!$D$45 * $AU40) + ('C'!$D$46 * $AV40) -> 0.9999999648 | AY40: =IF($AT40>'C'!$D$142, ($AT40 ^ (1/'C'!$D$141) * 'C'!$D$140) - 'C'!$D$139, $AT40 * 'C'!$D$138) -> 1 | AZ40: =IF($AU40>'C'!$D$142, ($AU40 ^ (1/'C'!$D$141) * 'C'!$D$140) - 'C'!$D$139, $AU40 * 'C'!$D$138) -> 0.9999999912 | BA40: =IF($AV40>'C'!$D$142, ($AV40 ^ (1/'C'!$D$141) * 'C'!$D$140) - 'C'!$D$139, $AV40 * 'C'!$D$138) -> 0.9999998725 | BC40: 255 | BD40: 255 | BE40: 255 | BH40: =IFERROR(ROUNDDOWN((MAX(BH$2,$J40) + 'C'!$D$57) / (MIN(BH$2,$J40) + 'C'!$D$57),1),"") -> 1.6 | BI40: =IFERROR(ROUNDDOWN((MAX(BI$2,$J40) + 'C'!$D$57) / (MIN(BI$2,$J40) + 'C'!$D$57),1),"") -> 1.7 | BJ40: =IFERROR(ROUNDDOWN((MAX(BJ$2,$J40) + 'C'!$D$57) / (MIN(BJ$2,$J40) + 'C'!$D$57),1),"") -> 1.5 | BK40: =IFERROR(ROUNDDOWN((MAX(BK$2,$J40) + 'C'!$D$57) / (MIN(BK$2,$J40) + 'C'!$D$57),1),"") -> 1 | BL40: =IFERROR(ROUNDDOWN((MAX(BL$2,$J40) + 'C'!$D$57) / (MIN(BL$2,$J40) + 'C'!$D$57),1),"") -> 20.9 | BM40: =IFERROR(ROUNDDOWN((MAX(BM$2,$J40) + 'C'!$D$57) / (MIN(BM$2,$J40) + 'C'!$D$57),1),"") -> 11.2 | BN40: =IFERROR(ROUNDDOWN((MAX(BN$2,$J40) + 'C'!$D$57) / (MIN(BN$2,$J40) + 'C'!$D$57),1),"") -> 18.9 | BO40: =IFERROR(ROUNDDOWN((MAX(BO$2,$J40) + 'C'!$D$57) / (MIN(BO$2,$J40) + 'C'!$D$57),1),"") -> 15.3 | BP40: =IFERROR(ROUNDDOWN((MAX(BP$2,$J40) + 'C'!$D$57) / (MIN(BP$2,$J40) + 'C'!$D$57),1),"") -> 1.5 | BQ40: =IFERROR(ROUNDDOWN((MAX(BQ$2,$J40) + 'C'!$D$57) / (MIN(BQ$2,$J40) + 'C'!$D$57),1),"") -> 1.2 | BR40: =IFERROR(ROUNDDOWN((MAX(BR$2,$J40) + 'C'!$D$57) / (MIN(BR$2,$J40) + 'C'!$D$57),1),"") -> 7.7 | BS40: =IFERROR(ROUNDDOWN((MAX(BS$2,$J40) + 'C'!$D$57) / (MIN(BS$2,$J40) + 'C'!$D$57),1),"") -> 3.9 | BT40: =IFERROR(ROUNDDOWN((MAX(BT$2,$J40) + 'C'!$D$57) / (MIN(BT$2,$J40) + 'C'!$D$57),1),"") -> 8.7 | BU40: =IFERROR(ROUNDDOWN((MAX(BU$2,$J40) + 'C'!$D$57) / (MIN(BU$2,$J40) + 'C'!$D$57),1),"") -> 5 | BV40: =IFERROR(ROUNDDOWN((MAX(BV$2,$J40) + 'C'!$D$57) / (MIN(BV$2,$J40) + 'C'!$D$57),1),"") -> 3.8 | BW40: =IFERROR(ROUNDDOWN((MAX(BW$2,$J40) + 'C'!$D$57) / (MIN(BW$2,$J40) + 'C'!$D$57),1),"") -> 2.1 | BX40: =IFERROR(ROUNDDOWN((MAX(BX$2,$J40) + 'C'!$D$57) / (MIN(BX$2,$J40) + 'C'!$D$57),1),"") -> 1.3 | BY40: =IFERROR(ROUNDDOWN((MAX(BY$2,$J40) + 'C'!$D$57) / (MIN(BY$2,$J40) + 'C'!$D$57),1),"") -> 2.1 | BZ40: =IFERROR(ROUNDDOWN((MAX(BZ$2,$J40) + 'C'!$D$57) / (MIN(BZ$2,$J40) + 'C'!$D$57),1),"") -> 8.7 | CA40: =IFERROR(ROUNDDOWN((MAX(CA$2,$J40) + 'C'!$D$57) / (MIN(CA$2,$J40) + 'C'!$D$57),1),"") -> 1.8 | CB40: =IFERROR(ROUNDDOWN((MAX(CB$2,$J40) + 'C'!$D$57) / (MIN(CB$2,$J40) + 'C'!$D$57),1),"") -> 3.6 | CC40: =IFERROR(ROUNDDOWN((MAX(CC$2,$J40) + 'C'!$D$57) / (MIN(CC$2,$J40) + 'C'!$D$57),1),"") -> 1 | CD40: =IFERROR(ROUNDDOWN((MAX(CD$2,$J40) + 'C'!$D$57) / (MIN(CD$2,$J40) + 'C'!$D$57),1),"") -> 1 | CE40: =IFERROR(ROUNDDOWN((MAX(CE$2,$J40) + 'C'!$D$57) / (MIN(CE$2,$J40) + 'C'!$D$57),1),"") -> 1 | CF40: =IFERROR(ROUNDDOWN((MAX(CF$2,$J40) + 'C'!$D$57) / (MIN(CF$2,$J40) + 'C'!$D$57),1),"") -> 1 | CG40: =IFERROR(ROUNDDOWN((MAX(CG$2,$J40) + 'C'!$D$57) / (MIN(CG$2,$J40) + 'C'!$D$57),1),"") -> 1 | CH40: =IFERROR(ROUNDDOWN((MAX(CH$2,$J40) + 'C'!$D$57) / (MIN(CH$2,$J40) + 'C'!$D$57),1),"") -> 1 | CI40: =IFERROR(ROUNDDOWN((MAX(CI$2,$J40) + 'C'!$D$57) / (MIN(CI$2,$J40) + 'C'!$D$57),1),"") -> 1 | CJ40: =IFERROR(ROUNDDOWN((MAX(CJ$2,$J40) + 'C'!$D$57) / (MIN(CJ$2,$J40) + 'C'!$D$57),1),"") -> 1 | CK40: =IFERROR(ROUNDDOWN((MAX(CK$2,$J40) + 'C'!$D$57) / (MIN(CK$2,$J40) + 'C'!$D$57),1),"") -> 1 | CL40: =IFERROR(ROUNDDOWN((MAX(CL$2,$J40) + 'C'!$D$57) / (MIN(CL$2,$J40) + 'C'!$D$57),1),"") -> 1 | CM40: =IFERROR(ROUNDDOWN((MAX(CM$2,$J40) + 'C'!$D$57) / (MIN(CM$2,$J40) + 'C'!$D$57),1),"") -> 1 | CN40: =IFERROR(ROUNDDOWN((MAX(CN$2,$J40) + 'C'!$D$57) / (MIN(CN$2,$J40) + 'C'!$D$57),1),"") -> 1 | CO40: =IFERROR(ROUNDDOWN((MAX(CO$2,$J40) + 'C'!$D$57) / (MIN(CO$2,$J40) + 'C'!$D$57),1),"") -> 1 | CP40: =IFERROR(ROUNDDOWN((MAX(CP$2,$J40) + 'C'!$D$57) / (MIN(CP$2,$J40) + 'C'!$D$57),1),"") -> 1 | CQ40: =IFERROR(ROUNDDOWN((MAX(CQ$2,$J40) + 'C'!$D$57) / (MIN(CQ$2,$J40) + 'C'!$D$57),1),"") -> 1 | CR40: =IFERROR(ROUNDDOWN((MAX(CR$2,$J40) + 'C'!$D$57) / (MIN(CR$2,$J40) + 'C'!$D$57),1),"") -> 1 | CS40: =IFERROR(ROUNDDOWN((MAX(CS$2,$J40) + 'C'!$D$57) / (MIN(CS$2,$J40) + 'C'!$D$57),1),"") -> 1 | CT40: =IFERROR(ROUNDDOWN((MAX(CT$2,$J40) + 'C'!$D$57) / (MIN(CT$2,$J40) + 'C'!$D$57),1),"") -> 1 | CU40: =IFERROR(ROUNDDOWN((MAX(CU$2,$J40) + 'C'!$D$57) / (MIN(CU$2,$J40) + 'C'!$D$57),1),"") -> 1
B41: #ffffff | D41: 0 | E41: 0 | F41: 0 | I41: #FFFFFF | J41: 0.9999999648 | M41: 255 | N41: 255 | O41: 255 | Q41: 1 | R41: 1 | S41: 1 | U41: =IF($Q41 > 'C'!$D$33,((($Q41 + 'C'!$D$30) / 'C'!$D$31)) ^ 'C'!$D$32,($Q41 / 'C'!$D$29)) -> 1 | V41: =IF($R41 > 'C'!$D$33,((($R41 + 'C'!$D$30) / 'C'!$D$31)) ^ 'C'!$D$32,($R41 / 'C'!$D$29)) -> 1 | W41: =IF($S41 > 'C'!$D$33,((($S41 + 'C'!$D$30) / 'C'!$D$31)) ^ 'C'!$D$32,($S41 / 'C'!$D$29)) -> 1 | Y41: =('C'!$D$44 * $U41) +( 'C'!$D$45 * $V41) + ('C'!$D$46 * $W41) -> 1 | Z41: =ROUND( ('C'!$D$69 * $U41) + ('C'!$E$69 * $V41) + ('C'!$F$69 * $W41), 'C'!$D$75) -> 1 | AA41: =ROUND( ('C'!$D$70 * $U41) + ('C'!$E$70 * $V41) + ('C'!$F$70 * $W41), 'C'!$D$75) -> 1 | AB41: =ROUND( ('C'!$D$71 * $U41) + ('C'!$E$71 * $V41) + ('C'!$F$71 * $W41), 'C'!$D$75) -> 1 | AD41: =ROUND( ('C'!$D$82 * ($Z41^'C'!$D$89)) + ('C'!$E$82 * ($AA41^'C'!$D$89)) + ('C'!$F$82 * ($AB41^'C'!$D$89)), 'C'!$D$88) -> 0.99999999 | AE41: =ROUND( ('C'!$D$83 * ($Z41^'C'!$D$89)) + ('C'!$E$83 * ($AA41^'C'!$D$89)) + ('C'!$F$83 * ($AB41^'C'!$D$89)), 'C'!$D$88) -> 0 | AF41: =ROUND( ('C'!$D$84 * ($Z41^'C'!$D$89)) + ('C'!$E$84 * ($AA41^'C'!$D$89)) + ('C'!$F$84 * ($AB41^'C'!$D$89)), 'C'!$D$88) -> 4e-08 | AG41: 4e-08 | AH41: 90 | AJ41: 0.99999999 | AK41: 2.45029691e-24 | AL41: 4e-08 | AM41: 4e-08 | AN41: 90 | AP41: =ROUND( ('C'!$D$105 * $AJ41) + ('C'!$E$105 * $AK41) + ('C'!$F$105 * $AL41), 'C'!$D$111) ^ 'C'!$D$112 -> 1 | AQ41: =ROUND( ('C'!$D$106 * $AJ41) + ('C'!$E$106 * $AK41) + ('C'!$F$106 * $AL41), 'C'!$D$111) ^ 'C'!$D$112 -> 0.99999997 | AR41: =ROUND( ('C'!$D$107 * $AJ41) + ('C'!$E$107 * $AK41) + ('C'!$F$107 * $AL41), 'C'!$D$111) ^ 'C'!$D$112 -> 0.99999982 | AT41: =MIN(1, MAX(0, ROUND( ('C'!$D$119 * $AP41) + ('C'!$E$119 * $AQ41) + ('C'!$F$119 * $AR41), 'C'!$D$125))) -> 1 | AU41: =MIN(1,MAX(0,ROUND( ('C'!$D$120 * $AP41) + ('C'!$E$120 * $AQ41) + ('C'!$F$120 * $AR41), 'C'!$D$125))) -> 0.99999998 | AV41: =MIN(1,MAX(0,ROUND( ('C'!$D$121 * $AP41) + ('C'!$E$121 * $AQ41) + ('C'!$F$121 * $AR41), 'C'!$D$125))) -> 0.99999971 | AX41: =('C'!$D$44 * $AT41) +( 'C'!$D$45 * $AU41) + ('C'!$D$46 * $AV41) -> 0.9999999648 | AY41: =IF($AT41>'C'!$D$142, ($AT41 ^ (1/'C'!$D$141) * 'C'!$D$140) - 'C'!$D$139, $AT41 * 'C'!$D$138) -> 1 | AZ41: =IF($AU41>'C'!$D$142, ($AU41 ^ (1/'C'!$D$141) * 'C'!$D$140) - 'C'!$D$139, $AU41 * 'C'!$D$138) -> 0.9999999912 | BA41: =IF($AV41>'C'!$D$142, ($AV41 ^ (1/'C'!$D$141) * 'C'!$D$140) - 'C'!$D$139, $AV41 * 'C'!$D$138) -> 0.9999998725 | BC41: 255 | BD41: 255 | BE41: 255 | BH41: =IFERROR(ROUNDDOWN((MAX(BH$2,$J41) + 'C'!$D$57) / (MIN(BH$2,$J41) + 'C'!$D$57),1),"") -> 1.6 | BI41: =IFERROR(ROUNDDOWN((MAX(BI$2,$J41) + 'C'!$D$57) / (MIN(BI$2,$J41) + 'C'!$D$57),1),"") -> 1.7 | BJ41: =IFERROR(ROUNDDOWN((MAX(BJ$2,$J41) + 'C'!$D$57) / (MIN(BJ$2,$J41) + 'C'!$D$57),1),"") -> 1.5 | BK41: =IFERROR(ROUNDDOWN((MAX(BK$2,$J41) + 'C'!$D$57) / (MIN(BK$2,$J41) + 'C'!$D$57),1),"") -> 1 | BL41: =IFERROR(ROUNDDOWN((MAX(BL$2,$J41) + 'C'!$D$57) / (MIN(BL$2,$J41) + 'C'!$D$57),1),"") -> 20.9 | BM41: =IFERROR(ROUNDDOWN((MAX(BM$2,$J41) + 'C'!$D$57) / (MIN(BM$2,$J41) + 'C'!$D$57),1),"") -> 11.2 | BN41: =IFERROR(ROUNDDOWN((MAX(BN$2,$J41) + 'C'!$D$57) / (MIN(BN$2,$J41) + 'C'!$D$57),1),"") -> 18.9 | BO41: =IFERROR(ROUNDDOWN((MAX(BO$2,$J41) + 'C'!$D$57) / (MIN(BO$2,$J41) + 'C'!$D$57),1),"") -> 15.3 | BP41: =IFERROR(ROUNDDOWN((MAX(BP$2,$J41) + 'C'!$D$57) / (MIN(BP$2,$J41) + 'C'!$D$57),1),"") -> 1.5 | BQ41: =IFERROR(ROUNDDOWN((MAX(BQ$2,$J41) + 'C'!$D$57) / (MIN(BQ$2,$J41) + 'C'!$D$57),1),"") -> 1.2 | BR41: =IFERROR(ROUNDDOWN((MAX(BR$2,$J41) + 'C'!$D$57) / (MIN(BR$2,$J41) + 'C'!$D$57),1),"") -> 7.7 | BS41: =IFERROR(ROUNDDOWN((MAX(BS$2,$J41) + 'C'!$D$57) / (MIN(BS$2,$J41) + 'C'!$D$57),1),"") -> 3.9 | BT41: =IFERROR(ROUNDDOWN((MAX(BT$2,$J41) + 'C'!$D$57) / (MIN(BT$2,$J41) + 'C'!$D$57),1),"") -> 8.7 | BU41: =IFERROR(ROUNDDOWN((MAX(BU$2,$J41) + 'C'!$D$57) / (MIN(BU$2,$J41) + 'C'!$D$57),1),"") -> 5 | BV41: =IFERROR(ROUNDDOWN((MAX(BV$2,$J41) + 'C'!$D$57) / (MIN(BV$2,$J41) + 'C'!$D$57),1),"") -> 3.8 | BW41: =IFERROR(ROUNDDOWN((MAX(BW$2,$J41) + 'C'!$D$57) / (MIN(BW$2,$J41) + 'C'!$D$57),1),"") -> 2.1 | BX41: =IFERROR(ROUNDDOWN((MAX(BX$2,$J41) + 'C'!$D$57) / (MIN(BX$2,$J41) + 'C'!$D$57),1),"") -> 1.3 | BY41: =IFERROR(ROUNDDOWN((MAX(BY$2,$J41) + 'C'!$D$57) / (MIN(BY$2,$J41) + 'C'!$D$57),1),"") -> 2.1 | BZ41: =IFERROR(ROUNDDOWN((MAX(BZ$2,$J41) + 'C'!$D$57) / (MIN(BZ$2,$J41) + 'C'!$D$57),1),"") -> 8.7 | CA41: =IFERROR(ROUNDDOWN((MAX(CA$2,$J41) + 'C'!$D$57) / (MIN(CA$2,$J41) + 'C'!$D$57),1),"") -> 1.8 | CB41: =IFERROR(ROUNDDOWN((MAX(CB$2,$J41) + 'C'!$D$57) / (MIN(CB$2,$J41) + 'C'!$D$57),1),"") -> 3.6 | CC41: =IFERROR(ROUNDDOWN((MAX(CC$2,$J41) + 'C'!$D$57) / (MIN(CC$2,$J41) + 'C'!$D$57),1),"") -> 1 | CD41: =IFERROR(ROUNDDOWN((MAX(CD$2,$J41) + 'C'!$D$57) / (MIN(CD$2,$J41) + 'C'!$D$57),1),"") -> 1 | CE41: =IFERROR(ROUNDDOWN((MAX(CE$2,$J41) + 'C'!$D$57) / (MIN(CE$2,$J41) + 'C'!$D$57),1),"") -> 1 | CF41: =IFERROR(ROUNDDOWN((MAX(CF$2,$J41) + 'C'!$D$57) / (MIN(CF$2,$J41) + 'C'!$D$57),1),"") -> 1 | CG41: =IFERROR(ROUNDDOWN((MAX(CG$2,$J41) + 'C'!$D$57) / (MIN(CG$2,$J41) + 'C'!$D$57),1),"") -> 1 | CH41: =IFERROR(ROUNDDOWN((MAX(CH$2,$J41) + 'C'!$D$57) / (MIN(CH$2,$J41) + 'C'!$D$57),1),"") -> 1 | CI41: =IFERROR(ROUNDDOWN((MAX(CI$2,$J41) + 'C'!$D$57) / (MIN(CI$2,$J41) + 'C'!$D$57),1),"") -> 1 | CJ41: =IFERROR(ROUNDDOWN((MAX(CJ$2,$J41) + 'C'!$D$57) / (MIN(CJ$2,$J41) + 'C'!$D$57),1),"") -> 1 | CK41: =IFERROR(ROUNDDOWN((MAX(CK$2,$J41) + 'C'!$D$57) / (MIN(CK$2,$J41) + 'C'!$D$57),1),"") -> 1 | CL41: =IFERROR(ROUNDDOWN((MAX(CL$2,$J41) + 'C'!$D$57) / (MIN(CL$2,$J41) + 'C'!$D$57),1),"") -> 1 | CM41: =IFERROR(ROUNDDOWN((MAX(CM$2,$J41) + 'C'!$D$57) / (MIN(CM$2,$J41) + 'C'!$D$57),1),"") -> 1 | CN41: =IFERROR(ROUNDDOWN((MAX(CN$2,$J41) + 'C'!$D$57) / (MIN(CN$2,$J41) + 'C'!$D$57),1),"") -> 1 | CO41: =IFERROR(ROUNDDOWN((MAX(CO$2,$J41) + 'C'!$D$57) / (MIN(CO$2,$J41) + 'C'!$D$57),1),"") -> 1 | CP41: =IFERROR(ROUNDDOWN((MAX(CP$2,$J41) + 'C'!$D$57) / (MIN(CP$2,$J41) + 'C'!$D$57),1),"") -> 1 | CQ41: =IFERROR(ROUNDDOWN((MAX(CQ$2,$J41) + 'C'!$D$57) / (MIN(CQ$2,$J41) + 'C'!$D$57),1),"") -> 1 | CR41: =IFERROR(ROUNDDOWN((MAX(CR$2,$J41) + 'C'!$D$57) / (MIN(CR$2,$J41) + 'C'!$D$57),1),"") -> 1 | CS41: =IFERROR(ROUNDDOWN((MAX(CS$2,$J41) + 'C'!$D$57) / (MIN(CS$2,$J41) + 'C'!$D$57),1),"") -> 1 | CT41: =IFERROR(ROUNDDOWN((MAX(CT$2,$J41) + 'C'!$D$57) / (MIN(CT$2,$J41) + 'C'!$D$57),1),"") -> 1 | CU41: =IFERROR(ROUNDDOWN((MAX(CU$2,$J41) + 'C'!$D$57) / (MIN(CU$2,$J41) + 'C'!$D$57),1),"") -> 1
B42: #ffffff | D42: 0 | E42: 0 | F42: 0 | I42: #FFFFFF | J42: 0.9999999648 | M42: 255 | N42: 255 | O42: 255 | Q42: 1 | R42: 1 | S42: 1 | U42: =IF($Q42 > 'C'!$D$33,((($Q42 + 'C'!$D$30) / 'C'!$D$31)) ^ 'C'!$D$32,($Q42 / 'C'!$D$29)) -> 1 | V42: =IF($R42 > 'C'!$D$33,((($R42 + 'C'!$D$30) / 'C'!$D$31)) ^ 'C'!$D$32,($R42 / 'C'!$D$29)) -> 1 | W42: =IF($S42 > 'C'!$D$33,((($S42 + 'C'!$D$30) / 'C'!$D$31)) ^ 'C'!$D$32,($S42 / 'C'!$D$29)) -> 1 | Y42: =('C'!$D$44 * $U42) +( 'C'!$D$45 * $V42) + ('C'!$D$46 * $W42) -> 1 | Z42: =ROUND( ('C'!$D$69 * $U42) + ('C'!$E$69 * $V42) + ('C'!$F$69 * $W42), 'C'!$D$75) -> 1 | AA42: =ROUND( ('C'!$D$70 * $U42) + ('C'!$E$70 * $V42) + ('C'!$F$70 * $W42), 'C'!$D$75) -> 1 | AB42: =ROUND( ('C'!$D$71 * $U42) + ('C'!$E$71 * $V42) + ('C'!$F$71 * $W42), 'C'!$D$75) -> 1 | AD42: =ROUND( ('C'!$D$82 * ($Z42^'C'!$D$89)) + ('C'!$E$82 * ($AA42^'C'!$D$89)) + ('C'!$F$82 * ($AB42^'C'!$D$89)), 'C'!$D$88) -> 0.99999999 | AE42: =ROUND( ('C'!$D$83 * ($Z42^'C'!$D$89)) + ('C'!$E$83 * ($AA42^'C'!$D$89)) + ('C'!$F$83 * ($AB42^'C'!$D$89)), 'C'!$D$88) -> 0 | AF42: =ROUND( ('C'!$D$84 * ($Z42^'C'!$D$89)) + ('C'!$E$84 * ($AA42^'C'!$D$89)) + ('C'!$F$84 * ($AB42^'C'!$D$89)), 'C'!$D$88) -> 4e-08 | AG42: 4e-08 | AH42: 90 | AJ42: 0.99999999 | AK42: 2.45029691e-24 | AL42: 4e-08 | AM42: 4e-08 | AN42: 90 | AP42: =ROUND( ('C'!$D$105 * $AJ42) + ('C'!$E$105 * $AK42) + ('C'!$F$105 * $AL42), 'C'!$D$111) ^ 'C'!$D$112 -> 1 | AQ42: =ROUND( ('C'!$D$106 * $AJ42) + ('C'!$E$106 * $AK42) + ('C'!$F$106 * $AL42), 'C'!$D$111) ^ 'C'!$D$112 -> 0.99999997 | AR42: =ROUND( ('C'!$D$107 * $AJ42) + ('C'!$E$107 * $AK42) + ('C'!$F$107 * $AL42), 'C'!$D$111) ^ 'C'!$D$112 -> 0.99999982 | AT42: =MIN(1, MAX(0, ROUND( ('C'!$D$119 * $AP42) + ('C'!$E$119 * $AQ42) + ('C'!$F$119 * $AR42), 'C'!$D$125))) -> 1 | AU42: =MIN(1,MAX(0,ROUND( ('C'!$D$120 * $AP42) + ('C'!$E$120 * $AQ42) + ('C'!$F$120 * $AR42), 'C'!$D$125))) -> 0.99999998 | AV42: =MIN(1,MAX(0,ROUND( ('C'!$D$121 * $AP42) + ('C'!$E$121 * $AQ42) + ('C'!$F$121 * $AR42), 'C'!$D$125))) -> 0.99999971 | AX42: =('C'!$D$44 * $AT42) +( 'C'!$D$45 * $AU42) + ('C'!$D$46 * $AV42) -> 0.9999999648 | AY42: =IF($AT42>'C'!$D$142, ($AT42 ^ (1/'C'!$D$141) * 'C'!$D$140) - 'C'!$D$139, $AT42 * 'C'!$D$138) -> 1 | AZ42: =IF($AU42>'C'!$D$142, ($AU42 ^ (1/'C'!$D$141) * 'C'!$D$140) - 'C'!$D$139, $AU42 * 'C'!$D$138) -> 0.9999999912 | BA42: =IF($AV42>'C'!$D$142, ($AV42 ^ (1/'C'!$D$141) * 'C'!$D$140) - 'C'!$D$139, $AV42 * 'C'!$D$138) -> 0.9999998725 | BC42: 255 | BD42: 255 | BE42: 255 | BH42: =IFERROR(ROUNDDOWN((MAX(BH$2,$J42) + 'C'!$D$57) / (MIN(BH$2,$J42) + 'C'!$D$57),1),"") -> 1.6 | BI42: =IFERROR(ROUNDDOWN((MAX(BI$2,$J42) + 'C'!$D$57) / (MIN(BI$2,$J42) + 'C'!$D$57),1),"") -> 1.7 | BJ42: =IFERROR(ROUNDDOWN((MAX(BJ$2,$J42) + 'C'!$D$57) / (MIN(BJ$2,$J42) + 'C'!$D$57),1),"") -> 1.5 | BK42: =IFERROR(ROUNDDOWN((MAX(BK$2,$J42) + 'C'!$D$57) / (MIN(BK$2,$J42) + 'C'!$D$57),1),"") -> 1 | BL42: =IFERROR(ROUNDDOWN((MAX(BL$2,$J42) + 'C'!$D$57) / (MIN(BL$2,$J42) + 'C'!$D$57),1),"") -> 20.9 | BM42: =IFERROR(ROUNDDOWN((MAX(BM$2,$J42) + 'C'!$D$57) / (MIN(BM$2,$J42) + 'C'!$D$57),1),"") -> 11.2 | BN42: =IFERROR(ROUNDDOWN((MAX(BN$2,$J42) + 'C'!$D$57) / (MIN(BN$2,$J42) + 'C'!$D$57),1),"") -> 18.9 | BO42: =IFERROR(ROUNDDOWN((MAX(BO$2,$J42) + 'C'!$D$57) / (MIN(BO$2,$J42) + 'C'!$D$57),1),"") -> 15.3 | BP42: =IFERROR(ROUNDDOWN((MAX(BP$2,$J42) + 'C'!$D$57) / (MIN(BP$2,$J42) + 'C'!$D$57),1),"") -> 1.5 | BQ42: =IFERROR(ROUNDDOWN((MAX(BQ$2,$J42) + 'C'!$D$57) / (MIN(BQ$2,$J42) + 'C'!$D$57),1),"") -> 1.2 | BR42: =IFERROR(ROUNDDOWN((MAX(BR$2,$J42) + 'C'!$D$57) / (MIN(BR$2,$J42) + 'C'!$D$57),1),"") -> 7.7 | BS42: =IFERROR(ROUNDDOWN((MAX(BS$2,$J42) + 'C'!$D$57) / (MIN(BS$2,$J42) + 'C'!$D$57),1),"") -> 3.9 | BT42: =IFERROR(ROUNDDOWN((MAX(BT$2,$J42) + 'C'!$D$57) / (MIN(BT$2,$J42) + 'C'!$D$57),1),"") -> 8.7 | BU42: =IFERROR(ROUNDDOWN((MAX(BU$2,$J42) + 'C'!$D$57) / (MIN(BU$2,$J42) + 'C'!$D$57),1),"") -> 5 | BV42: =IFERROR(ROUNDDOWN((MAX(BV$2,$J42) + 'C'!$D$57) / (MIN(BV$2,$J42) + 'C'!$D$57),1),"") -> 3.8 | BW42: =IFERROR(ROUNDDOWN((MAX(BW$2,$J42) + 'C'!$D$57) / (MIN(BW$2,$J42) + 'C'!$D$57),1),"") -> 2.1 | BX42: =IFERROR(ROUNDDOWN((MAX(BX$2,$J42) + 'C'!$D$57) / (MIN(BX$2,$J42) + 'C'!$D$57),1),"") -> 1.3 | BY42: =IFERROR(ROUNDDOWN((MAX(BY$2,$J42) + 'C'!$D$57) / (MIN(BY$2,$J42) + 'C'!$D$57),1),"") -> 2.1 | BZ42: =IFERROR(ROUNDDOWN((MAX(BZ$2,$J42) + 'C'!$D$57) / (MIN(BZ$2,$J42) + 'C'!$D$57),1),"") -> 8.7 | CA42: =IFERROR(ROUNDDOWN((MAX(CA$2,$J42) + 'C'!$D$57) / (MIN(CA$2,$J42) + 'C'!$D$57),1),"") -> 1.8 | CB42: =IFERROR(ROUNDDOWN((MAX(CB$2,$J42) + 'C'!$D$57) / (MIN(CB$2,$J42) + 'C'!$D$57),1),"") -> 3.6 | CC42: =IFERROR(ROUNDDOWN((MAX(CC$2,$J42) + 'C'!$D$57) / (MIN(CC$2,$J42) + 'C'!$D$57),1),"") -> 1 | CD42: =IFERROR(ROUNDDOWN((MAX(CD$2,$J42) + 'C'!$D$57) / (MIN(CD$2,$J42) + 'C'!$D$57),1),"") -> 1 | CE42: =IFERROR(ROUNDDOWN((MAX(CE$2,$J42) + 'C'!$D$57) / (MIN(CE$2,$J42) + 'C'!$D$57),1),"") -> 1 | CF42: =IFERROR(ROUNDDOWN((MAX(CF$2,$J42) + 'C'!$D$57) / (MIN(CF$2,$J42) + 'C'!$D$57),1),"") -> 1 | CG42: =IFERROR(ROUNDDOWN((MAX(CG$2,$J42) + 'C'!$D$57) / (MIN(CG$2,$J42) + 'C'!$D$57),1),"") -> 1 | CH42: =IFERROR(ROUNDDOWN((MAX(CH$2,$J42) + 'C'!$D$57) / (MIN(CH$2,$J42) + 'C'!$D$57),1),"") -> 1 | CI42: =IFERROR(ROUNDDOWN((MAX(CI$2,$J42) + 'C'!$D$57) / (MIN(CI$2,$J42) + 'C'!$D$57),1),"") -> 1 | CJ42: =IFERROR(ROUNDDOWN((MAX(CJ$2,$J42) + 'C'!$D$57) / (MIN(CJ$2,$J42) + 'C'!$D$57),1),"") -> 1 | CK42: =IFERROR(ROUNDDOWN((MAX(CK$2,$J42) + 'C'!$D$57) / (MIN(CK$2,$J42) + 'C'!$D$57),1),"") -> 1 | CL42: =IFERROR(ROUNDDOWN((MAX(CL$2,$J42) + 'C'!$D$57) / (MIN(CL$2,$J42) + 'C'!$D$57),1),"") -> 1 | CM42: =IFERROR(ROUNDDOWN((MAX(CM$2,$J42) + 'C'!$D$57) / (MIN(CM$2,$J42) + 'C'!$D$57),1),"") -> 1 | CN42: =IFERROR(ROUNDDOWN((MAX(CN$2,$J42) + 'C'!$D$57) / (MIN(CN$2,$J42) + 'C'!$D$57),1),"") -> 1 | CO42: =IFERROR(ROUNDDOWN((MAX(CO$2,$J42) + 'C'!$D$57) / (MIN(CO$2,$J42) + 'C'!$D$57),1),"") -> 1 | CP42: =IFERROR(ROUNDDOWN((MAX(CP$2,$J42) + 'C'!$D$57) / (MIN(CP$2,$J42) + 'C'!$D$57),1),"") -> 1 | CQ42: =IFERROR(ROUNDDOWN((MAX(CQ$2,$J42) + 'C'!$D$57) / (MIN(CQ$2,$J42) + 'C'!$D$57),1),"") -> 1 | CR42: =IFERROR(ROUNDDOWN((MAX(CR$2,$J42) + 'C'!$D$57) / (MIN(CR$2,$J42) + 'C'!$D$57),1),"") -> 1 | CS42: =IFERROR(ROUNDDOWN((MAX(CS$2,$J42) + 'C'!$D$57) / (MIN(CS$2,$J42) + 'C'!$D$57),1),"") -> 1 | CT42: =IFERROR(ROUNDDOWN((MAX(CT$2,$J42) + 'C'!$D$57) / (MIN(CT$2,$J42) + 'C'!$D$57),1),"") -> 1 | CU42: =IFERROR(ROUNDDOWN((MAX(CU$2,$J42) + 'C'!$D$57) / (MIN(CU$2,$J42) + 'C'!$D$57),1),"") -> 1
A43: =myHex(B43) ->  | B43: #ffffff | D43: 0 | E43: 0 | F43: 0 | I43: #FFFFFF | J43: 0.9999999648 | K43: =myHex(B43) ->  | L43: =myHex(I43) ->  | M43: 255 | N43: 255 | O43: 255 | Q43: 1 | R43: 1 | S43: 1 | U43: =IF($Q43 > 'C'!$D$33,((($Q43 + 'C'!$D$30) / 'C'!$D$31)) ^ 'C'!$D$32,($Q43 / 'C'!$D$29)) -> 1 | V43: =IF($R43 > 'C'!$D$33,((($R43 + 'C'!$D$30) / 'C'!$D$31)) ^ 'C'!$D$32,($R43 / 'C'!$D$29)) -> 1 | W43: =IF($S43 > 'C'!$D$33,((($S43 + 'C'!$D$30) / 'C'!$D$31)) ^ 'C'!$D$32,($S43 / 'C'!$D$29)) -> 1 | Y43: =('C'!$D$44 * $U43) +( 'C'!$D$45 * $V43) + ('C'!$D$46 * $W43) -> 1 | Z43: =ROUND( ('C'!$D$69 * $U43) + ('C'!$E$69 * $V43) + ('C'!$F$69 * $W43), 'C'!$D$75) -> 1 | AA43: =ROUND( ('C'!$D$70 * $U43) + ('C'!$E$70 * $V43) + ('C'!$F$70 * $W43), 'C'!$D$75) -> 1 | AB43: =ROUND( ('C'!$D$71 * $U43) + ('C'!$E$71 * $V43) + ('C'!$F$71 * $W43), 'C'!$D$75) -> 1 | AD43: =ROUND( ('C'!$D$82 * ($Z43^'C'!$D$89)) + ('C'!$E$82 * ($AA43^'C'!$D$89)) + ('C'!$F$82 * ($AB43^'C'!$D$89)), 'C'!$D$88) -> 0.99999999 | AE43: =ROUND( ('C'!$D$83 * ($Z43^'C'!$D$89)) + ('C'!$E$83 * ($AA43^'C'!$D$89)) + ('C'!$F$83 * ($AB43^'C'!$D$89)), 'C'!$D$88) -> 0 | AF43: =ROUND( ('C'!$D$84 * ($Z43^'C'!$D$89)) + ('C'!$E$84 * ($AA43^'C'!$D$89)) + ('C'!$F$84 * ($AB43^'C'!$D$89)), 'C'!$D$88) -> 4e-08 | AG43: 4e-08 | AH43: 90 | AJ43: 0.99999999 | AK43: 2.45029691e-24 | AL43: 4e-08 | AM43: 4e-08 | AN43: 90 | AP43: =ROUND( ('C'!$D$105 * $AJ43) + ('C'!$E$105 * $AK43) + ('C'!$F$105 * $AL43), 'C'!$D$111) ^ 'C'!$D$112 -> 1 | AQ43: =ROUND( ('C'!$D$106 * $AJ43) + ('C'!$E$106 * $AK43) + ('C'!$F$106 * $AL43), 'C'!$D$111) ^ 'C'!$D$112 -> 0.99999997 | AR43: =ROUND( ('C'!$D$107 * $AJ43) + ('C'!$E$107 * $AK43) + ('C'!$F$107 * $AL43), 'C'!$D$111) ^ 'C'!$D$112 -> 0.99999982 | AT43: =MIN(1, MAX(0, ROUND( ('C'!$D$119 * $AP43) + ('C'!$E$119 * $AQ43) + ('C'!$F$119 * $AR43), 'C'!$D$125))) -> 1 | AU43: =MIN(1,MAX(0,ROUND( ('C'!$D$120 * $AP43) + ('C'!$E$120 * $AQ43) + ('C'!$F$120 * $AR43), 'C'!$D$125))) -> 0.99999998 | AV43: =MIN(1,MAX(0,ROUND( ('C'!$D$121 * $AP43) + ('C'!$E$121 * $AQ43) + ('C'!$F$121 * $AR43), 'C'!$D$125))) -> 0.99999971 | AX43: =('C'!$D$44 * $AT43) +( 'C'!$D$45 * $AU43) + ('C'!$D$46 * $AV43) -> 0.9999999648 | AY43: =IF($AT43>'C'!$D$142, ($AT43 ^ (1/'C'!$D$141) * 'C'!$D$140) - 'C'!$D$139, $AT43 * 'C'!$D$138) -> 1 | AZ43: =IF($AU43>'C'!$D$142, ($AU43 ^ (1/'C'!$D$141) * 'C'!$D$140) - 'C'!$D$139, $AU43 * 'C'!$D$138) -> 0.9999999912 | BA43: =IF($AV43>'C'!$D$142, ($AV43 ^ (1/'C'!$D$141) * 'C'!$D$140) - 'C'!$D$139, $AV43 * 'C'!$D$138) -> 0.9999998725 | BC43: 255 | BD43: 255 | BE43: 255 | BH43: =IFERROR(ROUNDDOWN((MAX(BH$2,$J43) + 'C'!$D$57) / (MIN(BH$2,$J43) + 'C'!$D$57),1),"") -> 1.6 | BI43: =IFERROR(ROUNDDOWN((MAX(BI$2,$J43) + 'C'!$D$57) / (MIN(BI$2,$J43) + 'C'!$D$57),1),"") -> 1.7 | BJ43: =IFERROR(ROUNDDOWN((MAX(BJ$2,$J43) + 'C'!$D$57) / (MIN(BJ$2,$J43) + 'C'!$D$57),1),"") -> 1.5 | BK43: =IFERROR(ROUNDDOWN((MAX(BK$2,$J43) + 'C'!$D$57) / (MIN(BK$2,$J43) + 'C'!$D$57),1),"") -> 1 | BL43: =IFERROR(ROUNDDOWN((MAX(BL$2,$J43) + 'C'!$D$57) / (MIN(BL$2,$J43) + 'C'!$D$57),1),"") -> 20.9 | BM43: =IFERROR(ROUNDDOWN((MAX(BM$2,$J43) + 'C'!$D$57) / (MIN(BM$2,$J43) + 'C'!$D$57),1),"") -> 11.2 | BN43: =IFERROR(ROUNDDOWN((MAX(BN$2,$J43) + 'C'!$D$57) / (MIN(BN$2,$J43) + 'C'!$D$57),1),"") -> 18.9 | BO43: =IFERROR(ROUNDDOWN((MAX(BO$2,$J43) + 'C'!$D$57) / (MIN(BO$2,$J43) + 'C'!$D$57),1),"") -> 15.3 | BP43: =IFERROR(ROUNDDOWN((MAX(BP$2,$J43) + 'C'!$D$57) / (MIN(BP$2,$J43) + 'C'!$D$57),1),"") -> 1.5 | BQ43: =IFERROR(ROUNDDOWN((MAX(BQ$2,$J43) + 'C'!$D$57) / (MIN(BQ$2,$J43) + 'C'!$D$57),1),"") -> 1.2 | BR43: =IFERROR(ROUNDDOWN((MAX(BR$2,$J43) + 'C'!$D$57) / (MIN(BR$2,$J43) + 'C'!$D$57),1),"") -> 7.7 | BS43: =IFERROR(ROUNDDOWN((MAX(BS$2,$J43) + 'C'!$D$57) / (MIN(BS$2,$J43) + 'C'!$D$57),1),"") -> 3.9 | BT43: =IFERROR(ROUNDDOWN((MAX(BT$2,$J43) + 'C'!$D$57) / (MIN(BT$2,$J43) + 'C'!$D$57),1),"") -> 8.7 | BU43: =IFERROR(ROUNDDOWN((MAX(BU$2,$J43) + 'C'!$D$57) / (MIN(BU$2,$J43) + 'C'!$D$57),1),"") -> 5 | BV43: =IFERROR(ROUNDDOWN((MAX(BV$2,$J43) + 'C'!$D$57) / (MIN(BV$2,$J43) + 'C'!$D$57),1),"") -> 3.8 | BW43: =IFERROR(ROUNDDOWN((MAX(BW$2,$J43) + 'C'!$D$57) / (MIN(BW$2,$J43) + 'C'!$D$57),1),"") -> 2.1 | BX43: =IFERROR(ROUNDDOWN((MAX(BX$2,$J43) + 'C'!$D$57) / (MIN(BX$2,$J43) + 'C'!$D$57),1),"") -> 1.3 | BY43: =IFERROR(ROUNDDOWN((MAX(BY$2,$J43) + 'C'!$D$57) / (MIN(BY$2,$J43) + 'C'!$D$57),1),"") -> 2.1 | BZ43: =IFERROR(ROUNDDOWN((MAX(BZ$2,$J43) + 'C'!$D$57) / (MIN(BZ$2,$J43) + 'C'!$D$57),1),"") -> 8.7 | CA43: =IFERROR(ROUNDDOWN((MAX(CA$2,$J43) + 'C'!$D$57) / (MIN(CA$2,$J43) + 'C'!$D$57),1),"") -> 1.8 | CB43: =IFERROR(ROUNDDOWN((MAX(CB$2,$J43) + 'C'!$D$57) / (MIN(CB$2,$J43) + 'C'!$D$57),1),"") -> 3.6 | CC43: =IFERROR(ROUNDDOWN((MAX(CC$2,$J43) + 'C'!$D$57) / (MIN(CC$2,$J43) + 'C'!$D$57),1),"") -> 1 | CD43: =IFERROR(ROUNDDOWN((MAX(CD$2,$J43) + 'C'!$D$57) / (MIN(CD$2,$J43) + 'C'!$D$57),1),"") -> 1 | CE43: =IFERROR(ROUNDDOWN((MAX(CE$2,$J43) + 'C'!$D$57) / (MIN(CE$2,$J43) + 'C'!$D$57),1),"") -> 1 | CF43: =IFERROR(ROUNDDOWN((MAX(CF$2,$J43) + 'C'!$D$57) / (MIN(CF$2,$J43) + 'C'!$D$57),1),"") -> 1 | CG43: =IFERROR(ROUNDDOWN((MAX(CG$2,$J43) + 'C'!$D$57) / (MIN(CG$2,$J43) + 'C'!$D$57),1),"") -> 1 | CH43: =IFERROR(ROUNDDOWN((MAX(CH$2,$J43) + 'C'!$D$57) / (MIN(CH$2,$J43) + 'C'!$D$57),1),"") -> 1 | CI43: =IFERROR(ROUNDDOWN((MAX(CI$2,$J43) + 'C'!$D$57) / (MIN(CI$2,$J43) + 'C'!$D$57),1),"") -> 1 | CJ43: =IFERROR(ROUNDDOWN((MAX(CJ$2,$J43) + 'C'!$D$57) / (MIN(CJ$2,$J43) + 'C'!$D$57),1),"") -> 1 | CK43: =IFERROR(ROUNDDOWN((MAX(CK$2,$J43) + 'C'!$D$57) / (MIN(CK$2,$J43) + 'C'!$D$57),1),"") -> 1 | CL43: =IFERROR(ROUNDDOWN((MAX(CL$2,$J43) + 'C'!$D$57) / (MIN(CL$2,$J43) + 'C'!$D$57),1),"") -> 1 | CM43: =IFERROR(ROUNDDOWN((MAX(CM$2,$J43) + 'C'!$D$57) / (MIN(CM$2,$J43) + 'C'!$D$57),1),"") -> 1 | CN43: =IFERROR(ROUNDDOWN((MAX(CN$2,$J43) + 'C'!$D$57) / (MIN(CN$2,$J43) + 'C'!$D$57),1),"") -> 1 | CO43: =IFERROR(ROUNDDOWN((MAX(CO$2,$J43) + 'C'!$D$57) / (MIN(CO$2,$J43) + 'C'!$D$57),1),"") -> 1 | CP43: =IFERROR(ROUNDDOWN((MAX(CP$2,$J43) + 'C'!$D$57) / (MIN(CP$2,$J43) + 'C'!$D$57),1),"") -> 1 | CQ43: =IFERROR(ROUNDDOWN((MAX(CQ$2,$J43) + 'C'!$D$57) / (MIN(CQ$2,$J43) + 'C'!$D$57),1),"") -> 1 | CR43: =IFERROR(ROUNDDOWN((MAX(CR$2,$J43) + 'C'!$D$57) / (MIN(CR$2,$J43) + 'C'!$D$57),1),"") -> 1 | CS43: =IFERROR(ROUNDDOWN((MAX(CS$2,$J43) + 'C'!$D$57) / (MIN(CS$2,$J43) + 'C'!$D$57),1),"") -> 1 | CT43: =IFERROR(ROUNDDOWN((MAX(CT$2,$J43) + 'C'!$D$57) / (MIN(CT$2,$J43) + 'C'!$D$57),1),"") -> 1 | CU43: =IFERROR(ROUNDDOWN((MAX(CU$2,$J43) + 'C'!$D$57) / (MIN(CU$2,$J43) + 'C'!$D$57),1),"") -> 1

Sheet C
B1: Conversions
B2: From RGB to Lab and back again!
A6: 1 | B6: Convert Hex Triplet to RGB
B8: Split the triplet into its 3 parts using MID()
B9: Convert Hex to Decimal using HEX2DEC() on each part
B10: CRGB = HEX2DEC(CHex)
A14: 2 | B14: Convert 8-bit RGB to sRGB
B16: CsRGB = (C8-bit / 255)
A20: 3 | B20: Convert sRGB color to Linear RGB (gamma expansion)
B21: Source: https://en.wikipedia.org/wiki/SRGB
B23: Clinear = (CsRGB / 12.92) when CsRGB ≤ 0.04045
B25: Clinear = (((CsRGB + 0.055) / 1.055))^ 2.4 when CsRGB > 0.04045
D28: Constants
C29: a | D29: =12.92 -> 12.92
C30: b | D30: 0.055
C31: c | D31: 1.055
C32: d | D32: 2.4
C33: e | D33: 0.04045
A37: 4 | B37: Calculate Relative Luminance of Linear RGB color (for accessibility contrast ratio check)
B38: Source: https://www.w3.org/TR/WCAG22/#dfn-relative-luminance
B40: Y = 0.2126 * Rlinear + 0.7152 * Glinear + 0.0722 * Blinear
D43: Constants
C44: f | D44: 0.2126
C45: g | D45: 0.7152
C46: h | D46: 0.0722
A50: 5 | B50: Calculate Contrast Ratio
B51: Source: https://www.w3.org/TR/WCAG22/#dfn-contrast-ratio
B53: CR = (YLighter Color + 0.05) / (YDarker Color + 0.05)
D56: Constants
C57: i | D57: 0.05
C58: Text AA | D58: 4.5 | E58: :1
C59: Large Text AA | D59: 3 | E59: :1
C60: Non-Text AA | D60: 3 | E60: :1
C61: Text AAA | D61: 7 | E61: :1
C62: Large Text AAA | D62: 4.5 | E62: :1
A66: 6 | B66: Convert Linear RGB to LMS
B67: Source: https://bottosson.github.io/posts/oklab/
B69: l | D69: 0.4122214708 | E69: 0.5363325363 | F69: 0.0514459929 | H69: Rlinear
B70: m | C70: = | D70: 0.2119034982 | E70: 0.6806995451 | F70: 0.1073969566 | G70: * | H70: Glinear
B71: s | D71: 0.0883024619 | E71: 0.2817188376 | F71: 0.6299787005 | H71: Blinear
D74: Constants
C75: precision | D75: 8
A79: 7 | B79: Convert LMS to OK Lab
B80: Source: https://bottosson.github.io/posts/oklab/
B82: L | D82: 0.2104542553 | E82: 0.793617785 | F82: -0.0040720468 | H82: l ^(1/3)
B83: a | C83: = | D83: 1.977998495 | E83: -2.428592205 | F83: 0.4505937099 | G83: * | H83: m ^(1/3)
B84: b | D84: 0.0259040371 | E84: 0.7827717662 | F84: -0.808675766 | H84: s ^(1/3)
D87: Constants
C88: precision | D88: =$D$75 -> 8
C89: power | D89: =1/$D$112 -> 0.3333333333
A93: 8 | B93: Calculate OK Lab Chroma & hue
B94: Source: https://bottosson.github.io/posts/oklab/
B96: C = ((a ^ 2) + (b ^ 2)) ^ (1/2)
B98: h∘ = DEGREES( ATAN2(a,b) ) (the Excel function takes the arguments in reverse and returns Radians which we need to convert to degrees)
A102: 9 | B102: Convert OK Lab back to LMS
B103: Source: https://bottosson.github.io/posts/oklab/
B105: l ^(1/3) | D105: 1 | E105: 0.3963377774 | F105: 0.2158037573 | H105: L
B106: m ^(1/3) | C106: = | D106: 1 | E106: -0.1055613458 | F106: -0.0638541728 | G106: * | H106: a
B107: s ^(1/3) | D107: 1 | E107: -0.0894841775 | F107: -1.291485548 | H107: b
D110: Constants
C111: precision | D111: =$D$75 -> 8
C112: power | D112: 3
A116: 10 | B116: Convert LMS back to Linear RGB
B117: Source: https://bottosson.github.io/posts/oklab/
B119: Rlinear | D119: 4.076741662 | E119: -3.307711591 | F119: 0.2309699292 | H119: l
B120: Glinear | C120: = | D120: -1.268438005 | E120: 2.609757401 | F120: -0.3413193965 | G120: * | H120: m
B121: Blinear | D121: -0.0041960863 | E121: -0.7034186147 | F121: 1.707614701 | H121: s
D124: Constants
C125: precision | D125: =$D$75 -> 8
A129: 11 | B129: Convert Linear RGB back to sRGB (gamma correction)
B130: Source: https://en.wikipedia.org/wiki/SRGB
B132: CsRGB = (Clinear * 12.92) when Clinear ≤ 0.0031308
B134: CsRGB = (Clinear ^(1/2.4) * 1.055) - 0.055 when Clinear > 0.0031308
D137: Constants
C138: a | D138: =$D$29 -> 12.92
C139: b | D139: =$D$30 -> 0.055
C140: c | D140: =$D$31 -> 1.055
C141: d | D141: =$D$32 -> 2.4
C142: i | D142: 0.0031308
A146: 12 | B146: Convert sRGB back to 8-bit RGB
B148: C8-Bit = ROUND(CsRGB * 255, 0) (we need to return to integer values)
A152: 13 | B152: Convert RGB back to Hex Triplet
B154: Concatenate the 3 parts ensuring we always output 2 Hex characters for each color
B155: CHex = CONCATENATE("#",DEC2HEX(R8-bit,2),DEC2HEX(G8-bit,2),DEC2HEX(B8-bit,2))
